Workbook

Sheet Introduction
A1: Florida Department of Transportation
A2: Safety Performance for Intersection Control Evaluation Tool
A3: Introduction | B3: Overview
A4: The Safety Performance for Intersection Control Evaluation (SPICE) Tool was developed to provide an easy-to-use tool that automates the predictive safety analysis of intersections. This tool allows analysts conducting Intersection Control Evaluation (ICE) to be equipped with necessary safety information during the decision-making process, without having to research a myriad of crash modification factors (CMFs) and Safety Performance Functions (SPFs) in multiple sources. The SPICE tool performs a comparative predictive safety analysis of different intersection control strategies. The results – crash frequency and severity for each alternative – enable safety performance of alternatives to be considered quantitatively like traffic operations, construction cost, maintenance cost, or other factors. FDOT SPICE Tool is a Florida specific adaptation of Federal Highway Administration (FHWA) SPICE Tool. The FDOT SPICE also contains a second safety performance measure - Safe System for Intersections score. This is based on the method in report FHWA-SA-21-008. | B4: The SPICE Tool performs safety analysis of at-grade intersection forms/control types and ramp terminal intersections of diamond interchanges. This user-friendly tool requires only data inputs that are readily available to the analyst. The SPICE tool can be used to conduct planning-level analysis, where the tool assumes default values for data inputs that are challenging to obtain in the early stages of a project and/or have a very minor impact on the results. The SPICE tool assumes that certain attributes of the intersection – AADT, facility type, and number of legs – are the same for all alternatives. If they are not, users will be required to use the tool twice to get results. The tool will not allow simultaneous evaluation of at-grade intersections and ramp terminal intersections. For projects where analysis of both intersections and interchanges is needed, users are required to use the tool twice to get results. The Safe System for Intersection analysis can be applied to a greater number of intersection forms because it is not dependent upon SPFs for CMFs being developed for that intersection form.
A5: Worksheets
A6: Project Information: Provide general project information for reference purposes only.
A7: Definitions: Reference sheet with additional information related to inputs for the SPICE tool.
A8: Control Strategy Selection: Choose between At-Grade or Ramp Terminal intersection types to be included in the SPICE analysis.
A9: At-Grade Inputs: SPF and Part C CMF inputs for At-Grade intersections (hidden if Ramp Terminals are being analyzed).
A10: Ramp Terminal Inputs: SPF and Part C CMF inputs for Ramp Terminal intersections (hidden if At-Grade intersections are being analyzed).
A11: SSI Inputs: Safe System for Intersection inputs used to calculate SSI score
A12: Calibration: Input optional override values for SPF calibration factors from locally-developed or updated information.
A13: Historical: Crash Data inputs used for Empirical Bayes (EB) Method
A14: Results: Summary of opening year and (if applicable) design year and total project life cycle crash frequency and crash severity.
A15: Additional Worksheets: Additional worksheets to support the underlying Macros. Not to be updated by users unless updating future tool versions.
A16: Maintenance | B16: Input Legend
A17: Version: SPICE Tool 5.2.2 [Changelog] | C17: Required data entry field
A18: Maintained By: FDOT Traffic Engineering & Operations Office | C18: Optional data entry field
A19: Contact Information: FDOT-StateTrafficServicesSection@dot.state.fl.us | C19: Planning-Level Default Input
C20: Data entry field not used
A21: Disclaimer
A22: NO WARRANTIES: The software is made available by the Florida Department of Transportation on an "as is", "as available" basis without warranties of any kind, express or implied. DISCLAIMER OF LIABILITY: The user of this software assumes all responsibility and risk for the use of both. Under no circumstances, including negligence, shall the Florida Department of Transportation, or its employees be liable for any DIRECT, INDIRECT, INCIDENTAL, SPECIAL, EXEMPLARY or CONSEQUENTIAL DAMAGES, or LOST PROFITS that result from the use, misuse or inability to use the software. Nor shall the Florida Department of Transportation, or its employees be liable for any damages resulting from or related to reliance; mistakes, omissions, interruptions, deletion of files, computer viruses, errors, defects, or any failure of performance, communications failure, theft, destruction or unauthorized access to the software.

Sheet Project Information
A1: Project Information
A2: Provide general project information for reference purposes only.
A3: Project Name:
A4: Intersection:
A5: Agency:
A6: Project Reference:
A7: City:
A8: State:
A9: Date:
A10: Analyst:
A11: Use this button to clear all inputs/outputs and reset the tool to its initial defaults

Sheet Intersection Mapping
C4: CAP-X | D4: SPICE | E4: Economic Analysis for ICE
C5: At-Grade Intersections
C6: Traffic Signal | D6: Traffic Signal | E6: Traffic Signal
C7: Traffic Signal (Alt.) | D7: Traffic Signal (Alternative Configuration) | E7: Traffic Signal (Alt.)
C8: Two-Way Stop Control | D8: Minor Road Stop Control | E8: Two-Way Stop Control
C9: All-Way Stop Control | D9: All Way Stop Control | E9: All Way Stop Control
C10: Continuous Green T | D10: Continuous Green-T Intersection | E10: Continuous Green-T Intersection
C11: Quadrant Roadway | D11: - | E11: Quadrant Roadway Intersection
C12: Partial Displaced Left Turn | D12: Partial Displaced Left Turn (DLT) | E12: Displaced Left Turn (DLT)
C13: - | D13: -
C14: Signalized Restricted Crossing U-Turn | D14: Signalized Restricted Crossing U-Turn (RCUT) | E14: Signalized Restricted Crossing U-Turn (RCUT)
C15: Unsignalized Restricted Crossing U-Turn | D15: Unsignalized Restricted Crossing U-Turn (RCUT) | E15: Unsignalized Restricted Crossing U-Turn (RCUT)
C16: Median U-Turn | D16: Full Median U-Turn (MUT) | E16: Median U-Turn (MUT)
C17: Partial Median U-Turn | D17: -
C18: Bowtie | D18: Bowtie* | E18: Bowtie
C19: Signalized ThruCut | D19: Signalized Thru-Cut* | E19: Signalized Thrucut
C20: Unsignalized ThruCut | D20: Unsignalized Thru-Cut* | E20: Unsignalized Thrucut
C21: - | D21: Jughandle | E21: Jughandle (Forward Ramps)
C22: - | E22: Jughandle (Reverse Ramps)
C23: Roundabouts
C24: 50 ICD Miniroundabout | D24: - | E24: -
C25: 75 ICD Miniroundabout | D25: - | E25: -
C26: 1x1 | D26: 1-Lane Roundabout | E26: Roundabout (1-Lane)
C27: 1NS x 2EW | D27: 2-Lane Roundabout | E27: Roundabout (2-Lane)
C28: 2NS x 1EW
C29: 2x2
C30: Ramp Terminal Intersections
C31: Diamond | D31: Diamond Signalized | E31: Conventional Traffic Signal
C32: Diamond Alternative | D32: Diamond Signalized (Alt) | E32: Conventional Traffic Signal (Alt.)
C33: Diamond Stop Control | D33: Diamond Stop Control** | E33: Unsignalized Diamond
C34: Signalized Tight Diamond | D34: Signalized Tight Diamond | E34: Signalized Tight Diamond Interchange
C35: Partial Cloverleaf A | D35: Four Quadrant Partial Cloverleaf A Signalized | E35: -
C36: Partial Cloverleaf B | D36: Four Quadrant Partial Cloverleaf B Signalized | E36: -
C37: Two Quadrant Partial Cloverleaf A Signalized | D37: Two Quadrant Partial Cloverleaf A Signalized | E37: -
C38: Two Quadrant Partial Cloverleaf B Signalized | D38: Two Quadrant Partial Cloverleaf B Signalized | E38: -
C39: Diverging Diamond | D39: Diverging Diamond | E39: Diverging Diamond Interchange
C40: Single Point Diamond | D40: Single-Point Diamond | E40: Single-Point Diamond Traffic Signal
C41: Displaced Left Turn Interchange | D41: - | E41: -
C42: Roundabout (1X1) | D42: Roundabout (1-lane) | E42: 1-lane Roundabout
C43: Roundabout (2X2) | D43: Roundabout (2-lane) | E43: 2-lane Roundabout
C44: Half Diamond | D44: Half Diamond Signalized | E44: -
C45: - | D45: Four Quadrant Partial Cloverleaf A Stop Control** | E45: -
C46: - | D46: Four Quadrant Partial Cloverleaf B Stop Control** | E46: -
C47: - | D47: Two Quadrant Partial Cloverleaf A Stop Control** | E47: -
C48: - | D48: Two Quadrant Partial Cloverleaf B Stop Control** | E48: -
C49: - | D49: Half Diamond Stop Control** | E49: -
D50: * Indicates that only SSI analysis is available. HSM analysis is not.
D51: ** Indicates that only HSM analysis is available. SSI analysis is not.

Sheet Changelog
A1: FDOT SPICE Tool Changelog
A3: Date | C3: Version # | D3: Description
A5: 2019-04-23 | C5: 3.1 | D5: Added new safety performance function (SPF) computations for signalized and unsignalized restricted crossing u-turns (RCUTS). These methods replaced the previous crash modification factor (CMF) based approach.
A8: 2019-07-01 | C8: 3.2 | D8: Follow-up update to the Signalized RCUT methodology. These updates provided new coefficients for the safety performance function and improved AADT range and ratio limits to relflect the removal of high AADT outlier RCUT sample data sites.
A11: 2019-07-15 | C11: 3.3 | D11: Small bug fix to remove the deprecated display-only RCUT crash modification factors in the Calibration tab, as well as include new optional inputs to apply a calibration factor to the safety performance functions for signalized and unsignalized RCUTs.
A14: 2019-10-03 | C14: 3.4 | D14: Fixed bug where enabling Historical EB analysis could cause results to be reported for intersections missing an SPF. As a note, this bug only occurred when Historical analysis was enabled, an invalid historical base intersection was chosen, and no historical crashes were input.
A17: 2020-02-17 | C17: 3.5 | D17: Added new safety performance function (SPF) computations for a set of new intersections as developed by the NCHRP 17-68 project. The new intersections are the 3SG for rural two-lane highways, 3SG for rural multilane highways, 3ST, 4ST, 3SG, and 4SG for high speed arterials, 4AWSC for rural two-lane highways and 3AWSC amd 4AWSC for urban/suburban arterials.
A20: 2021-10-13 | C20: 4.0.0 | D20: Addition of SSI Methodology, new SPFs for the Tight Diamond interchange.
A23: 2022-10-31 | C23: 4.1 | D23: Addition of Bowtie SSI Methodology. Modification of Traffic Control scores for Nonmotorized conflict points. Update HSM formula (effective number of lanes for ramps), update SSI traffic complexity scoring due to presence of median.
A26: 2023-02-28 | C26: 4.1.1 | D26: Fixed bug to update crash prediction rank for CGT after addition of Bowtie, minor editorial updates.
A29: 2023-10-30 | C29: 5.0.0 | D29: Added safety performance functions (SPFs) computations for additional ramp terminal intersection types associated with partial cloverleaf and half diamond interchange forms, added new crash modification factors (CMFs) for median u-turn (MUT) intersections and diverging diamond interchanges (DDIs), added adjustment factors to signalized restricted crossing u-turn (RCUT) SPFs for reflect differences in how RCUT SPFs and HSM signalized intersection SPFs were initially developed, added additional information on AADT ranges to Results worksheet.
A32: 2023-12-22 | C32: 5.1.0 | D32: Added the disclaimer; Minor tool clean up.
A35: 2024-04-12 | C35: 5.1.1 | D35: Fixed bug with roundabout SPF calculations, set all control strategies to "No" so users are required to "turn on" any control strategy they want to analyze.
A38: 2024-11-07 | C38: 5.2.0 | D38: Added SSI Methodology for Partial Cloverleaf A, Partial Cloverleaf B, Two Quadrant Partial Cloverleaf A, Two Quadrant Partial Cloverleaf B,and Half Diamond, correct AADT limits for ramp terminal intersections, added definitions for roundabout inputs
A41: 2024-12-20 | C41: 5.2.0 (Revised) | D41: Fixed bug in 'SSI Inputs' sheet.
A44: 2025-06-05 | C44: 5.2.1 | D44: Fixed bug in 'Results' and 'SSI Inputs' sheet and fixed formula glitches in 'RTI SSI_results' sheet.

Sheet Definitions
A1: Definitions | I1: At-Grade AADT Ranges for Traffic Signals and Minor Stops | O1: At-Grade AADT 1 and 2 Lane Roundabouts
A2: Definitions of values and variables required for SPICE analysis. | I2: Rural Two-Lane Highway | O2: Intersection Type | P2: Major Road AADT | R2: Minor Road AADT
A3: User Input Variable | B3: Units | C3: Description | D3: Applicable Ranges | I3: Intersection Type | J3: Major Road AADT | L3: Minor Road AADT | O3: 1 Circulating Lane | P3: Min | Q3: Max | R3: Min | S3: Max
D4: Range for: | E4: Lower Limit | F4: Upper Limit | J4: Min | K4: Max | L4: Min | M4: Max | O4: 3Leg | P4: 675 | Q4: 17369 | R4: 409 | S4: 14000
A5: Control Strategy Selection | I5: 3ST | J5: 0 | K5: 19500 | L5: 0 | M5: 4300 | O5: 4Leg | P5: 1000 | Q5: 19733 | R5: 280 | S5: 11239
A6: Number of Major Street Lanes | B6: lanes | C6: Number of lanes on the major street (both directions - does not include turn lanes) | D6: - | E6: - | F6: - | I6: 4ST | J6: 0 | K6: 14700 | L6: 0 | M6: 3500 | O6: 2 Circulating Lanes | P6: Min | Q6: Max | R6: Min | S6: Max
A7: At-Grade Intersection Inputs | I7: 3SG | J7: 0 | K7: 23591 | L7: 0 | M7: 23320 | O7: 3Leg | P7: 1000 | Q7: 22050 | R7: 476 | S7: 15108
A8: Major/Minor Road AADT | B8: veh/day | C8: Average annual daily traffic (AADT) volume for the major and minor street approaches (see table for ranges). | D8: See table starting in column I (to the right). | I8: 4SG | J8: 0 | K8: 25200 | L8: 0 | M8: 12500 | O8: 4Leg | P8: 1000 | Q8: 28333 | R8: 390 | S8: 19371
A9: Skew Angle | B9: degrees | C9: Intersecting angle between major street and minor street approaches (hover cursor for graphical representation) | D9: - | E9: - | F9: - | I9: 3AWSC | J9: -- | K9: -- | L9: -- | M9: --
A10: Number of Major Street Through Lanes | B10: lanes | C10: Number of through lanes on the major street (both directions - includes shared through lanes) | D10: - | E10: - | F10: - | I10: 4AWSC | J10: 0 | K10: 12983 | L10: 0 | M10: 9985
A11: Number of Minor Street Lanes | B11: lanes | C11: Number of lanes on the minor street (both directions - does not include turn lanes) | D11: - | E11: - | F11: - | I11: Rural Multilane Highway
A12: Right-turn Channelization | B12: - | C12: An approach is considered to have right-turn channelization when a marked or raised-curb island is present separating the turn from the adjacent movements. A standard exclusive right-turn lane (bay) that does not have this separation is not considered channelized. | D12: - | E12: - | F12: - | I12: Intersection Type | J12: Major Road AADT | L12: Minor Road AADT
A13: Inscribed Circle Diameter | B13: ft | C13: Distance across the circle inscribed by the outer curb (or edge) of the circulatory roadway | D13: Roundabout | E13: 90 | F13: 160 | J13: Min | K13: Max | L13: Min | M13: Max
A14: Opening Year Entering AADT | B14: veh/day | C14: Estimated Average annual daily traffic (AADT) volume entering the roundabout area for the year the roundabout is expected to be open | D14: Roundabout | E14: See Table in Column O
A15: Leg has Right-Turn Bypass | B15: yes/no | C15: Presence of right-turn bypass lane on exit | D15: Roundabout | E15: - | F15: - | I15: 3ST | J15: 0 | K15: 78300 | L15: 0 | M15: 23000
A16: Access Point within 250' of Yield Line | B16: - | C16: Number of Access Points (i.e., Driveways and unsignalized intersections) within 250 ft of Roundabout yield line | D16: Roundabout | E16: 0 | F16: 8 | I16: 4ST | J16: 0 | K16: 78300 | L16: 0 | M16: 7400
A17: Entering Width | B17: ft | C17: Distance measured from the point where the yield line intersects the left edge of the traveled way to the right edge of the traveled way, along a line that is perpendicular to the right curb line | D17: Roundabout | E17: 24 | F17: 34 | I17: 3SG | J17: 0 | K17: 56000 | L17: 0 | M17: 27000 | O17: At-Grade AADT Ranges for Restricted Crossing U-Turn (RCUT)
A18: Number of Entering Lanes | B18: lanes | C18: Number of lanes entering a leg of the roundabout (hover cursor for graphical representation). | D18: Roundabout | E18: 1 | F18: 2 | I18: 4SG | J18: 0 | K18: 43500 | L18: 0 | M18: 18500
A19: Number of Circulating Lanes | B19: lanes | C19: Number of lanes circulating a leg of the roundabout (hover cursor for graphical representation). | D19: Roundabout | E19: 1 | F19: 2 | I19: 3AWSC | J19: -- | K19: -- | L19: -- | M19: -- | O19: Intersection Type | P19: Major Road AADT | R19: Minor Road AADT
A20: Number of U-Turns | B20: - | C20: U-turns are the u-turn locations at the right and left side of the intersection center. To be specific, they are crossovers just for the RCUT, but not the main intersection of an adjacent RCUT. Number of U-turns of the RCUT intersection, either 1 or 2. | D20: Signalized RCUT | E20: 1 | F20: 2 | I20: 4AWSC | J20: -- | K20: -- | L20: -- | M20: -- | P20: Min | Q20: Max | R20: Min | S20: Max
D21: Unsignalized RCUT | E21: 1 | F21: 2 | I21: Urban and Suburban Arterials | O21: Signalized (3 & 4-leg) | P21: 9700 | Q21: 65500 | R21: 1000 | S21: 18218
A22: Number of Major Road Lanes | B22: lanes | C22: Number of lanes on the major approach of the RCUT. The highest number across both approaches was chosen (e.g. if one approach has 1 lane, and the other has 2, then 2 is chosen as the number of lanes). This number should only count through lanes. | D22: Signalized RCUT | E22: 2 | F22: 3 | I22: Intersection Type | J22: Major Road AADT | L22: Minor Road AADT | O22: Unsignalized (3 & 4-leg) | P22: 2950 | Q22: 47722 | R22: 40 | S22: 11500
D23: Unsignalized RCUT | E23: - | F23: - | I23: 2x2 5 or Fewer Lanes | J23: Min | K23: Max | L23: Min | M23: Max
A24: Number of Minor Road Lanes | B24: lanes | C24: Number of lanes on the minor approach of the RCUT. If the RCUT has two minor approaches, the highest number across both approaches is chosen. This number should only count through lanes. | D24: Signalized RCUT | E24: 1 | F24: 3 | I24: 3ST | J24: 0 | K24: 45700 | L24: 0 | M24: 9300 | O24: AADT Limits for Intersections
D25: Unsignalized RCUT | E25: - | F25: - | I25: 4ST | J25: 0 | K25: 46800 | L25: 0 | M25: 5900 | P25: Signalized
A26: Total Offset Distance | B26: ft | C26: The total distance between the center of the intersetion and the U-turn locations (e.g. if one approach has 800 ft. offset and the other one has 600 ft., then the total offset distance is 1400 ft.). This number should include all driveways and side streets, including publicly maintained roads, that connect within the footprint of the RCUT. | D26: Signalized RCUT | E26: 650 | F26: 2675 | I26: 3SG | J26: 0 | K26: 58100 | L26: 0 | M26: 16400 | P26: XRD IN | R26: XRD OUT | T26: Exit | V26: Entrance
D27: Unsignalized RCUT | E27: 600 | F27: 5575 | I27: 4SG | J27: 0 | K27: 67700 | L27: 0 | M27: 33400 | P27: Min | Q27: Max | R27: Min | S27: Max | T27: Min | U27: Max | V27: Min | W27: Max
A28: Number of Driveways | B28: - | C28: The number of driveways within the whole footprint (including intersection center, U-turns, and segment between intersection center and U-turns) of the RCUT intersection. This number should include all driveways and side streets, including publicly maintained roads, that connect within the footprint of the RCUT. | D28: Signalized RCUT | E28: 0 | F28: 10 | I28: 3AWSC | J28: 0 | K28: 20131 | L28: 0 | M28: 11000 | O28: Diamond Signalized | P28: 0 | Q28: 47000 | R28: 0 | S28: 47000 | T28: 0 | U28: 31000 | V28: 0 | W28: 31000 | X28: HSM Table 19-11
D29: Unsignalized RCUT | E29: 0 | F29: 6 | I29: 4AWSC | J29: 0 | K29: 12955 | L29: 0 | M29: 11982 | O29: Diamond Signalized (Alt) | P29: 0 | Q29: 47000 | R29: 0 | S29: 47000 | T29: 0 | U29: 31000 | V29: 0 | W29: 31000 | X29: HSM Table 19-11
A30: Total Deceleration Lane Length | B30: ft | C30: The total length of the deceleration lanes before U-turn locations (e.g. if one approach has 400 ft. deceleration lane and the other one has 250 ft., then total deceleration lane length is 650 ft.). The deceleration lane "starts" where the taper ends (aka the lane reaches full width) and "ends" where the U-turn curve begins. | D30: Signalized RCUT | E30: 300 | F30: 2300 | I30: 2x2 6+ Lanes | J30: Min | K30: Max | L30: Min | M30: Max | O30: Diverging Diamond
D31: Unsignalized RCUT | E31: 0 | F31: 1525 | I31: 3ST | J31: 0 | K31: 66800 | L31: 0 | M31: 8600 | O31: Single-Point Diamond | P31: 13445 | Q31: 70790 | R31: 13445 | S31: 70790 | T31: 14069 | U31: 80030 | X31: *NCHRP 17-68 Table 92
A32: Total Acceleration Lane Length | B32: ft | C32: The maximum length of the acceleration lanes before U-turn locations (e.g. if one approach has 400 ft. acceleration lane and the other one has 250 ft., then 400 ft. is chosen as maximum acceleration lane length). The acceleration lane "starts" where the taper ends (aka the lane reaches full width) and "ends" where the U-turn curve begins. | D32: Signalized RCUT | E32: - | F32: - | I32: 4ST | J32: 0 | K32: 54600 | L32: 0 | M32: 4600 | O32: Diamond STOP | P32: 0 | Q32: 22000 | R32: 0 | S32: 22000 | T32: 0 | U32: 8000 | V32: 0 | W32: 8000 | X32: HSM Table 19-11
D33: Unsignalized RCUT | E33: 1 | F33: 1600 | I33: 3SG | J33: 0 | K33: 94000 | L33: 0 | M33: 31000 | O33: Signalized Tight Diamond | P33: 8921 | Q33: 51438 | R33: 8921 | S33: 51438 | T33: 9955 | U33: 74656 | X33: *NCHRP 17-68 Table 100
A34: Total Median Width | B34: ft | C34: The total median width of the major approaches (e.g. if one approach has 40 ft. median and the other one has 25 ft., then total median width is 65 ft.). The median width is measured from edge of pavement to edge of pavement. In cases where the median is not a constant width, the measurement should be done where the median is widest. | D34: Signalized RCUT | E34: 0 | F34: 145 | I34: 4SG | J34: 0 | K34: 137600 | L34: 0 | M34: 68400 | O34: Half Diamond Signalized (D3ex) | P34: 0 | Q34: 34000 | R34: 0 | S34: 34000 | T34: 0 | U34: 16000 | V34: 0 | W34: 16000 | X34: HSM Table 19-11
D35: Unsignalized RCUT | E35: - | F35: - | I35: 3AWSC | J35: -- | K35: -- | L35: -- | M35: -- | O35: Half Diamond STOP (D3ex) | P35: 0 | Q35: 22000 | R35: 0 | S35: 22000 | T35: 0 | U35: 8000 | V35: 0 | W35: 8000 | X35: HSM Table 19-11
A36: Maximum Median Width | B36: ft | C36: The maximum median width of the major approaches (e.g. if one approach has 40 ft. median and the other one has 25 ft., then 40 ft. is chosen as maximum median width). The median width is measured from edge of pavement to edge of pavement. | D36: Signalized RCUT | E36: - | F36: - | I36: 4AWSC | J36: -- | K36: -- | L36: -- | M36: -- | O36: Half Diamond Signalized (D3en) | P36: 0 | Q36: 29000 | R36: 0 | S36: 29000 | T36: 0 | U36: 21000 | V36: 0 | W36: 21000 | X36: HSM Table 19-11
D37: Unsignalized RCUT | E37: 0 | F37: 150 | I37: Intersection Type | J37: Major Road AADT | L37: Minor Road AADT | O37: Half Diamond STOP (D3en) | P37: 0 | Q37: 22000 | R37: 0 | S37: 22000 | T37: 0 | U37: 15000 | V37: 0 | W37: 15000 | X37: HSM Table 19-11
A38: Number of Left-Turn Lanes From Major Road | B38: lanes | C38: The maximum number of left turn lanes from major approach to minor approach. | D38: Signalized RCUT | E38: 1 | F38: 3 | I38: 1x2 | J38: Min | K38: Max | L38: Min | M38: Max | O38: Two Quadrant Partial Cloverleaf A Signalized | P38: 0 | Q38: 46000 | R38: 0 | S38: 46000 | T38: 0 | U38: 25000 | V38: 0 | W38: 25000 | X38: HSM Table 19-11
A39: Major Road Speed Limit | B39: mph | C39: Major approach speed limit. | D39: Signalized RCUT | E39: 35 | F39: 70 | I39: 3ST | J39: 0 | K39: 42700 | L39: 0 | M39: 13400 | O39: Two Quadrant Partial Cloverleaf A STOP | P39: 0 | Q39: 17000 | R39: 0 | S39: 17000 | T39: 0 | U39: 12000 | V39: 0 | W39: 12000 | X39: HSM Table 19-11
A40: Ramp Terminal Intersection Inputs | I40: 4ST | J40: 0 | K40: 23400 | L40: 0 | M40: 19200 | O40: Four Quadrant Partial Cloverleaf A Signalized | P40: 0 | Q40: 71000 | R40: 0 | S40: 71000 | T40: 0 | U40: 30000 | V40: 0 | W40: 30000 | X40: HSM Table 19-11
A41: Crossroad | B41: - | C41: References the major street of the ramp terminal intersection (i.e., the non-ramp terminal legs) | D41: - | E41: - | F41: - | I41: 3SG | J41: 0 | K41: 43800 | L41: 0 | M41: 58800 | O41: Four Quadrant Partial Cloverleaf A STOP | P41: 0 | Q41: 21000 | R41: 0 | S41: 21000 | T41: 0 | U41: 12000 | V41: 0 | W41: 12000 | X41: HSM Table 19-11
A42: Crossroad AADT - Inside Leg | B42: veh/day | C42: AADT volume of the crossroad leg located between the two ramp terminals of the interchange | D42: Stop-Controlled | E42: 0 | F42: 18000 | I42: 4SG | J42: 0 | K42: 77000 | L42: 0 | M42: 98900 | O42: Two Quadrant Partial Cloverleaf B Signalized | P42: 0 | Q42: 44000 | R42: 0 | S42: 44000 | T42: 0 | U42: 22000 | V42: 0 | W42: 22000 | X42: HSM Table 19-11
D43: Signalized | E43: 0 | F43: 47000 | I43: 3AWSC | J43: -- | K43: -- | L43: -- | M43: -- | O43: Two Quadrant Partial Cloverleaf B STOP | P43: 0 | Q43: 26000 | R43: 0 | S43: 26000 | T43: 0 | U43: 14000 | V43: 0 | W43: 14000 | X43: HSM Table 19-11
A44: Crossroad AADT - Outside Leg | B44: veh/day | C44: AADT volume of the crossroad leg located outside of the interchange | D44: Stop-Controlled | E44: 0 | F44: 18000 | I44: 4AWSC | J44: -- | K44: -- | L44: -- | M44: -- | O44: Four Quadrant Partial Cloverleaf B Signalized | P44: 0 | Q44: 45000 | R44: 0 | S44: 45000 | T44: 0 | U44: 29000 | V44: 0 | W44: 29000 | X44: HSM Table 19-11
D45: Signalized | E45: 0 | F45: 47000 | I45: 1x1 | J45: Min | K45: Max | L45: Min | M45: Max | O45: Four Quadrant Partial Cloverleaf B STOP | P45: 0 | Q45: 20000 | R45: 0 | S45: 20000 | T45: 0 | U45: 12000 | V45: 0 | W45: 12000 | X45: HSM Table 19-11
A46: Ramp AADT - Exit | B46: veh/day | C46: AADT volume of the exit ramp | D46: Stop-Controlled | E46: 0 | F46: 10000 | I46: 3ST | J46: 0 | K46: 16900 | L46: 0 | M46: 11100 | O46: Other 1
D47: Signalized | E47: 0 | F47: 31000 | I47: 4ST | J47: 0 | K47: 11000 | L47: 0 | M47: 6800 | O47: Other 2
A48: Ramp AADT - Entrance | B48: veh/day | C48: AADT volume of the entrance ramp | D48: Stop-Controlled | E48: 0 | F48: 10000 | I48: 3SG | J48: 0 | K48: 20100 | L48: 0 | M48: 7500
D49: Signalized | E49: 0 | F49: 31000 | I49: 4SG | J49: 0 | K49: 24300 | L49: 0 | M49: 16900
A50: Exit Ramp Skew Angle | B50: degrees | C50: Skew angle equals 90 minus the intersection angle (in degrees) (hover cursor for graphical representation). | D50: Stop-Controlled | E50: 0 | F50: 70 | I50: 3AWSC | J50: -- | K50: -- | L50: -- | M50: --
A51: Presence of Non-Ramp Public Street Leg | B51: yes/no | C51: Any ramp that has a fourth leg that: (1) is a public street serving two-way traffic and (2) intersects with the crossroad at the terminal. At most ramp terminals, the public street leg will be on the opposite side of the crossroad from the exit ramp. | D51: - | E51: - | F51: - | I51: 4AWSC | J51: -- | K51: -- | L51: -- | M51: --
A52: Effective number of lanes serving exit ramp | B52: lanes | C52: Varies depending on exit ramp configuration (hover cursor for graphical representation of nex,eff) | D52: Stop-Controlled | E52: 1 | F52: 2 | I52: Intersection Type | J52: Major Road AADT | L52: Minor Road AADT
D53: Signalized | E53: 1 | F53: 4 | I53: High Speed (55+ mph) | J53: Min | K53: Max | L53: Min | M53: Max
A54: Median Width | B54: ft | C54: Width of crossroad median measured from near edges of traveled way in both travel directions (hover cursor for graphical representation) | D54: All | E54: 0 | F54: 50 | I54: 3ST | J54: 0 | K54: 58594 | L54: 0 | M54: 11335
A55: Left-turn lane (bay) Width for crossroad leg | B55: ft | C55: Width of crossroad left-turn lane (hover cursor for graphical representation) | D55: All | E55: 0 | F55: 26 | I55: 4ST | J55: 0 | K55: 59000 | L55: 0 | M55: 29800
A56: Number of through traffic lanes that oppose the left-turn movement on the inside crossroad leg | B56: lanes | C56: Number of through lanes on crossroad outside leg that oppose crossroad inside leg left-turn movement | D56: - | E56: - | F56: - | I56: 3SG | J56: 0 | K56: 47200 | L56: 0 | M56: 11282
A57: ='Ramp Terminal Inputs'!A26 -> Distance (mi) to the adjacent ramp terminal | B57: miles | C57: Distance between subject ramp terminal and adjacent ramp terminal; measured along the crossroad from terminal center to terminal center (mi). | D57: - | E57: - | F57: - | I57: 4SG | J57: 0 | K57: 59800 | L57: 0 | M57: 30029
A58: ='Ramp Terminal Inputs'!A27 -> Distance (mi) to the next public street intersection on the outside crossroad leg | B58: miles | C58: Distance between subject ramp terminal and nearest public road intersection in a direction away form freeway; measured along the crossroad form terminal center to intersection center (mi). | D58: - | E58: - | F58: - | I58: 3AWSC | J58: -- | K58: -- | L58: -- | M58: --
A59: Protected operation for crossroad leg | B59: yes/no | C59: "Yes" if a crossroad leg (inside or outside) has protected left-turn operation. "No" if the crossroad leg has permissive or permissive-protected operation | I59: 4AWSC | J59: -- | K59: -- | L59: -- | M59: --
A60: Crossroad AADT - Single Point Diamond | B60: veh/day | C60: AADT volume for the crossroad. Not a required direct input of the SPICE tool, but is determined automatically as the maximum of the outside leg AADT values. | D60: - | E60: 14000 | F60: 70000
A61: Ramp AADT - Single Point Diamond | B61: veh/day | C61: Sum of AADT volumes for all four ramps. Not a required direct input of the SPICE tool, this summation is done automatically. | D61: - | E61: 14000 | F61: 80000

Sheet Control Strategy Selection
A1: Control Strategy Selection and Inputs
A2: Specify the Facility Level Inputs and the Control Strategies to be included in the SPICE Analysis.
A3: Intersection Type
A4: Analysis Year
A5: Opening Year | E5: =IF(NOT(ISNUMBER(Input_OpenYear)),"Please specify a valid Opening Year","") -> Please specify a valid Opening Year
A6: Design Year | E6: =IF(Input_AnalysisYearType=Label_AnalysisYearType_OpenAndDesign,IF(NOT(ISNUMBER(Input_DesignYear)),"Please specify a valid Design Year",IF(Input_OpenYear>=Input_DesignYear,"The Design Year must be later than the Opening Year","")),"") -> 
A8: Facility Type | E8: For more information on how to determine these values, see the "Definitions" worksheet
A9: Number of Legs
A10: 1-Way/2-Way
A11: # of Major Street Lanes (both directions)
A12: Major Street Approach Speed
A13: Opening Year - Major Road AADT | E13: =IF(Input_Base_OAADTMajor="", "Please specify a non-zero AADT value","") -> Please specify a non-zero AADT value
A14: Opening Year - Minor Road AADT | E14: =IF(Input_Base_OAADTMinor="", "Please specify a non-zero AADT value","") -> Please specify a non-zero AADT value
A15: Design Year - Major Road AADT | E15: =IF(AND(Input_AnalysisYearType=Label_AnalysisYearType_OpenAndDesign,Input_Base_DAADTMajor=""), "Please specify a non-zero AADT value","") -> 
A16: Design Year - Minor Road AADT | E16: =IF(AND(Input_AnalysisYearType=Label_AnalysisYearType_OpenAndDesign,Input_Base_DAADTMinor=""), "Please specify a non-zero AADT value","") -> 
O17: AADT Within Range?
A18: Control Strategy | B18: Include | D18: Base Intersection | E18: Comment 1 | G18: Comment 2 | O18: Opening | P18: Design | Q18: Difference Opening | R18: Difference Design
A19: Traffic Signal | D19: -- | E19: =IF(NOT(ISNUMBER(K19)),"No SPF Available",IF(O19,"","Opening Year AADT Outside of SPF Development Range")) ->  | G19: =IF(NOT(ISNUMBER(M19)),"No SPF",IF(Input_AnalysisYearType=Label_AnalysisYearType_OpenAndDesign,IF(P19,"","Design Year AADT Outside of SPF Development Range"),"")) ->  | I19: =IF(Input_FacilityType=FacilityType_Label_Rural2Ln,1,IF(Input_FacilityType=FacilityType_Label_RuralMultiLn,2,IF(Input_FacilityType=FacilityType_Label_Urban,IF(Input_1Way2Way=Notes!$A$54,IF(Input_MajorApproachSpeed=Notes!$A$67,7,IF(Input_NumMajorLanes=Notes!$A$60,3,4)),IF(Input_1Way2Way=Notes!$A$55,5,6))))) -> FALSE | J19: =IF(Input_NumLegs=Notes!$A$49,"4","3")&"SG" -> 3SG | K19: =VLOOKUP($J19,IF($I19=7,Range_USA_HS,IF($I19=6,Range_USA_1x1,IF($I19=5,Range_USA_1x2,IF($I19=4,Range_USA_2x2_6P,IF($I19=3,Range_USA_2x2_5F,IF($I19=2,Range_RML, Range_R2L)))))),2,FALSE) -> 0 | L19: =VLOOKUP($J19,IF($I19=7,Range_USA_HS,IF($I19=6,Range_USA_1x1,IF($I19=5,Range_USA_1x2,IF($I19=4,Range_USA_2x2_6P,IF($I19=3,Range_USA_2x2_5F,IF($I19=2,Range_RML, Range_R2L)))))),3,FALSE) -> 23591 | M19: =VLOOKUP($J19,IF($I19=7,Range_USA_HS,IF($I19=6,Range_USA_1x1,IF($I19=5,Range_USA_1x2,IF($I19=4,Range_USA_2x2_6P,IF($I19=3,Range_USA_2x2_5F,IF($I19=2,Range_RML, Range_R2L)))))),4,FALSE) -> 0 | N19: =VLOOKUP($J19,IF($I19=7,Range_USA_HS,IF($I19=6,Range_USA_1x1,IF($I19=5,Range_USA_1x2,IF($I19=4,Range_USA_2x2_6P,IF($I19=3,Range_USA_2x2_5F,IF($I19=2,Range_RML, Range_R2L)))))),5,FALSE) -> 23320 | O19: =AND(Input_Base_OAADTMajor>=K19,Input_Base_OAADTMajor<=L19,Input_Base_OAADTMinor>=M19,Input_Base_OAADTMinor<=N19) -> TRUE | P19: =AND(Input_Base_DAADTMajor>=K19,Input_Base_DAADTMajor<=L19,Input_Base_DAADTMinor>=M19,Input_Base_DAADTMinor<=N19) -> TRUE | Q19: =MAX(IF(Input_Base_OAADTMajor>=$K19,0,($K19-Input_Base_OAADTMajor)/$K19),IF(Input_Base_OAADTMajor<=$L19,0,(Input_Base_OAADTMajor-$L19)/$L19), IF(Input_Base_OAADTMinor>=$M19,0,($M19-Input_Base_OAADTMinor)/$M19), IF(Input_Base_OAADTMinor<=$N19,0,(Input_Base_OAADTMinor-$N19)/$N19)) -> 0 | R19: =MAX(IF(Input_Base_DAADTMajor>=$K19,0,($K19-Input_Base_DAADTMajor)/$K19),IF(Input_Base_DAADTMajor<=$L19,0,(Input_Base_DAADTMajor-$L19)/$L19), IF(Input_Base_DAADTMinor>=$M19,0,($M19-Input_Base_DAADTMinor)/$M19), IF(Input_Base_DAADTMinor<=$N19,0,(Input_Base_DAADTMinor-$N19)/$N19)) -> 0 | S19: =Q19 -> 0 | T19: =R19 -> 0
A20: Traffic Signal (Alternative Configuration) | D20: -- | I20: =IF(Input_FacilityType=FacilityType_Label_Rural2Ln,1,IF(Input_FacilityType=FacilityType_Label_RuralMultiLn,2,IF(Input_FacilityType=FacilityType_Label_Urban,IF(Input_1Way2Way=Notes!$A$54,IF(Input_MajorApproachSpeed=Notes!$A$67,7,IF(Input_NumMajorLanes=Notes!$A$60,3,4)),IF(Input_1Way2Way=Notes!$A$55,5,6))))) -> FALSE | J20: =IF(Input_NumLegs=Notes!$A$49,"4","3")&"SG" -> 3SG | K20: =VLOOKUP($J20,IF($I20=7,Range_USA_HS,IF($I20=6,Range_USA_1x1,IF($I20=5,Range_USA_1x2,IF($I20=4,Range_USA_2x2_6P,IF($I20=3,Range_USA_2x2_5F,IF($I20=2,Range_RML, Range_R2L)))))),2,FALSE) -> 0 | L20: =VLOOKUP($J20,IF($I20=7,Range_USA_HS,IF($I20=6,Range_USA_1x1,IF($I20=5,Range_USA_1x2,IF($I20=4,Range_USA_2x2_6P,IF($I20=3,Range_USA_2x2_5F,IF($I20=2,Range_RML, Range_R2L)))))),3,FALSE) -> 23591 | M20: =VLOOKUP($J20,IF($I20=7,Range_USA_HS,IF($I20=6,Range_USA_1x1,IF($I20=5,Range_USA_1x2,IF($I20=4,Range_USA_2x2_6P,IF($I20=3,Range_USA_2x2_5F,IF($I20=2,Range_RML, Range_R2L)))))),4,FALSE) -> 0 | N20: =VLOOKUP($J20,IF($I20=7,Range_USA_HS,IF($I20=6,Range_USA_1x1,IF($I20=5,Range_USA_1x2,IF($I20=4,Range_USA_2x2_6P,IF($I20=3,Range_USA_2x2_5F,IF($I20=2,Range_RML, Range_R2L)))))),5,FALSE) -> 23320 | O20: TRUE | P20: TRUE | Q20: 0 | R20: 0 | S20: =Q19 -> 0 | T20: =R19 -> 0
A21: Minor Road Stop Control | D21: -- | I21: =IF(Input_FacilityType=FacilityType_Label_Rural2Ln,1,IF(Input_FacilityType=FacilityType_Label_RuralMultiLn,2,IF(Input_FacilityType=FacilityType_Label_Urban,IF(Input_1Way2Way=Notes!$A$54,IF(Input_MajorApproachSpeed=Notes!$A$67,7,IF(Input_NumMajorLanes=Notes!$A$60,3,4)),IF(Input_1Way2Way=Notes!$A$55,5,6))))) -> FALSE | J21: =IF(Input_NumLegs=Notes!$A$49,"4","3")&"ST" -> 3ST | K21: =VLOOKUP($J21,IF($I21=7,Range_USA_HS,IF($I21=6,Range_USA_1x1,IF($I21=5,Range_USA_1x2,IF($I21=4,Range_USA_2x2_6P,IF($I21=3,Range_USA_2x2_5F,IF($I21=2,Range_RML, Range_R2L)))))),2,FALSE) -> 0 | L21: =VLOOKUP($J21,IF($I21=7,Range_USA_HS,IF($I21=6,Range_USA_1x1,IF($I21=5,Range_USA_1x2,IF($I21=4,Range_USA_2x2_6P,IF($I21=3,Range_USA_2x2_5F,IF($I21=2,Range_RML, Range_R2L)))))),3,FALSE) -> 19500 | M21: =VLOOKUP($J21,IF($I21=7,Range_USA_HS,IF($I21=6,Range_USA_1x1,IF($I21=5,Range_USA_1x2,IF($I21=4,Range_USA_2x2_6P,IF($I21=3,Range_USA_2x2_5F,IF($I21=2,Range_RML, Range_R2L)))))),4,FALSE) -> 0 | N21: =VLOOKUP($J21,IF($I21=7,Range_USA_HS,IF($I21=6,Range_USA_1x1,IF($I21=5,Range_USA_1x2,IF($I21=4,Range_USA_2x2_6P,IF($I21=3,Range_USA_2x2_5F,IF($I21=2,Range_RML, Range_R2L)))))),5,FALSE) -> 4300 | O21: TRUE | P21: TRUE | Q21: 0 | R21: 0 | S21: =Q20 -> 0 | T21: =R20 -> 0
A22: All Way Stop Control | D22: -- | E22: =IF(Input_Include_AS = "No", "", IF(NOT(ISNUMBER(K22)), "No SPF Available", IF(O22 = "", "Opening Year AADT Outside of SPF Development Range", ""))) -> No SPF Available | G22: =IF(Input_Include_AS = "No", "", IF(NOT(ISNUMBER(M22)), "No SPF Available", IF(Input_AnalysisYearType = Label_AnalysisYearType_OpenAndDesign, IF(P22 = "", "Design Year AADT Outside of SPF Development Range", ""), ""))) -> No SPF Available | I22: =IF(Input_FacilityType=FacilityType_Label_Rural2Ln,1,IF(Input_FacilityType=FacilityType_Label_RuralMultiLn,2,IF(Input_FacilityType=FacilityType_Label_Urban,IF(Input_1Way2Way=Notes!$A$54,IF(Input_MajorApproachSpeed=Notes!$A$67,7,IF(Input_NumMajorLanes=Notes!$A$60,3,4)),IF(Input_1Way2Way=Notes!$A$55,5,6))))) -> FALSE | J22: =IF(Input_NumLegs=Notes!$A$49,"4","3")&"AWSC" -> 3AWSC | K22: =VLOOKUP($J22,IF($I22=7,Range_USA_HS,IF($I22=6,Range_USA_1x1,IF($I22=5,Range_USA_1x2,IF($I22=4,Range_USA_2x2_6P,IF($I22=3,Range_USA_2x2_5F,IF($I22=2,Range_RML, Range_R2L)))))),2,FALSE) -> -- | L22: =VLOOKUP($J22,IF($I22=7,Range_USA_HS,IF($I22=6,Range_USA_1x1,IF($I22=5,Range_USA_1x2,IF($I22=4,Range_USA_2x2_6P,IF($I22=3,Range_USA_2x2_5F,IF($I22=2,Range_RML, Range_R2L)))))),3,FALSE) -> -- | M22: =VLOOKUP($J22,IF($I22=7,Range_USA_HS,IF($I22=6,Range_USA_1x1,IF($I22=5,Range_USA_1x2,IF($I22=4,Range_USA_2x2_6P,IF($I22=3,Range_USA_2x2_5F,IF($I22=2,Range_RML, Range_R2L)))))),4,FALSE) -> -- | N22: =VLOOKUP($J22,IF($I22=7,Range_USA_HS,IF($I22=6,Range_USA_1x1,IF($I22=5,Range_USA_1x2,IF($I22=4,Range_USA_2x2_6P,IF($I22=3,Range_USA_2x2_5F,IF($I22=2,Range_RML, Range_R2L)))))),5,FALSE) -> -- | O22: =IF(OR(ISBLANK(Input_Base_OAADTMajor), ISBLANK(Input_Base_OAADTMinor)), TRUE, AND(Input_Base_OAADTMajor>=K22,Input_Base_OAADTMajor<=L22,Input_Base_OAADTMinor>=M22,Input_Base_OAADTMinor<=N22)) -> TRUE | P22: =IF(OR(ISBLANK(Input_Base_DAADTMajor), ISBLANK(Input_Base_DAADTMinor)), TRUE, AND(Input_Base_DAADTMajor>=K22,Input_Base_DAADTMajor<=L22,Input_Base_DAADTMinor>=M22,Input_Base_DAADTMinor<=N22)) -> TRUE | Q22: =IF(O22, 0, MAX(IF(Input_Base_OAADTMajor>=$K22,0,($K22-Input_Base_OAADTMajor)/$K22),IF(Input_Base_OAADTMajor<=$L22,0,(Input_Base_OAADTMajor-$L22)/$L22), IF(Input_Base_OAADTMinor>=$M22,0,($M22-Input_Base_OAADTMinor)/$M22), IF(Input_Base_OAADTMinor<=$N22,0,(Input_Base_OAADTMinor-$N22)/$N22))) -> 0 | R22: =IF(P22, 0, MAX(IF(Input_Base_DAADTMajor>=$K22,0,($K22-Input_Base_DAADTMajor)/$K22),IF(Input_Base_DAADTMajor<=$L22,0,(Input_Base_DAADTMajor-$L22)/$L22), IF(Input_Base_DAADTMinor>=$M22,0,($M22-Input_Base_DAADTMinor)/$M22), IF(Input_Base_DAADTMinor<=$N22,0,(Input_Base_DAADTMinor-$N22)/$N22))) -> 0 | S22: =Q20 -> 0 | T22: =R20 -> 0
A23: 1-Lane Roundabout | D23: -- | I23: =IF(Input_FacilityType=FacilityType_Label_Rural2Ln,1,IF(Input_FacilityType=FacilityType_Label_RuralMultiLn,2,IF(Input_FacilityType=FacilityType_Label_Urban,IF(Input_1Way2Way=Notes!$A$54,IF(Input_MajorApproachSpeed=Notes!$A$67,7,IF(Input_NumMajorLanes=Notes!$A$60,3,4)),IF(Input_1Way2Way=Notes!$A$55,5,6))))) -> FALSE | J23: =IF(Input_NumLegs=Notes!$A$49,"4","3")&"Leg" -> 3Leg | K23: =VLOOKUP($J23,Range_RAB1,2,FALSE) -> 675 | L23: =VLOOKUP($J23,Range_RAB1,3,FALSE) -> 17369 | M23: =VLOOKUP($J23,Range_RAB1,4,FALSE) -> 409 | N23: =VLOOKUP($J23,Range_RAB1,5,FALSE) -> 14000 | O23: =IF(OR(ISBLANK(Input_Base_OAADTMajor), ISBLANK(Input_Base_OAADTMinor)), TRUE, AND(Input_Base_OAADTMajor>=K23,Input_Base_OAADTMajor<=L23,Input_Base_OAADTMinor>=M23,Input_Base_OAADTMinor<=N23)) -> TRUE | P23: =IF(OR(ISBLANK(Input_Base_DAADTMajor), ISBLANK(Input_Base_DAADTMinor)), TRUE, AND(Input_Base_DAADTMajor>=K23,Input_Base_DAADTMajor<=L23,Input_Base_DAADTMinor>=M23,Input_Base_DAADTMinor<=N23)) -> TRUE | Q23: =IF(O23, 0, MAX(IF(Input_Base_OAADTMajor>=$K23,0,($K23-Input_Base_OAADTMajor)/$K23),IF(Input_Base_OAADTMajor<=$L23,0,(Input_Base_OAADTMajor-$L23)/$L23), IF(Input_Base_OAADTMinor>=$M23,0,($M23-Input_Base_OAADTMinor)/$M23), IF(Input_Base_OAADTMinor<=$N23,0,(Input_Base_OAADTMinor-$N23)/$N23))) -> 0 | R23: =IF(P23, 0, MAX(IF(Input_Base_DAADTMajor>=$K23,0,($K23-Input_Base_DAADTMajor)/$K23),IF(Input_Base_DAADTMajor<=$L23,0,(Input_Base_DAADTMajor-$L23)/$L23), IF(Input_Base_DAADTMinor>=$M23,0,($M23-Input_Base_DAADTMinor)/$M23), IF(Input_Base_DAADTMinor<=$N23,0,(Input_Base_DAADTMinor-$N23)/$N23))) -> 0 | S23: =Q21 -> 0 | T23: =R21 -> 0
A24: 2-Lane Roundabout | D24: -- | I24: =IF(Input_FacilityType=FacilityType_Label_Rural2Ln,1,IF(Input_FacilityType=FacilityType_Label_RuralMultiLn,2,IF(Input_FacilityType=FacilityType_Label_Urban,IF(Input_1Way2Way=Notes!$A$54,IF(Input_MajorApproachSpeed=Notes!$A$67,7,IF(Input_NumMajorLanes=Notes!$A$60,3,4)),IF(Input_1Way2Way=Notes!$A$55,5,6))))) -> FALSE | J24: =IF(Input_NumLegs=Notes!$A$49,"4","3")&"Leg" -> 3Leg | K24: =VLOOKUP($J24,Range_RAB2,2,FALSE) -> 1000 | L24: =VLOOKUP($J24,Range_RAB2,3,FALSE) -> 22050 | M24: =VLOOKUP($J24,Range_RAB2,4,FALSE) -> 476 | N24: =VLOOKUP($J24,Range_RAB2,5,FALSE) -> 15108 | O24: =IF(OR(ISBLANK(Input_Base_OAADTMajor), ISBLANK(Input_Base_OAADTMinor)), TRUE, AND(Input_Base_OAADTMajor>=K24,Input_Base_OAADTMajor<=L24,Input_Base_OAADTMinor>=M24,Input_Base_OAADTMinor<=N24)) -> TRUE | P24: =IF(OR(ISBLANK(Input_Base_DAADTMajor), ISBLANK(Input_Base_DAADTMinor)), TRUE, AND(Input_Base_DAADTMajor>=K24,Input_Base_DAADTMajor<=L24,Input_Base_DAADTMinor>=M24,Input_Base_DAADTMinor<=N24)) -> TRUE | Q24: =IF(O24, 0, MAX(IF(Input_Base_OAADTMajor>=$K24,0,($K24-Input_Base_OAADTMajor)/$K24),IF(Input_Base_OAADTMajor<=$L24,0,(Input_Base_OAADTMajor-$L24)/$L24), IF(Input_Base_OAADTMinor>=$M24,0,($M24-Input_Base_OAADTMinor)/$M24), IF(Input_Base_OAADTMinor<=$N24,0,(Input_Base_OAADTMinor-$N24)/$N24))) -> 0 | R24: =IF(P24, 0, MAX(IF(Input_Base_DAADTMajor>=$K24,0,($K24-Input_Base_DAADTMajor)/$K24),IF(Input_Base_DAADTMajor<=$L24,0,(Input_Base_DAADTMajor-$L24)/$L24), IF(Input_Base_DAADTMinor>=$M24,0,($M24-Input_Base_DAADTMinor)/$M24), IF(Input_Base_DAADTMinor<=$N24,0,(Input_Base_DAADTMinor-$N24)/$N24))) -> 0 | S24: =Q21 -> 0 | T24: =R21 -> 0
A25: Partial Displaced Left Turn (PDLT) | D25: Traffic Signal | Q25: 0 | R25: 0 | S25: =Q22 -> 0 | T25: =R22 -> 0
A26: Full Median U-Turn (MUT) | D26: Traffic Signal | Q26: 0 | R26: 0 | S26: =Q22 -> 0 | T26: =R22 -> 0
A27: Signalized Restricted Crossing U-Turn (RCUT) | D27: -- | E27: =IF(NOT(ISNUMBER(K27)),"No SPF Available",IF(NOT(O27),"Opening Year AADT Outside of SPF Development Range", IF(NOT(AND(Range_SRCUT_OAADT_Ratio)),"Open Major/Minor AADT Ratio Outside of SPF Development Range",""))) ->  | G27: =IF(NOT(ISNUMBER(M27)),"No SPF",IF(Input_AnalysisYearType=Label_AnalysisYearType_OpenAndDesign,IF(NOT(P27),"Design Year AADT Outside of SPF Development Range",IF(NOT(AND(Range_SRCUT_DAADT_Ratio)),"Design Major/Minor AADT Ratio Outside of SPF Development Range","")),"")) ->  | K27: =Definitions!P21 -> 9700 | L27: =Definitions!Q21 -> 65500 | M27: =Definitions!R21 -> 1000 | N27: =Definitions!S21 -> 18218 | O27: =IF(OR(ISBLANK(Input_Base_OAADTMajor), ISBLANK(Input_Base_OAADTMinor)), TRUE, AND(Input_Base_OAADTMajor>=K27,Input_Base_OAADTMajor<=L27,Input_Base_OAADTMinor>=M27,Input_Base_OAADTMinor<=N27)) -> TRUE | P27: =IF(OR(ISBLANK(Input_Base_DAADTMajor), ISBLANK(Input_Base_DAADTMinor)), TRUE, AND(Input_Base_DAADTMajor>=K27,Input_Base_DAADTMajor<=L27,Input_Base_DAADTMinor>=M27,Input_Base_DAADTMinor<=N27)) -> TRUE | Q27: =IF(O27, 0, MAX(IF(Input_Base_OAADTMajor>=$K27,0,($K27-Input_Base_OAADTMajor)/$K27),IF(Input_Base_OAADTMajor<=$L27,0,(Input_Base_OAADTMajor-$L27)/$L27), IF(Input_Base_OAADTMinor>=$M27,0,($M27-Input_Base_OAADTMinor)/$M27), IF(Input_Base_OAADTMinor<=$N27,0,(Input_Base_OAADTMinor-$N27)/$N27))) -> 0 | R27: =IF(P27, 0, MAX(IF(Input_Base_DAADTMajor>=$K27,0,($K27-Input_Base_DAADTMajor)/$K27),IF(Input_Base_DAADTMajor<=$L27,0,(Input_Base_DAADTMajor-$L27)/$L27), IF(Input_Base_DAADTMinor>=$M27,0,($M27-Input_Base_DAADTMinor)/$M27), IF(Input_Base_DAADTMinor<=$N27,0,(Input_Base_DAADTMinor-$N27)/$N27))) -> 0 | S27: =Q23 -> 0 | T27: =R23 -> 0
A28: Unsignalized Restricted Crossing U-Turn (RCUT) | D28: -- | E28: =IF(NOT(ISNUMBER(K28)),"No SPF Available",IF(O28,"","Opening Year AADT Outside of SPF Development Range")) ->  | G28: =IF(NOT(ISNUMBER(M28)),"No SPF",IF(Input_AnalysisYearType=Label_AnalysisYearType_OpenAndDesign,IF(P28,"","Design Year AADT Outside of SPF Development Range"),"")) ->  | K28: =Definitions!P22 -> 2950 | L28: =Definitions!Q22 -> 47722 | M28: =Definitions!R22 -> 40 | N28: =Definitions!S22 -> 11500 | O28: =IF(OR(ISBLANK(Input_Base_OAADTMajor), ISBLANK(Input_Base_OAADTMinor)), TRUE, AND(Input_Base_OAADTMajor>=K28,Input_Base_OAADTMajor<=L28,Input_Base_OAADTMinor>=M28,Input_Base_OAADTMinor<=N28)) -> TRUE | P28: =IF(OR(ISBLANK(Input_Base_DAADTMajor), ISBLANK(Input_Base_DAADTMinor)), TRUE, AND(Input_Base_DAADTMajor>=K28,Input_Base_DAADTMajor<=L28,Input_Base_DAADTMinor>=M28,Input_Base_DAADTMinor<=N28)) -> TRUE | Q28: =IF(O28, 0, MAX(IF(Input_Base_OAADTMajor>=$K28,0,($K28-Input_Base_OAADTMajor)/$K28),IF(Input_Base_OAADTMajor<=$L28,0,(Input_Base_OAADTMajor-$L28)/$L28), IF(Input_Base_OAADTMinor>=$M28,0,($M28-Input_Base_OAADTMinor)/$M28), IF(Input_Base_OAADTMinor<=$N28,0,(Input_Base_OAADTMinor-$N28)/$N28))) -> 0 | R28: =IF(P28, 0, MAX(IF(Input_Base_DAADTMajor>=$K28,0,($K28-Input_Base_DAADTMajor)/$K28),IF(Input_Base_DAADTMajor<=$L28,0,(Input_Base_DAADTMajor-$L28)/$L28), IF(Input_Base_DAADTMinor>=$M28,0,($M28-Input_Base_DAADTMinor)/$M28), IF(Input_Base_DAADTMinor<=$N28,0,(Input_Base_DAADTMinor-$N28)/$N28))) -> 0 | S28: =Q23 -> 0 | T28: =R23 -> 0
A29: Signalized Thru-Cut* | D29: -- | E29: *SSI Only, No Crash Prediction Available | Q29: 0 | R29: 0 | S29: =Q24 -> 0 | T29: =R24 -> 0
A30: Unsignalized Thru-Cut* | D30: -- | E30: *SSI Only, No Crash Prediction Available | Q30: 0 | R30: 0 | S30: =Q24 -> 0 | T30: =R24 -> 0
A31: Bowtie* | D31: -- | E31: *SSI Only, No Crash Prediction Available | Q31: 0 | R31: 0 | S31: =Q25 -> 0 | T31: =R25 -> 0
A32: Continuous Green-T Intersection | B32: No | D32: Traffic Signal | Q32: 0 | R32: 0 | S32: =Q25 -> 0 | T32: =R25 -> 0
A33: Jughandle | D33: Traffic Signal | Q33: 0 | R33: 0 | S33: =Q26 -> 0 | T33: =R26 -> 0
A34: Other 1 | D34: Traffic Signal | E34: Please Select the Base Intersection Type | Q34: 0 | R34: 0 | S34: =Q26 -> 0 | T34: =R26 -> 0
A35: Other 2 | D35: Minor Road Stop | E35: Please Select the Base Intersection Type | Q35: 0 | R35: 0 | S35: =Q27 -> 0 | T35: =R27 -> 0
C36: =IF(OR(Input_Include_R2="Yes",Input_Include_DLT="Yes",Input_Include_MUT="Yes",Input_Include_SRCUT="Yes",Input_Include_URCUT="Yes",Input_Include_SigThruCut="Yes",Input_Include_UnsigThruCut="Yes",Input_Include_CGT="Yes"),"TRUE","FALSE") -> FALSE | S36: =Q27 -> 0 | T36: =R27 -> 0
S37: =Q28 -> 0 | T37: =R28 -> 0
S38: =Q28 -> 0 | T38: =R28 -> 0
S39: 0 | T39: 0
S40: 0 | T40: 0
S41: 0 | T41: 0
S42: 0 | T42: 0
S43: 0 | T43: 0
S44: 0 | T44: 0
A45: Freeway Orientation
A46: Area Type
A48: Opening Year AADT | D48: =IF($D$45=Notes!$J$26,"NB","EB") & " Ramp Terminal" -> EB Ramp Terminal | E48: =IF($D$45=Notes!$J$26,"SB","WB") & " Ramp Terminal" -> WB Ramp Terminal
A49: Crossroad - Inside Leg | F49: =IF(AND(ISNUMBER(Input_RTI_OAADTIn1),ISNUMBER(Input_RTI_OAADTIn2)),"","***Please fill a valid Opeining Year AADT") -> ***Please fill a valid Opeining Year AADT
A50: Crossroad - Outside Leg | F50: =IF(AND(ISNUMBER(Input_RTI_OAADTOut1),ISNUMBER(Input_RTI_OAADTOut2)),"","***Please fill a valid Opeining Year AADT") -> ***Please fill a valid Opeining Year AADT
A51: Exit Ramp | F51: =IF(AND(ISNUMBER(Input_RTI_OAADTEx1),ISNUMBER(Input_RTI_OAADTEx2)),"","***Please fill a valid Opeining Year AADT") -> ***Please fill a valid Opeining Year AADT
A52: Entrance Ramp | F52: =IF(AND(ISNUMBER(Input_RTI_OAADTEn1),ISNUMBER(Input_RTI_OAADTEn2)),"","***Please fill a valid Opeining Year AADT") -> ***Please fill a valid Opeining Year AADT
A53: Design Year AADT | D53: =IF($D$45=Notes!$J$26,"NB","EB") & " Ramp Terminal" -> EB Ramp Terminal | E53: =IF($D$45=Notes!$J$26,"SB","WB") & " Ramp Terminal" -> WB Ramp Terminal
A54: Crossroad - Inside Leg | F54: =IF(Input_AnalysisYearType=Label_AnalysisYearType_OpenAndDesign, IF(AND(ISNUMBER(Input_RTI_DAADTIn1),ISNUMBER(Input_RTI_DAADTIn2)),"","***Please fill a valid Design Year AADT"), "") -> 
A55: Crossroad - Outside Leg | F55: =IF(Input_AnalysisYearType=Label_AnalysisYearType_OpenAndDesign, IF(AND(ISNUMBER(Input_RTI_DAADTOut1),ISNUMBER(Input_RTI_DAADTOut2)),"","***Please fill a valid Design Year AADT"), "") -> 
A56: Exit Ramp | F56: =IF(Input_AnalysisYearType=Label_AnalysisYearType_OpenAndDesign, IF(AND(ISNUMBER(Input_RTI_DAADTEx1),ISNUMBER(Input_RTI_DAADTEx2)),"","***Please fill a valid Design Year AADT"), "") -> 
A57: Entrance Ramp | F57: =IF(Input_AnalysisYearType=Label_AnalysisYearType_OpenAndDesign, IF(AND(ISNUMBER(Input_RTI_DAADTEn1),ISNUMBER(Input_RTI_DAADTEn2)),"","***Please fill a valid Design Year AADT"), "") -> 
A60: Ramp Terminal Intersections | K60: XRD IN | M60: XRD Out | O60: Total Ramp Volume | Q60: ENTR | S60: Terminal 1 | U60: Terminal 2 | W60: AADT Within Range?
A61: Traffic Control (both intersections) | B61: Include | D61: Base Intersection | E61: Comment 1 | G61: Comment 2 | K61: Min | L61: Max | M61: Min | N61: Max | O61: Min | P61: Max | Q61: Min | R61: Max | S61: Opening | T61: Design | U61: Opening | V61: Design | W61: Opening | X61: Design | Y61: Opening T1 | Z61: Opening T2 | AA61: Desgin T1 | AB61: Design T2 | AC61: Opening Max | AD61: Design Max
A62: Diamond Signalized | D62: -- | E62: =IF(NOT(ISNUMBER(K62)),"No SPF Available",IF(OR(NOT(IsChecked_RTI_D4TS),W62),"","Opening Year AADT Outside of SPF Development Range")) ->  | G62: =IF(NOT(ISNUMBER(L62)),"No SPF Available",IF(OR(NOT(Input_AnalysisYearType=Label_AnalysisYearType_OpenAndDesign),NOT(IsChecked_RTI_D4TS),X62),"","Design Year AADT Outside of SPF Development Range")) ->  | K62: =Definitions!E43 -> 0 | L62: =Definitions!F43 -> 47000 | M62: =Definitions!E45 -> 0 | N62: =Definitions!F45 -> 47000 | O62: =Definitions!E47 -> 0 | P62: =Definitions!F47 -> 31000 | Q62: =Definitions!E49 -> 0 | R62: =Definitions!F49 -> 31000 | S62: =AND(Input_RTI_OAADTIn1>=K62,Input_RTI_OAADTIn1<=L62,Input_RTI_OAADTOut1>=M62,Input_RTI_OAADTOut1<=N62,(Input_RTI_OAADTEx1+Input_RTI_OAADTEn1)>=O62,(Input_RTI_OAADTEx1+Input_RTI_OAADTEn1)<=P62) -> TRUE | T62: =AND(Input_RTI_DAADTIn1>=K62, Input_RTI_DAADTIn1<=L62, Input_RTI_DAADTOut1>=M62, Input_RTI_DAADTOut1<=N62, (Input_RTI_DAADTEx1+Input_RTI_DAADTEn1)>=O62, (Input_RTI_DAADTEx1+Input_RTI_DAADTEn1)<=P62) -> TRUE | U62: =AND(Input_RTI_OAADTIn2>=K62, Input_RTI_OAADTIn2<=L62, Input_RTI_OAADTOut2>=M62, Input_RTI_OAADTOut2<=N62, (Input_RTI_OAADTEx2+Input_RTI_OAADTEn2)>=O62, (Input_RTI_OAADTEx2+Input_RTI_OAADTEn2)<=P62) -> TRUE | V62: =AND(Input_RTI_DAADTIn2>=K62, Input_RTI_DAADTIn2<=L62, Input_RTI_DAADTOut2>=M62, Input_RTI_DAADTOut2<=N62, (Input_RTI_DAADTEx2+Input_RTI_DAADTEn2)>=O62, (Input_RTI_DAADTEx2+Input_RTI_DAADTEn2)<=P62) -> TRUE | W62: =AND(S62,U62) -> TRUE | X62: =AND(T62,V62) -> TRUE | Y62: =MAX(IF(Input_RTI_OAADTIn1>=$K62, 0, ($K62-Input_RTI_OAADTIn1)/$K62),IF(Input_RTI_OAADTIn1<=$L62, 0, (Input_RTI_OAADTIn1-$L62)/$L62), IF(Input_RTI_OAADTOut1>=$M62, 0, ($M62-Input_RTI_OAADTOut1)/$M62),IF(Input_RTI_OAADTOut1<=$N62, 0, (Input_RTI_OAADTOut1-$N62)/$N62), IF((Input_RTI_OAADTEx1+Input_RTI_OAADTEn1)>=$O62, 0, ($O62-(Input_RTI_OAADTEx1+Input_RTI_OAADTEn1))/$O62), IF((Input_RTI_OAADTEx1+Input_RTI_OAADTEn1)<=$P62, 0, ((Input_RTI_OAADTEx1+Input_RTI_OAADTEn1)-$P62)/$P62)) -> 0 | Z62: =MAX(IF(Input_RTI_OAADTIn2>=$K62, 0, ($K62-Input_RTI_OAADTIn2)/$K62),IF(Input_RTI_OAADTIn2<=$L62, 0, (Input_RTI_OAADTIn2-$L62)/$L62), IF(Input_RTI_OAADTOut2>=$M62, 0, ($M62-Input_RTI_OAADTOut2)/$M62),IF(Input_RTI_OAADTOut2<=$N62, 0, (Input_RTI_OAADTOut2-$N62)/$N62), IF((Input_RTI_OAADTEx2+Input_RTI_OAADTEn2)>=$O62, 0, ($O62-(Input_RTI_OAADTEx2+Input_RTI_OAADTEn2))/$O62), IF((Input_RTI_OAADTEx2+Input_RTI_OAADTEn2)<=$P62, 0, ((Input_RTI_OAADTEx2+Input_RTI_OAADTEn2)-$P62)/$P62)) -> 0 | AA62: =MAX(IF(Input_RTI_DAADTIn1>=$K62, 0, ($K62-Input_RTI_DAADTIn1)/$K62),IF(Input_RTI_DAADTIn1<=$L62, 0, (Input_RTI_DAADTIn1-$L62)/$L62), IF(Input_RTI_DAADTOut1>=$M62, 0, ($M62-Input_RTI_DAADTOut1)/$M62),IF(Input_RTI_DAADTOut1<=$N62, 0, (Input_RTI_DAADTOut1-$N62)/$N62), IF((Input_RTI_DAADTEx1+Input_RTI_DAADTEn1)>=$O62, 0, ($O62-(Input_RTI_DAADTEx1+Input_RTI_DAADTEn1))/$O62), IF((Input_RTI_DAADTEx1+Input_RTI_DAADTEn1)<=$P62, 0, ((Input_RTI_DAADTEx1+Input_RTI_DAADTEn1)-$P62)/$P62)) -> 0 | AB62: =MAX(IF(Input_RTI_DAADTIn2>=$K62, 0, ($K62-Input_RTI_DAADTIn2)/$K62),IF(Input_RTI_DAADTIn2<=$L62, 0, (Input_RTI_DAADTIn2-$L62)/$L62), IF(Input_RTI_DAADTOut2>=$M62, 0, ($M62-Input_RTI_DAADTOut2)/$M62),IF(Input_RTI_DAADTOut2<=$N62, 0, (Input_RTI_DAADTOut2-$N62)/$N62), IF((Input_RTI_DAADTEx2+Input_RTI_DAADTEn2)>=$O62, 0, ($O62-(Input_RTI_DAADTEx2+Input_RTI_DAADTEn2))/$O62), IF((Input_RTI_DAADTEx2+Input_RTI_DAADTEn2)<=$P62, 0, ((Input_RTI_DAADTEx2+Input_RTI_DAADTEn2)-$P62)/$P62)) -> 0 | AC62: =IF(OR(ISBLANK(Input_RTI_OAADTIn1), ISBLANK(Input_RTI_OAADTOut1), ISBLANK(Input_RTI_OAADTEx1), ISBLANK(Input_RTI_OAADTEn1)), 0, MAX(Y62:Z62)) -> 0 | AD62: =MAX(AA62:AB62) -> 0 | AE62: =AC62 -> 0 | AF62: =AD62 -> 0
A63: Diamond Signalized (Alt) | D63: -- | E63: =IF(NOT(ISNUMBER(K63)),"No SPF Available",IF(OR(NOT(IsChecked_RTI_D4TSA),W63),"","Opening Year AADT Outside of SPF Development Range")) ->  | G63: =IF(NOT(ISNUMBER(L63)),"No SPF Available",IF(OR(NOT(Input_AnalysisYearType=Label_AnalysisYearType_OpenAndDesign),NOT(IsChecked_RTI_D4TSA),X63),"","Design Year AADT Outside of SPF Development Range")) ->  | K63: =K62 -> 0 | L63: =L62 -> 47000 | M63: 0 | N63: 47000 | O63: 0 | P63: 31000 | Q63: 0 | R63: 31000 | S63: =AND(Input_RTI_OAADTIn1>=K63,Input_RTI_OAADTIn1<=L63,Input_RTI_OAADTOut1>=M63,Input_RTI_OAADTOut1<=N63,(Input_RTI_OAADTEx1+Input_RTI_OAADTEn1)>=O63,(Input_RTI_OAADTEx1+Input_RTI_OAADTEn1)<=P63) -> TRUE | T63: =AND(Input_RTI_DAADTIn1>=K63, Input_RTI_DAADTIn1<=L63, Input_RTI_DAADTOut1>=M63, Input_RTI_DAADTOut1<=N63, (Input_RTI_DAADTEx1+Input_RTI_DAADTEn1)>=O63, (Input_RTI_DAADTEx1+Input_RTI_DAADTEn1)<=P63) -> TRUE | U63: =AND(Input_RTI_OAADTIn2>=K63, Input_RTI_OAADTIn2<=L63, Input_RTI_OAADTOut2>=M63, Input_RTI_OAADTOut2<=N63, (Input_RTI_OAADTEx2+Input_RTI_OAADTEn2)>=O63, (Input_RTI_OAADTEx2+Input_RTI_OAADTEn2)<=P63) -> TRUE | V63: =AND(Input_RTI_DAADTIn2>=K63, Input_RTI_DAADTIn2<=L63, Input_RTI_DAADTOut2>=M63, Input_RTI_DAADTOut2<=N63, (Input_RTI_DAADTEx2+Input_RTI_DAADTEn2)>=O63, (Input_RTI_DAADTEx2+Input_RTI_DAADTEn2)<=P63) -> TRUE | W63: TRUE | X63: TRUE | Y63: =MAX(IF(Input_RTI_OAADTIn1>=$K63, 0, ($K63-Input_RTI_OAADTIn1)/$K63),IF(Input_RTI_OAADTIn1<=$L63, 0, (Input_RTI_OAADTIn1-$L63)/$L63), IF(Input_RTI_OAADTOut1>=$M63, 0, ($M63-Input_RTI_OAADTOut1)/$M63),IF(Input_RTI_OAADTOut1<=$N63, 0, (Input_RTI_OAADTOut1-$N63)/$N63), IF((Input_RTI_OAADTEx1+Input_RTI_OAADTEn1)>=$O63, 0, ($O63-(Input_RTI_OAADTEx1+Input_RTI_OAADTEn1))/$O63), IF((Input_RTI_OAADTEx1+Input_RTI_OAADTEn1)<=$P63, 0, ((Input_RTI_OAADTEx1+Input_RTI_OAADTEn1)-$P63)/$P63)) -> 0 | Z63: =MAX(IF(Input_RTI_OAADTIn2>=$K63, 0, ($K63-Input_RTI_OAADTIn2)/$K63),IF(Input_RTI_OAADTIn2<=$L63, 0, (Input_RTI_OAADTIn2-$L63)/$L63), IF(Input_RTI_OAADTOut2>=$M63, 0, ($M63-Input_RTI_OAADTOut2)/$M63),IF(Input_RTI_OAADTOut2<=$N63, 0, (Input_RTI_OAADTOut2-$N63)/$N63), IF((Input_RTI_OAADTEx2+Input_RTI_OAADTEn2)>=$O63, 0, ($O63-(Input_RTI_OAADTEx2+Input_RTI_OAADTEn2))/$O63), IF((Input_RTI_OAADTEx2+Input_RTI_OAADTEn2)<=$P63, 0, ((Input_RTI_OAADTEx2+Input_RTI_OAADTEn2)-$P63)/$P63)) -> 0 | AA63: =MAX(IF(Input_RTI_DAADTIn1>=$K63, 0, ($K63-Input_RTI_DAADTIn1)/$K63),IF(Input_RTI_DAADTIn1<=$L63, 0, (Input_RTI_DAADTIn1-$L63)/$L63), IF(Input_RTI_DAADTOut1>=$M63, 0, ($M63-Input_RTI_DAADTOut1)/$M63),IF(Input_RTI_DAADTOut1<=$N63, 0, (Input_RTI_DAADTOut1-$N63)/$N63), IF((Input_RTI_DAADTEx1+Input_RTI_DAADTEn1)>=$O63, 0, ($O63-(Input_RTI_DAADTEx1+Input_RTI_DAADTEn1))/$O63), IF((Input_RTI_DAADTEx1+Input_RTI_DAADTEn1)<=$P63, 0, ((Input_RTI_DAADTEx1+Input_RTI_DAADTEn1)-$P63)/$P63)) -> 0 | AB63: =MAX(IF(Input_RTI_DAADTIn2>=$K63, 0, ($K63-Input_RTI_DAADTIn2)/$K63),IF(Input_RTI_DAADTIn2<=$L63, 0, (Input_RTI_DAADTIn2-$L63)/$L63), IF(Input_RTI_DAADTOut2>=$M63, 0, ($M63-Input_RTI_DAADTOut2)/$M63),IF(Input_RTI_DAADTOut2<=$N63, 0, (Input_RTI_DAADTOut2-$N63)/$N63), IF((Input_RTI_DAADTEx2+Input_RTI_DAADTEn2)>=$O63, 0, ($O63-(Input_RTI_DAADTEx2+Input_RTI_DAADTEn2))/$O63), IF((Input_RTI_DAADTEx2+Input_RTI_DAADTEn2)<=$P63, 0, ((Input_RTI_DAADTEx2+Input_RTI_DAADTEn2)-$P63)/$P63)) -> 0 | AC63: =IF(OR(ISBLANK(Input_RTI_OAADTIn1), ISBLANK(Input_RTI_OAADTOut1), ISBLANK(Input_RTI_OAADTEx1), ISBLANK(Input_RTI_OAADTEn1)), 0, MAX(Y63:Z63)) -> 0 | AD63: 0 | AE63: =AC62 -> 0 | AF63: =AD62 -> 0
A64: Diverging Diamond | D64: Signalized Diamond | AE64: =AC63 -> 0 | AF64: =AD63 -> 0
A65: Single-Point Diamond | D65: -- | E65: =IF(NOT(ISNUMBER(K65)),"No SPF Available",IF(OR(NOT(IsChecked_RTI_D4MS),W65),"","Opening Year AADT Outside of SPF Development Range")) ->  | G65: =IF(NOT(ISNUMBER(L65)),"No SPF Available",IF(OR(NOT(Input_AnalysisYearType=Label_AnalysisYearType_OpenAndDesign),NOT(IsChecked_RTI_D4MS),X65),"","Design Year AADT Outside of SPF Development Range")) ->  | K65: =Definitions!P31 -> 13445 | L65: =Definitions!Q31 -> 70790 | M65: =Definitions!R31 -> 13445 | N65: =Definitions!S31 -> 70790 | O65: =Definitions!T31 -> 14069 | P65: =Definitions!U31 -> 80030 | Q65: =Definitions!V31 -> 0 | R65: =Definitions!W31 -> 0 | S65: =AND(Input_RTI_OAADTIn1>=K65,Input_RTI_OAADTIn1<=L65,Input_RTI_OAADTOut1>=M65,Input_RTI_OAADTOut1<=N65,(Input_RTI_OAADTEx1+Input_RTI_OAADTEn1)>=O65,(Input_RTI_OAADTEx1+Input_RTI_OAADTEn1)<=P65) -> FALSE | T65: =AND(Input_RTI_DAADTIn1>=K65, Input_RTI_DAADTIn1<=L65, Input_RTI_DAADTOut1>=M65, Input_RTI_DAADTOut1<=N65, (Input_RTI_DAADTEx1+Input_RTI_DAADTEn1)>=O65, (Input_RTI_DAADTEx1+Input_RTI_DAADTEn1)<=P65) -> FALSE | U65: =AND(Input_RTI_OAADTIn2>=K65, Input_RTI_OAADTIn2<=L65, Input_RTI_OAADTOut2>=M65, Input_RTI_OAADTOut2<=N65, (Input_RTI_OAADTEx2+Input_RTI_OAADTEn2)>=O65, (Input_RTI_OAADTEx2+Input_RTI_OAADTEn2)<=P65) -> FALSE | V65: =AND(Input_RTI_DAADTIn2>=K65, Input_RTI_DAADTIn2<=L65, Input_RTI_DAADTOut2>=M65, Input_RTI_DAADTOut2<=N65, (Input_RTI_DAADTEx2+Input_RTI_DAADTEn2)>=O65, (Input_RTI_DAADTEx2+Input_RTI_DAADTEn2)<=P65) -> FALSE | W65: FALSE | X65: FALSE | Y65: =MAX(IF(Input_RTI_OAADTIn1>=$K65, 0, ($K65-Input_RTI_OAADTIn1)/$K65),IF(Input_RTI_OAADTIn1<=$L65, 0, (Input_RTI_OAADTIn1-$L65)/$L65), IF(Input_RTI_OAADTOut1>=$M65, 0, ($M65-Input_RTI_OAADTOut1)/$M65),IF(Input_RTI_OAADTOut1<=$N65, 0, (Input_RTI_OAADTOut1-$N65)/$N65), IF((Input_RTI_OAADTEx1+Input_RTI_OAADTEn1)>=$O65, 0, ($O65-(Input_RTI_OAADTEx1+Input_RTI_OAADTEn1))/$O65), IF((Input_RTI_OAADTEx1+Input_RTI_OAADTEn1)<=$P65, 0, ((Input_RTI_OAADTEx1+Input_RTI_OAADTEn1)-$P65)/$P65)) -> 1 | Z65: =MAX(IF(Input_RTI_OAADTIn2>=$K65, 0, ($K65-Input_RTI_OAADTIn2)/$K65),IF(Input_RTI_OAADTIn2<=$L65, 0, (Input_RTI_OAADTIn2-$L65)/$L65), IF(Input_RTI_OAADTOut2>=$M65, 0, ($M65-Input_RTI_OAADTOut2)/$M65),IF(Input_RTI_OAADTOut2<=$N65, 0, (Input_RTI_OAADTOut2-$N65)/$N65), IF((Input_RTI_OAADTEx2+Input_RTI_OAADTEn2)>=$O65, 0, ($O65-(Input_RTI_OAADTEx2+Input_RTI_OAADTEn2))/$O65), IF((Input_RTI_OAADTEx2+Input_RTI_OAADTEn2)<=$P65, 0, ((Input_RTI_OAADTEx2+Input_RTI_OAADTEn2)-$P65)/$P65)) -> 1 | AA65: =MAX(IF(Input_RTI_DAADTIn1>=$K65, 0, ($K65-Input_RTI_DAADTIn1)/$K65),IF(Input_RTI_DAADTIn1<=$L65, 0, (Input_RTI_DAADTIn1-$L65)/$L65), IF(Input_RTI_DAADTOut1>=$M65, 0, ($M65-Input_RTI_DAADTOut1)/$M65),IF(Input_RTI_DAADTOut1<=$N65, 0, (Input_RTI_DAADTOut1-$N65)/$N65), IF((Input_RTI_DAADTEx1+Input_RTI_DAADTEn1)>=$O65, 0, ($O65-(Input_RTI_DAADTEx1+Input_RTI_DAADTEn1))/$O65), IF((Input_RTI_DAADTEx1+Input_RTI_DAADTEn1)<=$P65, 0, ((Input_RTI_DAADTEx1+Input_RTI_DAADTEn1)-$P65)/$P65)) -> 1 | AB65: =MAX(IF(Input_RTI_DAADTIn2>=$K65, 0, ($K65-Input_RTI_DAADTIn2)/$K65),IF(Input_RTI_DAADTIn2<=$L65, 0, (Input_RTI_DAADTIn2-$L65)/$L65), IF(Input_RTI_DAADTOut2>=$M65, 0, ($M65-Input_RTI_DAADTOut2)/$M65),IF(Input_RTI_DAADTOut2<=$N65, 0, (Input_RTI_DAADTOut2-$N65)/$N65), IF((Input_RTI_DAADTEx2+Input_RTI_DAADTEn2)>=$O65, 0, ($O65-(Input_RTI_DAADTEx2+Input_RTI_DAADTEn2))/$O65), IF((Input_RTI_DAADTEx2+Input_RTI_DAADTEn2)<=$P65, 0, ((Input_RTI_DAADTEx2+Input_RTI_DAADTEn2)-$P65)/$P65)) -> 1 | AC65: =IF(OR(ISBLANK(Input_RTI_OAADTIn1), ISBLANK(Input_RTI_OAADTOut1), ISBLANK(Input_RTI_OAADTEx1), ISBLANK(Input_RTI_OAADTEn1)), 0, MAX(Y65:Z65)) -> 0 | AD65: 1 | AE65: =AC63 -> 0 | AF65: =AD63 -> 0
A66: Diamond Stop Control | D66: -- | E66: =IF(NOT(ISNUMBER(K66)),"No SPF Available",IF(OR(NOT(IsChecked_RTI_D4MS),W66),"","Opening Year AADT Outside of SPF Development Range")) ->  | G66: =IF(NOT(ISNUMBER(L66)),"No SPF Available",IF(OR(NOT(Input_AnalysisYearType=Label_AnalysisYearType_OpenAndDesign),NOT(IsChecked_RTI_D4MS),X66),"","Design Year AADT Outside of SPF Development Range")) ->  | K66: =Definitions!E42 -> 0 | L66: =Definitions!F42 -> 18000 | M66: =Definitions!E44 -> 0 | N66: =Definitions!F44 -> 18000 | O66: =Definitions!E46 -> 0 | P66: =Definitions!F46 -> 10000 | Q66: =Definitions!E48 -> 0 | R66: =Definitions!F48 -> 10000 | S66: TRUE | T66: TRUE | U66: TRUE | V66: =AND(Input_RTI_DAADTIn2>=K66, Input_RTI_DAADTIn2<=L66, Input_RTI_DAADTOut2>=M66, Input_RTI_DAADTOut2<=N66, (Input_RTI_DAADTEx2+Input_RTI_DAADTEn2)>=O66, (Input_RTI_DAADTEx2+Input_RTI_DAADTEn2)<=P66) -> TRUE | W66: =AND(S66,U66) -> TRUE | X66: TRUE | Y66: =MAX(IF(Input_RTI_OAADTIn1>=$K66, 0, ($K66-Input_RTI_OAADTIn1)/$K66),IF(Input_RTI_OAADTIn1<=$L66, 0, (Input_RTI_OAADTIn1-$L66)/$L66), IF(Input_RTI_OAADTOut1>=$M66, 0, ($M66-Input_RTI_OAADTOut1)/$M66),IF(Input_RTI_OAADTOut1<=$N66, 0, (Input_RTI_OAADTOut1-$N66)/$N66), IF((Input_RTI_OAADTEx1+Input_RTI_OAADTEn1)>=$O66, 0, ($O66-(Input_RTI_OAADTEx1+Input_RTI_OAADTEn1))/$O66), IF((Input_RTI_OAADTEx1+Input_RTI_OAADTEn1)<=$P66, 0, ((Input_RTI_OAADTEx1+Input_RTI_OAADTEn1)-$P66)/$P66)) -> 0 | Z66: =MAX(IF(Input_RTI_OAADTIn2>=$K66, 0, ($K66-Input_RTI_OAADTIn2)/$K66),IF(Input_RTI_OAADTIn2<=$L66, 0, (Input_RTI_OAADTIn2-$L66)/$L66), IF(Input_RTI_OAADTOut2>=$M66, 0, ($M66-Input_RTI_OAADTOut2)/$M66),IF(Input_RTI_OAADTOut2<=$N66, 0, (Input_RTI_OAADTOut2-$N66)/$N66), IF((Input_RTI_OAADTEx2+Input_RTI_OAADTEn2)>=$O66, 0, ($O66-(Input_RTI_OAADTEx2+Input_RTI_OAADTEn2))/$O66), IF((Input_RTI_OAADTEx2+Input_RTI_OAADTEn2)<=$P66, 0, ((Input_RTI_OAADTEx2+Input_RTI_OAADTEn2)-$P66)/$P66)) -> 0 | AA66: =MAX(IF(Input_RTI_DAADTIn1>=$K66, 0, ($K66-Input_RTI_DAADTIn1)/$K66),IF(Input_RTI_DAADTIn1<=$L66, 0, (Input_RTI_DAADTIn1-$L66)/$L66), IF(Input_RTI_DAADTOut1>=$M66, 0, ($M66-Input_RTI_DAADTOut1)/$M66),IF(Input_RTI_DAADTOut1<=$N66, 0, (Input_RTI_DAADTOut1-$N66)/$N66), IF((Input_RTI_DAADTEx1+Input_RTI_DAADTEn1)>=$O66, 0, ($O66-(Input_RTI_DAADTEx1+Input_RTI_DAADTEn1))/$O66), IF((Input_RTI_DAADTEx1+Input_RTI_DAADTEn1)<=$P66, 0, ((Input_RTI_DAADTEx1+Input_RTI_DAADTEn1)-$P66)/$P66)) -> 0 | AB66: =MAX(IF(Input_RTI_DAADTIn2>=$K66, 0, ($K66-Input_RTI_DAADTIn2)/$K66),IF(Input_RTI_DAADTIn2<=$L66, 0, (Input_RTI_DAADTIn2-$L66)/$L66), IF(Input_RTI_DAADTOut2>=$M66, 0, ($M66-Input_RTI_DAADTOut2)/$M66),IF(Input_RTI_DAADTOut2<=$N66, 0, (Input_RTI_DAADTOut2-$N66)/$N66), IF((Input_RTI_DAADTEx2+Input_RTI_DAADTEn2)>=$O66, 0, ($O66-(Input_RTI_DAADTEx2+Input_RTI_DAADTEn2))/$O66), IF((Input_RTI_DAADTEx2+Input_RTI_DAADTEn2)<=$P66, 0, ((Input_RTI_DAADTEx2+Input_RTI_DAADTEn2)-$P66)/$P66)) -> 0 | AC66: =MAX(Y66:Z66) -> 0 | AD66: 0 | AE66: =AC64 -> 0 | AF66: =AD64 -> 0
A67: Signalized Tight Diamond | D67: -- | K67: =Definitions!P33 -> 8921 | L67: =Definitions!Q33 -> 51438 | M67: =Definitions!R33 -> 8921 | N67: =Definitions!S33 -> 51438 | O67: =Definitions!T33 -> 9955 | P67: =Definitions!U33 -> 74656 | Q67: =Definitions!V33 -> 0 | R67: =Definitions!W33 -> 0 | S67: FALSE | T67: FALSE | U67: FALSE | V67: =AND(Input_RTI_DAADTIn2>=K67, Input_RTI_DAADTIn2<=L67, Input_RTI_DAADTOut2>=M67, Input_RTI_DAADTOut2<=N67, (Input_RTI_DAADTEx2+Input_RTI_DAADTEn2)>=O67, (Input_RTI_DAADTEx2+Input_RTI_DAADTEn2)<=P67) -> FALSE | W67: FALSE | X67: FALSE | Y67: =MAX(IF(Input_RTI_OAADTIn1>=$K67, 0, ($K67-Input_RTI_OAADTIn1)/$K67),IF(Input_RTI_OAADTIn1<=$L67, 0, (Input_RTI_OAADTIn1-$L67)/$L67), IF(Input_RTI_OAADTOut1>=$M67, 0, ($M67-Input_RTI_OAADTOut1)/$M67),IF(Input_RTI_OAADTOut1<=$N67, 0, (Input_RTI_OAADTOut1-$N67)/$N67), IF((Input_RTI_OAADTEx1+Input_RTI_OAADTEn1)>=$O67, 0, ($O67-(Input_RTI_OAADTEx1+Input_RTI_OAADTEn1))/$O67), IF((Input_RTI_OAADTEx1+Input_RTI_OAADTEn1)<=$P67, 0, ((Input_RTI_OAADTEx1+Input_RTI_OAADTEn1)-$P67)/$P67)) -> 1 | Z67: =MAX(IF(Input_RTI_OAADTIn2>=$K67, 0, ($K67-Input_RTI_OAADTIn2)/$K67),IF(Input_RTI_OAADTIn2<=$L67, 0, (Input_RTI_OAADTIn2-$L67)/$L67), IF(Input_RTI_OAADTOut2>=$M67, 0, ($M67-Input_RTI_OAADTOut2)/$M67),IF(Input_RTI_OAADTOut2<=$N67, 0, (Input_RTI_OAADTOut2-$N67)/$N67), IF((Input_RTI_OAADTEx2+Input_RTI_OAADTEn2)>=$O67, 0, ($O67-(Input_RTI_OAADTEx2+Input_RTI_OAADTEn2))/$O67), IF((Input_RTI_OAADTEx2+Input_RTI_OAADTEn2)<=$P67, 0, ((Input_RTI_OAADTEx2+Input_RTI_OAADTEn2)-$P67)/$P67)) -> 1 | AA67: =MAX(IF(Input_RTI_DAADTIn1>=$K67, 0, ($K67-Input_RTI_DAADTIn1)/$K67),IF(Input_RTI_DAADTIn1<=$L67, 0, (Input_RTI_DAADTIn1-$L67)/$L67), IF(Input_RTI_DAADTOut1>=$M67, 0, ($M67-Input_RTI_DAADTOut1)/$M67),IF(Input_RTI_DAADTOut1<=$N67, 0, (Input_RTI_DAADTOut1-$N67)/$N67), IF((Input_RTI_DAADTEx1+Input_RTI_DAADTEn1)>=$O67, 0, ($O67-(Input_RTI_DAADTEx1+Input_RTI_DAADTEn1))/$O67), IF((Input_RTI_DAADTEx1+Input_RTI_DAADTEn1)<=$P67, 0, ((Input_RTI_DAADTEx1+Input_RTI_DAADTEn1)-$P67)/$P67)) -> 1 | AB67: =MAX(IF(Input_RTI_DAADTIn2>=$K67, 0, ($K67-Input_RTI_DAADTIn2)/$K67),IF(Input_RTI_DAADTIn2<=$L67, 0, (Input_RTI_DAADTIn2-$L67)/$L67), IF(Input_RTI_DAADTOut2>=$M67, 0, ($M67-Input_RTI_DAADTOut2)/$M67),IF(Input_RTI_DAADTOut2<=$N67, 0, (Input_RTI_DAADTOut2-$N67)/$N67), IF((Input_RTI_DAADTEx2+Input_RTI_DAADTEn2)>=$O67, 0, ($O67-(Input_RTI_DAADTEx2+Input_RTI_DAADTEn2))/$O67), IF((Input_RTI_DAADTEx2+Input_RTI_DAADTEn2)<=$P67, 0, ((Input_RTI_DAADTEx2+Input_RTI_DAADTEn2)-$P67)/$P67)) -> 1 | AC67: =IF(OR(ISBLANK(Input_RTI_OAADTIn1), ISBLANK(Input_RTI_OAADTOut1), ISBLANK(Input_RTI_OAADTEx1), ISBLANK(Input_RTI_OAADTEn1)), 0, MAX(Y67:Z67)) -> 0 | AD67: 1 | AE67: =AC64 -> 0 | AF67: =AD64 -> 0
A68: Roundabout (1-lane) | D68: -- | E68: =IF(NOT(ISNUMBER(K68)),"No SPF Available",IF(OR(NOT(IsChecked_RTI_D4MS),W68),"","Opening Year AADT Outside of SPF Development Range")) ->  | G68: =IF(NOT(ISNUMBER(L68)),"No SPF Available",IF(OR(NOT(Input_AnalysisYearType=Label_AnalysisYearType_OpenAndDesign),NOT(IsChecked_RTI_D4MS),X68),"","Design Year AADT Outside of SPF Development Range")) ->  | K68: =Definitions!$P$5 -> 1000 | L68: =Definitions!$Q$5 -> 19733 | M68: =Definitions!$P$5 -> 1000 | N68: =Definitions!$Q$5 -> 19733 | O68: =Definitions!$R$5 -> 280 | P68: =Definitions!$S$5 -> 11239 | Q68: =Definitions!$R$5 -> 280 | R68: =Definitions!$S$5 -> 11239 | S68: FALSE | T68: FALSE | U68: FALSE | V68: =AND(Input_RTI_DAADTIn2>=K68, Input_RTI_DAADTIn2<=L68, Input_RTI_DAADTOut2>=M68, Input_RTI_DAADTOut2<=N68, (Input_RTI_DAADTEx2+Input_RTI_DAADTEn2)>=O68, (Input_RTI_DAADTEx2+Input_RTI_DAADTEn2)<=P68) -> FALSE | W68: FALSE | X68: FALSE | Y68: =MAX(IF(Input_RTI_OAADTIn1>=$K68, 0, ($K68-Input_RTI_OAADTIn1)/$K68),IF(Input_RTI_OAADTIn1<=$L68, 0, (Input_RTI_OAADTIn1-$L68)/$L68), IF(Input_RTI_OAADTOut1>=$M68, 0, ($M68-Input_RTI_OAADTOut1)/$M68),IF(Input_RTI_OAADTOut1<=$N68, 0, (Input_RTI_OAADTOut1-$N68)/$N68), IF((Input_RTI_OAADTEx1+Input_RTI_OAADTEn1)>=$O68, 0, ($O68-(Input_RTI_OAADTEx1+Input_RTI_OAADTEn1))/$O68), IF((Input_RTI_OAADTEx1+Input_RTI_OAADTEn1)<=$P68, 0, ((Input_RTI_OAADTEx1+Input_RTI_OAADTEn1)-$P68)/$P68)) -> 1 | Z68: =MAX(IF(Input_RTI_OAADTIn2>=$K68, 0, ($K68-Input_RTI_OAADTIn2)/$K68),IF(Input_RTI_OAADTIn2<=$L68, 0, (Input_RTI_OAADTIn2-$L68)/$L68), IF(Input_RTI_OAADTOut2>=$M68, 0, ($M68-Input_RTI_OAADTOut2)/$M68),IF(Input_RTI_OAADTOut2<=$N68, 0, (Input_RTI_OAADTOut2-$N68)/$N68), IF((Input_RTI_OAADTEx2+Input_RTI_OAADTEn2)>=$O68, 0, ($O68-(Input_RTI_OAADTEx2+Input_RTI_OAADTEn2))/$O68), IF((Input_RTI_OAADTEx2+Input_RTI_OAADTEn2)<=$P68, 0, ((Input_RTI_OAADTEx2+Input_RTI_OAADTEn2)-$P68)/$P68)) -> 1 | AA68: =MAX(IF(Input_RTI_DAADTIn1>=$K68, 0, ($K68-Input_RTI_DAADTIn1)/$K68),IF(Input_RTI_DAADTIn1<=$L68, 0, (Input_RTI_DAADTIn1-$L68)/$L68), IF(Input_RTI_DAADTOut1>=$M68, 0, ($M68-Input_RTI_DAADTOut1)/$M68),IF(Input_RTI_DAADTOut1<=$N68, 0, (Input_RTI_DAADTOut1-$N68)/$N68), IF((Input_RTI_DAADTEx1+Input_RTI_DAADTEn1)>=$O68, 0, ($O68-(Input_RTI_DAADTEx1+Input_RTI_DAADTEn1))/$O68), IF((Input_RTI_DAADTEx1+Input_RTI_DAADTEn1)<=$P68, 0, ((Input_RTI_DAADTEx1+Input_RTI_DAADTEn1)-$P68)/$P68)) -> 1 | AB68: =MAX(IF(Input_RTI_DAADTIn2>=$K68, 0, ($K68-Input_RTI_DAADTIn2)/$K68),IF(Input_RTI_DAADTIn2<=$L68, 0, (Input_RTI_DAADTIn2-$L68)/$L68), IF(Input_RTI_DAADTOut2>=$M68, 0, ($M68-Input_RTI_DAADTOut2)/$M68),IF(Input_RTI_DAADTOut2<=$N68, 0, (Input_RTI_DAADTOut2-$N68)/$N68), IF((Input_RTI_DAADTEx2+Input_RTI_DAADTEn2)>=$O68, 0, ($O68-(Input_RTI_DAADTEx2+Input_RTI_DAADTEn2))/$O68), IF((Input_RTI_DAADTEx2+Input_RTI_DAADTEn2)<=$P68, 0, ((Input_RTI_DAADTEx2+Input_RTI_DAADTEn2)-$P68)/$P68)) -> 1 | AC68: =IF(OR(ISBLANK(Input_RTI_OAADTIn1), ISBLANK(Input_RTI_OAADTOut1), ISBLANK(Input_RTI_OAADTEx1), ISBLANK(Input_RTI_OAADTEn1)), 0, MAX(Y68:Z68)) -> 0 | AD68: 1 | AE68: =AC65 -> 0 | AF68: =AD65 -> 1
A69: Roundabout (2-lane) | D69: -- | E69: =IF(NOT(ISNUMBER(K69)),"No SPF Available",IF(OR(NOT(IsChecked_RTI_D4MS),W69),"","Opening Year AADT Outside of SPF Development Range")) ->  | G69: =IF(NOT(ISNUMBER(L69)),"No SPF Available",IF(OR(NOT(Input_AnalysisYearType=Label_AnalysisYearType_OpenAndDesign),NOT(IsChecked_RTI_D4MS),X69),"","Design Year AADT Outside of SPF Development Range")) ->  | K69: =Definitions!$P$8 -> 1000 | L69: =Definitions!$Q$8 -> 28333 | M69: =Definitions!$P$8 -> 1000 | N69: =Definitions!$Q$8 -> 28333 | O69: =Definitions!$R$8 -> 390 | P69: =Definitions!$S$8 -> 19371 | Q69: =Definitions!$R$8 -> 390 | R69: =Definitions!$S$8 -> 19371 | S69: FALSE | T69: FALSE | U69: FALSE | V69: =AND(Input_RTI_DAADTIn2>=K69, Input_RTI_DAADTIn2<=L69, Input_RTI_DAADTOut2>=M69, Input_RTI_DAADTOut2<=N69, (Input_RTI_DAADTEx2+Input_RTI_DAADTEn2)>=O69, (Input_RTI_DAADTEx2+Input_RTI_DAADTEn2)<=P69) -> FALSE | W69: FALSE | X69: FALSE | Y69: =MAX(IF(Input_RTI_OAADTIn1>=$K69, 0, ($K69-Input_RTI_OAADTIn1)/$K69),IF(Input_RTI_OAADTIn1<=$L69, 0, (Input_RTI_OAADTIn1-$L69)/$L69), IF(Input_RTI_OAADTOut1>=$M69, 0, ($M69-Input_RTI_OAADTOut1)/$M69),IF(Input_RTI_OAADTOut1<=$N69, 0, (Input_RTI_OAADTOut1-$N69)/$N69), IF((Input_RTI_OAADTEx1+Input_RTI_OAADTEn1)>=$O69, 0, ($O69-(Input_RTI_OAADTEx1+Input_RTI_OAADTEn1))/$O69), IF((Input_RTI_OAADTEx1+Input_RTI_OAADTEn1)<=$P69, 0, ((Input_RTI_OAADTEx1+Input_RTI_OAADTEn1)-$P69)/$P69)) -> 1 | Z69: =MAX(IF(Input_RTI_OAADTIn2>=$K69, 0, ($K69-Input_RTI_OAADTIn2)/$K69),IF(Input_RTI_OAADTIn2<=$L69, 0, (Input_RTI_OAADTIn2-$L69)/$L69), IF(Input_RTI_OAADTOut2>=$M69, 0, ($M69-Input_RTI_OAADTOut2)/$M69),IF(Input_RTI_OAADTOut2<=$N69, 0, (Input_RTI_OAADTOut2-$N69)/$N69), IF((Input_RTI_OAADTEx2+Input_RTI_OAADTEn2)>=$O69, 0, ($O69-(Input_RTI_OAADTEx2+Input_RTI_OAADTEn2))/$O69), IF((Input_RTI_OAADTEx2+Input_RTI_OAADTEn2)<=$P69, 0, ((Input_RTI_OAADTEx2+Input_RTI_OAADTEn2)-$P69)/$P69)) -> 1 | AA69: =MAX(IF(Input_RTI_DAADTIn1>=$K69, 0, ($K69-Input_RTI_DAADTIn1)/$K69),IF(Input_RTI_DAADTIn1<=$L69, 0, (Input_RTI_DAADTIn1-$L69)/$L69), IF(Input_RTI_DAADTOut1>=$M69, 0, ($M69-Input_RTI_DAADTOut1)/$M69),IF(Input_RTI_DAADTOut1<=$N69, 0, (Input_RTI_DAADTOut1-$N69)/$N69), IF((Input_RTI_DAADTEx1+Input_RTI_DAADTEn1)>=$O69, 0, ($O69-(Input_RTI_DAADTEx1+Input_RTI_DAADTEn1))/$O69), IF((Input_RTI_DAADTEx1+Input_RTI_DAADTEn1)<=$P69, 0, ((Input_RTI_DAADTEx1+Input_RTI_DAADTEn1)-$P69)/$P69)) -> 1 | AB69: =MAX(IF(Input_RTI_DAADTIn2>=$K69, 0, ($K69-Input_RTI_DAADTIn2)/$K69),IF(Input_RTI_DAADTIn2<=$L69, 0, (Input_RTI_DAADTIn2-$L69)/$L69), IF(Input_RTI_DAADTOut2>=$M69, 0, ($M69-Input_RTI_DAADTOut2)/$M69),IF(Input_RTI_DAADTOut2<=$N69, 0, (Input_RTI_DAADTOut2-$N69)/$N69), IF((Input_RTI_DAADTEx2+Input_RTI_DAADTEn2)>=$O69, 0, ($O69-(Input_RTI_DAADTEx2+Input_RTI_DAADTEn2))/$O69), IF((Input_RTI_DAADTEx2+Input_RTI_DAADTEn2)<=$P69, 0, ((Input_RTI_DAADTEx2+Input_RTI_DAADTEn2)-$P69)/$P69)) -> 1 | AC69: =IF(OR(ISBLANK(Input_RTI_OAADTIn1), ISBLANK(Input_RTI_OAADTOut1), ISBLANK(Input_RTI_OAADTEx1), ISBLANK(Input_RTI_OAADTEn1)), 0, MAX(Y69:Z69)) -> 0 | AD69: 1 | AE69: =AC65 -> 0 | AF69: =AD65 -> 1
A70: Half Diamond Signalized | D70: -- | E70: =IF(NOT(ISNUMBER(K85)),"No SPF Available", IF(NOT(ISNUMBER(K87)),"No SPF Available", IF(AND(K85<L85,W85=FALSE,K87<L87,W87=FALSE), "Opening Year AADT Outside of SPF Development Range of D3en and D3ex", IF(AND(K85<L85,W85=FALSE), "Opening Year AADT Outside of SPF Development Range of D3en", IF(AND(K87<L87,W87=FALSE), "Opening Year AADT Outside of SPF Development Range of D3ex", "" ) )))) ->  | G70: =IF(NOT(ISNUMBER(M85)),"No SPF Available", IF(NOT(ISNUMBER(M87)),"No SPF Available", IF(AND(M85<N85,X85=FALSE,M87<N87,X87=FALSE), "Design Year AADT Outside of SPF Development Range of D3en and D3ex", IF(AND(M85<N85,X85=FALSE), "Design Year AADT Outside of SPF Development Range of D3en", IF(AND(M87<N87,X87=FALSE), "Design Year AADT Outside of SPF Development Range of D3ex", "" ) )))) ->  | W70: =AND(W85,W87) -> TRUE | X70: =AND(X85,X87) -> TRUE | Y70: =MAX(Y85,Y87) -> 0 | Z70: =MAX(Z85,Z87) -> 0 | AA70: 0 | AB70: 0 | AC70: 0 | AD70: 0 | AE70: =AC66 -> 0 | AF70: =AD66 -> 0
A71: Half Diamond Stop Control | D71: -- | E71: =IF(NOT(ISNUMBER(K86)),"No SPF Available", IF(NOT(ISNUMBER(K88)),"No SPF Available", IF(AND(K86<L86,W86=FALSE,K88<L88,W88=FALSE), "Opening Year AADT Outside of SPF Development Range of D3en and D3ex", IF(AND(K86<L86,W86=FALSE), "Opening Year AADT Outside of SPF Development Range of D3en", IF(AND(K88<L88,W88=FALSE), "Opening Year AADT Outside of SPF Development Range of D3ex", "" ) )))) ->  | G71: =IF(NOT(ISNUMBER(M86)),"No SPF Available", IF(NOT(ISNUMBER(M88)),"No SPF Available", IF(AND(M86<N86,X86=FALSE,M88<N88,X88=FALSE), "Design Year AADT Outside of SPF Development Range of D3en and D3ex", IF(AND(M86<N86,X86=FALSE), "Design Year AADT Outside of SPF Development Range of D3en", IF(AND(M88<N88,X88=FALSE), "Design Year AADT Outside of SPF Development Range of D3ex", "" ) )))) ->  | W71: =AND(W86,W88) -> TRUE | X71: =AND(X86,X88) -> TRUE | Y71: =MAX(Y86,Y88) -> 0 | Z71: =MAX(Z86,Z88) -> 0 | AA71: 0 | AB71: 0 | AC71: 0 | AD71: 0 | AE71: =AC66 -> 0 | AF71: =AD66 -> 0
A72: Two Quadrant Partial Cloverleaf A Signalized | D72: -- | E72: =IF(NOT(ISNUMBER(K72)),"No SPF Available",IF(OR(NOT(IsChecked_RTI_D4TS),W72),"","Opening Year AADT Outside of SPF Development Range")) ->  | G72: =IF(NOT(ISNUMBER(K72)),"No SPF Available",IF(OR(NOT(IsChecked_RTI_D4TS),X72),"","Design Year AADT Outside of SPF Development Range")) ->  | K72: =Definitions!P38 -> 0 | L72: =Definitions!Q38 -> 46000 | M72: =Definitions!R38 -> 0 | N72: =Definitions!S38 -> 46000 | O72: =Definitions!T38 -> 0 | P72: =Definitions!U38 -> 25000 | Q72: =Definitions!V38 -> 0 | R72: =Definitions!W38 -> 25000 | S72: TRUE | T72: TRUE | U72: TRUE | V72: =AND(Input_RTI_DAADTIn2>=K72, Input_RTI_DAADTIn2<=L72, Input_RTI_DAADTOut2>=M72, Input_RTI_DAADTOut2<=N72, (Input_RTI_DAADTEx2+Input_RTI_DAADTEn2)>=O72, (Input_RTI_DAADTEx2+Input_RTI_DAADTEn2)<=P72) -> TRUE | W72: =AND(S72,U72) -> TRUE | X72: TRUE | Y72: =MAX(IF(Input_RTI_OAADTIn1>=$K72, 0, ($K72-Input_RTI_OAADTIn1)/$K72),IF(Input_RTI_OAADTIn1<=$L72, 0, (Input_RTI_OAADTIn1-$L72)/$L72), IF(Input_RTI_OAADTOut1>=$M72, 0, ($M72-Input_RTI_OAADTOut1)/$M72),IF(Input_RTI_OAADTOut1<=$N72, 0, (Input_RTI_OAADTOut1-$N72)/$N72), IF((Input_RTI_OAADTEx1+Input_RTI_OAADTEn1)>=$O72, 0, ($O72-(Input_RTI_OAADTEx1+Input_RTI_OAADTEn1))/$O72), IF((Input_RTI_OAADTEx1+Input_RTI_OAADTEn1)<=$P72, 0, ((Input_RTI_OAADTEx1+Input_RTI_OAADTEn1)-$P72)/$P72)) -> 0 | Z72: =MAX(IF(Input_RTI_OAADTIn2>=$K72, 0, ($K72-Input_RTI_OAADTIn2)/$K72),IF(Input_RTI_OAADTIn2<=$L72, 0, (Input_RTI_OAADTIn2-$L72)/$L72), IF(Input_RTI_OAADTOut2>=$M72, 0, ($M72-Input_RTI_OAADTOut2)/$M72),IF(Input_RTI_OAADTOut2<=$N72, 0, (Input_RTI_OAADTOut2-$N72)/$N72), IF((Input_RTI_OAADTEx2+Input_RTI_OAADTEn2)>=$O72, 0, ($O72-(Input_RTI_OAADTEx2+Input_RTI_OAADTEn2))/$O72), IF((Input_RTI_OAADTEx2+Input_RTI_OAADTEn2)<=$P72, 0, ((Input_RTI_OAADTEx2+Input_RTI_OAADTEn2)-$P72)/$P72)) -> 0 | AA72: =MAX(IF(Input_RTI_DAADTIn1>=$K72, 0, ($K72-Input_RTI_DAADTIn1)/$K72),IF(Input_RTI_DAADTIn1<=$L72, 0, (Input_RTI_DAADTIn1-$L72)/$L72), IF(Input_RTI_DAADTOut1>=$M72, 0, ($M72-Input_RTI_DAADTOut1)/$M72),IF(Input_RTI_DAADTOut1<=$N72, 0, (Input_RTI_DAADTOut1-$N72)/$N72), IF((Input_RTI_DAADTEx1+Input_RTI_DAADTEn1)>=$O72, 0, ($O72-(Input_RTI_DAADTEx1+Input_RTI_DAADTEn1))/$O72), IF((Input_RTI_DAADTEx1+Input_RTI_DAADTEn1)<=$P72, 0, ((Input_RTI_DAADTEx1+Input_RTI_DAADTEn1)-$P72)/$P72)) -> 0 | AB72: =MAX(IF(Input_RTI_DAADTIn2>=$K72, 0, ($K72-Input_RTI_DAADTIn2)/$K72),IF(Input_RTI_DAADTIn2<=$L72, 0, (Input_RTI_DAADTIn2-$L72)/$L72), IF(Input_RTI_DAADTOut2>=$M72, 0, ($M72-Input_RTI_DAADTOut2)/$M72),IF(Input_RTI_DAADTOut2<=$N72, 0, (Input_RTI_DAADTOut2-$N72)/$N72), IF((Input_RTI_DAADTEx2+Input_RTI_DAADTEn2)>=$O72, 0, ($O72-(Input_RTI_DAADTEx2+Input_RTI_DAADTEn2))/$O72), IF((Input_RTI_DAADTEx2+Input_RTI_DAADTEn2)<=$P72, 0, ((Input_RTI_DAADTEx2+Input_RTI_DAADTEn2)-$P72)/$P72)) -> 0 | AC72: 0 | AD72: 0 | AE72: =AC67 -> 0 | AF72: =AD67 -> 1
A73: Two Quadrant Partial Cloverleaf A Stop Control | D73: -- | K73: =Definitions!P39 -> 0 | L73: =Definitions!Q39 -> 17000 | M73: =Definitions!R39 -> 0 | N73: =Definitions!S39 -> 17000 | O73: =Definitions!T39 -> 0 | P73: =Definitions!U39 -> 12000 | Q73: =Definitions!V39 -> 0 | R73: =Definitions!W39 -> 12000 | S73: TRUE | T73: TRUE | U73: TRUE | V73: TRUE | W73: TRUE | X73: TRUE | Y73: 0 | Z73: 0 | AA73: 0 | AB73: 0 | AC73: 0 | AD73: 0 | AE73: =AC67 -> 0 | AF73: =AD67 -> 1
A74: Four Quadrant Partial Cloverleaf A Signalized | D74: -- | K74: =Definitions!P40 -> 0 | L74: =Definitions!Q40 -> 71000 | M74: =Definitions!R40 -> 0 | N74: =Definitions!S40 -> 71000 | O74: =Definitions!T40 -> 0 | P74: =Definitions!U40 -> 30000 | Q74: =Definitions!V40 -> 0 | R74: =Definitions!W40 -> 30000 | S74: TRUE | T74: TRUE | U74: TRUE | V74: TRUE | W74: TRUE | X74: TRUE | Y74: 0 | Z74: 0 | AA74: 0 | AB74: 0 | AC74: 0 | AD74: 0 | AE74: =AC68 -> 0 | AF74: =AD68 -> 1
A75: Four Quadrant Partial Cloverleaf A Stop Control | D75: -- | K75: =Definitions!P41 -> 0 | L75: =Definitions!Q41 -> 21000 | M75: =Definitions!R41 -> 0 | N75: =Definitions!S41 -> 21000 | O75: =Definitions!T41 -> 0 | P75: =Definitions!U41 -> 12000 | Q75: =Definitions!V41 -> 0 | R75: =Definitions!W41 -> 12000 | S75: TRUE | T75: TRUE | U75: TRUE | V75: TRUE | W75: TRUE | X75: TRUE | Y75: 0 | Z75: 0 | AA75: 0 | AB75: 0 | AC75: 0 | AD75: 0 | AE75: =AC68 -> 0 | AF75: =AD68 -> 1
A76: Two Quadrant Partial Cloverleaf B Signalized | D76: -- | K76: =Definitions!P42 -> 0 | L76: =Definitions!Q42 -> 44000 | M76: =Definitions!R42 -> 0 | N76: =Definitions!S42 -> 44000 | O76: =Definitions!T42 -> 0 | P76: =Definitions!U42 -> 22000 | Q76: =Definitions!V42 -> 0 | R76: =Definitions!W42 -> 22000 | S76: TRUE | T76: TRUE | U76: TRUE | V76: TRUE | W76: TRUE | X76: TRUE | Y76: 0 | Z76: 0 | AA76: 0 | AB76: 0 | AC76: 0 | AD76: 0 | AE76: =AC69 -> 0 | AF76: =AD69 -> 1
A77: Two Quadrant Partial Cloverleaf B Stop Control | D77: -- | K77: =Definitions!P43 -> 0 | L77: =Definitions!Q43 -> 26000 | M77: =Definitions!R43 -> 0 | N77: =Definitions!S43 -> 26000 | O77: =Definitions!T43 -> 0 | P77: =Definitions!U43 -> 14000 | Q77: =Definitions!V43 -> 0 | R77: =Definitions!W43 -> 14000 | S77: TRUE | T77: TRUE | U77: TRUE | V77: TRUE | W77: TRUE | X77: TRUE | Y77: 0 | Z77: 0 | AA77: 0 | AB77: 0 | AC77: 0 | AD77: 0 | AE77: =AC69 -> 0 | AF77: =AD69 -> 1
A78: Four Quadrant Partial Cloverleaf B Signalized | D78: -- | K78: =Definitions!P44 -> 0 | L78: =Definitions!Q44 -> 45000 | M78: =Definitions!R44 -> 0 | N78: =Definitions!S44 -> 45000 | O78: =Definitions!T44 -> 0 | P78: =Definitions!U44 -> 29000 | Q78: =Definitions!V44 -> 0 | R78: =Definitions!W44 -> 29000 | S78: TRUE | T78: TRUE | U78: TRUE | V78: TRUE | W78: TRUE | X78: TRUE | Y78: 0 | Z78: 0 | AA78: 0 | AB78: 0 | AC78: 0 | AD78: 0 | AE78: =AC70 -> 0 | AF78: =AD70 -> 0
A79: Four Quadrant Partial Cloverleaf B Stop Control | D79: -- | K79: =Definitions!P45 -> 0 | L79: =Definitions!Q45 -> 20000 | M79: =Definitions!R45 -> 0 | N79: =Definitions!S45 -> 20000 | O79: =Definitions!T45 -> 0 | P79: =Definitions!U45 -> 12000 | Q79: =Definitions!V45 -> 0 | R79: =Definitions!W45 -> 12000 | S79: TRUE | T79: TRUE | U79: TRUE | V79: TRUE | W79: TRUE | X79: TRUE | Y79: 0 | Z79: 0 | AA79: 0 | AB79: 0 | AC79: 0 | AD79: 0 | AE79: =AC70 -> 0 | AF79: =AD70 -> 0
A80: Other 1 | D80: Diamond Signalized | E80: Please Select the Base Ramp Terminal Intersection Type | AE80: =AC71 -> 0 | AF80: =AD71 -> 0
A81: Other 2 | D81: Unsignalized Diamond | E81: Please Select the Base Ramp Terminal Intersection Type | AE81: =AC71 -> 0 | AF81: =AD71 -> 0
AE82: =AC72 -> 0 | AF82: =AD72 -> 0
AE83: =AC72 -> 0 | AF83: =AD72 -> 0
A84: Half Diamond Intersection | AE84: =AC73 -> 0 | AF84: =AD73 -> 0
A85: Half Diamond Entrance Terminal | D85: *Please Select | J85: D3en Sig | K85: =Definitions!P36 -> 0 | L85: =Definitions!Q36 -> 29000 | M85: =Definitions!R36 -> 0 | N85: =Definitions!S36 -> 29000 | O85: =Definitions!T36 -> 0 | P85: =Definitions!U36 -> 21000 | Q85: =Definitions!V36 -> 0 | R85: =Definitions!W36 -> 21000 | S85: =AND(Input_RTI_OAADTIn1>=K85, Input_RTI_OAADTIn1<=L85, Input_RTI_OAADTOut1>=M85, Input_RTI_OAADTOut1<=N85, IF(D3_enter="NB Ramp Terminal", Input_RTI_OAADTEn1,0)>=O85, IF(D3_enter="NB Ramp Terminal", Input_RTI_OAADTEn1,0)<=P85) -> TRUE | T85: =AND(Input_RTI_DAADTIn1>=K85, Input_RTI_DAADTIn1<=L85, Input_RTI_DAADTOut1>=M85, Input_RTI_DAADTOut1<=N85, IF(D3_enter="NB Ramp Terminal", Input_RTI_DAADTEn1,0)>=O85, IF(D3_enter="NB Ramp Terminal", Input_RTI_DAADTEn1,0)<=P85) -> TRUE | U85: =AND(Input_RTI_OAADTIn2>=K85, Input_RTI_OAADTIn2<=L85, Input_RTI_OAADTOut2>=M85, Input_RTI_OAADTOut2<=N85, IF(D3_enter="NB Ramp Terminal", 0, Input_RTI_OAADTEn2)>=O85, IF(D3_enter="NB Ramp Terminal", 0, Input_RTI_OAADTEn2)<=P85) -> TRUE | V85: =AND(Input_RTI_DAADTIn2>=K85, Input_RTI_DAADTIn2<=L85, Input_RTI_DAADTOut2>=M85, Input_RTI_DAADTOut2<=N85, IF(D3_enter="NB Ramp Terminal", 0, Input_RTI_DAADTEn2)>=O85, IF(D3_enter="NB Ramp Terminal", 0, Input_RTI_DAADTEn2)<=P85) -> TRUE | W85: =AND(S85,U85) -> TRUE | X85: =AND(T85,V85) -> TRUE | Y85: =MAX(IF(Input_RTI_OAADTIn1>=$K85, 0, ($K85-Input_RTI_OAADTIn1)/$K85),IF(Input_RTI_OAADTIn1<=$L85, 0, (Input_RTI_OAADTIn1-$L85)/$L85), IF(Input_RTI_OAADTOut1>=$M85, 0, ($M85-Input_RTI_OAADTOut1)/$M85),IF(Input_RTI_OAADTOut1<=$N85, 0, (Input_RTI_OAADTOut1-$N85)/$N85), IF(IF(D3_enter="NB Ramp Terminal", Input_RTI_OAADTEn1,0)>=$O85, 0, ($O85-IF(D3_enter="NB Ramp Terminal", Input_RTI_OAADTEn1,0))/$O85), IF(IF(D3_enter="NB Ramp Terminal", Input_RTI_OAADTEn1,0)<=$P85, 0, (IF(D3_enter="NB Ramp Terminal", Input_RTI_OAADTEn1,0)-$P85)/$P85)) -> 0 | Z85: =MAX(IF(Input_RTI_OAADTIn2>=$K85, 0, ($K85-Input_RTI_OAADTIn2)/$K85),IF(Input_RTI_OAADTIn2<=$L85, 0, (Input_RTI_OAADTIn2-$L85)/$L85), IF(Input_RTI_OAADTOut2>=$M85, 0, ($M85-Input_RTI_OAADTOut2)/$M85),IF(Input_RTI_OAADTOut2<=$N85, 0, (Input_RTI_OAADTOut2-$N85)/$N85), IF(IF(D3_enter="NB Ramp Terminal", 0, Input_RTI_OAADTEn2)>=$O85, 0, ($O85-IF(D3_enter="NB Ramp Terminal", 0, Input_RTI_OAADTEn2))/$O85), IF(IF(D3_enter="NB Ramp Terminal", 0, Input_RTI_OAADTEn2)<=$P85, 0, (IF(D3_enter="NB Ramp Terminal", 0, Input_RTI_OAADTEn2)-$P85)/$P85)) -> 0 | AA85: =MAX(IF(Input_RTI_DAADTIn1>=$K85, 0, ($K85-Input_RTI_DAADTIn1)/$K85),IF(Input_RTI_DAADTIn1<=$L85, 0, (Input_RTI_DAADTIn1-$L85)/$L85), IF(Input_RTI_DAADTOut1>=$M85, 0, ($M85-Input_RTI_DAADTOut1)/$M85),IF(Input_RTI_DAADTOut1<=$N85, 0, (Input_RTI_DAADTOut1-$N85)/$N85), IF(IF(D3_enter="NB Ramp Terminal", Input_RTI_DAADTEn1,0)>=$O85, 0, ($O85-IF(D3_enter="NB Ramp Terminal", Input_RTI_DAADTEn1,0))/$O85), IF(IF(D3_enter="NB Ramp Terminal", Input_RTI_DAADTEn1,0)<=$P85, 0, (IF(D3_enter="NB Ramp Terminal", Input_RTI_DAADTEn1,0)-$P85)/$P85)) -> 0 | AB85: =MAX(IF(Input_RTI_DAADTIn2>=$K85, 0, ($K85-Input_RTI_DAADTIn2)/$K85),IF(Input_RTI_DAADTIn2<=$L85, 0, (Input_RTI_DAADTIn2-$L85)/$L85), IF(Input_RTI_DAADTOut2>=$M85, 0, ($M85-Input_RTI_DAADTOut2)/$M85),IF(Input_RTI_DAADTOut2<=$N85, 0, (Input_RTI_DAADTOut2-$N85)/$N85), IF(IF(D3_enter="NB Ramp Terminal", 0, Input_RTI_DAADTEn2)>=$O85, 0, ($O85-IF(D3_enter="NB Ramp Terminal", 0, Input_RTI_DAADTEn2))/$O85), IF(IF(D3_enter="NB Ramp Terminal", 0, Input_RTI_DAADTEn2)<=$P85, 0, (IF(D3_enter="NB Ramp Terminal", 0, Input_RTI_DAADTEn2)-$P85)/$P85)) -> 0 | AE85: =AC73 -> 0 | AF85: =AD73 -> 0
A86: Half Diamond Exit Terminal | B86: =IF(D3_enter = D48, E48, D48) -> EB Ramp Terminal | J86: D3en Stop | K86: =Definitions!P37 -> 0 | L86: =Definitions!Q37 -> 22000 | M86: =Definitions!R37 -> 0 | N86: =Definitions!S37 -> 22000 | O86: =Definitions!T37 -> 0 | P86: =Definitions!U37 -> 15000 | Q86: =Definitions!V37 -> 0 | R86: =Definitions!W37 -> 15000 | S86: =AND(Input_RTI_OAADTIn1>=K86, Input_RTI_OAADTIn1<=L86, Input_RTI_OAADTOut1>=M86, Input_RTI_OAADTOut1<=N86, IF(D3_enter="NB Ramp Terminal", Input_RTI_OAADTEn1,0)>=O86, IF(D3_enter="NB Ramp Terminal", Input_RTI_OAADTEn1,0)<=P86) -> TRUE | T86: =AND(Input_RTI_DAADTIn1>=K86, Input_RTI_DAADTIn1<=L86, Input_RTI_DAADTOut1>=M86, Input_RTI_DAADTOut1<=N86, IF(D3_enter="NB Ramp Terminal", Input_RTI_DAADTEn1,0)>=O86, IF(D3_enter="NB Ramp Terminal", Input_RTI_DAADTEn1,0)<=P86) -> TRUE | U86: =AND(Input_RTI_OAADTIn2>=K86, Input_RTI_OAADTIn2<=L86, Input_RTI_OAADTOut2>=M86, Input_RTI_OAADTOut2<=N86, IF(D3_enter="NB Ramp Terminal", 0, Input_RTI_OAADTEn2)>=O86, IF(D3_enter="NB Ramp Terminal", 0, Input_RTI_OAADTEn2)<=P86) -> TRUE | V86: =AND(Input_RTI_DAADTIn2>=K86, Input_RTI_DAADTIn2<=L86, Input_RTI_DAADTOut2>=M86, Input_RTI_DAADTOut2<=N86, IF(D3_enter="NB Ramp Terminal", 0, Input_RTI_DAADTEn2)>=O86, IF(D3_enter="NB Ramp Terminal", 0, Input_RTI_DAADTEn2)<=P86) -> TRUE | W86: =AND(S86,U86) -> TRUE | X86: TRUE | Y86: =MAX(IF(Input_RTI_OAADTIn1>=$K86, 0, ($K86-Input_RTI_OAADTIn1)/$K86),IF(Input_RTI_OAADTIn1<=$L86, 0, (Input_RTI_OAADTIn1-$L86)/$L86), IF(Input_RTI_OAADTOut1>=$M86, 0, ($M86-Input_RTI_OAADTOut1)/$M86),IF(Input_RTI_OAADTOut1<=$N86, 0, (Input_RTI_OAADTOut1-$N86)/$N86), IF(IF(D3_enter="NB Ramp Terminal", Input_RTI_OAADTEn1,0)>=$O86, 0, ($O86-IF(D3_enter="NB Ramp Terminal", Input_RTI_OAADTEn1,0))/$O86), IF(IF(D3_enter="NB Ramp Terminal", Input_RTI_OAADTEn1,0)<=$P86, 0, (IF(D3_enter="NB Ramp Terminal", Input_RTI_OAADTEn1,0)-$P86)/$P86)) -> 0 | Z86: =MAX(IF(Input_RTI_OAADTIn2>=$K86, 0, ($K86-Input_RTI_OAADTIn2)/$K86),IF(Input_RTI_OAADTIn2<=$L86, 0, (Input_RTI_OAADTIn2-$L86)/$L86), IF(Input_RTI_OAADTOut2>=$M86, 0, ($M86-Input_RTI_OAADTOut2)/$M86),IF(Input_RTI_OAADTOut2<=$N86, 0, (Input_RTI_OAADTOut2-$N86)/$N86), IF(IF(D3_enter="NB Ramp Terminal", 0, Input_RTI_OAADTEn2)>=$O86, 0, ($O86-IF(D3_enter="NB Ramp Terminal", 0, Input_RTI_OAADTEn2))/$O86), IF(IF(D3_enter="NB Ramp Terminal", 0, Input_RTI_OAADTEn2)<=$P86, 0, (IF(D3_enter="NB Ramp Terminal", 0, Input_RTI_OAADTEn2)-$P86)/$P86)) -> 0 | AA86: =MAX(IF(Input_RTI_DAADTIn1>=$K86, 0, ($K86-Input_RTI_DAADTIn1)/$K86),IF(Input_RTI_DAADTIn1<=$L86, 0, (Input_RTI_DAADTIn1-$L86)/$L86), IF(Input_RTI_DAADTOut1>=$M86, 0, ($M86-Input_RTI_DAADTOut1)/$M86),IF(Input_RTI_DAADTOut1<=$N86, 0, (Input_RTI_DAADTOut1-$N86)/$N86), IF(IF(D3_enter="NB Ramp Terminal", Input_RTI_DAADTEn1,0)>=$O86, 0, ($O86-IF(D3_enter="NB Ramp Terminal", Input_RTI_DAADTEn1,0))/$O86), IF(IF(D3_enter="NB Ramp Terminal", Input_RTI_DAADTEn1,0)<=$P86, 0, (IF(D3_enter="NB Ramp Terminal", Input_RTI_DAADTEn1,0)-$P86)/$P86)) -> 0 | AB86: =MAX(IF(Input_RTI_DAADTIn2>=$K86, 0, ($K86-Input_RTI_DAADTIn2)/$K86),IF(Input_RTI_DAADTIn2<=$L86, 0, (Input_RTI_DAADTIn2-$L86)/$L86), IF(Input_RTI_DAADTOut2>=$M86, 0, ($M86-Input_RTI_DAADTOut2)/$M86),IF(Input_RTI_DAADTOut2<=$N86, 0, (Input_RTI_DAADTOut2-$N86)/$N86), IF(IF(D3_enter="NB Ramp Terminal", 0, Input_RTI_DAADTEn2)>=$O86, 0, ($O86-IF(D3_enter="NB Ramp Terminal", 0, Input_RTI_DAADTEn2))/$O86), IF(IF(D3_enter="NB Ramp Terminal", 0, Input_RTI_DAADTEn2)<=$P86, 0, (IF(D3_enter="NB Ramp Terminal", 0, Input_RTI_DAADTEn2)-$P86)/$P86)) -> 0 | AE86: =AC74 -> 0 | AF86: =AD74 -> 0
J87: D3ex Sig | K87: =Definitions!P34 -> 0 | L87: =Definitions!Q34 -> 34000 | M87: =Definitions!R34 -> 0 | N87: =Definitions!S34 -> 34000 | O87: =Definitions!T34 -> 0 | P87: =Definitions!U34 -> 16000 | Q87: =Definitions!V34 -> 0 | R87: =Definitions!W34 -> 16000 | S87: =AND(Input_RTI_OAADTIn1>=K87, Input_RTI_OAADTIn1<=L87, Input_RTI_OAADTOut1>=M87, Input_RTI_OAADTOut1<=N87, IF(D3_exit="NB Ramp Terminal", Input_RTI_OAADTEx1,0)>=O87, IF(D3_exit="NB Ramp Terminal", Input_RTI_OAADTEx1,0)<=P87) -> TRUE | T87: =AND(Input_RTI_DAADTIn1>=K87, Input_RTI_DAADTIn1<=L87, Input_RTI_DAADTOut1>=M87, Input_RTI_DAADTOut1<=N87, IF(D3_exit="NB Ramp Terminal", Input_RTI_DAADTEx1,0)>=O87, IF(D3_exit="NB Ramp Terminal", Input_RTI_DAADTEx1,0)<=P87) -> TRUE | U87: =AND(Input_RTI_OAADTIn2>=K87, Input_RTI_OAADTIn2<=L87, Input_RTI_OAADTOut2>=M87, Input_RTI_OAADTOut2<=N87, IF(D3_exit="NB Ramp Terminal",0, Input_RTI_OAADTEx2)>=O87, IF(D3_exit="NB Ramp Terminal",0, Input_RTI_OAADTEx2)<=P87) -> TRUE | V87: =AND(Input_RTI_DAADTIn2>=K87, Input_RTI_DAADTIn2<=L87, Input_RTI_DAADTOut2>=M87, Input_RTI_DAADTOut2<=N87, IF(D3_exit="NB Ramp Terminal",0, Input_RTI_DAADTEx2)>=O87, IF(D3_exit="NB Ramp Terminal",0, Input_RTI_DAADTEx2)<=P87) -> TRUE | W87: =AND(S87,U87) -> TRUE | X87: =AND(T87,V87) -> TRUE | Y87: =MAX(IF(Input_RTI_OAADTIn1>=$K87, 0, ($K87-Input_RTI_OAADTIn1)/$K87),IF(Input_RTI_OAADTIn1<=$L87, 0, (Input_RTI_OAADTIn1-$L87)/$L87), IF(Input_RTI_OAADTOut1>=$M87, 0, ($M87-Input_RTI_OAADTOut1)/$M87),IF(Input_RTI_OAADTOut1<=$N87, 0, (Input_RTI_OAADTOut1-$N87)/$N87), IF(IF(D3_exit="NB Ramp Terminal", Input_RTI_OAADTEx1,0)>=$O87, 0, ($O87-IF(D3_exit="NB Ramp Terminal", Input_RTI_OAADTEx1,0))/$O87), IF(IF(D3_exit="NB Ramp Terminal", Input_RTI_OAADTEx1,0)<=$P87, 0, (IF(D3_exit="NB Ramp Terminal", Input_RTI_OAADTEx1,0)-$P87)/$P87)) -> 0 | Z87: =MAX(IF(Input_RTI_OAADTIn2>=$K87, 0, ($K87-Input_RTI_OAADTIn2)/$K87),IF(Input_RTI_OAADTIn2<=$L87, 0, (Input_RTI_OAADTIn2-$L87)/$L87), IF(Input_RTI_OAADTOut2>=$M87, 0, ($M87-Input_RTI_OAADTOut2)/$M87),IF(Input_RTI_OAADTOut2<=$N87, 0, (Input_RTI_OAADTOut2-$N87)/$N87), IF(IF(D3_exit="NB Ramp Terminal",0, Input_RTI_OAADTEx2)>=$O87, 0, ($O87-IF(D3_exit="NB Ramp Terminal",0, Input_RTI_OAADTEx2))/$O87), IF(IF(D3_exit="NB Ramp Terminal",0, Input_RTI_OAADTEx2)<=$P87, 0, (IF(D3_exit="NB Ramp Terminal",0, Input_RTI_OAADTEx2)-$P87)/$P87)) -> 0 | AA87: =MAX(IF(Input_RTI_DAADTIn1>=$K87, 0, ($K87-Input_RTI_DAADTIn1)/$K87),IF(Input_RTI_DAADTIn1<=$L87, 0, (Input_RTI_DAADTIn1-$L87)/$L87), IF(Input_RTI_DAADTOut1>=$M87, 0, ($M87-Input_RTI_DAADTOut1)/$M87),IF(Input_RTI_DAADTOut1<=$N87, 0, (Input_RTI_DAADTOut1-$N87)/$N87), IF(IF(D3_exit="NB Ramp Terminal", Input_RTI_DAADTEx1,0)>=$O87, 0, ($O87-IF(D3_exit="NB Ramp Terminal", Input_RTI_DAADTEx1,0))/$O87), IF(IF(D3_exit="NB Ramp Terminal", Input_RTI_DAADTEx1,0)<=$P87, 0, (IF(D3_exit="NB Ramp Terminal", Input_RTI_DAADTEx1,0)-$P87)/$P87)) -> 0 | AB87: =MAX(IF(Input_RTI_DAADTIn2>=$K87, 0, ($K87-Input_RTI_DAADTIn2)/$K87),IF(Input_RTI_DAADTIn2<=$L87, 0, (Input_RTI_DAADTIn2-$L87)/$L87), IF(Input_RTI_DAADTOut2>=$M87, 0, ($M87-Input_RTI_DAADTOut2)/$M87),IF(Input_RTI_DAADTOut2<=$N87, 0, (Input_RTI_DAADTOut2-$N87)/$N87), IF(IF(D3_exit="NB Ramp Terminal",0, Input_RTI_DAADTEx2)>=$O87, 0, ($O87-IF(D3_exit="NB Ramp Terminal",0, Input_RTI_DAADTEx2))/$O87), IF(IF(D3_exit="NB Ramp Terminal",0, Input_RTI_DAADTEx2)<=$P87, 0, (IF(D3_exit="NB Ramp Terminal",0, Input_RTI_DAADTEx2)-$P87)/$P87)) -> 0 | AE87: =AC74 -> 0 | AF87: =AD74 -> 0
J88: D3ex Stop | K88: =Definitions!P35 -> 0 | L88: =Definitions!Q35 -> 22000 | M88: =Definitions!R35 -> 0 | N88: =Definitions!S35 -> 22000 | O88: =Definitions!T35 -> 0 | P88: =Definitions!U35 -> 8000 | Q88: =Definitions!V35 -> 0 | R88: =Definitions!W35 -> 8000 | S88: =AND(Input_RTI_OAADTIn1>=K88, Input_RTI_OAADTIn1<=L88, Input_RTI_OAADTOut1>=M88, Input_RTI_OAADTOut1<=N88, IF(D3_exit="NB Ramp Terminal", Input_RTI_OAADTEx1,0)>=O88, IF(D3_exit="NB Ramp Terminal", Input_RTI_OAADTEx1,0)<=P88) -> TRUE | T88: =AND(Input_RTI_DAADTIn1>=K88, Input_RTI_DAADTIn1<=L88, Input_RTI_DAADTOut1>=M88, Input_RTI_DAADTOut1<=N88, IF(D3_exit="NB Ramp Terminal", Input_RTI_DAADTEx1,0)>=O88, IF(D3_exit="NB Ramp Terminal", Input_RTI_DAADTEx1,0)<=P88) -> TRUE | U88: =AND(Input_RTI_OAADTIn2>=K88, Input_RTI_OAADTIn2<=L88, Input_RTI_OAADTOut2>=M88, Input_RTI_OAADTOut2<=N88, IF(D3_exit="NB Ramp Terminal",0, Input_RTI_OAADTEx2)>=O88, IF(D3_exit="NB Ramp Terminal",0, Input_RTI_OAADTEx2)<=P88) -> TRUE | V88: =AND(Input_RTI_DAADTIn2>=K88, Input_RTI_DAADTIn2<=L88, Input_RTI_DAADTOut2>=M88, Input_RTI_DAADTOut2<=N88, IF(D3_exit="NB Ramp Terminal",0, Input_RTI_DAADTEx2)>=O88, IF(D3_exit="NB Ramp Terminal",0, Input_RTI_DAADTEx2)<=P88) -> TRUE | W88: TRUE | X88: TRUE | Y88: =MAX(IF(Input_RTI_OAADTIn1>=$K88, 0, ($K88-Input_RTI_OAADTIn1)/$K88),IF(Input_RTI_OAADTIn1<=$L88, 0, (Input_RTI_OAADTIn1-$L88)/$L88), IF(Input_RTI_OAADTOut1>=$M88, 0, ($M88-Input_RTI_OAADTOut1)/$M88),IF(Input_RTI_OAADTOut1<=$N88, 0, (Input_RTI_OAADTOut1-$N88)/$N88), IF(IF(D3_exit="NB Ramp Terminal", Input_RTI_OAADTEx1,0)>=$O88, 0, ($O88-IF(D3_exit="NB Ramp Terminal", Input_RTI_OAADTEx1,0))/$O88), IF(IF(D3_exit="NB Ramp Terminal", Input_RTI_OAADTEx1,0)<=$P88, 0, (IF(D3_exit="NB Ramp Terminal", Input_RTI_OAADTEx1,0)-$P88)/$P88)) -> 0 | Z88: =MAX(IF(Input_RTI_OAADTIn2>=$K88, 0, ($K88-Input_RTI_OAADTIn2)/$K88),IF(Input_RTI_OAADTIn2<=$L88, 0, (Input_RTI_OAADTIn2-$L88)/$L88), IF(Input_RTI_OAADTOut2>=$M88, 0, ($M88-Input_RTI_OAADTOut2)/$M88),IF(Input_RTI_OAADTOut2<=$N88, 0, (Input_RTI_OAADTOut2-$N88)/$N88), IF(IF(D3_exit="NB Ramp Terminal",0, Input_RTI_OAADTEx2)>=$O88, 0, ($O88-IF(D3_exit="NB Ramp Terminal",0, Input_RTI_OAADTEx2))/$O88), IF(IF(D3_exit="NB Ramp Terminal",0, Input_RTI_OAADTEx2)<=$P88, 0, (IF(D3_exit="NB Ramp Terminal",0, Input_RTI_OAADTEx2)-$P88)/$P88)) -> 0 | AA88: =MAX(IF(Input_RTI_DAADTIn1>=$K88, 0, ($K88-Input_RTI_DAADTIn1)/$K88),IF(Input_RTI_DAADTIn1<=$L88, 0, (Input_RTI_DAADTIn1-$L88)/$L88), IF(Input_RTI_DAADTOut1>=$M88, 0, ($M88-Input_RTI_DAADTOut1)/$M88),IF(Input_RTI_DAADTOut1<=$N88, 0, (Input_RTI_DAADTOut1-$N88)/$N88), IF(IF(D3_exit="NB Ramp Terminal", Input_RTI_DAADTEx1,0)>=$O88, 0, ($O88-IF(D3_exit="NB Ramp Terminal", Input_RTI_DAADTEx1,0))/$O88), IF(IF(D3_exit="NB Ramp Terminal", Input_RTI_DAADTEx1,0)<=$P88, 0, (IF(D3_exit="NB Ramp Terminal", Input_RTI_DAADTEx1,0)-$P88)/$P88)) -> 0 | AB88: =MAX(IF(Input_RTI_DAADTIn2>=$K88, 0, ($K88-Input_RTI_DAADTIn2)/$K88),IF(Input_RTI_DAADTIn2<=$L88, 0, (Input_RTI_DAADTIn2-$L88)/$L88), IF(Input_RTI_DAADTOut2>=$M88, 0, ($M88-Input_RTI_DAADTOut2)/$M88),IF(Input_RTI_DAADTOut2<=$N88, 0, (Input_RTI_DAADTOut2-$N88)/$N88), IF(IF(D3_exit="NB Ramp Terminal",0, Input_RTI_DAADTEx2)>=$O88, 0, ($O88-IF(D3_exit="NB Ramp Terminal",0, Input_RTI_DAADTEx2))/$O88), IF(IF(D3_exit="NB Ramp Terminal",0, Input_RTI_DAADTEx2)<=$P88, 0, (IF(D3_exit="NB Ramp Terminal",0, Input_RTI_DAADTEx2)-$P88)/$P88)) -> 0 | AE88: =AC75 -> 0 | AF88: =AD75 -> 0
AE89: =AC75 -> 0 | AF89: =AD75 -> 0
AE90: =AC76 -> 0 | AF90: =AD76 -> 0
AE91: =AC76 -> 0 | AF91: =AD76 -> 0
AE92: =AC77 -> 0 | AF92: =AD77 -> 0
AE93: =AC77 -> 0 | AF93: =AD77 -> 0
AE94: =AC78 -> 0 | AF94: =AD78 -> 0
AE95: =AC78 -> 0 | AF95: =AD78 -> 0
AE96: =AC79 -> 0 | AF96: =AD79 -> 0
AE97: =AC79 -> 0 | AF97: =AD79 -> 0

Sheet Ramp Terminal Inputs (hidden)
A1: Ramp Terminal Inputs
A2: Provide inputs needed to compute and apply Part C CMFs.
A3: Alternative | B3: Diamond Signalized | D3: Diamond Signalized (Alt) | F3: Diamond Stop Control | H3: Roundabout (1-lane) | J3: Roundabout (2-lane) | L3: Single-Point Diamond | M3: Signalized Tight Diamond | N3: Diverging Diamond | O3: Four Quadrant Partial Cloverleaf A Signalized | Q3: Two Quadrant Partial Cloverleaf A Signalized | S3: Four Quadrant Partial Cloverleaf B Signalized | U3: Two Quadrant Partial Cloverleaf B Signalized | W3: Half Diamond Signalized | X3: Half Diamond Signalized | Y3: Four Quadrant Partial Cloverleaf A Stop Control | AA3: Two Quadrant Partial Cloverleaf A Stop Control | AC3: Four Quadrant Partial Cloverleaf B Stop Control | AE3: Two Quadrant Partial Cloverleaf B Stop Control | AG3: Half Diamond Stop Control | AH3: Half Diamond Stop Control
B4: 4 Leg Terminal w/ Diagonal Ramps (D4) | D4: 4 Leg Terminal w/ Diagonal Ramps (D4) | F4: 4 Leg Terminal w/ Diagonal Ramps (D4) | H4: 4 Leg Terminal w/ Diagonal Ramps (D4) | J4: 4 Leg Terminal w/ Diagonal Ramps (D4) | W4: D3ex | X4: D3en | AG4: D3ex | AH4: D3en
A5: Ramp Terminal | B5: ='Control Strategy Selection'!$D$48 -> EB Ramp Terminal | C5: ='Control Strategy Selection'!$E$48 -> WB Ramp Terminal | D5: ='Control Strategy Selection'!$D$48 -> EB Ramp Terminal | E5: ='Control Strategy Selection'!$E$48 -> WB Ramp Terminal | F5: ='Control Strategy Selection'!$D$48 -> EB Ramp Terminal | G5: ='Control Strategy Selection'!$E$48 -> WB Ramp Terminal | H5: ='Control Strategy Selection'!$D$48 -> EB Ramp Terminal | I5: ='Control Strategy Selection'!$E$48 -> WB Ramp Terminal | J5: ='Control Strategy Selection'!$D$48 -> EB Ramp Terminal | K5: ='Control Strategy Selection'!$E$48 -> WB Ramp Terminal | L5: Both Ramps | M5: Both Ramps | N5: Both Ramps | O5: ='Control Strategy Selection'!$D$48 -> EB Ramp Terminal | P5: ='Control Strategy Selection'!$E$48 -> WB Ramp Terminal | Q5: ='Control Strategy Selection'!$D$48 -> EB Ramp Terminal | R5: ='Control Strategy Selection'!$E$48 -> WB Ramp Terminal | S5: ='Control Strategy Selection'!$D$48 -> EB Ramp Terminal | T5: ='Control Strategy Selection'!$E$48 -> WB Ramp Terminal | U5: NB Ramp Terminal | V5: SB Ramp Terminal | W5: Exit | X5: Entrance | Y5: ='Control Strategy Selection'!$D$48 -> EB Ramp Terminal | Z5: ='Control Strategy Selection'!$E$48 -> WB Ramp Terminal | AA5: ='Control Strategy Selection'!$D$48 -> EB Ramp Terminal | AB5: ='Control Strategy Selection'!$E$48 -> WB Ramp Terminal | AC5: ='Control Strategy Selection'!$D$48 -> EB Ramp Terminal | AD5: ='Control Strategy Selection'!$E$48 -> WB Ramp Terminal | AE5: NB Ramp Terminal | AF5: SB Ramp Terminal | AG5: Exit | AH5: Entrance
A6: ='Control Strategy Selection'!$A$48:$C$48 & " " & 'Control Strategy Selection'!A49:C49 -> Opening Year AADT Crossroad - Inside Leg | B6: =Input_RTI_OAADTIn1 -> 0 | C6: =Input_RTI_OAADTIn2 -> 0 | D6: =Input_RTI_OAADTIn1 -> 0 | E6: =Input_RTI_OAADTIn2 -> 0 | F6: =Input_RTI_OAADTIn1 -> 0 | G6: =Input_RTI_OAADTIn2 -> 0 | H6: =Input_RTI_OAADTIn1 -> 0 | I6: =Input_RTI_OAADTIn2 -> 0 | J6: =Input_RTI_OAADTIn1 -> 0 | K6: =Input_RTI_OAADTIn2 -> 0 | L6: -- | M6: -- | O6: =Input_RTI_OAADTIn1 -> 0 | P6: =Input_RTI_OAADTIn2 -> 0 | Q6: =Input_RTI_OAADTIn1 -> 0 | R6: =Input_RTI_OAADTIn2 -> 0 | S6: =Input_RTI_OAADTIn1 -> 0 | T6: =Input_RTI_OAADTIn2 -> 0 | U6: =Input_RTI_OAADTIn1 -> 0 | V6: =Input_RTI_OAADTIn2 -> 0 | W6: =IF(D3_exit = "NB Ramp Terminal", Input_RTI_OAADTIn1, Input_RTI_OAADTIn2) -> 0 | X6: =IF(D3_enter = "NB Ramp Terminal", Input_RTI_OAADTIn1, Input_RTI_OAADTIn2) -> 0 | Y6: =Input_RTI_OAADTIn1 -> 0 | Z6: =Input_RTI_OAADTIn2 -> 0 | AA6: =Input_RTI_OAADTIn1 -> 0 | AB6: =Input_RTI_OAADTIn2 -> 0 | AC6: =Input_RTI_OAADTIn1 -> 0 | AD6: =Input_RTI_OAADTIn2 -> 0 | AE6: =Input_RTI_OAADTIn1 -> 0 | AF6: =Input_RTI_OAADTIn2 -> 0 | AG6: =IF(D3_exit = "NB Ramp Terminal", Input_RTI_OAADTIn1, Input_RTI_OAADTIn2) -> 0 | AH6: =IF(D3_enter= "NB Ramp Terminal", Input_RTI_OAADTIn1, Input_RTI_OAADTIn2) -> 0
A7: ='Control Strategy Selection'!$A$48:$C$48 & " " & 'Control Strategy Selection'!A50:C50 -> Opening Year AADT Crossroad - Outside Leg | B7: =Input_RTI_OAADTOut1 -> 0 | C7: =Input_RTI_OAADTOut2 -> 0 | D7: =Input_RTI_OAADTOut1 -> 0 | E7: =Input_RTI_OAADTOut2 -> 0 | F7: =Input_RTI_OAADTOut1 -> 0 | G7: =Input_RTI_OAADTOut2 -> 0 | H7: =Input_RTI_OAADTOut1 -> 0 | I7: =Input_RTI_OAADTOut2 -> 0 | J7: =Input_RTI_OAADTOut1 -> 0 | K7: =Input_RTI_OAADTOut2 -> 0 | L7: =MAX(Input_RTI_OAADTOut1, Input_RTI_OAADTOut2) -> 0 | M7: =MAX(Input_RTI_OAADTOut1, Input_RTI_OAADTOut2) -> 0 | O7: =Input_RTI_OAADTOut1 -> 0 | P7: =Input_RTI_OAADTOut2 -> 0 | Q7: =Input_RTI_OAADTOut1 -> 0 | R7: =Input_RTI_OAADTOut2 -> 0 | S7: =Input_RTI_OAADTOut1 -> 0 | T7: =Input_RTI_OAADTOut2 -> 0 | U7: =Input_RTI_OAADTOut1 -> 0 | V7: =Input_RTI_OAADTOut2 -> 0 | W7: =IF(D3_exit = "NB Ramp Terminal", Input_RTI_OAADTOut1, Input_RTI_OAADTOut2) -> 0 | X7: =IF(D3_enter = "NB Ramp Terminal", Input_RTI_OAADTOut1, Input_RTI_OAADTOut2) -> 0 | Y7: =Input_RTI_OAADTOut1 -> 0 | Z7: =Input_RTI_OAADTOut2 -> 0 | AA7: =Input_RTI_OAADTOut1 -> 0 | AB7: =Input_RTI_OAADTOut2 -> 0 | AC7: =Input_RTI_OAADTOut1 -> 0 | AD7: =Input_RTI_OAADTOut2 -> 0 | AE7: =Input_RTI_OAADTOut1 -> 0 | AF7: =Input_RTI_OAADTOut2 -> 0 | AG7: =IF(D3_exit = "NB Ramp Terminal", Input_RTI_OAADTOut1, Input_RTI_OAADTOut2) -> 0 | AH7: =IF(D3_enter = "NB Ramp Terminal", Input_RTI_OAADTOut1, Input_RTI_OAADTOut2) -> 0
A8: ='Control Strategy Selection'!$A$48:$C$48 & " " & 'Control Strategy Selection'!A51:C51 -> Opening Year AADT Exit Ramp | B8: =Input_RTI_OAADTEx1 -> 0 | C8: =Input_RTI_OAADTEx2 -> 0 | D8: =Input_RTI_OAADTEx1 -> 0 | E8: =Input_RTI_OAADTEx2 -> 0 | F8: =Input_RTI_OAADTEx1 -> 0 | G8: =Input_RTI_OAADTEx2 -> 0 | H8: =Input_RTI_OAADTEx1 -> 0 | I8: =Input_RTI_OAADTEx2 -> 0 | J8: =Input_RTI_OAADTEx1 -> 0 | K8: =Input_RTI_OAADTEx2 -> 0 | L8: =Input_RTI_OAADTEx1 + Input_RTI_OAADTEx2 -> 0 | M8: =Input_RTI_OAADTEx1 + Input_RTI_OAADTEx2 -> 0 | O8: =Input_RTI_OAADTEx1 -> 0 | P8: =Input_RTI_OAADTEx2 -> 0 | Q8: =Input_RTI_OAADTEx1 -> 0 | R8: =Input_RTI_OAADTEx2 -> 0 | S8: =Input_RTI_OAADTEx1 -> 0 | T8: =Input_RTI_OAADTEx2 -> 0 | U8: =Input_RTI_OAADTEx1 -> 0 | V8: =Input_RTI_OAADTEx2 -> 0 | W8: =IF(D3_exit = "NB Ramp Terminal", Input_RTI_OAADTEx1, Input_RTI_OAADTEx2) -> 0 | X8: 0 | Y8: =Input_RTI_OAADTEx1 -> 0 | Z8: =Input_RTI_OAADTEx2 -> 0 | AA8: =Input_RTI_OAADTEx1 -> 0 | AB8: =Input_RTI_OAADTEx2 -> 0 | AC8: =Input_RTI_OAADTEx1 -> 0 | AD8: =Input_RTI_OAADTEx2 -> 0 | AE8: =Input_RTI_OAADTEx1 -> 0 | AF8: =Input_RTI_OAADTEx2 -> 0 | AG8: =IF(D3_exit = "NB Ramp Terminal", Input_RTI_OAADTEx1, Input_RTI_OAADTEx2) -> 0 | AH8: 0
A9: ='Control Strategy Selection'!$A$48:$C$48 & " " & 'Control Strategy Selection'!A52:C52 -> Opening Year AADT Entrance Ramp | B9: =Input_RTI_OAADTEn1 -> 0 | C9: =Input_RTI_OAADTEn2 -> 0 | D9: =Input_RTI_OAADTEn1 -> 0 | E9: =Input_RTI_OAADTEn2 -> 0 | F9: =Input_RTI_OAADTEn1 -> 0 | G9: =Input_RTI_OAADTEn2 -> 0 | H9: =Input_RTI_OAADTEn1 -> 0 | I9: =Input_RTI_OAADTEn2 -> 0 | J9: =Input_RTI_OAADTEn1 -> 0 | K9: =Input_RTI_OAADTEn2 -> 0 | L9: =Input_RTI_OAADTEn1 + Input_RTI_OAADTEn2 -> 0 | M9: =Input_RTI_OAADTEn1 + Input_RTI_OAADTEn2 -> 0 | O9: =Input_RTI_OAADTEn1 -> 0 | P9: =Input_RTI_OAADTEn2 -> 0 | Q9: =Input_RTI_OAADTEn1 -> 0 | R9: =Input_RTI_OAADTEn2 -> 0 | S9: =Input_RTI_OAADTEn1 -> 0 | T9: =Input_RTI_OAADTEn2 -> 0 | U9: =Input_RTI_OAADTEn1 -> 0 | V9: =Input_RTI_OAADTEn2 -> 0 | W9: 0 | X9: =IF(D3_enter = "NB Ramp Terminal", Input_RTI_OAADTEn1, Input_RTI_OAADTEn2) -> 0 | Y9: =Input_RTI_OAADTEn1 -> 0 | Z9: =Input_RTI_OAADTEn2 -> 0 | AA9: =Input_RTI_OAADTEn1 -> 0 | AB9: =Input_RTI_OAADTEn2 -> 0 | AC9: =Input_RTI_OAADTEn1 -> 0 | AD9: =Input_RTI_OAADTEn2 -> 0 | AE9: =Input_RTI_OAADTEn1 -> 0 | AF9: =Input_RTI_OAADTEn2 -> 0 | AG9: 0 | AH9: =IF(D3_enter = "NB Ramp Terminal", Input_RTI_OAADTEn1, Input_RTI_OAADTEn2) -> 0
A10: ='Control Strategy Selection'!$A$53:$C$53 & " " & 'Control Strategy Selection'!A54:C54 -> Design Year AADT Crossroad - Inside Leg | B10: =Input_RTI_DAADTIn1 -> 0 | C10: =Input_RTI_DAADTIn2 -> 0 | D10: =Input_RTI_DAADTIn1 -> 0 | E10: =Input_RTI_DAADTIn2 -> 0 | F10: =Input_RTI_DAADTIn1 -> 0 | G10: =Input_RTI_DAADTIn2 -> 0 | H10: =Input_RTI_DAADTIn1 -> 0 | I10: =Input_RTI_DAADTIn2 -> 0 | J10: =Input_RTI_DAADTIn1 -> 0 | K10: =Input_RTI_DAADTIn2 -> 0 | L10: -- | M10: -- | O10: =Input_RTI_DAADTIn1 -> 0 | P10: =Input_RTI_DAADTIn2 -> 0 | Q10: =Input_RTI_DAADTIn1 -> 0 | R10: =Input_RTI_DAADTIn2 -> 0 | S10: =Input_RTI_DAADTIn1 -> 0 | T10: =Input_RTI_DAADTIn2 -> 0 | U10: =Input_RTI_DAADTIn1 -> 0 | V10: =Input_RTI_DAADTIn2 -> 0 | W10: =IF(D3_exit = "NB Ramp Terminal", Input_RTI_DAADTIn1, Input_RTI_DAADTIn2) -> 0 | X10: =IF(D3_enter = "NB Ramp Terminal", Input_RTI_DAADTIn1, Input_RTI_DAADTIn2) -> 0 | Y10: =Input_RTI_DAADTIn1 -> 0 | Z10: =Input_RTI_DAADTIn2 -> 0 | AA10: =Input_RTI_DAADTIn1 -> 0 | AB10: =Input_RTI_DAADTIn2 -> 0 | AC10: =Input_RTI_DAADTIn1 -> 0 | AD10: =Input_RTI_DAADTIn2 -> 0 | AE10: =Input_RTI_DAADTIn1 -> 0 | AF10: =Input_RTI_DAADTIn2 -> 0 | AG10: =IF(D3_exit = "NB Ramp Terminal", Input_RTI_DAADTIn1, Input_RTI_DAADTIn2) -> 0 | AH10: =IF(D3_enter = "NB Ramp Terminal", Input_RTI_DAADTIn1, Input_RTI_DAADTIn2) -> 0
A11: ='Control Strategy Selection'!$A$53:$C$53 & " " & 'Control Strategy Selection'!A55:C55 -> Design Year AADT Crossroad - Outside Leg | B11: =Input_RTI_DAADTOut1 -> 0 | C11: =Input_RTI_DAADTOut2 -> 0 | D11: =Input_RTI_DAADTOut1 -> 0 | E11: =Input_RTI_DAADTOut2 -> 0 | F11: =Input_RTI_DAADTOut1 -> 0 | G11: =Input_RTI_DAADTOut2 -> 0 | H11: =Input_RTI_DAADTOut1 -> 0 | I11: =Input_RTI_DAADTOut2 -> 0 | J11: =Input_RTI_DAADTOut1 -> 0 | K11: =Input_RTI_DAADTOut2 -> 0 | L11: =MAX(Input_RTI_DAADTOut1, Input_RTI_DAADTOut2) -> 0 | M11: =MAX(Input_RTI_DAADTOut1, Input_RTI_DAADTOut2) -> 0 | O11: =Input_RTI_DAADTOut1 -> 0 | P11: =Input_RTI_DAADTOut2 -> 0 | Q11: =Input_RTI_DAADTOut1 -> 0 | R11: =Input_RTI_DAADTOut2 -> 0 | S11: =Input_RTI_DAADTOut1 -> 0 | T11: =Input_RTI_DAADTOut2 -> 0 | U11: =Input_RTI_DAADTOut1 -> 0 | V11: =Input_RTI_DAADTOut2 -> 0 | W11: =IF(D3_exit = "NB Ramp Terminal", Input_RTI_DAADTOut1, Input_RTI_DAADTOut2) -> 0 | X11: =IF(D3_enter = "NB Ramp Terminal", Input_RTI_DAADTOut1, Input_RTI_DAADTOut2) -> 0 | Y11: =Input_RTI_DAADTOut1 -> 0 | Z11: =Input_RTI_DAADTOut2 -> 0 | AA11: =Input_RTI_DAADTOut1 -> 0 | AB11: =Input_RTI_DAADTOut2 -> 0 | AC11: =Input_RTI_DAADTOut1 -> 0 | AD11: =Input_RTI_DAADTOut2 -> 0 | AE11: =Input_RTI_DAADTOut1 -> 0 | AF11: =Input_RTI_DAADTOut2 -> 0 | AG11: =IF(D3_exit = "NB Ramp Terminal", Input_RTI_DAADTOut1, Input_RTI_DAADTOut2) -> 0 | AH11: =IF(D3_enter = "NB Ramp Terminal", Input_RTI_DAADTOut1, Input_RTI_DAADTOut2) -> 0
A12: ='Control Strategy Selection'!$A$53:$C$53 & " " & 'Control Strategy Selection'!A56:C56 -> Design Year AADT Exit Ramp | B12: =Input_RTI_DAADTEx1 -> 0 | C12: =Input_RTI_DAADTEx2 -> 0 | D12: =Input_RTI_DAADTEx1 -> 0 | E12: =Input_RTI_DAADTEx2 -> 0 | F12: =Input_RTI_DAADTEx1 -> 0 | G12: =Input_RTI_DAADTEx2 -> 0 | H12: =Input_RTI_DAADTEx1 -> 0 | I12: =Input_RTI_DAADTEx2 -> 0 | J12: =Input_RTI_DAADTEx1 -> 0 | K12: =Input_RTI_DAADTEx2 -> 0 | L12: =Input_RTI_DAADTEx1 + Input_RTI_DAADTEx2 -> 0 | M12: =Input_RTI_DAADTEx1 + Input_RTI_DAADTEx2 -> 0 | O12: =Input_RTI_DAADTEx1 -> 0 | P12: =Input_RTI_DAADTEx2 -> 0 | Q12: =Input_RTI_DAADTEx1 -> 0 | R12: =Input_RTI_DAADTEx2 -> 0 | S12: =Input_RTI_DAADTEx1 -> 0 | T12: =Input_RTI_DAADTEx2 -> 0 | U12: =Input_RTI_DAADTEx1 -> 0 | V12: =Input_RTI_DAADTEx2 -> 0 | W12: =IF(D3_exit = "NB Ramp Terminal", Input_RTI_DAADTEx1, Input_RTI_DAADTEx2) -> 0 | X12: 0 | Y12: =Input_RTI_DAADTEx1 -> 0 | Z12: =Input_RTI_DAADTEx2 -> 0 | AA12: =Input_RTI_DAADTEx1 -> 0 | AB12: =Input_RTI_DAADTEx2 -> 0 | AC12: =Input_RTI_DAADTEx1 -> 0 | AD12: =Input_RTI_DAADTEx2 -> 0 | AE12: =Input_RTI_DAADTEx1 -> 0 | AF12: =Input_RTI_DAADTEx2 -> 0 | AG12: =IF(D3_exit = "NB Ramp Terminal", Input_RTI_DAADTEx1, Input_RTI_DAADTEx2) -> 0 | AH12: 0
A13: ='Control Strategy Selection'!$A$53:$C$53 & " " & 'Control Strategy Selection'!A57:C57 -> Design Year AADT Entrance Ramp | B13: =Input_RTI_DAADTEn1 -> 0 | C13: =Input_RTI_DAADTEn2 -> 0 | D13: =Input_RTI_DAADTEn1 -> 0 | E13: =Input_RTI_DAADTEn2 -> 0 | F13: =Input_RTI_DAADTEn1 -> 0 | G13: =Input_RTI_DAADTEn2 -> 0 | H13: =Input_RTI_DAADTEn1 -> 0 | I13: =Input_RTI_DAADTEn2 -> 0 | J13: =Input_RTI_DAADTEn1 -> 0 | K13: =Input_RTI_DAADTEn2 -> 0 | L13: =Input_RTI_DAADTEn1 + Input_RTI_DAADTEn2 -> 0 | M13: =Input_RTI_DAADTEn1 + Input_RTI_DAADTEn2 -> 0 | O13: =Input_RTI_DAADTEn1 -> 0 | P13: =Input_RTI_DAADTEn2 -> 0 | Q13: =Input_RTI_DAADTEn1 -> 0 | R13: =Input_RTI_DAADTEn2 -> 0 | S13: =Input_RTI_DAADTEn1 -> 0 | T13: =Input_RTI_DAADTEn2 -> 0 | U13: =Input_RTI_DAADTEn1 -> 0 | V13: =Input_RTI_DAADTEn2 -> 0 | W13: 0 | X13: =IF(D3_enter = "NB Ramp Terminal", Input_RTI_DAADTEn1, Input_RTI_DAADTEn2) -> 0 | Y13: =Input_RTI_DAADTEn1 -> 0 | Z13: =Input_RTI_DAADTEn2 -> 0 | AA13: =Input_RTI_DAADTEn1 -> 0 | AB13: =Input_RTI_DAADTEn2 -> 0 | AC13: =Input_RTI_DAADTEn1 -> 0 | AD13: =Input_RTI_DAADTEn2 -> 0 | AE13: =Input_RTI_DAADTEn1 -> 0 | AF13: =Input_RTI_DAADTEn2 -> 0 | AG13: 0 | AH13: =IF(D3_enter = "NB Ramp Terminal", Input_RTI_DAADTEn1, Input_RTI_DAADTEn2) -> 0
A14: Area Type | B14: =Input_RTI_AreaType -> 0 | D14: =Input_RTI_AreaType -> 0 | F14: =Input_RTI_AreaType -> 0 | H14: =Input_RTI_AreaType -> 0 | J14: =Input_RTI_AreaType -> 0 | L14: =Input_RTI_AreaType -> 0 | Y14: =Input_RTI_AreaType -> 0 | AA14: =Input_RTI_AreaType -> 0 | AC14: =Input_RTI_AreaType -> 0 | AE14: =Input_RTI_AreaType -> 0 | AG14: =Input_RTI_AreaType -> 0
A15: Number of Crossroad Lanes | B15: 4 | C15: 4 | D15: 4 | E15: 4 | F15: 4 | G15: 4 | H15: N/A | I15: N/A | J15: N/A | K15: N/A | L15: N/A | M15: N/A | O15: 4 | P15: 4 | Q15: 4 | R15: 4 | S15: 4 | T15: 4 | U15: 4 | V15: 4 | W15: 4 | X15: 4 | Y15: 4 | Z15: 4 | AA15: 4 | AB15: 4 | AC15: 4 | AD15: 4 | AE15: 4 | AF15: 4 | AG15: 4 | AH15: 4
A16: Number of through traffic lanes that oppose the left-turn movement on the inside crossroad leg | B16: 2 | C16: 2 | D16: 2 | E16: 2 | F16: N/A | G16: N/A | H16: N/A | I16: N/A | J16: N/A | K16: N/A | L16: N/A | M16: N/A | O16: 2 | P16: 2 | Q16: 2 | R16: 2 | S16: 2 | T16: 2 | U16: 2 | V16: 2 | W16: 2 | X16: 2 | Y16: N/A | Z16: N/A | AA16: N/A | AB16: N/A | AC16: N/A | AD16: N/A | AE16: N/A | AF16: N/A | AG16: N/A | AH16: N/A
A17: Number of through traffic lanes that oppose the left-turn movement on the outside crossroad leg | B17: =Input_D4TS_NLxst1-Input_D4TS_NLTOIn1 -> 2 | C17: =Input_D4TS_NLxst2-Input_D4TS_NLTOIn2 -> 2 | D17: =Input_D4TSA_NLxst1-Input_D4TSA_NLTOIn1 -> 2 | E17: =Input_D4TSA_NLxst2-Input_D4TSA_NLTOIn2 -> 2 | F17: N/A | G17: N/A | H17: N/A | I17: N/A | J17: N/A | K17: N/A | L17: N/A | M17: N/A | O17: =Input_D4TS_NLxst1-Input_D4TS_NLTOIn1 -> 2 | P17: =Input_D4TS_NLxst2-Input_D4TS_NLTOIn2 -> 2 | Q17: =Input_D4TS_NLxst1-Input_D4TS_NLTOIn1 -> 2 | R17: =Input_D4TS_NLxst2-Input_D4TS_NLTOIn2 -> 2 | S17: =Input_D4TS_NLxst1-Input_D4TS_NLTOIn1 -> 2 | T17: =Input_D4TS_NLxst2-Input_D4TS_NLTOIn2 -> 2 | U17: =Input_D4TS_NLxst1-Input_D4TS_NLTOIn1 -> 2 | V17: =Input_D4TS_NLxst2-Input_D4TS_NLTOIn2 -> 2 | W17: =IF(D3_exit = "NB Ramp Terminal", Input_D4TS_NLxst1-Input_D4TS_NLTOIn1, Input_D4TS_NLxst2-Input_D4TS_NLTOIn2) -> 2 | X17: =IF(D3_enter = "NB Ramp Terminal", Input_D4TS_NLxst1-Input_D4TS_NLTOIn1, Input_D4TS_NLxst2-Input_D4TS_NLTOIn2) -> 2 | Y17: N/A | Z17: N/A | AA17: N/A | AB17: N/A | AC17: N/A | AD17: N/A | AE17: N/A | AF17: N/A | AG17: N/A | AH17: N/A
A18: Number of free-flow right turns from exit ramp to crossroad | B18: N/A | C18: N/A | D18: N/A | E18: N/A | F18: N/A | G18: N/A | H18: N/A | I18: N/A | J18: N/A | K18: N/A | L18: 0 | M18: N/A | O18: N/A | P18: N/A | Q18: N/A | R18: N/A | S18: N/A | T18: N/A | U18: N/A | V18: N/A | W18: N/A | X18: N/A | Y18: N/A | Z18: N/A | AA18: N/A | AB18: N/A | AC18: N/A | AD18: N/A | AE18: N/A | AF18: N/A | AG18: N/A | AH18: N/A
A19: Crossroad Speed Limit | N19: 40
A20: CMF Inputs | B20: Part C CMFs Optional For Stage 1 ICE, Required for Stage 2 ICE
A21: Exit Ramp Skew Angle | B21: N/A | C21: N/A | D21: N/A | E21: N/A | F21: 0 | G21: 0 | O21: 0 | P21: 0 | Q21: 0 | R21: 0 | S21: 0 | T21: 0 | U21: 0 | V21: 0 | W21: 0 | X21: 0 | Y21: 0 | Z21: 0 | AA21: 0 | AB21: 0 | AC21: 0 | AD21: 0 | AE21: 0 | AF21: 0 | AG21: 0 | AH21: 0
A22: Is a non-ramp public street leg present? | B22: No | C22: No | D22: No | E22: No | F22: N/A | G22: N/A | O22: No | P22: No | Q22: No | R22: No | S22: No | T22: No | U22: No | V22: No | W22: No | X22: No | Y22: N/A | Z22: N/A | AA22: N/A | AB22: N/A | AC22: N/A | AD22: N/A | AE22: N/A | AF22: N/A | AG22: N/A | AH22: N/A
A23: Exit ramp right turn control | B23: Signal/Stop/yield-controlled | C23: Signal/Stop/yield-controlled | D23: Signal/Stop/yield-controlled | E23: Signal/Stop/yield-controlled | F23: Signal/Stop/yield-controlled | G23: Signal/Stop/yield-controlled | O23: Signal/Stop/yield-controlled | P23: Signal/Stop/yield-controlled | Q23: Signal/Stop/yield-controlled | R23: Signal/Stop/yield-controlled | S23: Signal/Stop/yield-controlled | T23: Signal/Stop/yield-controlled | U23: Signal/Stop/yield-controlled | V23: Signal/Stop/yield-controlled | W23: Signal/Stop/yield-controlled | X23: Signal/Stop/yield-controlled | Y23: Signal/Stop/yield-controlled | Z23: Signal/Stop/yield-controlled | AA23: Signal/Stop/yield-controlled | AB23: Signal/Stop/yield-controlled | AC23: Signal/Stop/yield-controlled | AD23: Signal/Stop/yield-controlled | AE23: Signal/Stop/yield-controlled | AF23: Signal/Stop/yield-controlled | AG23: Signal/Stop/yield-controlled | AH23: Signal/Stop/yield-controlled
A24: Effective number of lanes serving exit ramp | B24: 1 | C24: 0.5 | D24: 0.5 | E24: 1.5 | F24: 2 | G24: 2.5 | O24: 1 | P24: 1 | Q24: 1 | R24: 1 | S24: 1 | T24: 1 | U24: 1 | V24: 1 | W24: 1 | X24: 1 | Y24: 1 | Z24: 1 | AA24: 1 | AB24: 1 | AC24: 1 | AD24: 1 | AE24: 1 | AF24: 1 | AG24: 1 | AH24: 1
A25: Number of unsignalized driveways on the outside crossroad leg within 250' of the interchange | B25: 0 | C25: 0 | D25: 0 | E25: 0 | F25: N/A | G25: N/A | O25: 0 | P25: 0 | Q25: 0 | R25: 0 | S25: 0 | T25: 0 | U25: 0 | V25: 0 | W25: 0 | X25: 0 | Y25: N/A | Z25: N/A | AA25: N/A | AB25: N/A | AC25: N/A | AD25: N/A | AE25: N/A | AF25: N/A | AG25: N/A | AH25: N/A
A26: Distance (mi) to the adjacent ramp terminal | B26: 0.1 | C26: 0.1 | D26: 0.1 | E26: 0.1 | F26: 0.1 | G26: 0.1 | O26: 0.1 | P26: 0.1 | Q26: 0.1 | R26: 0.1 | S26: 0.1 | T26: 0.1 | U26: 0.1 | V26: 0.1 | W26: 0.1 | X26: 0.1 | Y26: 0.1 | Z26: 0.1 | AA26: 0.1 | AB26: 0.1 | AC26: 0.1 | AD26: 0.1 | AE26: 0.1 | AF26: 0.1 | AG26: 0.1 | AH26: 0.1
A27: Distance (mi) to the next public street intersection on the outside crossroad leg | B27: 0.15 | C27: 0.15 | D27: 0.15 | E27: 0.15 | F27: 0.15 | G27: 0.15 | O27: 0.15 | P27: 0.15 | Q27: 0.15 | R27: 0.15 | S27: 0.15 | T27: 0.15 | U27: 0.15 | V27: 0.15 | W27: 0.15 | X27: 0.15 | Y27: 0.15 | Z27: 0.15 | AA27: 0.15 | AB27: 0.15 | AC27: 0.15 | AD27: 0.15 | AE27: 0.15 | AF27: 0.15 | AG27: 0.15 | AH27: 0.15
A28: # of unsignalized public street approaches on the outside crossroad leg within 250' (<0.05 mi) of the interchange | B28: 1 | C28: 1 | D28: 1 | E28: 1 | F28: 1 | G28: 1 | O28: 0 | P28: 0 | Q28: 0 | R28: 0 | S28: 0 | T28: 0 | U28: 0 | V28: 0 | W28: 0 | X28: 0 | Y28: 0 | Z28: 0 | AA28: 0 | AB28: 0 | AC28: 0 | AD28: 0 | AE28: 0 | AF28: 0 | AG28: 0 | AH28: 0
A29: Median Width (ft) | B29: 12 | C29: 12 | D29: 12 | E29: 12 | F29: 12 | G29: 12 | O29: 12 | P29: 12 | Q29: 12 | R29: 12 | S29: 12 | T29: 12 | U29: 12 | V29: 12 | W29: 12 | X29: 12 | Y29: 12 | Z29: 12 | AA29: 12 | AB29: 12 | AC29: 12 | AD29: 12 | AE29: 12 | AF29: 12 | AG29: 12 | AH29: 12
A30: Presence of right-turn lane/bay on "in" leg | B30: N/A | C30: N/A | D30: N/A | E30: N/A | F30: N/A | G30: N/A | O30: Yes | P30: Yes | Q30: Yes | R30: Yes | S30: N/A | T30: N/A | U30: Yes | V30: Yes | W30: N/A | X30: N/A | Y30: Yes | Z30: Yes | AA30: Yes | AB30: Yes | AC30: N/A | AD30: N/A | AE30: N/A | AF30: N/A | AG30: N/A | AH30: N/A
A31: Presence of right-turn lane/bay on outside crossroad leg | B31: Yes | C31: Yes | D31: Yes | E31: Yes | F31: Yes | G31: Yes | O31: Yes | P31: Yes | Q31: N/A | R31: N/A | S31: Yes | T31: Yes | U31: Yes | V31: Yes | W31: N/A | X31: Yes | Y31: Yes | Z31: Yes | AA31: Yes | AB31: Yes | AC31: Yes | AD31: Yes | AE31: Yes | AF31: Yes | AG31: N/A | AH31: Yes
A32: Presence of left-turn lane/bay on inside crossroad leg | B32: Yes | C32: Yes | D32: Yes | E32: Yes | F32: Yes | G32: Yes | O32: N/A | P32: N/A | Q32: N/A | R32: N/A | S32: Yes | T32: Yes | U32: Yes | V32: Yes | W32: N/A | X32: Yes | Y32: N/A | Z32: N/A | AA32: N/A | AB32: N/A | AC32: Yes | AD32: Yes | AE32: Yes | AF32: Yes | AG32: N/A | AH32: Yes
A33: Left-turn lane/bay Width for inside crossroad leg | B33: 12 | C33: 12 | D33: 12 | E33: 12 | F33: 12 | G33: 12 | O33: 0 | P33: 0 | Q33: 0 | R33: 0 | S33: 12 | T33: 12 | U33: 12 | V33: 12 | W33: 0 | X33: 12 | Y33: 0 | Z33: 0 | AA33: 0 | AB33: 0 | AC33: 12 | AD33: 12 | AE33: 12 | AF33: 12 | AG33: 0 | AH33: 12
A34: Presence of left-turn lane/bay on outside crossroad leg | B34: N/A | C34: N/A | D34: N/A | E34: N/A | F34: N/A | G34: N/A | O34: N/A | P34: N/A | Q34: Yes | R34: Yes | S34: N/A | T34: N/A | U34: Yes | V34: Yes | W34: N/A | X34: N/A | Y34: N/A | Z34: N/A | AA34: Yes | AB34: Yes | AC34: N/A | AD34: N/A | AE34: N/A | AF34: N/A | AG34: N/A | AH34: N/A
A35: Left-turn lane/bay Width for outside crossroad leg | B35: 0 | C35: 0 | D35: 0 | E35: 0 | F35: 0 | G35: 0 | O35: 0 | P35: 0 | Q35: 12 | R35: 12 | S35: 0 | T35: 0 | U35: 0 | V35: 0 | W35: 0 | X35: 0 | Y35: 0 | Z35: 0 | AA35: 12 | AB35: 12 | AC35: 0 | AD35: 0 | AE35: 0 | AF35: 0 | AG35: 0 | AH35: 0
A36: Protected Left-turn operation for inside crossroad leg | B36: No | C36: No | D36: No | E36: No | F36: N/A | G36: N/A | O36: N/A | P36: N/A | Q36: N/A | R36: N/A | S36: Yes | T36: Yes | U36: Yes | V36: Yes | W36: N/A | X36: Yes | Y36: N/A | Z36: N/A | AA36: N/A | AB36: N/A | AC36: N/A | AD36: N/A | AE36: N/A | AF36: N/A | AG36: N/A | AH36: N/A
A37: Protected Left-turn operation for outside crossroad leg | B37: N/A | C37: N/A | D37: N/A | E37: N/A | F37: N/A | G37: N/A | O37: N/A | P37: N/A | Q37: Yes | R37: Yes | S37: N/A | T37: N/A | U37: Yes | V37: Yes | W37: N/A | X37: N/A | Y37: N/A | Z37: N/A | AA37: N/A | AB37: N/A | AC37: N/A | AD37: N/A | AE37: N/A | AF37: N/A | AG37: N/A | AH37: N/A
A38: Right turn channelization for inside crossroad leg | B38: N/A | C38: N/A | D38: N/A | E38: N/A | F38: N/A | G38: N/A | O38: Yes | P38: Yes | Q38: Yes | R38: Yes | S38: N/A | T38: N/A | U38: Yes | V38: Yes | W38: N/A | X38: N/A | Y38: N/A | Z38: N/A | AA38: N/A | AB38: N/A | AC38: N/A | AD38: N/A | AE38: N/A | AF38: N/A | AG38: N/A | AH38: N/A
A39: Right turn channelization for outside crossroad leg | B39: No | C39: No | D39: No | E39: No | F39: N/A | G39: N/A | O39: Yes | P39: Yes | Q39: N/A | R39: N/A | S39: Yes | T39: Yes | U39: Yes | V39: Yes | W39: N/A | X39: Yes | Y39: N/A | Z39: N/A | AA39: N/A | AB39: N/A | AC39: N/A | AD39: N/A | AE39: N/A | AF39: N/A | AG39: N/A | AH39: N/A
A40: Right turn channelization for exit ramp | B40: No | C40: No | D40: No | E40: No | F40: N/A | G40: N/A | O40: Yes | P40: Yes | Q40: Yes | R40: Yes | S40: N/A | T40: N/A | U40: Yes | V40: Yes | W40: Yes | X40: N/A | Y40: N/A | Z40: N/A | AA40: N/A | AB40: N/A | AC40: N/A | AD40: N/A | AE40: N/A | AF40: N/A | AG40: N/A | AH40: N/A
H41: Roundabout CMF Inputs
A42: Inscribed Circle Diameter (ft) | B42: N/A | C42: N/A | D42: N/A | E42: N/A | F42: N/A | G42: N/A | H42: 130 | I42: 130 | J42: 125 | K42: 125 | L42: N/A | M42: N/A
A43: Outbound Only Leg | H43: Yes | I43: Yes | J43: Yes | K43: Yes
A44: Leg 1 (Crossroad Leg - Inside) | H44: Leg 1 (Crossroad Leg - Inside)
A45: Opening Year Entering AADT | H45: ='Control Strategy Selection'!$D$49*0.5 -> 0 | I45: ='Control Strategy Selection'!$E$49*0.5 -> 0 | J45: ='Control Strategy Selection'!$D$49*0.5 -> 0 | K45: ='Control Strategy Selection'!$E$49*0.5 -> 0
A46: Leg has Right-Turn Bypass | H46: No | I46: No | J46: No | K46: No
A47: # of Access Points within 250' of Yield Line | H47: 0 | I47: 0 | J47: 0 | K47: 0
A48: Entering Width (ft) | H48: 29 | I48: 29 | J48: 29 | K48: 29
A49: # of Entering Lanes | H49: 2 | I49: 2 | J49: 2 | K49: 2
A50: # of Circulating Lanes | H50: 2 | I50: 2 | J50: 2 | K50: 2
A51: Leg 2 (Crossroad Leg - Outside) | H51: Leg 2 (Crossroad Leg - Outside)
A52: Opening Year Entering AADT | H52: ='Control Strategy Selection'!$D$50*0.5 -> 0 | I52: ='Control Strategy Selection'!$E$50*0.5 -> 0 | J52: ='Control Strategy Selection'!$D$50*0.5 -> 0 | K52: ='Control Strategy Selection'!$E$50*0.5 -> 0
A53: Leg has Right-Turn Bypass | H53: No | I53: No | J53: No | K53: No
A54: # of Access Points within 250' of Yield Line | H54: 0 | I54: 0 | J54: 0 | K54: 0
A55: Entering Width (ft) | H55: 29 | I55: 29 | J55: 29 | K55: 29
A56: # of Entering Lanes | H56: 2 | I56: 2 | J56: 2 | K56: 2
A57: # of Circulating Lanes | H57: 2 | I57: 2 | J57: 2 | K57: 2
A58: Leg 3 (Exit Ramp Inside) | H58: Leg 3 (Exit Ramp Leg)
A59: Opening Year Entering AADT | H59: =('Control Strategy Selection'!$D$51) -> 0 | I59: =('Control Strategy Selection'!$E$51) -> 0 | J59: =('Control Strategy Selection'!$D$51) -> 0 | K59: =('Control Strategy Selection'!$E$51) -> 0
A60: Leg has Right-Turn Bypass | H60: No | I60: No | J60: No | K60: No
A61: # of Access Points within 250' of Yield Line | H61: 0 | I61: 0 | J61: 0 | K61: 0
A62: Entering Width (ft) | H62: 29 | I62: 29 | J62: 29 | K62: 29
A63: # of Entering Lanes | H63: 2 | I63: 2 | J63: 2 | K63: 2
A64: # of Circulating Lanes | H64: 2 | I64: 2 | J64: 2 | K64: 2

Sheet At-Grade Inputs
A1: At-Grade Intersection Inputs
A2: Provide inputs needed to compute and apply Part C CMFs.
A4: Input | D4: Control Strategy
D5: =Label_AGI_TrafficSignal -> Traffic Signal | F5: =Label_AGI_TrafficSignal&" (Alt)" -> Traffic Signal (Alt) | H5: =Label_AGI_MinorStop -> Minor Road Stop | J5: =Label_AGI_AllStop -> All Way Stop | L5: =Label_AGI_1LnRdbt -> 1-lane Roundabout | N5: =Label_AGI_2LnRdbt -> 2-lane Roundabout | P5: =Label_AGI_DLT -> Partial Displaced Left Turn (PDLT) | R5: =Label_AGI_MUT -> Full Median U-Turn (MUT) | T5: =Label_AGI_RCUTSig -> Signalized RCUT | V5: =Label_AGI_RCUTUnsig -> Unsignalized RCUT | X5: Signalized Thru-Cut | Z5: Unsignalized Thru-Cut | AB5: Bowtie | AD5: =Label_AGI_GreenT -> Continuous Green-T Intersection | AF5: =Label_AGI_Jughandle -> Jughandle
A7: Opening Year Major Road AADT | B7: Optional AADT Overrides | D7: =Input_Base_OAADTMajor -> 0 | F7: =Input_Base_OAADTMajor -> 0 | H7: =Input_Base_OAADTMajor -> 0 | J7: =Input_Base_OAADTMajor -> 0 | L7: =Input_Base_OAADTMajor -> 0 | N7: =Input_Base_OAADTMajor -> 0 | P7: =Input_Base_OAADTMajor -> 0 | R7: =Input_Base_OAADTMajor -> 0 | T7: =Input_Base_OAADTMajor -> 0 | V7: =Input_Base_OAADTMajor -> 0 | X7: =Input_Base_OAADTMajor -> 0 | Z7: =Input_Base_OAADTMajor -> 0 | AB7: =Input_Base_OAADTMajor -> 0 | AD7: =Input_Base_OAADTMajor -> 0 | AF7: =Input_Base_OAADTMajor -> 0 | AH7: All strategies will have the same AADT as the Base Conditions unless overridden by user.
A8: Opening Year Minor Road AADT | D8: =Input_Base_OAADTMinor -> 0 | F8: =Input_Base_OAADTMinor -> 0 | H8: =Input_Base_OAADTMinor -> 0 | J8: =Input_Base_OAADTMinor -> 0 | L8: =Input_Base_OAADTMinor -> 0 | N8: =Input_Base_OAADTMinor -> 0 | P8: =Input_Base_OAADTMinor -> 0 | R8: =Input_Base_OAADTMinor -> 0 | T8: =Input_Base_OAADTMinor -> 0 | V8: =Input_Base_OAADTMinor -> 0 | X8: =Input_Base_OAADTMinor -> 0 | Z8: =Input_Base_OAADTMinor -> 0 | AB8: =Input_Base_OAADTMinor -> 0 | AD8: =Input_Base_OAADTMinor -> 0 | AF8: =Input_Base_OAADTMinor -> 0
A9: Design Year Major Road AADT | D9: =Input_Base_DAADTMajor -> 0 | F9: =Input_Base_DAADTMajor -> 0 | H9: =Input_Base_DAADTMajor -> 0 | J9: =Input_Base_DAADTMajor -> 0 | L9: =Input_Base_DAADTMajor -> 0 | N9: =Input_Base_DAADTMajor -> 0 | P9: =Input_Base_DAADTMajor -> 0 | R9: =Input_Base_DAADTMajor -> 0 | T9: =Input_Base_DAADTMajor -> 0 | V9: =Input_Base_DAADTMajor -> 0 | X9: =Input_Base_DAADTMajor -> 0 | Z9: =Input_Base_DAADTMajor -> 0 | AB9: =Input_Base_DAADTMajor -> 0 | AD9: =Input_Base_DAADTMajor -> 0 | AF9: =Input_Base_DAADTMajor -> 0
A10: Design Year Minor Road AADT | D10: =Input_Base_DAADTMinor -> 0 | F10: =Input_Base_DAADTMinor -> 0 | H10: =Input_Base_DAADTMinor -> 0 | J10: =Input_Base_DAADTMinor -> 0 | L10: =Input_Base_DAADTMinor -> 0 | N10: =Input_Base_DAADTMinor -> 0 | P10: =Input_Base_DAADTMinor -> 0 | R10: =Input_Base_DAADTMinor -> 0 | T10: =Input_Base_DAADTMinor -> 0 | V10: =Input_Base_DAADTMinor -> 0 | X10: =Input_Base_DAADTMinor -> 0 | Z10: =Input_Base_DAADTMinor -> 0 | AB10: =Input_Base_DAADTMinor -> 0 | AD10: =Input_Base_DAADTMinor -> 0 | AF10: =Input_Base_DAADTMinor -> 0
A11: Number of Approaches with Left-Turn Lanes | B11: Additional Required Control Strategy Inputs | D11: 1 | F11: 1 | J11: 1 | AH11: Do not include stop controlled approaches for minor stop
A12: Number of Approaches with Right-Turn Lanes | D12: 1 | F12: 1 | J12: 1
A13: Number of Uncontrolled Approaches with Left-Turn Lanes | H13: 0
A14: Number of Uncontrolled Approaches with Right-Turn Lanes | H14: 0
A15: Keep default values below here for planning-level analysis, override with actual values for full HSM Analysis
B16: Part C CMFs Optional For Stage 1 ICE, Required for Stage 2 ICE | L16: Scroll Down for Roundabout CMF Inputs | P16: CMF - No Inputs Required | R16: CMF - No Inputs Required | T16: Scroll Down for Signalized RCUT SPF Inputs | V16: Scroll Down for Unsignalized RCUT SPF Inputs | X16: CMF - No Inputs Required | Z16: CMF - No Inputs Required | AB16: CMF - No Inputs Required | AD16: CMF - No Inputs Required | AF16: CMF - No Inputs Required | AH16: All yellow cells will be automatically populated by a macro. If users want to do a planning-level analysis, they can leave the automatic inputs as-is
A17: Skew Angle | B17: All yellow cells will be automatically populated by a macro. If users want to do a planning-level analysis, they can leave the automatic inputs as-is. | D17: N/A | F17: N/A | H17: 0 | J17: N/A
A18: Lighting Present | D18: Yes | F18: Yes | H18: Yes | J18: Yes
A19: # of Approaches Permissive LT Signal Phasing | D19: 4 | F19: 4 | H19: N/A | J19: N/A
A20: # of Approaches Perm/Prot LT Signal Phasing | D20: 0 | F20: 0 | H20: N/A | J20: N/A
A21: # of Approaches Protected LT Signal Phasing | D21: 0 | F21: 0 | H21: N/A | J21: N/A
A22: Number of Approaches with Right-Turn-on-Red Prohibited | D22: 0 | F22: 0 | H22: N/A | J22: N/A
A23: Red Light Cameras Present | D23: No | F23: No | H23: N/A | J23: N/A
A24: Number of Major Street Through Lanes | D24: 0 | F24: 0 | H24: N/A | J24: N/A
A25: Number of Minor Street Lanes | D25: 0 | F25: 0
A26: # of Major St Approaches w/ Right-Turn Channelization | D26: 0 | F26: 0 | H26: N/A | J26: N/A
A27: Number of Approaches with U-Turn Prohibited | D27: 0 | F27: 0 | H27: N/A | J27: N/A
A28: Pedestrian Volume by Activity Level | D28: Low (50) | F28: Low (50) | H28: N/A | J28: N/A
A29: User Specified Sum of all daily pedestrian crossing volumes | D29: 50 | F29: 50 | H29: N/A | J29: N/A
A30: Max # of Lanes Crossed by Pedestrians | D30: =IF(Input_NumMajorLanes = "5 or fewer", 5, 6) -> 6 | F30: =IF(Input_NumMajorLanes = "5 or fewer", 5, 6) -> 6 | H30: N/A | J30: N/A
A31: Number of Bus Stops within 1000' of Intersection | D31: 0 | F31: 0 | H31: N/A | J31: N/A
A32: Schools within 1000' of intersection | D32: No | F32: No | H32: N/A | J32: N/A
A33: Number of Alcohol Sales Establishments within 1000' of Intersection | D33: 0 | F33: 0 | H33: N/A | J33: N/A
L34: Roundabout CMF Inputs
A35: Inscribed Circle Diameter (ft) | B35: N/A | D35: N/A | F35: N/A | H35: N/A | J35: N/A | L35: 130 | N35: 125 | P35: N/A | R35: N/A | T35: N/A | V35: N/A | X35: N/A | Z35: N/A | AB35: N/A | AD35: N/A | AF35: N/A
A36: Leg 1 (Major Leg #1) | L36: Leg 1 (Major Leg #1)
A37: Opening Year Entering AADT | L37: =('Control Strategy Selection'!D13)*0.5 -> 0 | N37: =('Control Strategy Selection'!D13)*0.5 -> 0
A38: Leg has Right-Turn Bypass | L38: No | N38: No
A39: # of Access Points within 250' of Yield Line | L39: 0 | N39: 0
A40: Entering Width (ft) | L40: 29 | N40: 29
A41: # of Entering Lanes | L41: 2 | N41: 2
A42: # of Circulating Lanes | L42: 2 | N42: 2
A43: Leg 2 (Major Leg #2) | L43: Leg 2 (Major Leg #2)
A44: Opening Year Entering AADT | L44: =('Control Strategy Selection'!$D$13)-Input_AGI_R1_AADT_L1 -> 0 | N44: =('Control Strategy Selection'!$D$13)-Input_AGI_R2_AADT_L1 -> 0
A45: Leg has Right-Turn Bypass | L45: No | N45: No
A46: # of Access Points within 250' of Yield Line | L46: 0 | N46: 0
A47: Entering Width (ft) | L47: 29 | N47: 29
A48: # of Entering Lanes | L48: 2 | N48: 2
A49: # of Circulating Lanes | L49: 2 | N49: 2
A50: Leg 3 (Minor Leg #1) | L50: Leg 3 (Minor Leg #1)
A51: Opening Year Entering AADT | L51: =('Control Strategy Selection'!D14)*0.5 -> 0 | N51: =('Control Strategy Selection'!D14)*0.5 -> 0
A52: Leg has Right-Turn Bypass | L52: No | N52: No
A53: # of Access Points within 250' of Yield Line | L53: 0 | N53: 0
A54: Entering Width (ft) | L54: 29 | N54: 29
A55: # of Entering Lanes | L55: 2 | N55: 2
A56: # of Circulating Lanes | L56: 2 | N56: 2
A57: Leg 4 (Minor Leg #2) | L57: Leg 4 (Minor Leg #2)
A58: Opening Year Entering AADT | L58: =('Control Strategy Selection'!$D$14)-Input_AGI_R1_AADT_L3 -> 0 | N58: =('Control Strategy Selection'!$D$14)-Input_AGI_R2_AADT_L3 -> 0
A59: Leg has Right-Turn Bypass | L59: No | N59: No
A60: # of Access Points within 250' of Yield Line | L60: 0 | N60: 0
A61: Entering Width (ft) | L61: 29 | N61: 29
A62: # of Entering Lanes | L62: 2 | N62: 2
A63: # of Circulating Lanes | L63: 2 | N63: 2
T64: Restricted Crossing U-Turn (RCUT) CMF Inputs
A66: # U-Turns | B66: N/A | D66: N/A | F66: N/A | H66: N/A | J66: N/A | L66: N/A | N66: N/A | P66: N/A | R66: N/A | T66: 2 | V66: 2 | X66: N/A | Z66: N/A | AB66: N/A | AD66: N/A | AF66: N/A
A67: # of Major Roadway Lanes (one direction) | T67: 2
A68: # of Minor Roadway Lanes (one direction) | T68: 2
A69: Total Offset Distance (ft) | T69: 1250 | V69: 1250
A70: Number of Driveways | T70: 4 | V70: 4
A71: Total Deceleration Lane Length (ft) | T71: 750 | V71: 750
A72: Total Acceleration Lane Length (ft) | V72: 750
A73: Number of Left-Turn Lanes From Major Road | T73: 1
A74: Major Road Speed Limit (mph) | T74: <=50
A75: Total Median Width (ft) | T75: 65
A76: Maximum Median Width (ft) | V76: 40

Sheet SSI Inputs
A1: Safe System for Intersection (SSI) Inputs
A2: Specify the geomtric, exposure, severity, and conflicting traffic complexity inputs required for an SSI analysis. | U2: Is Design? | V2: =Input_AnalysisYearType=Notes!A12 -> FALSE
U3: Is 3-Leg? | V3: =Input_NumLegs=Notes!A48 -> FALSE
B4: 1. Roadway Geometry | F4: Lanes | H4: Major Street Designation | N4: Required Inputs
B5: Major number thru lanes (one direction) | H5: Select major street direction | K5: N-S | N5: Default Available, Override Optional
B6: Minor number thru lanes (one direction) | H6: Median Presence on Major Road | L6: =IF(K6="NO", "TRUE","FALSE") -> FALSE | N6: Planning-Level Default Input
H7: Median Presence on Minor Road | L7: =IF(AND(L6="TRUE",'Control Strategy Selection'!C36="TRUE"),"TRUE","FALSE") -> FALSE | N7: Computed Value, Override Optional
B8: 2. Complete the "Exposure" inputs. These inputs will apply to all interesections selected for analysis. | N8: Computed Value - No Override
B9: 3. Complete the "Severity" inputs | N9: Disabled Cell (Often based on input selections)
B10: 4. Complete the "Conflicting Traffic Complexity" inputs
B12: 2. Exposure - All Intersections
B13: Average Daily Traffic (veh/day) | E13: Open | F13: Design | I13: ADT Directional Split | M13: Nonmotorized Total ADBP (ped-bike/day) | Q13: Activity Level | R13: ADBP Value (ped-bike/day)
B14: Major | E14: =IF(Input_Base_OAADTMajor>0,Input_Base_OAADTMajor,"--") -> -- | F14: =IF(Input_Base_DAADTMajor>0,Input_Base_DAADTMajor,"--") -> -- | I14: Major | J14: 0.5 | M14: Open Year Total Intersection NM | Q14: Low (20) | R14: 50
B15: Minor | E15: =IF(Input_Base_OAADTMinor>0,Input_Base_OAADTMinor,"--") -> -- | F15: =IF(Input_Base_DAADTMinor>0,Input_Base_DAADTMinor,"--") -> -- | I15: Minor | J15: 0.5 | M15: Design Year Total Intersection NM | Q15: Low (20) | R15: 50
M16: (or overwrite ped movement ADBPs below)
B17: Are turning movement ADT values are available? | H17: If "Yes", input values in Table 2-A | M17: Nonmotorized Movement ADBP (ped-bike/day) | Q17: Open | R17: Design
B18: Are peak hour turning movement counts available? | H18: If "Yes", input values in Table 2-B | M18: Major NM 1 (NM mvmt crossing Maj1) | Q18: =$R$14/IF(IS_3LEG,3,4) -> 12.5 | R18: =$R$15/IF(IS_3LEG,3,4) -> 12.5
B19: If no turning movment volumes or counts are available, a user can optionally override the planning-level default turning movment proportions in Table 2-C | M19: Major NM 2 | Q19: =$R$14/IF(IS_3LEG,3,4) -> 12.5 | R19: =$R$15/IF(IS_3LEG,3,4) -> 12.5
M20: Minor NM 1 | Q20: =$R$14/IF(IS_3LEG,3,4) -> 12.5 | R20: =$R$15/IF(IS_3LEG,3,4) -> 12.5
M21: Minor NM 2 | Q21: =IF(IS_3LEG,0,$R$14/4) -> 12.5 | R21: =IF(IS_3LEG,0,$R$15/4) -> 12.5
B24: Table 2-A: Turning Movement (vol/day) | G24: Table 2-B: Turning Movement Counts (Optional) | P24: Table 2-C: Turning Proportions (optional) | T24: Turning movment proportions specified in Table 2-C (and by extension, the percentages determined in Table 2-B) are considered to be constant between the Open and Design years of the analysis.
D25: Open | E25: Design | I25: Mvmt | J25: AM Peak | K25: AM % | L25: PM Peak | M25: PM % | N25: Avg % | R25: Decimal
B26: Major Thru 1 | D26: =$E$14*$J$14*R26 ->  | E26: =$F$14*$J$14*R26 ->  | G26: Major Thru 1 | I26: =IF($K$5="N-S","NBT", "EBT") -> NBT | K26: =IF(NOT(ISNUMBER(J26)), " ", ROUND(J26/SUM(J$26:J$28),2)) ->  | M26: =IF(NOT(ISNUMBER(L26)), " ", ROUND(L26/SUM(L$26:L$28),2)) ->  | N26: =IF(OR(G$18="No",G$18="")," ",ROUND(AVERAGE(K26,M26),2)) ->  | P26: Major Thru 1 | R26: =1-SUM(R27:R28) -> 0.5
B27: Major Left Turn 1 | D27: =$E$14*$J$14*R27 ->  | E27: =$F$14*$J$14*R27 ->  | G27: Major Left Turn 1 | I27: =IF($K$5="N-S","NBL", "EBL") -> NBL | K27: =IF(NOT(ISNUMBER(J27)), " ", ROUND(J27/SUM(J$26:J$28),2)) ->  | M27: =IF(NOT(ISNUMBER(L27)), " ", ROUND(L27/SUM(L$26:L$28),2)) ->  | N27: =IF(OR(G$18="No",G$18="")," ",ROUND(AVERAGE(K27,M27),2)) ->  | P27: Major Left Turn 1 | R27: =IF(IS_3LEG,0,IF(AND(J27<>0,L27<>0),N27,0.25)) -> 0.25
B28: Major Right Turn 1 | D28: =$E$14*$J$14*R28 ->  | E28: =$F$14*$J$14*R28 ->  | G28: Major Right Turn 1 | I28: =IF($K$5="N-S","NBR", "EBR") -> NBR | K28: =IF(NOT(ISNUMBER(J28)), " ", ROUND(J28/SUM(J$26:J$28),2)) ->  | M28: =IF(NOT(ISNUMBER(L28)), " ", L28/SUM(L$26:L$28)) ->  | P28: Major Right Turn 1 | R28: =IF(AND(J28<>0,L28<>0),N28,0.25) -> 0.25
B30: Major Thru 2 | D30: =$E$14*$J$14*R30 ->  | E30: =$F$14*$J$14*R30 ->  | G30: Major Thru 2 | I30: =IF($K$5="N-S","SBT", "WBT") -> SBT | K30: =IF(NOT(ISNUMBER(J30)), " ", ROUND(J30/SUM(J$30:J$32),2)) ->  | M30: =IF(NOT(ISNUMBER(L30)), " ", L30/SUM(L$30:L$32)) ->  | N30: =IF(OR(G$18="No",G$18="")," ",ROUND(AVERAGE(K30,M30),2)) ->  | P30: Major Thru 2 | R30: =1-SUM(R31:R32) -> 0.5
B31: Major Left Turn 2 | D31: =$E$14*$J$14*R31 ->  | E31: =$F$14*$J$14*R31 ->  | G31: Major Left Turn 2 | I31: =IF($K$5="N-S","SBL", "WBL") -> SBL | K31: =IF(NOT(ISNUMBER(J31)), " ", ROUND(J31/SUM(J$30:J$32),2)) ->  | M31: =IF(NOT(ISNUMBER(L31)), " ", L31/SUM(L$30:L$32)) ->  | N31: =IF(OR(G$18="No",G$18="")," ",ROUND(AVERAGE(K31,M31),2)) ->  | P31: Major Left Turn 2 | R31: =IF(AND(J31<>0,L31<>0),N31,0.25) -> 0.25
B32: Major Right Turn 2 | D32: =$E$14*$J$14*R32 ->  | E32: =$F$14*$J$14*R32 ->  | G32: Major Right Turn 2 | I32: =IF($K$5="N-S","SBR", "WBR") -> SBR | K32: =IF(NOT(ISNUMBER(J32)), " ", ROUND(J32/SUM(J$30:J$32),2)) ->  | M32: =IF(NOT(ISNUMBER(L32)), " ", L32/SUM(L$30:L$32)) ->  | P32: Major Right Turn 2 | R32: =IF(IS_3LEG,0,IF(AND(J32<>0,L32<>0),N32,0.25)) -> 0.25
B34: Minor Thru 1 | D34: =$E$15*$J$15*R34 ->  | E34: =$F$15*$J$15*R34 ->  | G34: Minor Thru 1 | I34: =IF($K$5="N-S","EBT", "NBT") -> EBT | K34: =IF(NOT(ISNUMBER(J34)), " ", ROUND(J34/SUM(J$34:J$36),2)) ->  | M34: =IF(NOT(ISNUMBER(L34)), " ", L34/SUM(L$34:L$36)) ->  | N34: =IF(OR(G$18="No",G$18="")," ",ROUND(AVERAGE(K34,M34),2)) ->  | P34: Minor Thru 1 | R34: =1-SUM(R35:R36) -> 0.5
B35: Minor Left Turn 1 | D35: =$E$15*$J$15*R35 ->  | E35: =$F$15*$J$15*R35 ->  | G35: Minor Left Turn 1 | I35: =IF($K$5="N-S","EBL", "NBL") -> EBL | K35: =IF(NOT(ISNUMBER(J35)), " ", ROUND(J35/SUM(J$34:J$36),2)) ->  | M35: =IF(NOT(ISNUMBER(L35)), " ", L35/SUM(L$34:L$36)) ->  | N35: =IF(OR(G$18="No",G$18="")," ",ROUND(AVERAGE(K35,M35),2)) ->  | P35: Minor Left Turn 1 | R35: =IF(AND(J35<>0,L35<>0),N35,IF(IS_3LEG,0.5,0.25)) -> 0.25
B36: Minor Right Turn 1 | D36: =$E$15*$J$15*R36 ->  | E36: =$F$15*$J$15*R36 ->  | G36: Minor Right Turn 1 | I36: =IF($K$5="N-S","EBR", "NBR") -> EBR | K36: =IF(NOT(ISNUMBER(J36)), " ", ROUND(J36/SUM(J$34:J$36),2)) ->  | M36: =IF(NOT(ISNUMBER(L36)), " ", L36/SUM(L$34:L$36)) ->  | P36: Minor Right Turn 1 | R36: =IF(AND(J36<>0,L36<>0),N36,IF(IS_3LEG,0.5,0.25)) -> 0.25
B38: Minor Thru 2 | D38: =$E$15*$J$15*R38 ->  | E38: =$F$15*$J$15*R38 ->  | G38: Minor Thru 2 | I38: =IF($K$5="N-S","WBT", "SBT") -> WBT | K38: =IF(NOT(ISNUMBER(J38)), " ", ROUND(J38/SUM(J$38:J$40),2)) ->  | M38: =IF(NOT(ISNUMBER(L38)), " ", L38/SUM(L$38:L$40)) ->  | N38: =IF(OR(G$18="No",G$18="")," ",ROUND(AVERAGE(K38,M38),2)) ->  | P38: Minor Thru 2 | R38: =IF(IS_3LEG,0,1-SUM(R39:R40)) -> 0.5
B39: Minor Left Turn 2 | D39: =$E$15*$J$15*R39 ->  | E39: =$F$15*$J$15*R39 ->  | G39: Minor Left Turn 2 | I39: =IF($K$5="N-S","WBL", "SBL") -> WBL | K39: =IF(NOT(ISNUMBER(J39)), " ", ROUND(J39/SUM(J$38:J$40),2)) ->  | M39: =IF(NOT(ISNUMBER(L39)), " ", L39/SUM(L$38:L$40)) ->  | N39: =IF(OR(G$18="No",G$18="")," ",ROUND(AVERAGE(K39,M39),2)) ->  | P39: Minor Left Turn 2 | R39: =IF(IS_3LEG,0,IF(AND(J39<>0,L39<>0),N39,0.25)) -> 0.25
B40: Minor Right Turn 2 | D40: =$E$15*$J$15*R40 ->  | E40: =$F$15*$J$15*R40 ->  | G40: Minor Right Turn 2 | I40: =IF($K$5="N-S","WBR", "SBR") -> WBR | K40: =IF(NOT(ISNUMBER(J40)), " ", ROUND(J40/SUM(J$38:J$40),2)) ->  | M40: =IF(NOT(ISNUMBER(L40)), " ", L40/SUM(L$38:L$40)) ->  | P40: Minor Right Turn 2 | R40: =IF(IS_3LEG,0,IF(AND(J40<>0,L40<>0),N40,0.25)) -> 0.25
B43: 3. Severity | H43: 4. Conflicting Traffic Complexity
B45: Vehicle Speeds | F45: mph | H45: Traffic Control | M45: Decimal
B46: Major Posted Speed Limit | H46: Base Traffic Control Adjustment Value (BTCAV) for permitted | M46: 1
B47: Minor Posted Speed Limit | H47: Base Traffic Control Adjustment Value (BTCAV) for protected/permitted | M47: 0.85
H48: Base Traffic Control Adjustment Value (BTCAV) for protected | M48: 0.01
B49: Major thru | F49: =F46 -> 0 | H49: Base Traffic Control Adjustment Value (BTCAV) for stop-controlled | M49: 0.45
B50: Major left | F50: 20
B51: Major right | F51: 15 | H51: Weight, f, for permitted | M51: 0.5
B52: Minor thru | F52: =F47*0.85 -> 0 | H52: Weight, f, for protected/permitted | M52: 0.5
B53: Minor left | F53: 20 | H53: Weight, f, for protected | M53: 0.5
B54: Minor right | F54: 15 | H54: Weight, f, for stop-controlled | M54: 0.5
B55: Stop near | F55: 15
B56: Stop far | F56: 25 | H56: Major LT signal phasing (drop-down) | L56: Protected/Permitted
B57: Signal near | F57: 15 | H57: Minor LT signal phasing (drop-down) | L57: Protected/Permitted
B58: Signal far | F58: 25 | H58: Exclusive Pedestrian phasing (drop-down) | M58: No
B59: RAB entering | F59: 25
B60: RAB circulating | F60: 25 | H60: Traffic Control Parameter (a_traffic control)
B61: RAB exiting | F61: 30 | H61: Permitted | M61: =M46+(1-M51)*(1-M46) -> 1
B62: Nonmotorized | F62: 0 | H62: Protected/permitted | M62: =M47+(1-M52)*(1-M47) -> 0.925
H63: Protected | M63: =M48+(1-M53)*(1-M48) -> 0.505
B64: Collision Angles | F64: deg | H64: Stop-controlled | M64: =M49+(1-M54)*(1-M49) -> 0.725
B65: Crossing | F65: 90
B66: Crossing - LT | F66: 230 | H66: Driver Merging Weights (W)
B67: Crossing - RAB | F67: 60 | H67: Lane 1 (W1) | M67: 1
B68: Merging | F68: 45 | H68: Lane 2 (W2) | M68: 0.75
B69: Diverging | F69: 10 | H69: Lane 3+ (W3+) | M69: 0.5
B71: P(FSI) Regression Parameters
B72: alpha | F72: 67.28618811 | H72: Nonmotorized Complexity
B73: k | F73: 3.794500084 | H73: Nonmotorized Turn Score Weights (W)
H74: Lane 1 (W1) | M74: 1
H75: Lane 2 (W2) | M75: 0.75
H76: Lane 3+ (W3) | M76: 0.5

Sheet RTI_Ranges (hidden)
A1: Ramp Terminal Inputs
A2: Provide inputs needed to compute and apply Part C CMFs.
A3: Alternative | B3: Traffic Signal | D3: Traffic Signal (Alt) | F3: Minor Road (Ramp) Stop
B4: 4 Leg Terminal w/ Diagonal Ramps (D4) | D4: 4 Leg Terminal w/ Diagonal Ramps (D4) | F4: 4 Leg Terminal w/ Diagonal Ramps (D4)
A5: Ramp Terminal | B5: NB | C5: SB | D5: NB | E5: SB | F5: NB | G5: SB
A6: Crossroad AADT | B6: 18000 | C6: 17000 | D6: =B6 -> 18000 | E6: =C6 -> 17000 | F6: =B6 -> 18000 | G6: =C6 -> 17000
A7: Ramp AADT | B7: 5000 | C7: 4500 | D7: =B7 -> 5000 | E7: =C7 -> 4500 | F7: =B7 -> 5000 | G7: =C7 -> 4500
A8: Area Type | B8: Urban | D8: =B8 -> Urban | F8: =B8 -> Urban
A9: # of Crossroad Lanes | B9: 2 | C9: 2 | D9: 2 | E9: 2 | F9: 2 | G9: 2 | H9: 2-6 (5,6 Urban only)
A18: Other CMF Inputs | B18: Part C CMFs Optional For Stage 1 ICE, Required for Stage 2 ICE
A19: Crossroad Left Turn Lane Present? | B19: Yes | C19: Yes | D19: Yes | E19: Yes | F19: Yes | G19: Yes
A20: Crossroad Right Turn Lane Present? | B20: Yes | C20: Yes | D20: Yes | E20: Yes | F20: Yes | G20: Yes
A21: Skew Angle | B21: skew | C21: Planning | D21: Double | E21: Not/ Applicable | F21: Include in MRS | G21: Include in MRS
A22: Exit ramp right turn control | B22: mergeRT | C22: Planning | D22: Merge/FF or Signal/Stop/yeild-controlled | E22: Include in TS | F22: Include in MRS | G22: Include in MRS
A23: Effective number of lanes serving exit ramp | B23: nex | C23: Planning | D23: 1-2, see graphic | E23: Include in TS | F23: Include in MRS | G23: Include in MRS
A24: Presence of left-turn bay on "in" leg | B24: i_LTBayIn | C24: Planning | D24: Yes/No (<100 ft?) | E24: Include in TS | F24: Include in MRS | G24: Include in MRS
A25: Presence of left-turn bay on "out" leg | B25: i_LTBayOut | C25: Planning | D25: Yes/No (<100 ft?) | E25: Include in TS | F25: Include in MRS | G25: Include in MRS
A26: Presence of right-turn bay on "in" leg | B26: i_RTBayIn | C26: Planning | D26: Yes/No (<100 ft?) | E26: Include in TS | F26: Include in MRS | G26: Include in MRS
A27: Presence of right-turn bay on "out" leg | B27: i_RTBayOut | C27: Planning | D27: Yes/No (<100 ft?) | E27: Include in TS | F27: Include in MRS | G27: Include in MRS
A28: Number of Stop-controlled public street approaches to the crossroad leg outside of the interchange and within 250 feet of the ramp terminal | B28: n_ps | C28: Planning | D28: Integer | E28: Include in TS | F28: Include in MRS | G28: Include in MRS
A29: Number of Stop-controlled driveways to the crossroad leg outside of the interchange and within 250 feet of the ramp terminal | B29: n_dw | C29: Planning | D29: Integer | E29: Include in TS | F29: Not Applicable | G29: Not Applicable
A30: Distance between subject ramp terminal and adjacent ramp terminal (from terminal center to terminal center) | B30: l_rmp | C30: Planning | D30: Double | E30: Include in TS | F30: Include in MRS | G30: Include in MRS
A31: distance between subject ramp terminal and nearest public road intersection in a direction away form the freeway | B31: l_str | C31: Planning | D31: Double | E31: Include in TS | F31: Include in MRS | G31: Include in MRS
A32: Width of median adjacent to turn lane for crossroad leg | B32: w_m | C32: Planning | D32: Double | E32: Include in TS | F32: Include in MRS | G32: Include in MRS
A33: Left-turn lane width for "in" crossroad leg | B33: w_bkIn | C33: Planning | D33: Double (0.0 if not present) | E33: Include in TS | F33: Include in MRS | G33: Include in MRS
A34: Left-turn lane width for "out" crossroad leg | B34: w_bkOut | C34: Planning | D34: Double (0.0 if not present) | E34: Include in TS | F34: Include in MRS | G34: Include in MRS
A35: Number of through traffic lanes that oppose the left-turn movement on the crossroad leg "in" | B35: n_oppLTIn | C35: Planning | D35: Integer | E35: Include in TS | F35: Not Applicable | G35: Not Applicable
A36: Number of through traffic lanes that oppose the left-turn movement on the crossroad leg "out" | B36: n_oppLTOut | C36: Planning | D36: Integer | E36: Include in TS | F36: Not Applicable | G36: Not Applicable
A37: Protected Left-turn operation indicator for crossroad leg "in" | B37: i_protLTIn | C37: Planning | D37: Boolean | E37: Include in TS | F37: Not Applicable | G37: Not Applicable
A38: Protected Left-turn operation indicator for crossroad leg "out" | B38: i_protLTOut | C38: Planning | D38: Boolean | E38: Include in TS | F38: Not Applicable | G38: Not Applicable
A39: Right turn channelization indicator for crossroad leg "in" | B39: i_crtIn | C39: Planning | D39: Boolean | E39: Include in TS | F39: Not Applicable | G39: Not Applicable
A40: Right turn channelization indicator for crossroad leg "out" | B40: i_crtOut | C40: Planning | D40: Boolean | E40: Include in TS | F40: Not Applicable | G40: Not Applicable
A41: Right turn channelization indicator for exit ramp | B41: i_crtEx | C41: Planning | D41: Boolean | E41: Include in TS | F41: Not Applicable | G41: Not Applicable
A42: Non-ramp public street leg indicator | B42: i_ps | C42: Planning | D42: Boolean | E42: Include in TS | F42: Not Applicable | G42: Not Applicable

Sheet 4_Quad_ParcloA (hidden)
T1: Conflicting Traffic Complexity | AE1: Pedestrian Complexity | BW1: *impact of median on complexity factors
J2: Exposure | N2: Severity | T2: Traffic Control | V2: Conflicting Lanes | AB2: Conflicting Speed | AE2: Indirect Paths Indicator | AF2: Non-intuitive movements indicator | AG2: Pedestrian Complexity factor | AI2: Total Complexity Multiplier | AK2: Exposure-Severity-Complexity Product | AN2: Included in Mvmt1 | BE2: Included in Mvmt2 | BY2: Cross-street: No, Ramps: No | CD2: Cross-street: Yes, Ramps: No | CI2: Cross-street: No, Ramps: Yes | CN2: Cross-street: Yes, Ramps: Yes
A3: # | B3: Conflict Type | C3: Mvmt1 | D3: Mvmt1_gen | E3: Mvmt1_SpeedCat | F3: Mvmt2 | G3: Mvmt2_gen | H3: Mvmt2_SpeedCat | J3: Q1 | K3: Q2 | L3: I | N3: Speed_V1 | O3: Speed_V2 | P3: Angle | Q3: delta_V | R3: P_FSI | V3: CrossC | W3: RampC | X3: CrossM/P | Y3: RampM/P | Z3: Score | AB3: Speed | AC3: Factor | AN3: CrossT1 | AO3: CrossL1 | AP3: CrossR1 | AQ3: CrossT2 | AR3: CrossL2 | AS3: CrossR2 | AT3: RampT1 | AU3: RampL1 | AV3: RampR1 | AW3: RampT2 | AX3: RampL2 | AY3: RampR2 | AZ3: CrossNM1 | BA3: CrossNM2 | BB3: RampNM1 | BC3: RampNM2 | BE3: CrossT1 | BF3: CrossL1 | BG3: CrossR1 | BH3: CrossT2 | BI3: CrossL2 | BJ3: CrossR2 | BK3: RampT1 | BL3: RampL1 | BM3: RampR1 | BN3: RampT2 | BO3: RampL2 | BP3: RampR2 | BQ3: CrossNM1 | BR3: CrossNM2 | BS3: RampNM1 | BT3: RampNM2 | BW3: # | BX3: Conflict Type | BY3: MajC | BZ3: MinC | CA3: MajM/P | CB3: MinM/P | CD3: MajC | CE3: MinC | CF3: MajM/P | CG3: MinM/P | CI3: MajC | CJ3: MinC | CK3: MajM/P | CL3: MinM/P | CN3: MajC | CO3: MinC | CP3: MajM/P | CQ3: MinM/P
A4: 1 | B4: Crossing - LT | C4: WBL | D4: CrossL2 | E4: Cross left | F4: EBT,EBL | G4: CrossT1,CrossL1 | H4: Cross thru | J4: =SUMPRODUCT($AN4:$BC4,$AN$28:$BC$28) -> 0 | K4: =SUMPRODUCT($BE4:$BT4,$BE$28:$BT$28) -> 0 | L4: =PRODUCT(J4:K4) -> 0 | N4: =VLOOKUP(E4,SSI_RTI_Range_VehSpeed,5,FALSE) -> 20 | O4: =VLOOKUP(H4,SSI_RTI_Range_VehSpeed,5,FALSE) -> 0 | P4: =IF(B4="Nonmotorized","",VLOOKUP(B4,SSI_RTI_Range_CollAngles,5,FALSE)) -> 230 | Q4: =IF(B4="Nonmotorized","",SQRT(N4^2+O4^2-2*N4*O4*COS(RADIANS(P4)))/2) -> 10 | R4: =IF(B4="Nonmotorized",1/(1+EXP(3.8432-0.1237*O4)),(Q4/SSI_RTI_RegAlpha)^SSI_RTI_RegK+(Q4/SSI_RTI_RegAlpha)^SSI_RTI_RegK-((Q4/SSI_RTI_RegAlpha)^SSI_RTI_RegK)*((Q4/SSI_RTI_RegAlpha)^SSI_RTI_RegK)) -> 0.001443139223 | T4: =IF(SSI_RTI_CrossLTPhase="Protected/permitted",SSI_RTI_ProtPermFactor,IF(SSI_RTI_CrossLTPhase="Protected",SSI_RTI_ProtFactor,SSI_RTI_PermFactor)) -> 0.505 | V4: =IF(AND(SSI_RTI_CrossStMedian="No", SSI_RTI_RampMedian="No"),BY4,IF(AND(SSI_RTI_CrossStMedian="Yes",SSI_RTI_RampMedian="No"),CD4,IF(AND(SSI_RTI_CrossStMedian="No",SSI_RTI_RampMedian="Yes"),CI4,IF(AND(SSI_RTI_CrossStMedian="Yes",SSI_RTI_RampMedian="Yes"),CN4)))) -> FALSE | W4: =IF(AND(SSI_RTI_CrossStMedian="No", SSI_RTI_RampMedian="No"),BZ4,IF(AND(SSI_RTI_CrossStMedian="Yes",SSI_RTI_RampMedian="No"),CE4,IF(AND(SSI_RTI_CrossStMedian="No",SSI_RTI_RampMedian="Yes"),CJ4,IF(AND(SSI_RTI_CrossStMedian="Yes",SSI_RTI_RampMedian="Yes"),CO4)))) -> FALSE | X4: =IF(AND(SSI_RTI_CrossStMedian="No", SSI_RTI_RampMedian="No"),CA4,IF(AND(SSI_RTI_CrossStMedian="Yes",SSI_RTI_RampMedian="No"),CF4,IF(AND(SSI_RTI_CrossStMedian="No",SSI_RTI_RampMedian="Yes"),CK4,IF(AND(SSI_RTI_CrossStMedian="Yes",SSI_RTI_RampMedian="Yes"),CP4)))) -> FALSE | Y4: =IF(AND(SSI_RTI_CrossStMedian="No", SSI_RTI_RampMedian="No"),CB4,IF(AND(SSI_RTI_CrossStMedian="Yes",SSI_RTI_RampMedian="No"),CG4,IF(AND(SSI_RTI_CrossStMedian="No",SSI_RTI_RampMedian="Yes"),CL4,IF(AND(SSI_RTI_CrossStMedian="Yes",SSI_RTI_RampMedian="Yes"),CQ4)))) -> FALSE | Z4: =MAX(1,IF(B4<>"Pedestrian",V4*SSI_RTI_CrossThruLanes+W4*SSI_RTI_Ramp1ThruLanes+X4*IF(SSI_RTI_CrossThruLanes=1,SSI_RTI_MergeWeightL1,IF(SSI_RTI_CrossThruLanes=2,SSI_RTI_MergeWeightL1+SSI_RTI_MergeWeightL2,SSI_RTI_MergeWeightL1+SSI_RTI_MergeWeightL2+SSI_RTI_MergeWeightL3*(SSI_RTI_CrossThruLanes-2)))+Y4*IF(SSI_RTI_Ramp1ThruLanes=1,SSI_RTI_MergeWeightL1,IF(SSI_RTI_Ramp1ThruLanes=2,SSI_RTI_MergeWeightL1+SSI_RTI_MergeWeightL2,SSI_RTI_MergeWeightL1+SSI_RTI_MergeWeightL2+SSI_RTI_MergeWeightL3*(SSI_RTI_Ramp1ThruLanes-2))),V4*SSI_RTI_CrossThruLanes+W4*SSI_RTI_Ramp1ThruLanes+X4*IF(SSI_RTI_CrossThruLanes=1,SSI_RTI_NM_MergeWeightL1,IF(SSI_RTI_CrossThruLanes=2,SSI_RTI_NM_MergeWeightL1+SSI_RTI_NM_MergeWeightL2,SSI_RTI_NM_MergeWeightL1+SSI_RTI_NM_MergeWeightL2+SSI_RTI_NM_MergeWeightL3*(SSI_RTI_CrossThruLanes-2)))+Y4*IF(SSI_RTI_Ramp1ThruLanes=1,SSI_RTI_NM_MergeWeightL1,IF(SSI_RTI_Ramp1ThruLanes=2,SSI_RTI_NM_MergeWeightL1+SSI_RTI_NM_MergeWeightL2,SSI_RTI_NM_MergeWeightL1+SSI_RTI_NM_MergeWeightL2+SSI_RTI_NM_MergeWeightL3*(SSI_RTI_Ramp1ThruLanes-2))))) -> 1 | AB4: =IF(B4="Diverging","",SSI_RTI_VehSpeed_CrossThru) -> 0 | AC4: =IF(B4="Diverging",1,1-((60-AB4)/60*0.1/0.15)) -> 0.3333333333 | AG4: =1+AE4+AF4 -> 1 | AI4: =PRODUCT(Z4,T4,AC4,AG4) -> 0.1683333333 | AK4: =L4*R4*AI4 -> 0 | AN4: =IF(ISNUMBER(SEARCH(AN$3,$D4)),1,"") ->  | AO4: =IF(ISNUMBER(SEARCH(AO$3,$D4)),1,"") ->  | AR4: 1 | BE4: =IF(ISNUMBER(SEARCH(BE$3,$G4)),1,"") -> 1 | BF4: =IF(ISNUMBER(SEARCH(BF$3,$G4)),1,"") -> 1 | BW4: =A4 -> 1 | BX4: =B4 -> Crossing - LT | BY4: 1 | BZ4: 0 | CA4: 1 | CB4: 0 | CD4: 1 | CE4: 0 | CF4: 1 | CG4: 0 | CI4: 1 | CJ4: 0 | CK4: 0 | CL4: 0 | CN4: 1 | CO4: 0 | CP4: 0 | CQ4: 0
A5: 2 | B5: Crossing - LT | C5: EBL | D5: CrossL1 | E5: Cross left | F5: WBT,WBL | G5: CrossT2,CrossL2 | H5: Cross thru | J5: =SUMPRODUCT($AN5:$BC5,$AN$28:$BC$28) -> 0 | K5: =SUMPRODUCT($BE5:$BT5,$BE$28:$BT$28) -> 0 | L5: =PRODUCT(J5:K5) -> 0 | N5: 20 | O5: 0 | P5: 230 | Q5: =IF(B5="Nonmotorized","",SQRT(N5^2+O5^2-2*N5*O5*COS(RADIANS(P5)))/2) -> 10 | R5: 0.001443139223 | T5: =IF(SSI_RTI_CrossLTPhase="Protected/permitted",SSI_RTI_ProtPermFactor,IF(SSI_RTI_CrossLTPhase="Protected",SSI_RTI_ProtFactor,SSI_RTI_PermFactor)) -> 0.505 | V5: FALSE | W5: FALSE | X5: FALSE | Y5: FALSE | Z5: 1 | AB5: 0 | AC5: 0.3333333333 | AG5: =1+AE5+AF5 -> 1 | AI5: 0.1683333333 | AK5: =L5*R5*AI5 -> 0 | AN5: =IF(ISNUMBER(SEARCH(AN$3,$D5)),1,"") ->  | AO5: 1 | BE5: =IF(ISNUMBER(SEARCH(BE$3,$G5)),1,"") ->  | BH5: 1 | BI5: 1 | BW5: =A5 -> 2 | BX5: Crossing - LT | BY5: 1 | BZ5: 0 | CA5: 1 | CB5: 0 | CD5: 1 | CE5: 0 | CF5: 1 | CG5: 0 | CI5: 1 | CJ5: 0 | CK5: 0 | CL5: 0 | CN5: 1 | CO5: 0 | CP5: 0 | CQ5: 0
A6: 3 | B6: Merging | C6: SBR | D6: RampR2 | E6: Ramp thru | F6: WBT,NBL | G6: CrossT2,RampL1 | H6: Cross thru | J6: 0 | K6: 0 | L6: 0 | N6: 0 | O6: 0 | P6: 45 | Q6: 0 | R6: 0 | T6: =SSI_RTI_PermFactor -> 1 | V6: FALSE | W6: FALSE | X6: FALSE | Y6: FALSE | Z6: 1 | AB6: 0 | AC6: 0.3333333333 | AG6: 1 | AI6: 0.3333333333 | AK6: 0 | AY6: 1 | BH6: 1 | BL6: 1 | BW6: 3 | BX6: Merging | BY6: 0 | BZ6: 0 | CA6: 1 | CB6: 0 | CD6: 0 | CE6: 0 | CF6: 1 | CG6: 0 | CI6: 0 | CJ6: 0 | CK6: 1 | CL6: 0 | CN6: 0 | CO6: 0 | CP6: 1 | CQ6: 0
A7: 4 | B7: Merging | C7: EBR | D7: CrossR1 | E7: Cross right | F7: WBL | G7: CrossL2 | H7: Cross left | J7: 0 | K7: 0 | L7: 0 | N7: 15 | O7: 20 | P7: 45 | Q7: 7.084065416 | R7: 0.0003902292327 | T7: 1 | V7: FALSE | W7: FALSE | X7: FALSE | Y7: FALSE | Z7: 1 | AB7: 0 | AC7: 0.3333333333 | AG7: 1 | AI7: 0.3333333333 | AK7: 0 | AP7: 1 | BI7: 1 | BW7: 4 | BX7: Merging | BY7: 0 | BZ7: 0 | CA7: 0 | CB7: 1 | CD7: 0 | CE7: 0 | CF7: 0 | CG7: 1 | CI7: 0 | CJ7: 0 | CK7: 0 | CL7: 1 | CN7: 0 | CO7: 0 | CP7: 0 | CQ7: 1
A8: 5 | B8: Merging | C8: SBL | D8: RampL2 | E8: Ramp thru | F8: EBT,EBL | G8: CrossT1,CrossL1 | H8: Cross thru | J8: 0 | K8: 0 | L8: 0 | N8: 0 | O8: 0 | P8: 45 | Q8: 0 | R8: 0 | T8: 1 | V8: FALSE | W8: FALSE | X8: FALSE | Y8: FALSE | Z8: 1 | AB8: 0 | AC8: 0.3333333333 | AG8: 1 | AI8: 0.3333333333 | AK8: 0 | AX8: 1 | BE8: 1 | BF8: 1 | BW8: 5 | BX8: Merging | BY8: 0 | BZ8: 0 | CA8: 1 | CB8: 0 | CD8: 0 | CE8: 0 | CF8: 1 | CG8: 0 | CI8: 0 | CJ8: 0 | CK8: 1 | CL8: 0 | CN8: 0 | CO8: 0 | CP8: 1 | CQ8: 0
A9: 6 | B9: Merging | C9: NBL | D9: RampL1 | E9: Ramp thru | F9: WBT,WBL | G9: CrossT2,CrossL2 | H9: Cross thru | J9: 0 | K9: 0 | L9: 0 | N9: 0 | O9: 0 | P9: 45 | Q9: 0 | R9: 0 | T9: 1 | V9: FALSE | W9: FALSE | X9: FALSE | Y9: FALSE | Z9: 1 | AB9: 0 | AC9: 0.3333333333 | AG9: 1 | AI9: 0.3333333333 | AK9: 0 | AU9: 1 | BH9: 1 | BI9: 1 | BW9: 6 | BX9: Merging | BY9: 0 | BZ9: 0 | CA9: 1 | CB9: 0 | CD9: 0 | CE9: 0 | CF9: 1 | CG9: 0 | CI9: 0 | CJ9: 0 | CK9: 1 | CL9: 0 | CN9: 0 | CO9: 0 | CP9: 1 | CQ9: 0
A10: 7 | B10: Merging | C10: WBR | D10: CrossR2 | E10: Cross right | F10: EBL | G10: CrossL1 | H10: Cross left | J10: 0 | K10: 0 | L10: 0 | N10: 15 | O10: 20 | P10: 45 | Q10: 7.084065416 | R10: 0.0003902292327 | T10: 1 | V10: FALSE | W10: FALSE | X10: FALSE | Y10: FALSE | Z10: 1 | AB10: 0 | AC10: 0.3333333333 | AG10: 1 | AI10: 0.3333333333 | AK10: 0 | AS10: 1 | BF10: 1 | BW10: 7 | BX10: Merging | BY10: 0 | BZ10: 0 | CA10: 0 | CB10: 1 | CD10: 0 | CE10: 0 | CF10: 0 | CG10: 1 | CI10: 0 | CJ10: 0 | CK10: 0 | CL10: 1 | CN10: 0 | CO10: 0 | CP10: 0 | CQ10: 1
A11: 8 | B11: Merging | C11: NBR | D11: RampR1 | E11: Ramp thru | F11: EBT,SBL | G11: CrossT1,RampL2 | H11: Cross thru | J11: 0 | K11: 0 | L11: 0 | N11: 0 | O11: 0 | P11: 45 | Q11: 0 | R11: 0 | T11: 1 | V11: FALSE | W11: FALSE | X11: FALSE | Y11: FALSE | Z11: 1 | AB11: 0 | AC11: 0.3333333333 | AG11: 1 | AI11: 0.3333333333 | AK11: 0 | AV11: 1 | BE11: 1 | BO11: 1 | BW11: 8 | BX11: Merging | BY11: 0 | BZ11: 0 | CA11: 1 | CB11: 0 | CD11: 0 | CE11: 0 | CF11: 1 | CG11: 0 | CI11: 0 | CJ11: 0 | CK11: 1 | CL11: 0 | CN11: 0 | CO11: 0 | CP11: 1 | CQ11: 0
A12: 9 | B12: Diverging | C12: EBT, EBL | D12: CrossT1, CrossL1 | E12: Cross thru | F12: EBR | G12: CrossR1 | H12: Cross right | J12: 0 | K12: 0 | L12: 0 | N12: 0 | O12: 15 | P12: 10 | Q12: 7.5 | R12: 0.0004845430153 | T12: 1 | V12: FALSE | W12: FALSE | X12: FALSE | Y12: FALSE | Z12: 1 | AC12: 1 | AG12: 1 | AI12: 1 | AK12: 0 | AN12: 1 | AO12: 1 | BG12: 1 | BW12: 9 | BX12: Diverging | BY12: 0 | BZ12: 0 | CA12: 0 | CB12: 0 | CD12: 0 | CE12: 0 | CF12: 0 | CG12: 0 | CI12: 0 | CJ12: 0 | CK12: 0 | CL12: 0 | CN12: 0 | CO12: 0 | CP12: 0 | CQ12: 0
A13: 10 | B13: Diverging | C13: WBT, NBL | D13: CrossT2, RampL1 | E13: Cross thru | F13: WBL | G13: CrossL2 | H13: Cross left | J13: 0 | K13: 0 | L13: 0 | N13: 0 | O13: 20 | P13: 10 | Q13: 10 | R13: 0.001443139223 | T13: 1 | V13: FALSE | W13: FALSE | X13: FALSE | Y13: FALSE | Z13: 1 | AC13: 1 | AG13: 1 | AI13: 1 | AK13: 0 | AQ13: 1 | AU13: 1 | BI13: 1 | BW13: 10 | BX13: Diverging | BY13: 0 | BZ13: 0 | CA13: 0 | CB13: 0 | CD13: 0 | CE13: 0 | CF13: 0 | CG13: 0 | CI13: 0 | CJ13: 0 | CK13: 0 | CL13: 0 | CN13: 0 | CO13: 0 | CP13: 0 | CQ13: 0
A14: 11 | B14: Diverging | C14: EBT, SBL | D14: CrossT1, RampL2 | E14: Cross thru | F14: EBL | G14: CrossL1 | H14: Cross left | J14: 0 | K14: 0 | L14: 0 | N14: 0 | O14: 20 | P14: 10 | Q14: 10 | R14: 0.001443139223 | T14: 1 | V14: FALSE | W14: FALSE | X14: FALSE | Y14: FALSE | Z14: 1 | AC14: 1 | AG14: 1 | AI14: 1 | AK14: 0 | AN14: 1 | AX14: 1 | BF14: 1 | BW14: 11 | BX14: Diverging | BY14: 0 | BZ14: 0 | CA14: 0 | CB14: 0 | CD14: 0 | CE14: 0 | CF14: 0 | CG14: 0 | CI14: 0 | CJ14: 0 | CK14: 0 | CL14: 0 | CN14: 0 | CO14: 0 | CP14: 0 | CQ14: 0
A15: 12 | B15: Diverging | C15: WBT, WBL | D15: CrossT2, CrossL2 | E15: Cross thru | F15: WBR | G15: CrossR2 | H15: Cross right | J15: 0 | K15: 0 | L15: 0 | N15: 0 | O15: 15 | P15: 10 | Q15: 7.5 | R15: 0.0004845430153 | T15: 1 | V15: FALSE | W15: FALSE | X15: FALSE | Y15: FALSE | Z15: 1 | AC15: 1 | AG15: 1 | AI15: 1 | AK15: 0 | AQ15: 1 | AR15: 1 | BJ15: 1 | BW15: 12 | BX15: Diverging | BY15: 0 | BZ15: 0 | CA15: 0 | CB15: 0 | CD15: 0 | CE15: 0 | CF15: 0 | CG15: 0 | CI15: 0 | CJ15: 0 | CK15: 0 | CL15: 0 | CN15: 0 | CO15: 0 | CP15: 0 | CQ15: 0
A16: 13 | B16: Nonmotorized | D16: RampNM2, CrossNM1 | E16: Nonmotorized | F16: SBR | G16: RampR2 | H16: Ramp thru | J16: 350 | K16: 0 | L16: 0 | N16: 0 | O16: 0 | R16: 0.0209755324 | T16: 1 | V16: FALSE | W16: FALSE | X16: FALSE | Y16: FALSE | Z16: 1 | AB16: =IF(B16="Diverging","",SSI_RTI_VehSpeed_RampThru) -> 0 | AC16: 0.3333333333 | AG16: 1 | AI16: 0.3333333333 | AK16: 0 | AZ16: 1 | BC16: 1 | BP16: 1 | BW16: 13 | BX16: Nonmotorized | BY16: 0 | BZ16: 1 | CA16: 0 | CB16: 0 | CD16: 0 | CE16: 1 | CF16: 0 | CG16: 0 | CI16: 0 | CJ16: 1 | CK16: 0 | CL16: 0 | CN16: 0 | CO16: 1 | CP16: 0 | CQ16: 0
A17: 14 | B17: Nonmotorized | D17: CrossNM1 | E17: Nonmotorized | F17: WBT,NBL | G17: CrossT2,RampL1 | H17: Cross thru | J17: 175 | K17: 0 | L17: 0 | N17: 0 | O17: 0 | R17: 0.0209755324 | T17: =SSI_RTI_ProtFactor -> 0.505 | V17: FALSE | W17: FALSE | X17: FALSE | Y17: FALSE | Z17: 1 | AB17: 0 | AC17: 0.3333333333 | AG17: 1 | AI17: 0.1683333333 | AK17: 0 | AZ17: 1 | BH17: 1 | BL17: 1 | BW17: 14 | BX17: Nonmotorized | BY17: 2 | BZ17: 0 | CA17: 0 | CB17: 0 | CD17: 1 | CE17: 0 | CF17: 0 | CG17: 0 | CI17: 2 | CJ17: 0 | CK17: 0 | CL17: 0 | CN17: 1 | CO17: 0 | CP17: 0 | CQ17: 0
A18: 15 | B18: Nonmotorized | D18: CrossNM1 | E18: Nonmotorized | F18: EBT,EBL | G18: CrossT1,CrossL1 | H18: Cross thru | J18: 175 | K18: 0 | L18: 0 | N18: 0 | O18: 0 | R18: 0.0209755324 | T18: 0.505 | V18: FALSE | W18: FALSE | X18: FALSE | Y18: FALSE | Z18: 1 | AB18: 0 | AC18: 0.3333333333 | AG18: 1 | AI18: 0.1683333333 | AK18: 0 | AZ18: 1 | BE18: 1 | BF18: 1 | BW18: 15 | BX18: Nonmotorized | BY18: 2 | BZ18: 0 | CA18: 0 | CB18: 0 | CD18: 1 | CE18: 0 | CF18: 0 | CG18: 0 | CI18: 2 | CJ18: 0 | CK18: 0 | CL18: 0 | CN18: 1 | CO18: 0 | CP18: 0 | CQ18: 0
A19: 16 | B19: Nonmotorized | D19: RampNM1, CrossNM1 | E19: Nonmotorized | F19: EBR | G19: CrossR1 | H19: Cross right | J19: 350 | K19: 0 | L19: 0 | N19: 0 | O19: 15 | R19: 0.1205004039 | T19: =SSI_RTI_PermFactor -> 1 | V19: FALSE | W19: FALSE | X19: FALSE | Y19: FALSE | Z19: 1 | AB19: 0 | AC19: 0.3333333333 | AG19: 1 | AI19: 0.3333333333 | AK19: 0 | AZ19: 1 | BB19: 1 | BG19: 1 | BW19: 16 | BX19: Nonmotorized | BY19: 1 | BZ19: 1 | CA19: 0 | CB19: 0 | CD19: 1 | CE19: 1 | CF19: 0 | CG19: 0 | CI19: 1 | CJ19: 1 | CK19: 0 | CL19: 0 | CN19: 1 | CO19: 1 | CP19: 0 | CQ19: 0
A20: 17 | B20: Nonmotorized | D20: RampNM1 | E20: Nonmotorized | F20: WBL | G20: CrossL2 | H20: Cross left | J20: 175 | K20: 0 | L20: 0 | N20: 0 | O20: 20 | R20: 0.2027491292 | T20: =IF(SSI_RTI_CrossLTPhase="Protected/permitted",SSI_RTI_ProtPermFactor,IF(SSI_RTI_CrossLTPhase="Protected",SSI_RTI_ProtFactor,SSI_RTI_PermFactor)) -> 0.505 | V20: FALSE | W20: FALSE | X20: FALSE | Y20: FALSE | Z20: 1 | AB20: 0 | AC20: 0.3333333333 | AG20: 1 | AI20: 0.1683333333 | AK20: 0 | BB20: 1 | BI20: 1 | BW20: 17 | BX20: Nonmotorized | BY20: 0 | BZ20: 1 | CA20: 1 | CB20: 0 | CD20: 0 | CE20: 1 | CF20: 1 | CG20: 0 | CI20: 0 | CJ20: 1 | CK20: 1 | CL20: 0 | CN20: 0 | CO20: 1 | CP20: 1 | CQ20: 0
A21: 18 | B21: Nonmotorized | D21: RampNM1 | E21: Nonmotorized | F21: SBL | G21: RampL2 | H21: Ramp thru | J21: 175 | K21: 0 | L21: 0 | N21: 0 | O21: 0 | R21: 0.0209755324 | T21: 1 | V21: FALSE | W21: FALSE | X21: FALSE | Y21: FALSE | Z21: 1 | AB21: =IF(B21="Diverging","",SSI_RTI_VehSpeed_RampThru) -> 0 | AC21: 0.3333333333 | AG21: 1 | AI21: 0.3333333333 | AK21: 0 | BB21: 1 | BO21: 1 | BS21: =IF(ISNUMBER(SEARCH(BS$3,$G21)),1,"") ->  | BT21: =IF(ISNUMBER(SEARCH(BT$3,$G21)),1,"") ->  | BW21: 18 | BX21: Nonmotorized | BY21: 0 | BZ21: 1 | CA21: 0 | CB21: 0 | CD21: 0 | CE21: 1 | CF21: 0 | CG21: 0 | CI21: 0 | CJ21: 1 | CK21: 0 | CL21: 0 | CN21: 0 | CO21: 1 | CP21: 0 | CQ21: 0
A22: 19 | B22: Nonmotorized | D22: RampNM1, CrossNM2 | E22: Nonmotorized | F22: NBR | G22: RampR1 | H22: Ramp thru | J22: 350 | K22: 0 | L22: 0 | N22: 0 | O22: 0 | R22: 0.0209755324 | T22: 1 | V22: FALSE | W22: FALSE | X22: FALSE | Y22: FALSE | Z22: 1 | AB22: =IF(B22="Diverging","",SSI_RTI_VehSpeed_RampThru) -> 0 | AC22: 0.3333333333 | AG22: 1 | AI22: 0.3333333333 | AK22: 0 | BA22: 1 | BB22: 1 | BE22: =IF(ISNUMBER(SEARCH(BE$3,$G22)),1,"") ->  | BM22: 1 | BW22: 19 | BX22: Nonmotorized | BY22: 0 | BZ22: 1 | CA22: 0 | CB22: 0 | CD22: 0 | CE22: 1 | CF22: 0 | CG22: 0 | CI22: 0 | CJ22: 1 | CK22: 0 | CL22: 0 | CN22: 0 | CO22: 1 | CP22: 0 | CQ22: 0
A23: 20 | B23: Nonmotorized | D23: CrossNM2 | E23: Nonmotorized | F23: EBT,SBL | G23: CrossT1,RampL2 | H23: Cross thru | J23: 175 | K23: 0 | L23: 0 | N23: 0 | O23: 0 | R23: 0.0209755324 | T23: 0.505 | V23: FALSE | W23: FALSE | X23: FALSE | Y23: FALSE | Z23: 1 | AB23: 0 | AC23: 0.3333333333 | AG23: 1 | AI23: 0.1683333333 | AK23: 0 | AZ23: =IF(ISNUMBER(SEARCH(AZ$3,$D23)),1,"") ->  | BA23: =IF(ISNUMBER(SEARCH(BA$3,$D23)),1,"") -> 1 | BB23: =IF(ISNUMBER(SEARCH(BB$3,$D23)),1,"") ->  | BC23: =IF(ISNUMBER(SEARCH(BC$3,$D23)),1,"") ->  | BE23: 1 | BO23: 1 | BW23: 20 | BX23: Nonmotorized | BY23: 2 | BZ23: 0 | CA23: 0 | CB23: 0 | CD23: 1 | CE23: 0 | CF23: 0 | CG23: 0 | CI23: 2 | CJ23: 0 | CK23: 0 | CL23: 0 | CN23: 1 | CO23: 0 | CP23: 0 | CQ23: 0
A24: 21 | B24: Nonmotorized | D24: CrossNM2 | E24: Nonmotorized | F24: WBT,WBL | G24: CrossT2,CrossL2 | H24: Cross thru | J24: 175 | K24: 0 | L24: 0 | N24: 0 | O24: 0 | R24: 0.0209755324 | T24: 0.505 | V24: FALSE | W24: FALSE | X24: FALSE | Y24: FALSE | Z24: 1 | AB24: 0 | AC24: 0.3333333333 | AG24: 1 | AI24: 0.1683333333 | AK24: 0 | AN24: =IF(ISNUMBER(SEARCH(AN$3,$D24)),1,"") ->  | BA24: 1 | BH24: 1 | BI24: 1 | BW24: 21 | BX24: Nonmotorized | BY24: 2 | BZ24: 0 | CA24: 0 | CB24: 0 | CD24: 1 | CE24: 0 | CF24: 0 | CG24: 0 | CI24: 2 | CJ24: 0 | CK24: 0 | CL24: 0 | CN24: 1 | CO24: 0 | CP24: 0 | CQ24: 0
A25: 22 | B25: Nonmotorized | D25: RampNM2, CrossNM2 | E25: Nonmotorized | F25: WBR | G25: CrossR2 | H25: Cross right | J25: 350 | K25: 0 | L25: 0 | N25: 0 | O25: 15 | R25: 0.1205004039 | T25: =SSI_RTI_PermFactor -> 1 | V25: FALSE | W25: FALSE | X25: FALSE | Y25: FALSE | Z25: 1 | AB25: 0 | AC25: 0.3333333333 | AG25: 1 | AI25: 0.3333333333 | AK25: =L25*R25*AI25 -> 0 | BA25: 1 | BC25: 1 | BJ25: 1 | BW25: 22 | BX25: Nonmotorized | BY25: 1 | BZ25: 1 | CA25: 0 | CB25: 0 | CD25: 1 | CE25: 1 | CF25: 0 | CG25: 0 | CI25: 1 | CJ25: 1 | CK25: 0 | CL25: 0 | CN25: 1 | CO25: 1 | CP25: 0 | CQ25: 0
A26: 23 | B26: Nonmotorized | D26: RampNM2 | E26: Nonmotorized | F26: EBL | G26: CrossL1 | H26: Cross left | J26: 175 | K26: 0 | L26: 0 | N26: 0 | O26: 20 | R26: 0.2027491292 | T26: =IF(SSI_RTI_CrossLTPhase="Protected/permitted",SSI_RTI_ProtPermFactor,IF(SSI_RTI_CrossLTPhase="Protected",SSI_RTI_ProtFactor,SSI_RTI_PermFactor)) -> 0.505 | V26: FALSE | W26: FALSE | X26: FALSE | Y26: FALSE | Z26: 1 | AB26: 0 | AC26: 0.3333333333 | AG26: 1 | AI26: 0.1683333333 | AK26: =L26*R26*AI26 -> 0 | BC26: 1 | BF26: 1 | BW26: 23 | BX26: Nonmotorized | BY26: 0 | BZ26: 1 | CA26: 1 | CB26: 0 | CD26: 0 | CE26: 1 | CF26: 1 | CG26: 0 | CI26: 0 | CJ26: 1 | CK26: 1 | CL26: 0 | CN26: 0 | CO26: 1 | CP26: 1 | CQ26: 0
A27: 24 | B27: Nonmotorized | D27: RampNM2 | E27: Nonmotorized | F27: NBL | G27: RampL1 | H27: Ramp thru | J27: 175 | K27: 0 | L27: 0 | N27: 0 | O27: 0 | R27: 0.0209755324 | T27: 1 | V27: FALSE | W27: FALSE | X27: FALSE | Y27: FALSE | Z27: 1 | AB27: =IF(B27="Diverging","",SSI_RTI_VehSpeed_RampThru) -> 0 | AC27: 0.3333333333 | AG27: 1 | AI27: 0.3333333333 | AK27: 0 | BC27: 1 | BL27: 1 | BW27: 24 | BX27: Nonmotorized | BY27: 0 | BZ27: 1 | CA27: 0 | CB27: 0 | CD27: 0 | CE27: 1 | CF27: 0 | CG27: 0 | CI27: 0 | CJ27: 1 | CK27: 0 | CL27: 0 | CN27: 0 | CO27: 1 | CP27: 0 | CQ27: 0
AM28: O | AN28: ='SSI Inputs RTI'!$D$28 ->  | AO28: ='SSI Inputs RTI'!$D$29 ->  | AP28: ='SSI Inputs RTI'!$D$30 ->  | AQ28: ='SSI Inputs RTI'!$D$32 ->  | AR28: ='SSI Inputs RTI'!$D$33 ->  | AS28: ='SSI Inputs RTI'!$D$34 ->  | AT28: ='SSI Inputs RTI'!$D$36 ->  | AU28: ='SSI Inputs RTI'!$D$37 ->  | AV28: ='SSI Inputs RTI'!$D$38 ->  | AW28: ='SSI Inputs RTI'!$D$40 ->  | AX28: ='SSI Inputs RTI'!$D$41 ->  | AY28: ='SSI Inputs RTI'!$D$42 ->  | AZ28: ='SSI Inputs RTI'!$Q$20 -> 175 | BA28: ='SSI Inputs RTI'!$Q$21 -> 175 | BB28: ='SSI Inputs RTI'!$Q$22 -> 175 | BC28: ='SSI Inputs RTI'!$Q$23 -> 175 | BD28: O | BE28: ='SSI Inputs RTI'!$D$28 ->  | BF28: ='SSI Inputs RTI'!$D$29 ->  | BG28: ='SSI Inputs RTI'!$D$30 ->  | BH28: ='SSI Inputs RTI'!$D$32 ->  | BI28: ='SSI Inputs RTI'!$D$33 ->  | BJ28: ='SSI Inputs RTI'!$D$34 ->  | BK28: ='SSI Inputs RTI'!$D$36 ->  | BL28: ='SSI Inputs RTI'!$D$37 ->  | BM28: ='SSI Inputs RTI'!$D$38 ->  | BN28: ='SSI Inputs RTI'!$D$40 ->  | BO28: ='SSI Inputs RTI'!$D$41 ->  | BP28: ='SSI Inputs RTI'!$D$42 ->  | BQ28: ='SSI Inputs RTI'!$Q$20 -> 175 | BR28: ='SSI Inputs RTI'!$Q$21 -> 175 | BS28: ='SSI Inputs RTI'!$Q$22 -> 175 | BT28: ='SSI Inputs RTI'!$Q$23 -> 175
AM29: D | AN29: ='SSI Inputs RTI'!$E$28 ->  | AO29: ='SSI Inputs RTI'!$E$29 ->  | AP29: ='SSI Inputs RTI'!$E$30 ->  | AQ29: ='SSI Inputs RTI'!$E$32 ->  | AR29: ='SSI Inputs RTI'!$E$33 ->  | AS29: ='SSI Inputs RTI'!$E$34 ->  | AT29: ='SSI Inputs RTI'!$E$36 ->  | AU29: ='SSI Inputs RTI'!$E$37 ->  | AV29: ='SSI Inputs RTI'!$E$38 ->  | AW29: ='SSI Inputs RTI'!$E$40 ->  | AX29: ='SSI Inputs RTI'!$E$41 ->  | AY29: ='SSI Inputs RTI'!$E$42 ->  | AZ29: ='SSI Inputs RTI'!$R$20 -> 175 | BA29: ='SSI Inputs RTI'!$R$21 -> 175 | BB29: ='SSI Inputs RTI'!$R$22 -> 175 | BC29: ='SSI Inputs RTI'!$R$23 -> 175 | BD29: D | BE29: ='SSI Inputs RTI'!$E$28 ->  | BF29: ='SSI Inputs RTI'!$E$29 ->  | BG29: ='SSI Inputs RTI'!$E$30 ->  | BH29: ='SSI Inputs RTI'!$E$32 ->  | BI29: ='SSI Inputs RTI'!$E$33 ->  | BJ29: ='SSI Inputs RTI'!$E$34 ->  | BK29: ='SSI Inputs RTI'!$E$36 ->  | BL29: ='SSI Inputs RTI'!$E$37 ->  | BM29: ='SSI Inputs RTI'!$E$38 ->  | BN29: ='SSI Inputs RTI'!$E$40 ->  | BO29: ='SSI Inputs RTI'!$E$41 ->  | BP29: ='SSI Inputs RTI'!$E$42 ->  | BQ29: ='SSI Inputs RTI'!$R$20 -> 175 | BR29: ='SSI Inputs RTI'!$R$21 -> 175 | BS29: ='SSI Inputs RTI'!$R$22 -> 175 | BT29: ='SSI Inputs RTI'!$R$23 -> 175
J101: Exposure | AK101: Exposure-Severity-Complexity Product
J102: Q1 | K102: Q2 | L102: I
J103: =SUMPRODUCT($AN4:$BC4,$AN$29:$BC$29) -> 0 | K103: =SUMPRODUCT($BE4:$BT4,$BE$29:$BT$29) -> 0 | L103: =PRODUCT(J103:K103) -> 0 | AK103: =L103*R4*AI4 -> 0
J104: 0 | K104: 0 | L104: =PRODUCT(J104:K104) -> 0 | AK104: =L104*R5*AI5 -> 0
J105: 0 | K105: 0 | L105: 0 | AK105: 0
J106: 0 | K106: 0 | L106: 0 | AK106: 0
J107: 0 | K107: 0 | L107: 0 | AK107: 0
J108: 0 | K108: 0 | L108: 0 | AK108: 0
J109: 0 | K109: 0 | L109: 0 | AK109: 0
J110: 0 | K110: 0 | L110: 0 | AK110: 0
J111: 0 | K111: 0 | L111: 0 | AK111: 0
J112: 0 | K112: 0 | L112: 0 | AK112: 0
J113: 0 | K113: 0 | L113: 0 | AK113: 0
J114: 0 | K114: 0 | L114: 0 | AK114: 0
J115: 350 | K115: 0 | L115: 0 | AK115: 0
J116: 175 | K116: 0 | L116: 0 | AK116: 0
J117: 175 | K117: 0 | L117: 0 | AK117: 0
J118: 350 | K118: 0 | L118: 0 | AK118: 0
J119: 175 | K119: 0 | L119: 0 | AK119: 0
J120: 175 | K120: 0 | L120: 0 | AK120: 0
J121: 350 | K121: 0 | L121: 0 | AK121: 0
J122: 175 | K122: 0 | L122: 0 | AK122: 0
J123: 175 | K123: 0 | L123: 0 | AK123: 0
J124: 350 | K124: 0 | L124: 0 | AK124: 0
J125: 175 | K125: 0 | L125: =PRODUCT(J125:K125) -> 0 | AK125: 0
J126: 175 | K126: 0 | L126: 0 | AK126: 0

Sheet 4_Quad_ParcloB (hidden)
T1: Conflicting Traffic Complexity | AE1: Pedestrian Complexity | BW1: *impact of median on complexity factors
J2: Exposure | N2: Severity | T2: Traffic Control | V2: Conflicting Lanes | AB2: Conflicting Speed | AE2: Indirect Paths Indicator | AF2: Non-intuitive movements indicator | AG2: Pedestrian Complexity factor | AI2: Total Complexity Multiplier | AK2: Exposure-Severity-Complexity Product | AN2: Included in Mvmt1 | BE2: Included in Mvmt2 | BY2: Cross-street: No, Ramps: No | CD2: Cross-street: Yes, Ramps: No | CI2: Cross-street: No, Ramps: Yes | CN2: Cross-street: Yes, Ramps: Yes
A3: # | B3: Conflict Type | C3: Mvmt1 | D3: Mvmt1_gen | E3: Mvmt1_SpeedCat | F3: Mvmt2 | G3: Mvmt2_gen | H3: Mvmt2_SpeedCat | J3: Q1 | K3: Q2 | L3: I | N3: Speed_V1 | O3: Speed_V2 | P3: Angle | Q3: delta_V | R3: P_FSI | V3: CrossC | W3: RampC | X3: CrossM/P | Y3: RampM/P | Z3: Score | AB3: Speed | AC3: Factor | AN3: CrossT1 | AO3: CrossL1 | AP3: CrossR1 | AQ3: CrossT2 | AR3: CrossL2 | AS3: CrossR2 | AT3: RampT1 | AU3: RampL1 | AV3: RampR1 | AW3: RampT2 | AX3: RampL2 | AY3: RampR2 | AZ3: CrossNM1 | BA3: CrossNM2 | BB3: RampNM1 | BC3: RampNM2 | BE3: CrossT1 | BF3: CrossL1 | BG3: CrossR1 | BH3: CrossT2 | BI3: CrossL2 | BJ3: CrossR2 | BK3: RampT1 | BL3: RampL1 | BM3: RampR1 | BN3: RampT2 | BO3: RampL2 | BP3: RampR2 | BQ3: CrossNM1 | BR3: CrossNM2 | BS3: RampNM1 | BT3: RampNM2 | BW3: # | BX3: Conflict Type | BY3: MajC | BZ3: MinC | CA3: MajM/P | CB3: MinM/P | CD3: MajC | CE3: MinC | CF3: MajM/P | CG3: MinM/P | CI3: MajC | CJ3: MinC | CK3: MajM/P | CL3: MinM/P | CN3: MajC | CO3: MinC | CP3: MajM/P | CQ3: MinM/P
A4: 1 | B4: Crossing - LT | C4: SBL | D4: RampL2 | E4: Signal near | F4: WBT,NBL | G4: CrossT2,RampL1 | H4: Cross thru | J4: =SUMPRODUCT($AN4:$BC4,$AN$28:$BC$28) -> 0 | K4: =SUMPRODUCT($BE4:$BT4,$BE$28:$BT$28) -> 0 | L4: =PRODUCT(J4:K4) -> 0 | N4: =VLOOKUP(E4,SSI_RTI_Range_VehSpeed,5,FALSE) -> 15 | O4: =VLOOKUP(H4,SSI_RTI_Range_VehSpeed,5,FALSE) -> 0 | P4: =IF(B4="Nonmotorized","",VLOOKUP(B4,SSI_RTI_Range_CollAngles,5,FALSE)) -> 230 | Q4: =IF(B4="Nonmotorized","",SQRT(N4^2+O4^2-2*N4*O4*COS(RADIANS(P4)))/2) -> 7.5 | R4: =IF(B4="Nonmotorized",1/(1+EXP(3.8432-0.1237*O4)),(Q4/SSI_RTI_RegAlpha)^SSI_RTI_RegK+(Q4/SSI_RTI_RegAlpha)^SSI_RTI_RegK-((Q4/SSI_RTI_RegAlpha)^SSI_RTI_RegK)*((Q4/SSI_RTI_RegAlpha)^SSI_RTI_RegK)) -> 0.0004845430153 | T4: =SSI_RTI_ProtFactor -> 0.505 | V4: =IF(AND(SSI_RTI_CrossStMedian="No", SSI_RTI_RampMedian="No"),BY4,IF(AND(SSI_RTI_CrossStMedian="Yes",SSI_RTI_RampMedian="No"),CD4,IF(AND(SSI_RTI_CrossStMedian="No",SSI_RTI_RampMedian="Yes"),CI4,IF(AND(SSI_RTI_CrossStMedian="Yes",SSI_RTI_RampMedian="Yes"),CN4)))) -> FALSE | W4: =IF(AND(SSI_RTI_CrossStMedian="No", SSI_RTI_RampMedian="No"),BZ4,IF(AND(SSI_RTI_CrossStMedian="Yes",SSI_RTI_RampMedian="No"),CE4,IF(AND(SSI_RTI_CrossStMedian="No",SSI_RTI_RampMedian="Yes"),CJ4,IF(AND(SSI_RTI_CrossStMedian="Yes",SSI_RTI_RampMedian="Yes"),CO4)))) -> FALSE | X4: =IF(AND(SSI_RTI_CrossStMedian="No", SSI_RTI_RampMedian="No"),CA4,IF(AND(SSI_RTI_CrossStMedian="Yes",SSI_RTI_RampMedian="No"),CF4,IF(AND(SSI_RTI_CrossStMedian="No",SSI_RTI_RampMedian="Yes"),CK4,IF(AND(SSI_RTI_CrossStMedian="Yes",SSI_RTI_RampMedian="Yes"),CP4)))) -> FALSE | Y4: =IF(AND(SSI_RTI_CrossStMedian="No", SSI_RTI_RampMedian="No"),CB4,IF(AND(SSI_RTI_CrossStMedian="Yes",SSI_RTI_RampMedian="No"),CG4,IF(AND(SSI_RTI_CrossStMedian="No",SSI_RTI_RampMedian="Yes"),CL4,IF(AND(SSI_RTI_CrossStMedian="Yes",SSI_RTI_RampMedian="Yes"),CQ4)))) -> FALSE | Z4: =MAX(1,IF(B4<>"Pedestrian",V4*SSI_RTI_CrossThruLanes+W4*SSI_RTI_Ramp1ThruLanes+X4*IF(SSI_RTI_CrossThruLanes=1,SSI_RTI_MergeWeightL1,IF(SSI_RTI_CrossThruLanes=2,SSI_RTI_MergeWeightL1+SSI_RTI_MergeWeightL2,SSI_RTI_MergeWeightL1+SSI_RTI_MergeWeightL2+SSI_RTI_MergeWeightL3*(SSI_RTI_CrossThruLanes-2)))+Y4*IF(SSI_RTI_Ramp1ThruLanes=1,SSI_RTI_MergeWeightL1,IF(SSI_RTI_Ramp1ThruLanes=2,SSI_RTI_MergeWeightL1+SSI_RTI_MergeWeightL2,SSI_RTI_MergeWeightL1+SSI_RTI_MergeWeightL2+SSI_RTI_MergeWeightL3*(SSI_RTI_Ramp1ThruLanes-2))),V4*SSI_RTI_CrossThruLanes+W4*SSI_RTI_Ramp1ThruLanes+X4*IF(SSI_RTI_CrossThruLanes=1,SSI_RTI_NM_MergeWeightL1,IF(SSI_RTI_CrossThruLanes=2,SSI_RTI_NM_MergeWeightL1+SSI_RTI_NM_MergeWeightL2,SSI_RTI_NM_MergeWeightL1+SSI_RTI_NM_MergeWeightL2+SSI_RTI_NM_MergeWeightL3*(SSI_RTI_CrossThruLanes-2)))+Y4*IF(SSI_RTI_Ramp1ThruLanes=1,SSI_RTI_NM_MergeWeightL1,IF(SSI_RTI_Ramp1ThruLanes=2,SSI_RTI_NM_MergeWeightL1+SSI_RTI_NM_MergeWeightL2,SSI_RTI_NM_MergeWeightL1+SSI_RTI_NM_MergeWeightL2+SSI_RTI_NM_MergeWeightL3*(SSI_RTI_Ramp1ThruLanes-2))))) -> 1 | AB4: =IF(B4="Diverging","",SSI_RTI_VehSpeed_CrossThru) -> 0 | AC4: =IF(B4="Diverging",1,1-((60-AB4)/60*0.1/0.15)) -> 0.3333333333 | AG4: =1+AE4+AF4 -> 1 | AI4: =PRODUCT(Z4,T4,AC4,AG4) -> 0.1683333333 | AK4: =L4*R4*AI4 -> 0 | AN4: =IF(ISNUMBER(SEARCH(AN$3,$D4)),1,"") ->  | AO4: =IF(ISNUMBER(SEARCH(AO$3,$D4)),1,"") ->  | AX4: 1 | BE4: =IF(ISNUMBER(SEARCH(BE$3,$G4)),1,"") ->  | BF4: =IF(ISNUMBER(SEARCH(BF$3,$G4)),1,"") ->  | BH4: 1 | BL4: 1 | BW4: =A4 -> 1 | BX4: Crossing - LT | BY4: 1 | BZ4: 0 | CA4: 1 | CB4: 0 | CD4: 1 | CE4: 0 | CF4: 0 | CG4: 0 | CI4: 1 | CJ4: 0 | CK4: 1 | CL4: 0 | CN4: 1 | CO4: 0 | CP4: 0 | CQ4: 0
A5: 2 | B5: Crossing - LT | C5: NBL | D5: RampL1 | E5: Signal near | F5: EBT,SBL | G5: CrossT1,RampL2 | H5: Cross thru | J5: =SUMPRODUCT($AN5:$BC5,$AN$28:$BC$28) -> 0 | K5: =SUMPRODUCT($BE5:$BT5,$BE$28:$BT$28) -> 0 | L5: =PRODUCT(J5:K5) -> 0 | N5: 15 | O5: 0 | P5: 230 | Q5: =IF(B5="Nonmotorized","",SQRT(N5^2+O5^2-2*N5*O5*COS(RADIANS(P5)))/2) -> 7.5 | R5: 0.0004845430153 | T5: 0.505 | V5: FALSE | W5: FALSE | X5: FALSE | Y5: FALSE | Z5: 1 | AB5: 0 | AC5: 0.3333333333 | AG5: =1+AE5+AF5 -> 1 | AI5: 0.1683333333 | AK5: =L5*R5*AI5 -> 0 | AN5: =IF(ISNUMBER(SEARCH(AN$3,$D5)),1,"") ->  | AU5: 1 | BE5: =IF(ISNUMBER(SEARCH(BE$3,$G5)),1,"") -> 1 | BO5: 1 | BW5: =A5 -> 2 | BX5: Crossing - LT | BY5: 1 | BZ5: 0 | CA5: 1 | CB5: 0 | CD5: 1 | CE5: 0 | CF5: 0 | CG5: 0 | CI5: 1 | CJ5: 0 | CK5: 1 | CL5: 0 | CN5: 1 | CO5: 0 | CP5: 0 | CQ5: 0
A6: 3 | B6: Merging | C6: SBR | D6: RampR2 | E6: Ramp thru | F6: WBT,NBL | G6: CrossT2,RampL1 | H6: Cross thru | J6: 0 | K6: 0 | L6: 0 | N6: 0 | O6: 0 | P6: 45 | Q6: 0 | R6: 0 | T6: =SSI_RTI_PermFactor -> 1 | V6: FALSE | W6: FALSE | X6: FALSE | Y6: FALSE | Z6: 1 | AB6: 0 | AC6: 0.3333333333 | AG6: 1 | AI6: 0.3333333333 | AK6: 0 | AY6: 1 | BH6: 1 | BL6: 1 | BW6: 3 | BX6: Merging | BY6: 0 | BZ6: 0 | CA6: 1 | CB6: 0 | CD6: 0 | CE6: 0 | CF6: 1 | CG6: 0 | CI6: 0 | CJ6: 0 | CK6: 1 | CL6: 0 | CN6: 0 | CO6: 0 | CP6: 1 | CQ6: 0
A7: 4 | B7: Merging | C7: SBL | D7: RampL2 | E7: Signal far | F7: EBT,EBL | G7: CrossT1,CrossL1 | H7: Cross thru | J7: 0 | K7: 0 | L7: 0 | N7: 25 | O7: 0 | P7: 45 | Q7: 12.5 | R7: 0.003363755169 | T7: 1 | V7: FALSE | W7: FALSE | X7: FALSE | Y7: FALSE | Z7: 1 | AB7: 0 | AC7: 0.3333333333 | AG7: 1 | AI7: 0.3333333333 | AK7: 0 | AX7: 1 | BE7: 1 | BF7: 1 | BW7: 4 | BX7: Merging | BY7: 0 | BZ7: 0 | CA7: 1 | CB7: 0 | CD7: 0 | CE7: 0 | CF7: 1 | CG7: 0 | CI7: 0 | CJ7: 0 | CK7: 1 | CL7: 0 | CN7: 0 | CO7: 0 | CP7: 1 | CQ7: 0
A8: 5 | B8: Merging | C8: NBL | D8: RampL1 | E8: Signal far | F8: WBT,WBL | G8: CrossT2,CrossL2 | H8: Cross thru | J8: 0 | K8: 0 | L8: 0 | N8: 25 | O8: 0 | P8: 45 | Q8: 12.5 | R8: 0.003363755169 | T8: 1 | V8: FALSE | W8: FALSE | X8: FALSE | Y8: FALSE | Z8: 1 | AB8: 0 | AC8: 0.3333333333 | AG8: 1 | AI8: 0.3333333333 | AK8: 0 | AU8: 1 | BH8: 1 | BI8: 1 | BW8: 5 | BX8: Merging | BY8: 0 | BZ8: 0 | CA8: 1 | CB8: 0 | CD8: 0 | CE8: 0 | CF8: 1 | CG8: 0 | CI8: 0 | CJ8: 0 | CK8: 1 | CL8: 0 | CN8: 0 | CO8: 0 | CP8: 1 | CQ8: 0
A9: 6 | B9: Merging | C9: NBR | D9: RampR1 | E9: Ramp thru | F9: EBT,SBL | G9: CrossT1,RampL2 | H9: Cross thru | J9: 0 | K9: 0 | L9: 0 | N9: 0 | O9: 0 | P9: 45 | Q9: 0 | R9: 0 | T9: 1 | V9: FALSE | W9: FALSE | X9: FALSE | Y9: FALSE | Z9: 1 | AB9: 0 | AC9: 0.3333333333 | AG9: 1 | AI9: 0.3333333333 | AK9: 0 | AV9: 1 | BE9: 1 | BO9: 1 | BW9: 6 | BX9: Merging | BY9: 0 | BZ9: 0 | CA9: 1 | CB9: 0 | CD9: 0 | CE9: 0 | CF9: 1 | CG9: 0 | CI9: 0 | CJ9: 0 | CK9: 1 | CL9: 0 | CN9: 0 | CO9: 0 | CP9: 1 | CQ9: 0
A10: 7 | B10: Diverging | C10: EBT,EBL | D10: CrossT1, CrossL1 | E10: Cross thru | F10: EBR | G10: CrossR1 | H10: Cross right | J10: 0 | K10: 0 | L10: 0 | N10: 0 | O10: 15 | P10: 10 | Q10: 7.5 | R10: 0.0004845430153 | T10: 1 | V10: FALSE | W10: FALSE | X10: FALSE | Y10: FALSE | Z10: 1 | AC10: 1 | AG10: 1 | AI10: 1 | AK10: 0 | AN10: 1 | AO10: 1 | BG10: 1 | BW10: 7 | BX10: Diverging | BY10: 0 | BZ10: 0 | CA10: 0 | CB10: 0 | CD10: 0 | CE10: 0 | CF10: 0 | CG10: 0 | CI10: 0 | CJ10: 0 | CK10: 0 | CL10: 0 | CN10: 0 | CO10: 0 | CP10: 0 | CQ10: 0
A11: 8 | B11: Diverging | C11: SBR | D11: RampR2 | E11: Ramp right | F11: SBL | G11: RampL2 | H11: Ramp left | J11: 0 | K11: 0 | L11: 0 | N11: 15 | O11: 20 | P11: 10 | Q11: 2.920417273 | R11: 1.352365846e-05 | T11: 1 | V11: FALSE | W11: FALSE | X11: FALSE | Y11: FALSE | Z11: 1 | AC11: 1 | AG11: 1 | AI11: 1 | AK11: 0 | AY11: 1 | BO11: 1 | BW11: 8 | BX11: Diverging | BY11: 0 | BZ11: 0 | CA11: 0 | CB11: 0 | CD11: 0 | CE11: 0 | CF11: 0 | CG11: 0 | CI11: 0 | CJ11: 0 | CK11: 0 | CL11: 0 | CN11: 0 | CO11: 0 | CP11: 0 | CQ11: 0
A12: 9 | B12: Diverging | C12: WBL | D12: CrossL2 | E12: Cross right | F12: WBT,NBL | G12: CrossT2,RampL1 | H12: Cross thru | J12: 0 | K12: 0 | L12: 0 | N12: 15 | O12: 0 | P12: 10 | Q12: 7.5 | R12: 0.0004845430153 | T12: 1 | V12: FALSE | W12: FALSE | X12: FALSE | Y12: FALSE | Z12: 1 | AC12: 1 | AG12: 1 | AI12: 1 | AK12: 0 | AR12: 1 | BH12: 1 | BL12: 1 | BW12: 9 | BX12: Diverging | BY12: 0 | BZ12: 0 | CA12: 0 | CB12: 0 | CD12: 0 | CE12: 0 | CF12: 0 | CG12: 0 | CI12: 0 | CJ12: 0 | CK12: 0 | CL12: 0 | CN12: 0 | CO12: 0 | CP12: 0 | CQ12: 0
A13: 10 | B13: Diverging | C13: EBL | D13: CrossL1 | E13: Cross right | F13: EBT,SBL | G13: CrossT1,RampL2 | H13: Cross thru | J13: 0 | K13: 0 | L13: 0 | N13: 15 | O13: 0 | P13: 10 | Q13: 7.5 | R13: 0.0004845430153 | T13: 1 | V13: FALSE | W13: FALSE | X13: FALSE | Y13: FALSE | Z13: 1 | AC13: 1 | AG13: 1 | AI13: 1 | AK13: 0 | AO13: 1 | BE13: 1 | BO13: 1 | BW13: 10 | BX13: Diverging | BY13: 0 | BZ13: 0 | CA13: 0 | CB13: 0 | CD13: 0 | CE13: 0 | CF13: 0 | CG13: 0 | CI13: 0 | CJ13: 0 | CK13: 0 | CL13: 0 | CN13: 0 | CO13: 0 | CP13: 0 | CQ13: 0
A14: 11 | B14: Diverging | C14: NBR | D14: RampR1 | E14: Ramp right | F14: NBL | G14: RampL1 | H14: Ramp left | J14: 0 | K14: 0 | L14: 0 | N14: 15 | O14: 20 | P14: 10 | Q14: 2.920417273 | R14: 1.352365846e-05 | T14: 1 | V14: FALSE | W14: FALSE | X14: FALSE | Y14: FALSE | Z14: 1 | AC14: 1 | AG14: 1 | AI14: 1 | AK14: 0 | AV14: 1 | BL14: 1 | BW14: 11 | BX14: Diverging | BY14: 0 | BZ14: 0 | CA14: 0 | CB14: 0 | CD14: 0 | CE14: 0 | CF14: 0 | CG14: 0 | CI14: 0 | CJ14: 0 | CK14: 0 | CL14: 0 | CN14: 0 | CO14: 0 | CP14: 0 | CQ14: 0
A15: 12 | B15: Diverging | C15: WBT,WBL | D15: CrossT2,CrossL2 | E15: Cross thru | F15: WBR | G15: CrossR2 | H15: Cross right | J15: 0 | K15: 0 | L15: 0 | N15: 0 | O15: 15 | P15: 10 | Q15: 7.5 | R15: 0.0004845430153 | T15: 1 | V15: FALSE | W15: FALSE | X15: FALSE | Y15: FALSE | Z15: 1 | AC15: 1 | AG15: 1 | AI15: 1 | AK15: 0 | AQ15: 1 | AR15: 1 | BJ15: 1 | BW15: 12 | BX15: Diverging | BY15: 0 | BZ15: 0 | CA15: 0 | CB15: 0 | CD15: 0 | CE15: 0 | CF15: 0 | CG15: 0 | CI15: 0 | CJ15: 0 | CK15: 0 | CL15: 0 | CN15: 0 | CO15: 0 | CP15: 0 | CQ15: 0
A16: 13 | B16: Nonmotorized | D16: RampNM2, CrossNM1 | E16: Nonmotorized | F16: SBR | G16: RampR2 | H16: Ramp thru | J16: 350 | K16: 0 | L16: 0 | N16: 0 | O16: 0 | R16: 0.0209755324 | T16: 1 | V16: FALSE | W16: FALSE | X16: FALSE | Y16: FALSE | Z16: 1 | AB16: =IF(B16="Diverging","",SSI_RTI_VehSpeed_RampThru) -> 0 | AC16: 0.3333333333 | AG16: 1 | AI16: 0.3333333333 | AK16: 0 | AZ16: 1 | BC16: 1 | BP16: 1 | BW16: 13 | BX16: Nonmotorized | BY16: 0 | BZ16: 1 | CA16: 0 | CB16: 0 | CD16: 0 | CE16: 1 | CF16: 0 | CG16: 0 | CI16: 0 | CJ16: 1 | CK16: 0 | CL16: 0 | CN16: 0 | CO16: 1 | CP16: 0 | CQ16: 0
A17: 14 | B17: Nonmotorized | D17: RampNM2 | E17: Nonmotorized | F17: SBL | G17: RampL2 | H17: Ramp left | J17: 175 | K17: 0 | L17: 0 | N17: 0 | O17: 20 | R17: 0.2027491292 | T17: =SSI_RTI_ProtFactor -> 0.505 | V17: FALSE | W17: FALSE | X17: FALSE | Y17: FALSE | Z17: 1 | AB17: =IF(B17="Diverging","",SSI_RTI_VehSpeed_RampThru) -> 0 | AC17: 0.3333333333 | AG17: 1 | AI17: 0.1683333333 | AK17: 0 | BC17: 1 | BO17: 1 | BW17: 14 | BX17: Nonmotorized | BY17: 0 | BZ17: 1 | CA17: 0 | CB17: 0 | CD17: 0 | CE17: 1 | CF17: 0 | CG17: 0 | CI17: 0 | CJ17: 1 | CK17: 0 | CL17: 0 | CN17: 0 | CO17: 1 | CP17: 0 | CQ17: 0
A18: 15 | B18: Nonmotorized | D18: CrossNM1 | E18: Nonmotorized | F18: WBT,NBL | G18: CrossT2,RampL1 | H18: Cross thru | J18: 175 | K18: 0 | L18: 0 | N18: 0 | O18: 0 | R18: 0.0209755324 | T18: 0.505 | V18: FALSE | W18: FALSE | X18: FALSE | Y18: FALSE | Z18: 1 | AB18: 0 | AC18: 0.3333333333 | AG18: 1 | AI18: 0.1683333333 | AK18: 0 | AZ18: 1 | BH18: 1 | BL18: 1 | BW18: 15 | BX18: Nonmotorized | BY18: 2 | BZ18: 0 | CA18: 0 | CB18: 0 | CD18: 1 | CE18: 0 | CF18: 0 | CG18: 0 | CI18: 2 | CJ18: 0 | CK18: 0 | CL18: 0 | CN18: 1 | CO18: 0 | CP18: 0 | CQ18: 0
A19: 16 | B19: Nonmotorized | D19: CrossNM1 | E19: Nonmotorized | F19: EBT,EBL | G19: CrossT1, CrossL1 | H19: Cross thru | J19: 175 | K19: 0 | L19: 0 | N19: 0 | O19: 0 | R19: 0.0209755324 | T19: 0.505 | V19: FALSE | W19: FALSE | X19: FALSE | Y19: FALSE | Z19: 1 | AB19: 0 | AC19: 0.3333333333 | AG19: 1 | AI19: 0.1683333333 | AK19: 0 | AZ19: 1 | BE19: 1 | BF19: 1 | BW19: 16 | BX19: Nonmotorized | BY19: 2 | BZ19: 0 | CA19: 0 | CB19: 0 | CD19: 1 | CE19: 0 | CF19: 0 | CG19: 0 | CI19: 2 | CJ19: 0 | CK19: 0 | CL19: 0 | CN19: 1 | CO19: 0 | CP19: 0 | CQ19: 0
A20: 17 | B20: Nonmotorized | D20: RampNM1, CrossNM1 | E20: Nonmotorized | F20: EBR | G20: CrossR1 | H20: Cross right | J20: 350 | K20: 0 | L20: 0 | N20: 0 | O20: 15 | R20: 0.1205004039 | T20: =SSI_RTI_PermFactor -> 1 | V20: FALSE | W20: FALSE | X20: FALSE | Y20: FALSE | Z20: 1 | AB20: 0 | AC20: 0.3333333333 | AG20: 1 | AI20: 0.3333333333 | AK20: 0 | AZ20: 1 | BB20: 1 | BG20: 1 | BW20: 17 | BX20: Nonmotorized | BY20: 0 | BZ20: 1 | CA20: 1 | CB20: 0 | CD20: 0 | CE20: 1 | CF20: 1 | CG20: 0 | CI20: 0 | CJ20: 1 | CK20: 1 | CL20: 0 | CN20: 0 | CO20: 1 | CP20: 1 | CQ20: 0
A21: 18 | B21: Nonmotorized | D21: RampNM2 | E21: Nonmotorized | F21: WBL | G21: CrossL2 | H21: Cross right | J21: 175 | K21: 0 | L21: 0 | N21: 0 | O21: 15 | R21: 0.1205004039 | T21: 1 | V21: FALSE | W21: FALSE | X21: FALSE | Y21: FALSE | Z21: 1 | AB21: 0 | AC21: 0.3333333333 | AG21: 1 | AI21: 0.3333333333 | AK21: 0 | BC21: 1 | BI21: 1 | BS21: =IF(ISNUMBER(SEARCH(BS$3,$G21)),1,"") ->  | BT21: =IF(ISNUMBER(SEARCH(BT$3,$G21)),1,"") ->  | BW21: 18 | BX21: Nonmotorized | BY21: 0 | BZ21: 1 | CA21: 1 | CB21: 0 | CD21: 0 | CE21: 1 | CF21: 1 | CG21: 0 | CI21: 0 | CJ21: 1 | CK21: 1 | CL21: 0 | CN21: 0 | CO21: 1 | CP21: 1 | CQ21: 0
A22: 19 | B22: Nonmotorized | D22: RampNM1, CrossNM2 | E22: Nonmotorized | F22: NBR | G22: RampR1 | H22: Ramp thru | J22: 350 | K22: 0 | L22: 0 | N22: 0 | O22: 0 | R22: 0.0209755324 | T22: 1 | V22: FALSE | W22: FALSE | X22: FALSE | Y22: FALSE | Z22: 1 | AB22: =IF(B22="Diverging","",SSI_RTI_VehSpeed_RampThru) -> 0 | AC22: 0.3333333333 | AG22: 1 | AI22: 0.3333333333 | AK22: 0 | BA22: 1 | BB22: 1 | BE22: =IF(ISNUMBER(SEARCH(BE$3,$G22)),1,"") ->  | BM22: 1 | BW22: 19 | BX22: Nonmotorized | BY22: 0 | BZ22: 1 | CA22: 0 | CB22: 0 | CD22: 0 | CE22: 1 | CF22: 0 | CG22: 0 | CI22: 0 | CJ22: 1 | CK22: 0 | CL22: 0 | CN22: 0 | CO22: 1 | CP22: 0 | CQ22: 0
A23: 20 | B23: Nonmotorized | D23: RampNM1 | E23: Nonmotorized | F23: NBL | G23: RampL1 | H23: Cross thru | J23: 175 | K23: 0 | L23: 0 | N23: 0 | O23: 0 | R23: 0.0209755324 | T23: 0.505 | V23: FALSE | W23: FALSE | X23: FALSE | Y23: FALSE | Z23: 1 | AB23: =IF(B23="Diverging","",SSI_RTI_VehSpeed_RampThru) -> 0 | AC23: 0.3333333333 | AG23: 1 | AI23: 0.1683333333 | AK23: 0 | AZ23: =IF(ISNUMBER(SEARCH(AZ$3,$D23)),1,"") ->  | BA23: =IF(ISNUMBER(SEARCH(BA$3,$D23)),1,"") ->  | BB23: =IF(ISNUMBER(SEARCH(BB$3,$D23)),1,"") -> 1 | BC23: =IF(ISNUMBER(SEARCH(BC$3,$D23)),1,"") ->  | BL23: 1 | BW23: 20 | BX23: Nonmotorized | BY23: 0 | BZ23: 1 | CA23: 0 | CB23: 0 | CD23: 0 | CE23: 1 | CF23: 0 | CG23: 0 | CI23: 0 | CJ23: 1 | CK23: 0 | CL23: 0 | CN23: 0 | CO23: 1 | CP23: 0 | CQ23: 0
A24: 21 | B24: Nonmotorized | D24: CrossNM2 | E24: Nonmotorized | F24: EBT,SBL | G24: CrossT1,RampL2 | H24: Cross thru | J24: 175 | K24: 0 | L24: 0 | N24: 0 | O24: 0 | R24: 0.0209755324 | T24: 0.505 | V24: FALSE | W24: FALSE | X24: FALSE | Y24: FALSE | Z24: 1 | AB24: 0 | AC24: 0.3333333333 | AG24: 1 | AI24: 0.1683333333 | AK24: 0 | AN24: =IF(ISNUMBER(SEARCH(AN$3,$D24)),1,"") ->  | BA24: 1 | BE24: 1 | BO24: 1 | BW24: 21 | BX24: Nonmotorized | BY24: 2 | BZ24: 0 | CA24: 0 | CB24: 0 | CD24: 1 | CE24: 0 | CF24: 0 | CG24: 0 | CI24: 2 | CJ24: 0 | CK24: 0 | CL24: 0 | CN24: 1 | CO24: 0 | CP24: 0 | CQ24: 0
A25: 22 | B25: Nonmotorized | D25: CrossNM2 | E25: Nonmotorized | F25: WBT,WBL | G25: CrossT2,CrossL2 | H25: Cross right | J25: 175 | K25: 0 | L25: 0 | N25: 0 | O25: 15 | R25: 0.1205004039 | T25: 0.505 | V25: FALSE | W25: FALSE | X25: FALSE | Y25: FALSE | Z25: 1 | AB25: 0 | AC25: 0.3333333333 | AG25: 1 | AI25: 0.1683333333 | AK25: =L25*R25*AI25 -> 0 | BA25: 1 | BH25: 1 | BI25: 1 | BW25: 22 | BX25: Nonmotorized | BY25: 2 | BZ25: 0 | CA25: 0 | CB25: 0 | CD25: 1 | CE25: 0 | CF25: 0 | CG25: 0 | CI25: 2 | CJ25: 0 | CK25: 0 | CL25: 0 | CN25: 1 | CO25: 0 | CP25: 0 | CQ25: 0
A26: 23 | B26: Nonmotorized | D26: RampNM2, CrossNM2 | E26: Nonmotorized | F26: WBR | G26: CrossR2 | H26: Signal near | J26: 350 | K26: 0 | L26: 0 | N26: 0 | O26: 15 | R26: 0.1205004039 | T26: =SSI_RTI_PermFactor -> 1 | V26: FALSE | W26: FALSE | X26: FALSE | Y26: FALSE | Z26: 1 | AB26: 0 | AC26: 0.3333333333 | AG26: 1 | AI26: 0.3333333333 | AK26: =L26*R26*AI26 -> 0 | BA26: 1 | BC26: 1 | BJ26: 1 | BW26: 23 | BX26: Nonmotorized | BY26: 0 | BZ26: 1 | CA26: 1 | CB26: 0 | CD26: 0 | CE26: 1 | CF26: 1 | CG26: 0 | CI26: 0 | CJ26: 1 | CK26: 1 | CL26: 0 | CN26: 0 | CO26: 1 | CP26: 1 | CQ26: 0
A27: 24 | B27: Nonmotorized | D27: RampNM1 | E27: Nonmotorized | F27: EBL | G27: CrossL1 | H27: Ramp thru | J27: 175 | K27: 0 | L27: 0 | N27: 0 | O27: 0 | R27: 0.0209755324 | T27: 1 | V27: FALSE | W27: FALSE | X27: FALSE | Y27: FALSE | Z27: 1 | AB27: 0 | AC27: 0.3333333333 | AG27: 1 | AI27: 0.3333333333 | AK27: 0 | BB27: 1 | BF27: 1 | BW27: 24 | BX27: Nonmotorized | BY27: 0 | BZ27: 1 | CA27: 1 | CB27: 0 | CD27: 0 | CE27: 1 | CF27: 1 | CG27: 0 | CI27: 0 | CJ27: 1 | CK27: 1 | CL27: 0 | CN27: 0 | CO27: 1 | CP27: 1 | CQ27: 0
AM28: O | AN28: ='SSI Inputs RTI'!$D$28 ->  | AO28: ='SSI Inputs RTI'!$D$29 ->  | AP28: ='SSI Inputs RTI'!$D$30 ->  | AQ28: ='SSI Inputs RTI'!$D$32 ->  | AR28: ='SSI Inputs RTI'!$D$33 ->  | AS28: ='SSI Inputs RTI'!$D$34 ->  | AT28: ='SSI Inputs RTI'!$D$36 ->  | AU28: ='SSI Inputs RTI'!$D$37 ->  | AV28: ='SSI Inputs RTI'!$D$38 ->  | AW28: ='SSI Inputs RTI'!$D$40 ->  | AX28: ='SSI Inputs RTI'!$D$41 ->  | AY28: ='SSI Inputs RTI'!$D$42 ->  | AZ28: ='SSI Inputs RTI'!$Q$20 -> 175 | BA28: ='SSI Inputs RTI'!$Q$21 -> 175 | BB28: ='SSI Inputs RTI'!$Q$22 -> 175 | BC28: ='SSI Inputs RTI'!$Q$23 -> 175 | BD28: O | BE28: ='SSI Inputs RTI'!$D$28 ->  | BF28: ='SSI Inputs RTI'!$D$29 ->  | BG28: ='SSI Inputs RTI'!$D$30 ->  | BH28: ='SSI Inputs RTI'!$D$32 ->  | BI28: ='SSI Inputs RTI'!$D$33 ->  | BJ28: ='SSI Inputs RTI'!$D$34 ->  | BK28: ='SSI Inputs RTI'!$D$36 ->  | BL28: ='SSI Inputs RTI'!$D$37 ->  | BM28: ='SSI Inputs RTI'!$D$38 ->  | BN28: ='SSI Inputs RTI'!$D$40 ->  | BO28: ='SSI Inputs RTI'!$D$41 ->  | BP28: ='SSI Inputs RTI'!$D$42 ->  | BQ28: ='SSI Inputs RTI'!$Q$20 -> 175 | BR28: ='SSI Inputs RTI'!$Q$21 -> 175 | BS28: ='SSI Inputs RTI'!$Q$22 -> 175 | BT28: ='SSI Inputs RTI'!$Q$23 -> 175
AM29: D | AN29: ='SSI Inputs RTI'!$E$28 ->  | AO29: ='SSI Inputs RTI'!$E$29 ->  | AP29: ='SSI Inputs RTI'!$E$30 ->  | AQ29: ='SSI Inputs RTI'!$E$32 ->  | AR29: ='SSI Inputs RTI'!$E$33 ->  | AS29: ='SSI Inputs RTI'!$E$34 ->  | AT29: ='SSI Inputs RTI'!$E$36 ->  | AU29: ='SSI Inputs RTI'!$E$37 ->  | AV29: ='SSI Inputs RTI'!$E$38 ->  | AW29: ='SSI Inputs RTI'!$E$40 ->  | AX29: ='SSI Inputs RTI'!$E$41 ->  | AY29: ='SSI Inputs RTI'!$E$42 ->  | AZ29: ='SSI Inputs RTI'!$R$20 -> 175 | BA29: ='SSI Inputs RTI'!$R$21 -> 175 | BB29: ='SSI Inputs RTI'!$R$22 -> 175 | BC29: ='SSI Inputs RTI'!$R$23 -> 175 | BD29: D | BE29: ='SSI Inputs RTI'!$E$28 ->  | BF29: ='SSI Inputs RTI'!$E$29 ->  | BG29: ='SSI Inputs RTI'!$E$30 ->  | BH29: ='SSI Inputs RTI'!$E$32 ->  | BI29: ='SSI Inputs RTI'!$E$33 ->  | BJ29: ='SSI Inputs RTI'!$E$34 ->  | BK29: ='SSI Inputs RTI'!$E$36 ->  | BL29: ='SSI Inputs RTI'!$E$37 ->  | BM29: ='SSI Inputs RTI'!$E$38 ->  | BN29: ='SSI Inputs RTI'!$E$40 ->  | BO29: ='SSI Inputs RTI'!$E$41 ->  | BP29: ='SSI Inputs RTI'!$E$42 ->  | BQ29: ='SSI Inputs RTI'!$R$20 -> 175 | BR29: ='SSI Inputs RTI'!$R$21 -> 175 | BS29: ='SSI Inputs RTI'!$R$22 -> 175 | BT29: ='SSI Inputs RTI'!$R$23 -> 175
J101: Exposure | AK101: Exposure-Severity-Complexity Product
J102: Q1 | K102: Q2 | L102: I
J103: =SUMPRODUCT($AN4:$BC4,$AN$29:$BC$29) -> 0 | K103: =SUMPRODUCT($BE4:$BT4,$BE$29:$BT$29) -> 0 | L103: =PRODUCT(J103:K103) -> 0 | AK103: =L103*R4*AI4 -> 0
J104: 0 | K104: 0 | L104: =PRODUCT(J104:K104) -> 0 | AK104: =L104*R5*AI5 -> 0
J105: 0 | K105: 0 | L105: 0 | AK105: 0
J106: 0 | K106: 0 | L106: 0 | AK106: 0
J107: 0 | K107: 0 | L107: 0 | AK107: 0
J108: 0 | K108: 0 | L108: 0 | AK108: 0
J109: 0 | K109: 0 | L109: 0 | AK109: 0
J110: 0 | K110: 0 | L110: 0 | AK110: 0
J111: 0 | K111: 0 | L111: 0 | AK111: 0
J112: 0 | K112: 0 | L112: 0 | AK112: 0
J113: 0 | K113: 0 | L113: 0 | AK113: 0
J114: 0 | K114: 0 | L114: 0 | AK114: 0
J115: 350 | K115: 0 | L115: 0 | AK115: 0
J116: 175 | K116: 0 | L116: 0 | AK116: 0
J117: 175 | K117: 0 | L117: 0 | AK117: 0
J118: 175 | K118: 0 | L118: 0 | AK118: 0
J119: 350 | K119: 0 | L119: 0 | AK119: 0
J120: 175 | K120: 0 | L120: 0 | AK120: 0
J121: 350 | K121: 0 | L121: 0 | AK121: 0
J122: 175 | K122: 0 | L122: 0 | AK122: 0
J123: 175 | K123: 0 | L123: 0 | AK123: 0
J124: 175 | K124: 0 | L124: 0 | AK124: 0
J125: 350 | K125: 0 | L125: =PRODUCT(J125:K125) -> 0 | AK125: 0
J126: 175 | K126: 0 | L126: 0 | AK126: 0

Sheet DDI (hidden)
T1: Conflicting Traffic Complexity | AE1: Pedestrian Complexity
J2: Exposure | N2: Severity | T2: Traffic Control | V2: Conflicting Lanes | AB2: Conflicting Speed | AE2: Indirect Paths Indicator | AF2: Non-intuitive movements indicator | AG2: Pedestrian Complexity factor | AI2: Total Complexity Multiplier | AK2: Exposure-Severity-Complexity Product | AN2: Included in Mvmt1 | BE2: Included in Mvmt2
A3: # | B3: Conflict Type | C3: Mvmt1 | D3: Mvmt1_gen | E3: Mvmt1_SpeedCat | F3: Mvmt2 | G3: Mvmt2_gen | H3: Mvmt2_SpeedCat | J3: Q1 | K3: Q2 | L3: I | N3: Speed_V1 | O3: Speed_V2 | P3: Angle | Q3: delta_V | R3: P_FSI | V3: CrossC | W3: RampC | X3: CrossM/P | Y3: RampM/P | Z3: Score | AB3: Speed | AC3: Factor | AN3: CrossT1 | AO3: CrossL1 | AP3: CrossR1 | AQ3: CrossT2 | AR3: CrossL2 | AS3: CrossR2 | AT3: RampT1 | AU3: RampL1 | AV3: RampR1 | AW3: RampT2 | AX3: RampL2 | AY3: RampR2 | AZ3: CrossNM1 | BA3: CrossNM2 | BB3: RampNM1 | BC3: RampNM2 | BE3: CrossT1 | BF3: CrossL1 | BG3: CrossR1 | BH3: CrossT2 | BI3: CrossL2 | BJ3: CrossR2 | BK3: RampT1 | BL3: RampL1 | BM3: RampR1 | BN3: RampT2 | BO3: RampL2 | BP3: RampR2 | BQ3: CrossNM1 | BR3: CrossNM2 | BS3: RampNM1 | BT3: RampNM2
A4: 1 | B4: Crossing | C4: EBT,EBL | D4: CrossT1,CrossL1 | E4: Cross thru | F4: WBT,NBL | G4: CrossT2,RampL1 | H4: Signal far | J4: =SUMPRODUCT($AN4:$BC4,$AN$26:$BC$26) -> 0 | K4: =SUMPRODUCT($BE4:$BT4,$BE$26:$BT$26) -> 0 | L4: =PRODUCT(J4:K4) -> 0 | N4: =VLOOKUP(E4,SSI_RTI_Range_VehSpeed,5,FALSE) -> 0 | O4: =VLOOKUP(H4,SSI_RTI_Range_VehSpeed,5,FALSE) -> 25 | P4: =IF(B4="Nonmotorized","",VLOOKUP(B4,SSI_RTI_Range_CollAngles,5,FALSE)) -> 90 | Q4: =IF(B4="Nonmotorized","",SQRT(N4^2+O4^2-2*N4*O4*COS(RADIANS(P4)))/2) -> 12.5 | R4: =IF(B4="Nonmotorized",1/(1+EXP(3.8432-0.1237*O4)),(Q4/SSI_RTI_RegAlpha)^SSI_RTI_RegK+(Q4/SSI_RTI_RegAlpha)^SSI_RTI_RegK-((Q4/SSI_RTI_RegAlpha)^SSI_RTI_RegK)*((Q4/SSI_RTI_RegAlpha)^SSI_RTI_RegK)) -> 0.003363755169 | T4: =SSI_RTI_ProtFactor -> 0.505 | V4: 1 | Z4: =MAX(1,IF(B4<>"Pedestrian",V4*SSI_RTI_CrossThruLanes+W4*SSI_RTI_Ramp1ThruLanes+X4*IF(SSI_RTI_CrossThruLanes=1,SSI_RTI_MergeWeightL1,IF(SSI_RTI_CrossThruLanes=2,SSI_RTI_MergeWeightL1+SSI_RTI_MergeWeightL2,SSI_RTI_MergeWeightL1+SSI_RTI_MergeWeightL2+SSI_RTI_MergeWeightL3*(SSI_RTI_CrossThruLanes-2)))+Y4*IF(SSI_RTI_Ramp1ThruLanes=1,SSI_RTI_MergeWeightL1,IF(SSI_RTI_Ramp1ThruLanes=2,SSI_RTI_MergeWeightL1+SSI_RTI_MergeWeightL2,SSI_RTI_MergeWeightL1+SSI_RTI_MergeWeightL2+SSI_RTI_MergeWeightL3*(SSI_RTI_Ramp1ThruLanes-2))),V4*SSI_RTI_CrossThruLanes+W4*SSI_RTI_Ramp1ThruLanes+X4*IF(SSI_RTI_CrossThruLanes=1,SSI_RTI_NM_MergeWeightL1,IF(SSI_RTI_CrossThruLanes=2,SSI_RTI_NM_MergeWeightL1+SSI_RTI_NM_MergeWeightL2,SSI_RTI_NM_MergeWeightL1+SSI_RTI_NM_MergeWeightL2+SSI_RTI_NM_MergeWeightL3*(SSI_RTI_CrossThruLanes-2)))+Y4*IF(SSI_RTI_Ramp1ThruLanes=1,SSI_RTI_NM_MergeWeightL1,IF(SSI_RTI_Ramp1ThruLanes=2,SSI_RTI_NM_MergeWeightL1+SSI_RTI_NM_MergeWeightL2,SSI_RTI_NM_MergeWeightL1+SSI_RTI_NM_MergeWeightL2+SSI_RTI_NM_MergeWeightL3*(SSI_RTI_Ramp1ThruLanes-2))))) -> 1 | AB4: =IF(B4="Diverging","",SSI_RTI_VehSpeed_CrossThru) -> 0 | AC4: =IF(B4="Diverging",1,1-((60-AB4)/60*0.1/0.15)) -> 0.3333333333 | AG4: =1+AE4+AF4 -> 1 | AI4: =PRODUCT(Z4,T4,AC4,AG4) -> 0.1683333333 | AK4: =L4*R4*AI4 -> 0 | AN4: =IF(ISNUMBER(SEARCH(AN$3,$D4)),1,"") -> 1 | AO4: =IF(ISNUMBER(SEARCH(AO$3,$D4)),1,"") -> 1 | BE4: =IF(ISNUMBER(SEARCH(BE$3,$G4)),1,"") ->  | BF4: =IF(ISNUMBER(SEARCH(BF$3,$G4)),1,"") ->  | BH4: 1 | BL4: 1
A5: 2 | B5: Crossing | C5: WBT,WBL | D5: CrossT2,CrossL2 | E5: Cross thru | F5: EBT,SBL | G5: CrossT1,RampL2 | H5: Signal far | J5: 0 | K5: 0 | L5: =PRODUCT(J5:K5) -> 0 | N5: 0 | O5: 25 | P5: 90 | Q5: =IF(B5="Nonmotorized","",SQRT(N5^2+O5^2-2*N5*O5*COS(RADIANS(P5)))/2) -> 12.5 | R5: 0.003363755169 | T5: 0.505 | V5: 1 | Z5: 1 | AB5: 0 | AC5: 0.3333333333 | AG5: =1+AE5+AF5 -> 1 | AI5: 0.1683333333 | AK5: =L5*R5*AI5 -> 0 | AN5: =IF(ISNUMBER(SEARCH(AN$3,$D5)),1,"") ->  | AQ5: 1 | AR5: 1 | BE5: =IF(ISNUMBER(SEARCH(BE$3,$G5)),1,"") -> 1 | BO5: 1
A6: 3 | B6: Merging | C6: WBT,NBL | D6: CrossT2,RampL1 | E6: Signal far | F6: SBR | G6: RampR2 | H6: Signal near | J6: 0 | K6: 0 | L6: 0 | N6: 25 | O6: 15 | P6: 45 | Q6: 8.939657629 | R6: 0.0009432995959 | T6: 0.505 | X6: 1 | Z6: 1 | AB6: 0 | AC6: 0.3333333333 | AG6: 1 | AI6: 0.1683333333 | AK6: 0 | AQ6: 1 | AU6: 1 | BP6: 1
A7: 4 | B7: Merging | C7: EBR | D7: CrossR1 | E7: Cross right | F7: WBL | G7: CrossL2 | H7: Cross left | J7: 0 | K7: 0 | L7: 0 | N7: 15 | O7: 20 | P7: 45 | Q7: 7.084065416 | R7: 0.0003902292327 | T7: 0.505 | X7: 1 | Z7: 1 | AB7: 0 | AC7: 0.3333333333 | AG7: 1 | AI7: 0.1683333333 | AK7: 0 | AP7: 1 | BI7: 1
A8: 5 | B8: Merging | C8: WBT,WBL | D8: CrossT2,CrossL2 | E8: Cross thru | F8: NBL | G8: RampL1 | H8: Signal near | J8: 0 | K8: 0 | L8: 0 | N8: 0 | O8: 15 | P8: 45 | Q8: 7.5 | R8: 0.0004845430153 | T8: 0.505 | X8: 1 | Z8: 1 | AB8: 0 | AC8: 0.3333333333 | AG8: 1 | AI8: 0.1683333333 | AK8: 0 | AQ8: 1 | AR8: 1 | BL8: 1
A9: 6 | B9: Merging | C9: EBT,SBL | D9: CrossT1,RampL2 | E9: Signal far | F9: NBR | G9: RampR1 | H9: Signal near | J9: 0 | K9: 0 | L9: 0 | N9: 25 | O9: 15 | P9: 45 | Q9: 8.939657629 | R9: 0.0009432995959 | T9: 0.505 | X9: 1 | Z9: 1 | AB9: 0 | AC9: 0.3333333333 | AG9: 1 | AI9: 0.1683333333 | AK9: 0 | AN9: 1 | AX9: 1 | BM9: 1
A10: 7 | B10: Merging | C10: WBR | D10: CrossR2 | E10: Cross right | F10: EBL | G10: CrossL1 | H10: Cross left | J10: 0 | K10: 0 | L10: 0 | N10: 15 | O10: 20 | P10: 45 | Q10: 7.084065416 | R10: 0.0003902292327 | T10: 0.505 | X10: 1 | Z10: 1 | AB10: 0 | AC10: 0.3333333333 | AG10: 1 | AI10: 0.1683333333 | AK10: 0 | AS10: 1 | BF10: 1
A11: 8 | B11: Merging | C11: EBT,EBL | D11: CrossT1,CrossL1 | E11: Cross thru | F11: SBL | G11: RampL1 | H11: Signal near | J11: 0 | K11: 0 | L11: 0 | N11: 0 | O11: 15 | P11: 45 | Q11: 7.5 | R11: 0.0004845430153 | T11: 0.505 | X11: 1 | Z11: 1 | AB11: 0 | AC11: 0.3333333333 | AG11: 1 | AI11: 0.1683333333 | AK11: 0 | AN11: 1 | AO11: 1 | BL11: 1
A12: 9 | B12: Diverging | C12: SBR | D12: RampR2 | E12: Signal near | F12: SBL | G12: RampL1 | H12: Signal near | J12: 0 | K12: 0 | L12: 0 | N12: 15 | O12: 15 | P12: 10 | Q12: 1.307336141 | R12: 6.406138808e-07 | T12: =SSI_RTI_PermFactor -> 1 | Z12: 1 | AC12: 1 | AG12: 1 | AI12: 1 | AK12: 0 | AY12: 1 | BL12: 1
A13: 10 | B13: Diverging | C13: EBT,EBL | D13: CrossT1,CrossL1 | E13: Cross thru | F13: EBR | G13: CrossR1 | H13: Cross right | J13: 0 | K13: 0 | L13: 0 | N13: 0 | O13: 15 | P13: 10 | Q13: 7.5 | R13: 0.0004845430153 | T13: 1 | Z13: 1 | AC13: 1 | AG13: 1 | AI13: 1 | AK13: 0 | AN13: 1 | AO13: 1 | BG13: 1
A14: 11 | B14: Diverging | C14: WBT | D14: CrossT2 | E14: Cross thru | F14: WBL | G14: CrossL2 | H14: Cross left | J14: 0 | K14: 0 | L14: 0 | N14: 0 | O14: 20 | P14: 10 | Q14: 10 | R14: 0.001443139223 | T14: 1 | Z14: 1 | AC14: 1 | AG14: 1 | AI14: 1 | AK14: 0 | AQ14: 1 | BI14: 1
A15: 12 | B15: Diverging | C15: NBR | D15: RampR1 | E15: Signal near | F15: NBL | G15: RampL1 | H15: Signal near | J15: 0 | K15: 0 | L15: 0 | N15: 15 | O15: 15 | P15: 10 | Q15: 1.307336141 | R15: 6.406138808e-07 | T15: 1 | Z15: 1 | AC15: 1 | AG15: 1 | AI15: 1 | AK15: 0 | AV15: 1 | BL15: 1
A16: 13 | B16: Diverging | C16: WBT,WBL | D16: CrossT2,CrossL2 | E16: Cross thru | F16: WBR | G16: CrossR2 | H16: Cross right | J16: 0 | K16: 0 | L16: 0 | N16: 0 | O16: 15 | P16: 10 | Q16: 7.5 | R16: 0.0004845430153 | T16: 1 | Z16: 1 | AC16: 1 | AG16: 1 | AI16: 1 | AK16: 0 | AQ16: 1 | AR16: 1 | BJ16: 1
A17: 14 | B17: Diverging | C17: EBT | D17: CrossT1 | E17: Cross thru | F17: EBL | G17: CrossL1 | H17: Cross left | J17: 0 | K17: 0 | L17: 0 | N17: 0 | O17: 20 | P17: 10 | Q17: 10 | R17: 0.001443139223 | T17: 1 | Z17: 1 | AC17: 1 | AG17: 1 | AI17: 1 | AK17: 0 | AN17: 1 | BF17: 1
A18: 15 | B18: Nonmotorized | D18: CrossNM1 | E18: Nonmotorized | F18: EBT,EBL | G18: CrossT1,CrossL1 | H18: Cross thru | J18: 175 | K18: 0 | L18: 0 | N18: 0 | O18: 0 | R18: 0.0209755324 | T18: =SSI_RTI_ProtFactor -> 0.505 | V18: 1 | Z18: 1 | AB18: 0 | AC18: 0.3333333333 | AE18: 1 | AF18: 1 | AG18: 3 | AI18: 0.505 | AK18: 0 | AZ18: 1 | BE18: 1 | BF18: 1
A19: 16 | B19: Nonmotorized | D19: RampNM2 | E19: Nonmotorized | F19: SBR | G19: RampR2 | H19: Signal near | J19: 175 | K19: 0 | L19: 0 | N19: 0 | O19: 15 | R19: 0.1205004039 | T19: 0.505 | W19: 1 | Z19: 1 | AB19: =IF(B19="Diverging","",SSI_RTI_VehSpeed_SignalNear) -> 15 | AC19: 0.5 | AE19: 1 | AF19: 1 | AG19: 3 | AI19: 0.7575 | AK19: 0 | BC19: 1 | BP19: 1
A20: 17 | B20: Nonmotorized | D20: RampNM1 | E20: Nonmotorized | F20: EBR | G20: CrossR2 | H20: Cross right | J20: 175 | K20: 0 | L20: 0 | N20: 0 | O20: 15 | R20: 0.1205004039 | T20: =SSI_RTI_PermFactor -> 1 | V20: 1 | Z20: 1 | AB20: 0 | AC20: 0.3333333333 | AE20: 1 | AF20: 1 | AG20: 3 | AI20: 1 | AK20: 0 | BB20: 1 | BJ20: 1
A21: 18 | B21: Nonmotorized | D21: CrossNM1 | E21: Nonmotorized | F21: WBT,NBL | G21: CrossT2,RampL1 | H21: Cross thru | J21: 175 | K21: 0 | L21: 0 | N21: 0 | O21: 0 | R21: 0.0209755324 | T21: 0.505 | V21: 1 | Z21: 1 | AB21: 0 | AC21: 0.3333333333 | AE21: 1 | AF21: 1 | AG21: 3 | AI21: 0.505 | AK21: 0 | AZ21: 1 | BH21: 1 | BL21: 1 | BS21: =IF(ISNUMBER(SEARCH(BS$3,$G21)),1,"") ->  | BT21: =IF(ISNUMBER(SEARCH(BT$3,$G21)),1,"") -> 
A22: 19 | B22: Nonmotorized | D22: CrossNM2 | E22: Nonmotorized | F22: WBT,WBL | G22: CrossT2,CrossL2 | H22: Cross thru | J22: 175 | K22: 0 | L22: 0 | N22: 0 | O22: 0 | R22: 0.0209755324 | T22: 0.505 | V22: 1 | Z22: 1 | AB22: 0 | AC22: 0.3333333333 | AE22: 1 | AF22: 1 | AG22: 3 | AI22: 0.505 | AK22: 0 | BA22: 1 | BE22: =IF(ISNUMBER(SEARCH(BE$3,$G22)),1,"") ->  | BH22: 1 | BI22: 1
A23: 20 | B23: Nonmotorized | D23: RampNM1 | E23: Nonmotorized | F23: NBR | G23: RampR1 | H23: Signal near | J23: 175 | K23: 0 | L23: 0 | N23: 0 | O23: 15 | R23: 0.1205004039 | T23: 0.505 | W23: 1 | Z23: 1 | AB23: =IF(B23="Diverging","",SSI_RTI_VehSpeed_SignalNear) -> 15 | AC23: 0.5 | AE23: 1 | AF23: 1 | AG23: 3 | AI23: 0.7575 | AK23: 0 | AZ23: =IF(ISNUMBER(SEARCH(AZ$3,$D23)),1,"") ->  | BA23: =IF(ISNUMBER(SEARCH(BA$3,$D23)),1,"") ->  | BB23: =IF(ISNUMBER(SEARCH(BB$3,$D23)),1,"") -> 1 | BC23: =IF(ISNUMBER(SEARCH(BC$3,$D23)),1,"") ->  | BM23: 1
A24: 21 | B24: Nonmotorized | D24: RampNM2 | E24: Nonmotorized | F24: WBR | G24: CrossR2 | H24: Cross right | J24: 175 | K24: 0 | L24: 0 | N24: 0 | O24: 15 | R24: 0.1205004039 | T24: =SSI_RTI_PermFactor -> 1 | V24: 1 | Z24: 1 | AB24: 0 | AC24: 0.3333333333 | AE24: 1 | AF24: 1 | AG24: 3 | AI24: 1 | AK24: 0 | AN24: =IF(ISNUMBER(SEARCH(AN$3,$D24)),1,"") ->  | BC24: 1 | BJ24: 1
A25: 22 | B25: Nonmotorized | D25: CrossNM2 | E25: Nonmotorized | F25: EBT,SBL | G25: CrossT1,RampL2 | H25: Cross thru | J25: 175 | K25: 0 | L25: 0 | N25: 0 | O25: 0 | R25: 0.0209755324 | T25: 0.505 | V25: 1 | Z25: 1 | AB25: 0 | AC25: 0.3333333333 | AE25: 1 | AF25: 1 | AG25: 3 | AI25: 0.505 | AK25: =L25*R25*AI25 -> 0 | BA25: 1 | BE25: 1 | BO25: 1
AM26: O | AN26: ='SSI Inputs RTI'!$D$28 ->  | AO26: ='SSI Inputs RTI'!$D$29 ->  | AP26: ='SSI Inputs RTI'!$D$30 ->  | AQ26: ='SSI Inputs RTI'!$D$32 ->  | AR26: ='SSI Inputs RTI'!$D$33 ->  | AS26: ='SSI Inputs RTI'!$D$34 ->  | AT26: ='SSI Inputs RTI'!$D$36 ->  | AU26: ='SSI Inputs RTI'!$D$37 ->  | AV26: ='SSI Inputs RTI'!$D$38 ->  | AW26: ='SSI Inputs RTI'!$D$40 ->  | AX26: ='SSI Inputs RTI'!$D$41 ->  | AY26: ='SSI Inputs RTI'!$D$42 ->  | AZ26: ='SSI Inputs RTI'!$Q$20 -> 175 | BA26: ='SSI Inputs RTI'!$Q$21 -> 175 | BB26: ='SSI Inputs RTI'!$Q$22 -> 175 | BC26: ='SSI Inputs RTI'!$Q$23 -> 175 | BD26: O | BE26: ='SSI Inputs RTI'!$D$28 ->  | BF26: ='SSI Inputs RTI'!$D$29 ->  | BG26: ='SSI Inputs RTI'!$D$30 ->  | BH26: ='SSI Inputs RTI'!$D$32 ->  | BI26: ='SSI Inputs RTI'!$D$33 ->  | BJ26: ='SSI Inputs RTI'!$D$34 ->  | BK26: ='SSI Inputs RTI'!$D$36 ->  | BL26: ='SSI Inputs RTI'!$D$37 ->  | BM26: ='SSI Inputs RTI'!$D$38 ->  | BN26: ='SSI Inputs RTI'!$D$40 ->  | BO26: ='SSI Inputs RTI'!$D$41 ->  | BP26: ='SSI Inputs RTI'!$D$42 ->  | BQ26: ='SSI Inputs RTI'!$Q$20 -> 175 | BR26: ='SSI Inputs RTI'!$Q$21 -> 175 | BS26: ='SSI Inputs RTI'!$Q$22 -> 175 | BT26: ='SSI Inputs RTI'!$Q$23 -> 175
AM27: D | AN27: ='SSI Inputs RTI'!$E$28 ->  | AO27: ='SSI Inputs RTI'!$E$29 ->  | AP27: ='SSI Inputs RTI'!$E$30 ->  | AQ27: ='SSI Inputs RTI'!$E$32 ->  | AR27: ='SSI Inputs RTI'!$E$33 ->  | AS27: ='SSI Inputs RTI'!$E$34 ->  | AT27: ='SSI Inputs RTI'!$E$36 ->  | AU27: ='SSI Inputs RTI'!$E$37 ->  | AV27: ='SSI Inputs RTI'!$E$38 ->  | AW27: ='SSI Inputs RTI'!$E$40 ->  | AX27: ='SSI Inputs RTI'!$E$41 ->  | AY27: ='SSI Inputs RTI'!$E$42 ->  | AZ27: ='SSI Inputs RTI'!$R$20 -> 175 | BA27: ='SSI Inputs RTI'!$R$21 -> 175 | BB27: ='SSI Inputs RTI'!$R$22 -> 175 | BC27: ='SSI Inputs RTI'!$R$23 -> 175 | BD27: D | BE27: ='SSI Inputs RTI'!$E$28 ->  | BF27: ='SSI Inputs RTI'!$E$29 ->  | BG27: ='SSI Inputs RTI'!$E$30 ->  | BH27: ='SSI Inputs RTI'!$E$32 ->  | BI27: ='SSI Inputs RTI'!$E$33 ->  | BJ27: ='SSI Inputs RTI'!$E$34 ->  | BK27: ='SSI Inputs RTI'!$E$36 ->  | BL27: ='SSI Inputs RTI'!$E$37 ->  | BM27: ='SSI Inputs RTI'!$E$38 ->  | BN27: ='SSI Inputs RTI'!$E$40 ->  | BO27: ='SSI Inputs RTI'!$E$41 ->  | BP27: ='SSI Inputs RTI'!$E$42 ->  | BQ27: ='SSI Inputs RTI'!$R$20 -> 175 | BR27: ='SSI Inputs RTI'!$R$21 -> 175 | BS27: ='SSI Inputs RTI'!$R$22 -> 175 | BT27: ='SSI Inputs RTI'!$R$23 -> 175
J101: Exposure | AK101: Exposure-Severity-Complexity Product
J102: Q1 | K102: Q2 | L102: I
J103: =SUMPRODUCT($AN4:$BC4,$AN$27:$BC$27) -> 0 | K103: =SUMPRODUCT($BE4:$BT4,$BE$27:$BT$27) -> 0 | L103: =PRODUCT(J103:K103) -> 0 | AK103: =L103*R4*AI4 -> 0
J104: =SUMPRODUCT($AN5:$BC5,$AN$27:$BC$27) -> 0 | K104: =SUMPRODUCT($BE5:$BT5,$BE$27:$BT$27) -> 0 | L104: =PRODUCT(J104:K104) -> 0 | AK104: =L104*R5*AI5 -> 0
J105: 0 | K105: 0 | L105: 0 | AK105: 0
J106: 0 | K106: 0 | L106: 0 | AK106: 0
J107: 0 | K107: 0 | L107: 0 | AK107: 0
J108: 0 | K108: 0 | L108: 0 | AK108: 0
J109: 0 | K109: 0 | L109: 0 | AK109: 0
J110: 0 | K110: 0 | L110: 0 | AK110: 0
J111: 0 | K111: 0 | L111: 0 | AK111: 0
J112: 0 | K112: 0 | L112: 0 | AK112: 0
J113: 0 | K113: 0 | L113: 0 | AK113: 0
J114: 0 | K114: 0 | L114: 0 | AK114: 0
J115: 0 | K115: 0 | L115: 0 | AK115: 0
J116: 0 | K116: 0 | L116: 0 | AK116: 0
J117: 175 | K117: 0 | L117: 0 | AK117: 0
J118: 175 | K118: 0 | L118: 0 | AK118: 0
J119: 175 | K119: 0 | L119: 0 | AK119: 0
J120: 175 | K120: 0 | L120: 0 | AK120: 0
J121: 175 | K121: 0 | L121: 0 | AK121: 0
J122: 175 | K122: 0 | L122: 0 | AK122: 0
J123: 175 | K123: 0 | L123: 0 | AK123: 0
J124: 175 | K124: 0 | L124: 0 | AK124: 0

Sheet 2_Quad_ParcloA (hidden)
T1: Conflicting Traffic Complexity | AE1: Pedestrian Complexity | BW1: *impact of median on complexity factors
J2: Exposure | N2: Severity | T2: Traffic Control | V2: Conflicting Lanes | AB2: Conflicting Speed | AE2: Indirect Paths Indicator | AF2: Non-intuitive movements indicator | AG2: Pedestrian Complexity factor | AI2: Total Complexity Multiplier | AK2: Exposure-Severity-Complexity Product | AN2: Included in Mvmt1 | BE2: Included in Mvmt2 | BY2: Cross-street: No, Ramps: No | CD2: Cross-street: Yes, Ramps: No | CI2: Cross-street: No, Ramps: Yes | CN2: Cross-street: Yes, Ramps: Yes
A3: # | B3: Conflict Type | C3: Mvmt1 | D3: Mvmt1_gen | E3: Mvmt1_SpeedCat | F3: Mvmt2 | G3: Mvmt2_gen | H3: Mvmt2_SpeedCat | J3: Q1 | K3: Q2 | L3: I | N3: Speed_V1 | O3: Speed_V2 | P3: Angle | Q3: delta_V | R3: P_FSI | V3: CrossC | W3: RampC | X3: CrossM/P | Y3: RampM/P | Z3: Score | AB3: Speed | AC3: Factor | AN3: CrossT1 | AO3: CrossL1 | AP3: CrossR1 | AQ3: CrossT2 | AR3: CrossL2 | AS3: CrossR2 | AT3: RampT1 | AU3: RampL1 | AV3: RampR1 | AW3: RampT2 | AX3: RampL2 | AY3: RampR2 | AZ3: CrossNM1 | BA3: CrossNM2 | BB3: RampNM1 | BC3: RampNM2 | BE3: CrossT1 | BF3: CrossL1 | BG3: CrossR1 | BH3: CrossT2 | BI3: CrossL2 | BJ3: CrossR2 | BK3: RampT1 | BL3: RampL1 | BM3: RampR1 | BN3: RampT2 | BO3: RampL2 | BP3: RampR2 | BQ3: CrossNM1 | BR3: CrossNM2 | BS3: RampNM1 | BT3: RampNM2 | BW3: # | BX3: Conflict Type | BY3: MajC | BZ3: MinC | CA3: MajM/P | CB3: MinM/P | CD3: MajC | CE3: MinC | CF3: MajM/P | CG3: MinM/P | CI3: MajC | CJ3: MinC | CK3: MajM/P | CL3: MinM/P | CN3: MajC | CO3: MinC | CP3: MajM/P | CQ3: MinM/P
A4: 1 | B4: Crossing - LT | C4: WBL | D4: CrossL2 | E4: Cross left | F4: SBR | G4: RampR2 | H4: Signal near | J4: =SUMPRODUCT($AN4:$BC4,$AN$36:$BC$36) -> 0 | K4: =SUMPRODUCT($BE4:$BT4,$BE$36:$BT$36) -> 0 | L4: =PRODUCT(J4:K4) -> 0 | N4: =VLOOKUP(E4,SSI_RTI_Range_VehSpeed,5,FALSE) -> 20 | O4: =VLOOKUP(H4,SSI_RTI_Range_VehSpeed,5,FALSE) -> 15 | P4: =IF(B4="Nonmotorized","",VLOOKUP(B4,SSI_RTI_Range_CollAngles,5,FALSE)) -> 230 | Q4: =IF(B4="Nonmotorized","",SQRT(N4^2+O4^2-2*N4*O4*COS(RADIANS(P4)))/2) -> 15.89553841 | R4: =IF(B4="Nonmotorized",1/(1+EXP(3.8432-0.1237*O4)),(Q4/SSI_RTI_RegAlpha)^SSI_RTI_RegK+(Q4/SSI_RTI_RegAlpha)^SSI_RTI_RegK-((Q4/SSI_RTI_RegAlpha)^SSI_RTI_RegK)*((Q4/SSI_RTI_RegAlpha)^SSI_RTI_RegK)) -> 0.00836167361 | T4: =SSI_RTI_ProtFactor -> 0.505 | V4: =IF(AND(SSI_RTI_CrossStMedian="No", SSI_RTI_RampMedian="No"),BY4,IF(AND(SSI_RTI_CrossStMedian="Yes",SSI_RTI_RampMedian="No"),CD4,IF(AND(SSI_RTI_CrossStMedian="No",SSI_RTI_RampMedian="Yes"),CI4,IF(AND(SSI_RTI_CrossStMedian="Yes",SSI_RTI_RampMedian="Yes"),CN4)))) -> FALSE | W4: =IF(AND(SSI_RTI_CrossStMedian="No", SSI_RTI_RampMedian="No"),BZ4,IF(AND(SSI_RTI_CrossStMedian="Yes",SSI_RTI_RampMedian="No"),CE4,IF(AND(SSI_RTI_CrossStMedian="No",SSI_RTI_RampMedian="Yes"),CJ4,IF(AND(SSI_RTI_CrossStMedian="Yes",SSI_RTI_RampMedian="Yes"),CO4)))) -> FALSE | X4: =IF(AND(SSI_RTI_CrossStMedian="No", SSI_RTI_RampMedian="No"),CA4,IF(AND(SSI_RTI_CrossStMedian="Yes",SSI_RTI_RampMedian="No"),CF4,IF(AND(SSI_RTI_CrossStMedian="No",SSI_RTI_RampMedian="Yes"),CK4,IF(AND(SSI_RTI_CrossStMedian="Yes",SSI_RTI_RampMedian="Yes"),CP4)))) -> FALSE | Y4: =IF(AND(SSI_RTI_CrossStMedian="No", SSI_RTI_RampMedian="No"),CB4,IF(AND(SSI_RTI_CrossStMedian="Yes",SSI_RTI_RampMedian="No"),CG4,IF(AND(SSI_RTI_CrossStMedian="No",SSI_RTI_RampMedian="Yes"),CL4,IF(AND(SSI_RTI_CrossStMedian="Yes",SSI_RTI_RampMedian="Yes"),CQ4)))) -> FALSE | Z4: =MAX(1,IF(B4<>"Pedestrian",V4*SSI_RTI_CrossThruLanes+W4*SSI_RTI_Ramp1ThruLanes+X4*IF(SSI_RTI_CrossThruLanes=1,SSI_RTI_MergeWeightL1,IF(SSI_RTI_CrossThruLanes=2,SSI_RTI_MergeWeightL1+SSI_RTI_MergeWeightL2,SSI_RTI_MergeWeightL1+SSI_RTI_MergeWeightL2+SSI_RTI_MergeWeightL3*(SSI_RTI_CrossThruLanes-2)))+Y4*IF(SSI_RTI_Ramp1ThruLanes=1,SSI_RTI_MergeWeightL1,IF(SSI_RTI_Ramp1ThruLanes=2,SSI_RTI_MergeWeightL1+SSI_RTI_MergeWeightL2,SSI_RTI_MergeWeightL1+SSI_RTI_MergeWeightL2+SSI_RTI_MergeWeightL3*(SSI_RTI_Ramp1ThruLanes-2))),V4*SSI_RTI_CrossThruLanes+W4*SSI_RTI_Ramp1ThruLanes+X4*IF(SSI_RTI_CrossThruLanes=1,SSI_RTI_NM_MergeWeightL1,IF(SSI_RTI_CrossThruLanes=2,SSI_RTI_NM_MergeWeightL1+SSI_RTI_NM_MergeWeightL2,SSI_RTI_NM_MergeWeightL1+SSI_RTI_NM_MergeWeightL2+SSI_RTI_NM_MergeWeightL3*(SSI_RTI_CrossThruLanes-2)))+Y4*IF(SSI_RTI_Ramp1ThruLanes=1,SSI_RTI_NM_MergeWeightL1,IF(SSI_RTI_Ramp1ThruLanes=2,SSI_RTI_NM_MergeWeightL1+SSI_RTI_NM_MergeWeightL2,SSI_RTI_NM_MergeWeightL1+SSI_RTI_NM_MergeWeightL2+SSI_RTI_NM_MergeWeightL3*(SSI_RTI_Ramp1ThruLanes-2))))) -> 1 | AB4: =IF(B4="Diverging","",SSI_RTI_VehSpeed_CrossThru) -> 0 | AC4: =IF(B4="Diverging",1,1-((60-AB4)/60*0.1/0.15)) -> 0.3333333333 | AG4: =1+AE4+AF4 -> 1 | AI4: =PRODUCT(Z4,T4,AC4,AG4) -> 0.1683333333 | AK4: =L4*R4*AI4 -> 0 | AN4: =IF(ISNUMBER(SEARCH(AN$3,$D4)),1,"") ->  | AO4: =IF(ISNUMBER(SEARCH(AO$3,$D4)),1,"") ->  | AR4: 1 | BE4: =IF(ISNUMBER(SEARCH(BE$3,$G4)),1,"") ->  | BF4: =IF(ISNUMBER(SEARCH(BF$3,$G4)),1,"") ->  | BP4: 1 | BW4: 1 | BX4: Crossing - LT | BY4: 1 | CA4: 1 | CD4: 1 | CI4: 1 | CK4: 1 | CN4: 1
A5: 2 | B5: Crossing - LT | C5: WBL | D5: CrossL2 | E5: Cross left | F5: EBT,EBL | G5: CrossT1,CrossL1 | H5: Cross thru | J5: =SUMPRODUCT($AN5:$BC5,$AN$36:$BC$36) -> 0 | K5: =SUMPRODUCT($BE5:$BT5,$BE$36:$BT$36) -> 0 | L5: =PRODUCT(J5:K5) -> 0 | N5: 20 | O5: 0 | P5: 230 | Q5: =IF(B5="Nonmotorized","",SQRT(N5^2+O5^2-2*N5*O5*COS(RADIANS(P5)))/2) -> 10 | R5: 0.001443139223 | T5: =IF(SSI_RTI_CrossLTPhase="Protected/permitted",SSI_RTI_ProtPermFactor,IF(SSI_RTI_CrossLTPhase="Protected",SSI_RTI_ProtFactor,SSI_RTI_PermFactor)) -> 0.505 | V5: FALSE | W5: FALSE | X5: FALSE | Y5: FALSE | Z5: 1 | AB5: 0 | AC5: 0.3333333333 | AG5: =1+AE5+AF5 -> 1 | AI5: 0.1683333333 | AK5: =L5*R5*AI5 -> 0 | AN5: =IF(ISNUMBER(SEARCH(AN$3,$D5)),1,"") ->  | AR5: 1 | BE5: =IF(ISNUMBER(SEARCH(BE$3,$G5)),1,"") -> 1 | BF5: 1 | BW5: 2 | BX5: Crossing - LT | BY5: 1 | CA5: 1 | CD5: 1 | CF5: 1 | CI5: 1 | CN5: 1
A6: 3 | B6: Crossing - LT | C6: SBR | D6: RampR2 | E6: Signal near | F6: EBT,EBL | G6: CrossT1,CrossL1 | H6: Cross thru | J6: 0 | K6: 0 | L6: 0 | N6: 15 | O6: 0 | P6: 230 | Q6: 7.5 | R6: 0.0004845430153 | T6: =SSI_RTI_ProtFactor -> 0.505 | V6: FALSE | W6: FALSE | X6: FALSE | Y6: FALSE | Z6: 1 | AB6: 0 | AC6: 0.3333333333 | AG6: 1 | AI6: 0.1683333333 | AK6: 0 | AY6: 1 | BE6: 1 | BF6: 1 | BW6: 3 | BX6: Crossing - LT | BY6: 1 | CA6: 1 | CD6: 1 | CI6: 1 | CK6: 1 | CN6: 1
A7: 4 | B7: Crossing - LT | C7: EBL | D7: CrossL1 | E7: Cross left | F7: NBR | G7: RampR1 | H7: Signal near | J7: 0 | K7: 0 | L7: 0 | N7: 20 | O7: 15 | P7: 230 | Q7: 15.89553841 | R7: 0.00836167361 | T7: 0.505 | V7: FALSE | W7: FALSE | X7: FALSE | Y7: FALSE | Z7: 1 | AB7: 0 | AC7: 0.3333333333 | AG7: 1 | AI7: 0.1683333333 | AK7: 0 | AO7: 1 | BM7: 1 | BW7: 4 | BX7: Crossing - LT | BY7: 1 | CA7: 1 | CD7: 1 | CI7: 1 | CK7: 1 | CN7: 1
A8: 5 | B8: Crossing - LT | C8: EBL | D8: CrossL1 | E8: Cross left | F8: WBT,WBL | G8: CrossT2,CrossL2 | H8: Cross thru | J8: 0 | K8: 0 | L8: 0 | N8: 20 | O8: 0 | P8: 230 | Q8: 10 | R8: 0.001443139223 | T8: =IF(SSI_RTI_CrossLTPhase="Protected/permitted",SSI_RTI_ProtPermFactor,IF(SSI_RTI_CrossLTPhase="Protected",SSI_RTI_ProtFactor,SSI_RTI_PermFactor)) -> 0.505 | V8: FALSE | W8: FALSE | X8: FALSE | Y8: FALSE | Z8: 1 | AB8: 0 | AC8: 0.3333333333 | AG8: 1 | AI8: 0.1683333333 | AK8: 0 | AO8: 1 | BH8: 1 | BI8: 1 | BW8: 5 | BX8: Crossing - LT | BY8: 1 | CA8: 1 | CD8: 1 | CF8: 1 | CI8: 1 | CN8: 1
A9: 6 | B9: Crossing - LT | C9: NBR | D9: RampR1 | E9: Signal near | F9: WBT,WBL | G9: CrossT2,CrossL2 | H9: Cross thru | J9: 0 | K9: 0 | L9: 0 | N9: 15 | O9: 0 | P9: 230 | Q9: 7.5 | R9: 0.0004845430153 | T9: =SSI_RTI_ProtFactor -> 0.505 | V9: FALSE | W9: FALSE | X9: FALSE | Y9: FALSE | Z9: 1 | AB9: 0 | AC9: 0.3333333333 | AG9: 1 | AI9: 0.1683333333 | AK9: 0 | AV9: 1 | BH9: 1 | BI9: 1 | BW9: 6 | BX9: Crossing - LT | BY9: 1 | CA9: 1 | CD9: 1 | CI9: 1 | CK9: 1 | CN9: 1
A10: 7 | B10: Merging | C10: SBR | D10: RampR2 | E10: Signal far | F10: WBT,NBL | G10: CrossT2,RampL1 | H10: Cross thru | J10: 0 | K10: 0 | L10: 0 | N10: 25 | O10: 0 | P10: 45 | Q10: 12.5 | R10: 0.003363755169 | T10: 0.505 | V10: FALSE | W10: FALSE | X10: FALSE | Y10: FALSE | Z10: 1 | AB10: 0 | AC10: 0.3333333333 | AG10: 1 | AI10: 0.1683333333 | AK10: 0 | AY10: 1 | BH10: 1 | BL10: 1 | BW10: 7 | BX10: Merging | BY10: 1 | CA10: 1 | CF10: 1 | CI10: 1 | CK10: 1 | CP10: 1
A11: 8 | B11: Merging | C11: WBL | D11: CrossL2 | E11: Cross left | F11: EBR | G11: CrossR1 | H11: Cross right | J11: 0 | K11: 0 | L11: 0 | N11: 20 | O11: 15 | P11: 45 | Q11: 7.084065416 | R11: 0.0003902292327 | T11: =SSI_RTI_PermFactor -> 1 | V11: FALSE | W11: FALSE | X11: FALSE | Y11: FALSE | Z11: 1 | AB11: 0 | AC11: 0.3333333333 | AG11: 1 | AI11: 0.3333333333 | AK11: 0 | AR11: 1 | BG11: 1 | BW11: 8 | BX11: Merging | CA11: 1 | CF11: 1 | CK11: 1 | CP11: 1
A12: 9 | B12: Merging | C12: SBL | D12: RampL2 | E12: Ramp right | F12: EBT,EBL | G12: CrossT1,CrossL1 | H12: Cross thru | J12: 0 | K12: 0 | L12: 0 | N12: 15 | O12: 0 | P12: 45 | Q12: 7.5 | R12: 0.0004845430153 | T12: 1 | V12: FALSE | W12: FALSE | X12: FALSE | Y12: FALSE | Z12: 1 | AB12: 0 | AC12: 0.3333333333 | AG12: 1 | AI12: 0.3333333333 | AK12: 0 | AX12: 1 | BE12: 1 | BF12: 1 | BW12: 9 | BX12: Merging | CA12: 1 | CF12: 1 | CK12: 1 | CP12: 1
A13: 10 | B13: Merging | C13: NBR | D13: RampR1 | E13: Signal far | F13: EBT,SBL | G13: CrossT1,RampL2 | H13: Cross thru | J13: 0 | K13: 0 | L13: 0 | N13: 25 | O13: 0 | P13: 45 | Q13: 12.5 | R13: 0.003363755169 | T13: =SSI_RTI_ProtFactor -> 0.505 | V13: FALSE | W13: FALSE | X13: FALSE | Y13: FALSE | Z13: 1 | AB13: 0 | AC13: 0.3333333333 | AG13: 1 | AI13: 0.1683333333 | AK13: 0 | AV13: 1 | BE13: 1 | BO13: 1 | BW13: 10 | BX13: Merging | BY13: 1 | CA13: 1 | CF13: 1 | CI13: 1 | CK13: 1 | CP13: 1
A14: 11 | B14: Merging | C14: EBL | D14: CrossL1 | E14: Cross left | F14: WBR | G14: CrossR2 | H14: Cross right | J14: 0 | K14: 0 | L14: 0 | N14: 20 | O14: 15 | P14: 45 | Q14: 7.084065416 | R14: 0.0003902292327 | T14: 1 | V14: FALSE | W14: FALSE | X14: FALSE | Y14: FALSE | Z14: 1 | AB14: 0 | AC14: 0.3333333333 | AG14: 1 | AI14: 0.3333333333 | AK14: 0 | AO14: 1 | BJ14: 1 | BW14: 11 | BX14: Merging | CA14: 1 | CF14: 1 | CK14: 1 | CP14: 1
A15: 12 | B15: Merging | C15: NBL | D15: RampL1 | E15: Ramp right | F15: WBT,WBL | G15: CrossT2,CrossL2 | H15: Cross thru | J15: 0 | K15: 0 | L15: 0 | N15: 15 | O15: 0 | P15: 45 | Q15: 7.5 | R15: 0.0004845430153 | T15: 1 | V15: FALSE | W15: FALSE | X15: FALSE | Y15: FALSE | Z15: 1 | AB15: 0 | AC15: 0.3333333333 | AG15: 1 | AI15: 0.3333333333 | AK15: 0 | AU15: 1 | BH15: 1 | BI15: 1 | BW15: 12 | BX15: Merging | CA15: 1 | CF15: 1 | CK15: 1 | CP15: 1
A16: 13 | B16: Diverging | C16: EBT,EBL | D16: CrossT1,CrossL1 | E16: Cross thru | F16: EBR | G16: CrossR1 | H16: Cross right | J16: 0 | K16: 0 | L16: 0 | N16: 0 | O16: 15 | P16: 10 | Q16: 7.5 | R16: 0.0004845430153 | T16: 1 | V16: FALSE | W16: FALSE | X16: FALSE | Y16: FALSE | Z16: 1 | AB16: =IF(B16="Diverging","",SSI_RTI_VehSpeed_RampThru) ->  | AC16: 1 | AG16: 1 | AI16: 1 | AK16: 0 | AN16: 1 | AO16: 1 | BG16: 1 | BW16: 13 | BX16: Diverging
A17: 14 | B17: Diverging | C17: SBL | D17: RampL2 | E17: Ramp right | F17: SBR | G17: RampR2 | H17: Signal near | J17: 0 | K17: 0 | L17: 0 | N17: 15 | O17: 15 | P17: 10 | Q17: 1.307336141 | R17: 6.406138808e-07 | T17: 1 | V17: FALSE | W17: FALSE | X17: FALSE | Y17: FALSE | Z17: 1 | AC17: 1 | AG17: 1 | AI17: 1 | AK17: 0 | AX17: 1 | BP17: 1 | BW17: 14 | BX17: Diverging
A18: 15 | B18: Diverging | C18: WBT,NBL | D18: CrossT2,RampL1 | E18: Cross thru | F18: WBL | G18: CrossL2 | H18: Cross left | J18: 0 | K18: 0 | L18: 0 | N18: 0 | O18: 20 | P18: 10 | Q18: 10 | R18: 0.001443139223 | T18: 1 | V18: FALSE | W18: FALSE | X18: FALSE | Y18: FALSE | Z18: 1 | AC18: 1 | AG18: 1 | AI18: 1 | AK18: 0 | AQ18: 1 | AU18: 1 | BI18: 1 | BW18: 15 | BX18: Diverging
A19: 16 | B19: Diverging | C19: WBT,WBL | D19: CrossT2,CrossL2 | E19: Cross thru | F19: WBR | G19: CrossR2 | H19: Cross right | J19: 0 | K19: 0 | L19: 0 | N19: 0 | O19: 15 | P19: 10 | Q19: 7.5 | R19: 0.0004845430153 | T19: 1 | V19: FALSE | W19: FALSE | X19: FALSE | Y19: FALSE | Z19: 1 | AC19: 1 | AG19: 1 | AI19: 1 | AK19: 0 | AQ19: 1 | AR19: 1 | BJ19: 1 | BW19: 16 | BX19: Diverging
A20: 17 | B20: Diverging | C20: NBL | D20: RampL1 | E20: Ramp right | F20: NBR | G20: RampR1 | H20: Signal near | J20: 0 | K20: 0 | L20: 0 | N20: 15 | O20: 15 | P20: 10 | Q20: 1.307336141 | R20: 6.406138808e-07 | T20: =SSI_RTI_PermFactor -> 1 | V20: FALSE | W20: FALSE | X20: FALSE | Y20: FALSE | Z20: 1 | AC20: 1 | AG20: 1 | AI20: 1 | AK20: 0 | AU20: 1 | BM20: 1 | BW20: 17 | BX20: Diverging
A21: 18 | B21: Diverging | C21: EBT,SBL | D21: CrossT1,RampL2 | E21: Cross thru | F21: EBL | G21: CrossL1 | H21: Cross left | J21: 0 | K21: 0 | L21: 0 | N21: 0 | O21: 20 | P21: 10 | Q21: 10 | R21: 0.001443139223 | T21: 1 | V21: FALSE | W21: FALSE | X21: FALSE | Y21: FALSE | Z21: 1 | AB21: =IF(B21="Diverging","",SSI_RTI_VehSpeed_RampThru) ->  | AC21: 1 | AG21: 1 | AI21: 1 | AK21: 0 | AN21: 1 | AX21: 1 | BF21: 1 | BS21: =IF(ISNUMBER(SEARCH(BS$3,$G21)),1,"") ->  | BT21: =IF(ISNUMBER(SEARCH(BT$3,$G21)),1,"") ->  | BW21: 18 | BX21: Diverging
A22: 19 | B22: Nonmotorized | D22: CrossNM1 | E22: Nonmotorized | F22: WBT,NBL | G22: CrossT2,RampL1 | H22: Cross thru | J22: 175 | K22: 0 | L22: 0 | N22: 0 | O22: 0 | R22: 0.0209755324 | T22: =SSI_RTI_ProtFactor -> 0.505 | V22: FALSE | W22: FALSE | X22: FALSE | Y22: FALSE | Z22: 1 | AB22: 0 | AC22: 0.3333333333 | AG22: 1 | AI22: 0.1683333333 | AK22: 0 | AZ22: 1 | BE22: =IF(ISNUMBER(SEARCH(BE$3,$G22)),1,"") ->  | BH22: 1 | BL22: 1 | BW22: 19 | BX22: Nonmotorized | BY22: 2 | CB22: 1 | CD22: 1 | CG22: 1 | CI22: 2 | CL22: 1 | CN22: 1 | CQ22: 1
A23: 20 | B23: Nonmotorized | D23: CrossNM1 | E23: Nonmotorized | F23: SBR | G23: RampR2 | H23: Signal far | J23: 175 | K23: 0 | L23: 0 | N23: 0 | O23: 25 | R23: 0.3206687935 | T23: 0.505 | V23: FALSE | W23: FALSE | X23: FALSE | Y23: FALSE | Z23: 1 | AB23: 0 | AC23: 0.3333333333 | AG23: 1 | AI23: 0.1683333333 | AK23: 0 | AZ23: =IF(ISNUMBER(SEARCH(AZ$3,$D23)),1,"") -> 1 | BA23: =IF(ISNUMBER(SEARCH(BA$3,$D23)),1,"") ->  | BB23: =IF(ISNUMBER(SEARCH(BB$3,$D23)),1,"") ->  | BC23: =IF(ISNUMBER(SEARCH(BC$3,$D23)),1,"") ->  | BP23: 1 | BW23: 20 | BX23: Nonmotorized | BY23: 2 | CB23: 1 | CD23: 1 | CG23: 1 | CI23: 2 | CL23: 1 | CN23: 1 | CQ23: 1
A24: 21 | B24: Nonmotorized | D24: CrossNM1 | E24: Nonmotorized | F24: EBT,EBL | G24: CrossT1,CrossL1 | H24: Cross thru | J24: 175 | K24: 0 | L24: 0 | N24: 0 | O24: 0 | R24: 0.0209755324 | T24: 0.505 | V24: FALSE | W24: FALSE | X24: FALSE | Y24: FALSE | Z24: 1 | AB24: 0 | AC24: 0.3333333333 | AG24: 1 | AI24: 0.1683333333 | AK24: 0 | AN24: =IF(ISNUMBER(SEARCH(AN$3,$D24)),1,"") ->  | AZ24: 1 | BE24: 1 | BF24: 1 | BW24: 21 | BX24: Nonmotorized | BY24: 2 | CB24: 1 | CD24: 1 | CI24: 2 | CL24: 1 | CN24: 1
A25: 22 | B25: Nonmotorized | D25: CrossNM1,RampNM1 | E25: Nonmotorized | F25: EBR | G25: CrossR1 | H25: Cross right | J25: 350 | K25: 0 | L25: 0 | N25: 0 | O25: 15 | R25: 0.1205004039 | T25: =SSI_RTI_PermFactor -> 1 | V25: FALSE | W25: FALSE | X25: FALSE | Y25: FALSE | Z25: 1 | AB25: 0 | AC25: 0.3333333333 | AG25: 1 | AI25: 0.3333333333 | AK25: =L25*R25*AI25 -> 0 | AZ25: 1 | BB25: 1 | BG25: 1 | BW25: 22 | BX25: Nonmotorized | BY25: 1 | BZ25: 1 | CD25: 1 | CE25: 1 | CI25: 1 | CJ25: 1 | CN25: 1 | CO25: 1
A26: 23 | B26: Nonmotorized | D26: RampNM1 | E26: Nonmotorized | F26: WBL | G26: CrossL2 | H26: Cross left | J26: 175 | K26: 0 | L26: 0 | N26: 0 | O26: 20 | R26: 0.2027491292 | T26: =IF(SSI_RTI_CrossLTPhase="Protected/permitted",SSI_RTI_ProtPermFactor,IF(SSI_RTI_CrossLTPhase="Protected",SSI_RTI_ProtFactor,SSI_RTI_PermFactor)) -> 0.505 | V26: FALSE | W26: FALSE | X26: FALSE | Y26: FALSE | Z26: 1 | AB26: 0 | AC26: 0.3333333333 | AG26: 1 | AI26: 0.1683333333 | AK26: =L26*R26*AI26 -> 0 | BB26: 1 | BI26: 1 | BW26: 23 | BX26: Nonmotorized | BZ26: 2 | CA26: 1 | CE26: 2 | CF26: 1 | CJ26: 1 | CK26: 1 | CO26: 1 | CP26: 1
A27: 24 | B27: Nonmotorized | D27: RampNM1 | E27: Nonmotorized | F27: SBR | G27: RampR2 | H27: Signal near | J27: 175 | K27: 0 | L27: 0 | N27: 0 | O27: 15 | R27: 0.1205004039 | T27: =SSI_RTI_ProtFactor -> 0.505 | V27: FALSE | W27: FALSE | X27: FALSE | Y27: FALSE | Z27: 1 | AB27: =IF(B27="Diverging","",SSI_RTI_VehSpeed_RampThru) -> 0 | AC27: 0.3333333333 | AG27: 1 | AI27: 0.1683333333 | AK27: 0 | BB27: 1 | BP27: 1 | BW27: 24 | BX27: Nonmotorized | BZ27: 2 | CA27: 1 | CE27: 2 | CF27: 1 | CJ27: 1 | CO27: 1
A28: 25 | B28: Nonmotorized | D28: RampNM1 | E28: Nonmotorized | F28: SBL | G28: RampL2 | H28: Ramp right | J28: =SUMPRODUCT($AN28:$BC28,$AN$36:$BC$36) -> 175 | K28: 0 | L28: 0 | N28: =VLOOKUP(E28,SSI_RTI_Range_VehSpeed,5,FALSE) -> 0 | O28: =VLOOKUP(H28,SSI_RTI_Range_VehSpeed,5,FALSE) -> 15 | P28: =IF(B28="Nonmotorized","",VLOOKUP(B28,SSI_RTI_Range_CollAngles,5,FALSE)) ->  | Q28: =IF(B28="Nonmotorized","",SQRT(N28^2+O28^2-2*N28*O28*COS(RADIANS(P28)))/2) ->  | R28: =IF(B28="Nonmotorized",1/(1+EXP(3.8432-0.1237*O28)),(Q28/SSI_RTI_RegAlpha)^SSI_RTI_RegK+(Q28/SSI_RTI_RegAlpha)^SSI_RTI_RegK-((Q28/SSI_RTI_RegAlpha)^SSI_RTI_RegK)*((Q28/SSI_RTI_RegAlpha)^SSI_RTI_RegK)) -> 0.1205004039 | T28: 1 | V28: FALSE | W28: FALSE | X28: FALSE | Y28: FALSE | Z28: 1 | AB28: =IF(B28="Diverging","",SSI_RTI_VehSpeed_RampThru) -> 0 | AC28: 0.3333333333 | AG28: =1+AE28+AF28 -> 1 | AI28: 0.3333333333 | AK28: 0 | BB28: 1 | BO28: 1 | BW28: 25 | BX28: Nonmotorized | BZ28: 1 | CE28: 1 | CJ28: 1 | CO28: 1
A29: 26 | B29: Nonmotorized | D29: CrossNM2 | E29: Nonmotorized | F29: EBT,SBL | G29: CrossT1,RampL2 | H29: Cross thru | J29: 175 | K29: 0 | L29: 0 | N29: 0 | O29: 0 | R29: 0.0209755324 | T29: =SSI_RTI_ProtFactor -> 0.505 | V29: FALSE | W29: FALSE | X29: FALSE | Y29: FALSE | Z29: 1 | AB29: 0 | AC29: 0.3333333333 | AG29: 1 | AI29: 0.1683333333 | AK29: 0 | BA29: 1 | BE29: 1 | BO29: 1 | BW29: 26 | BX29: Nonmotorized | BY29: 2 | CB29: 1 | CD29: 1 | CG29: 1 | CI29: 2 | CL29: 1 | CN29: 1 | CQ29: 1
A30: 27 | B30: Nonmotorized | D30: CrossNM2 | E30: Nonmotorized | F30: NBR | G30: RampR1 | H30: Signal far | J30: 175 | K30: 0 | L30: 0 | N30: 0 | O30: 25 | R30: 0.3206687935 | T30: 0.505 | V30: FALSE | W30: FALSE | X30: FALSE | Y30: FALSE | Z30: 1 | AB30: 0 | AC30: 0.3333333333 | AG30: 1 | AI30: 0.1683333333 | AK30: 0 | BA30: 1 | BM30: 1 | BW30: 27 | BX30: Nonmotorized | BY30: 2 | CB30: 1 | CD30: 1 | CG30: 1 | CI30: 2 | CL30: 1 | CN30: 1 | CQ30: 1
A31: 28 | B31: Nonmotorized | D31: CrossNM2 | E31: Nonmotorized | F31: WBT,WBL | G31: CrossT2,CrossL2 | H31: Cross thru | J31: 175 | K31: 0 | L31: 0 | N31: 0 | O31: 0 | R31: 0.0209755324 | T31: 0.505 | V31: FALSE | W31: FALSE | X31: FALSE | Y31: FALSE | Z31: 1 | AB31: 0 | AC31: 0.3333333333 | AG31: 1 | AI31: 0.1683333333 | AK31: 0 | BA31: 1 | BH31: 1 | BI31: 1 | BW31: 28 | BX31: Nonmotorized | BY31: 2 | CB31: 1 | CD31: 1 | CI31: 2 | CL31: 1 | CN31: 1
A32: 29 | B32: Nonmotorized | D32: CrossNM2,RampNM2 | E32: Nonmotorized | F32: WBR | G32: CrossR2 | H32: Cross right | J32: 350 | K32: 0 | L32: 0 | N32: 0 | O32: 15 | R32: 0.1205004039 | T32: =SSI_RTI_PermFactor -> 1 | V32: FALSE | W32: FALSE | X32: FALSE | Y32: FALSE | Z32: 1 | AB32: 0 | AC32: 0.3333333333 | AG32: 1 | AI32: 0.3333333333 | AK32: 0 | BA32: 1 | BC32: 1 | BJ32: 1 | BW32: 29 | BX32: Nonmotorized | BY32: 1 | BZ32: 1 | CD32: 1 | CE32: 1 | CI32: 1 | CJ32: 1 | CN32: 1 | CO32: 1
A33: 30 | B33: Nonmotorized | D33: RampNM2 | E33: Nonmotorized | F33: EBL | G33: CrossL1 | H33: Cross left | J33: 175 | K33: 0 | L33: 0 | N33: 0 | O33: 20 | R33: 0.2027491292 | T33: =IF(SSI_RTI_CrossLTPhase="Protected/permitted",SSI_RTI_ProtPermFactor,IF(SSI_RTI_CrossLTPhase="Protected",SSI_RTI_ProtFactor,SSI_RTI_PermFactor)) -> 0.505 | V33: FALSE | W33: FALSE | X33: FALSE | Y33: FALSE | Z33: 1 | AB33: 0 | AC33: 0.3333333333 | AG33: 1 | AI33: 0.1683333333 | AK33: 0 | BC33: 1 | BF33: 1 | BW33: 30 | BX33: Nonmotorized | BZ33: 2 | CA33: 1 | CE33: 2 | CF33: 1 | CJ33: 1 | CK33: 1 | CO33: 1 | CP33: 1
A34: 31 | B34: Nonmotorized | D34: RampNM2 | E34: Nonmotorized | F34: NBR | G34: RampR1 | H34: Signal near | J34: 175 | K34: 0 | L34: 0 | N34: 0 | O34: 15 | R34: 0.1205004039 | T34: =SSI_RTI_ProtFactor -> 0.505 | V34: FALSE | W34: FALSE | X34: FALSE | Y34: FALSE | Z34: 1 | AB34: =IF(B34="Diverging","",SSI_RTI_VehSpeed_RampThru) -> 0 | AC34: 0.3333333333 | AG34: 1 | AI34: 0.1683333333 | AK34: 0 | BC34: 1 | BM34: 1 | BW34: 31 | BX34: Nonmotorized | BZ34: 2 | CA34: 1 | CE34: 2 | CF34: 1 | CJ34: 1 | CO34: 1
A35: 32 | B35: Nonmotorized | D35: RampNM2 | E35: Nonmotorized | F35: NBL | G35: RampL1 | H35: Ramp right | J35: 175 | K35: 0 | L35: 0 | N35: 0 | O35: 15 | R35: 0.1205004039 | T35: =SSI_RTI_PermFactor -> 1 | V35: FALSE | W35: FALSE | X35: FALSE | Y35: FALSE | Z35: 1 | AB35: =IF(B35="Diverging","",SSI_RTI_VehSpeed_RampThru) -> 0 | AC35: 0.3333333333 | AG35: 1 | AI35: 0.3333333333 | AK35: 0 | BC35: 1 | BL35: 1 | BW35: 32 | BX35: Nonmotorized | BZ35: 1 | CE35: 1 | CJ35: 1 | CO35: 1
AM36: O | AN36: ='SSI Inputs RTI'!$D$28 ->  | AO36: ='SSI Inputs RTI'!$D$29 ->  | AP36: ='SSI Inputs RTI'!$D$30 ->  | AQ36: ='SSI Inputs RTI'!$D$32 ->  | AR36: ='SSI Inputs RTI'!$D$33 ->  | AS36: ='SSI Inputs RTI'!$D$34 ->  | AT36: ='SSI Inputs RTI'!$D$36 ->  | AU36: ='SSI Inputs RTI'!$D$37 ->  | AV36: ='SSI Inputs RTI'!$D$38 ->  | AW36: ='SSI Inputs RTI'!$D$40 ->  | AX36: ='SSI Inputs RTI'!$D$41 ->  | AY36: ='SSI Inputs RTI'!$D$42 ->  | AZ36: ='SSI Inputs RTI'!$Q$20 -> 175 | BA36: ='SSI Inputs RTI'!$Q$21 -> 175 | BB36: ='SSI Inputs RTI'!$Q$22 -> 175 | BC36: ='SSI Inputs RTI'!$Q$23 -> 175 | BD36: O | BE36: ='SSI Inputs RTI'!$D$28 ->  | BF36: ='SSI Inputs RTI'!$D$29 ->  | BG36: ='SSI Inputs RTI'!$D$30 ->  | BH36: ='SSI Inputs RTI'!$D$32 ->  | BI36: ='SSI Inputs RTI'!$D$33 ->  | BJ36: ='SSI Inputs RTI'!$D$34 ->  | BK36: ='SSI Inputs RTI'!$D$36 ->  | BL36: ='SSI Inputs RTI'!$D$37 ->  | BM36: ='SSI Inputs RTI'!$D$38 ->  | BN36: ='SSI Inputs RTI'!$D$40 ->  | BO36: ='SSI Inputs RTI'!$D$41 ->  | BP36: ='SSI Inputs RTI'!$D$42 ->  | BQ36: ='SSI Inputs RTI'!$Q$20 -> 175 | BR36: ='SSI Inputs RTI'!$Q$21 -> 175 | BS36: ='SSI Inputs RTI'!$Q$22 -> 175 | BT36: ='SSI Inputs RTI'!$Q$23 -> 175
AM37: D | AN37: ='SSI Inputs RTI'!$E$28 ->  | AO37: ='SSI Inputs RTI'!$E$29 ->  | AP37: ='SSI Inputs RTI'!$E$30 ->  | AQ37: ='SSI Inputs RTI'!$E$32 ->  | AR37: ='SSI Inputs RTI'!$E$33 ->  | AS37: ='SSI Inputs RTI'!$E$34 ->  | AT37: ='SSI Inputs RTI'!$E$36 ->  | AU37: ='SSI Inputs RTI'!$E$37 ->  | AV37: ='SSI Inputs RTI'!$E$38 ->  | AW37: ='SSI Inputs RTI'!$E$40 ->  | AX37: ='SSI Inputs RTI'!$E$41 ->  | AY37: ='SSI Inputs RTI'!$E$42 ->  | AZ37: ='SSI Inputs RTI'!$R$20 -> 175 | BA37: ='SSI Inputs RTI'!$R$21 -> 175 | BB37: ='SSI Inputs RTI'!$R$22 -> 175 | BC37: ='SSI Inputs RTI'!$R$23 -> 175 | BD37: D | BE37: ='SSI Inputs RTI'!$E$28 ->  | BF37: ='SSI Inputs RTI'!$E$29 ->  | BG37: ='SSI Inputs RTI'!$E$30 ->  | BH37: ='SSI Inputs RTI'!$E$32 ->  | BI37: ='SSI Inputs RTI'!$E$33 ->  | BJ37: ='SSI Inputs RTI'!$E$34 ->  | BK37: ='SSI Inputs RTI'!$E$36 ->  | BL37: ='SSI Inputs RTI'!$E$37 ->  | BM37: ='SSI Inputs RTI'!$E$38 ->  | BN37: ='SSI Inputs RTI'!$E$40 ->  | BO37: ='SSI Inputs RTI'!$E$41 ->  | BP37: ='SSI Inputs RTI'!$E$42 ->  | BQ37: ='SSI Inputs RTI'!$R$20 -> 175 | BR37: ='SSI Inputs RTI'!$R$21 -> 175 | BS37: ='SSI Inputs RTI'!$R$22 -> 175 | BT37: ='SSI Inputs RTI'!$R$23 -> 175
J101: Exposure | AK101: Exposure-Severity-Complexity Product
J102: Q1 | K102: Q2 | L102: I
J103: =SUMPRODUCT($AN4:$BC4,$AN$37:$BC$37) -> 0 | K103: =SUMPRODUCT($BE4:$BT4,$BE$37:$BT$37) -> 0 | L103: =PRODUCT(J103:K103) -> 0 | AK103: =L103*R4*AI4 -> 0
J104: 0 | K104: 0 | L104: =PRODUCT(J104:K104) -> 0 | AK104: =L104*R5*AI5 -> 0
J105: 0 | K105: 0 | L105: 0 | AK105: 0
J106: 0 | K106: 0 | L106: 0 | AK106: 0
J107: 0 | K107: 0 | L107: 0 | AK107: 0
J108: 0 | K108: 0 | L108: 0 | AK108: 0
J109: 0 | K109: 0 | L109: 0 | AK109: 0
J110: 0 | K110: 0 | L110: 0 | AK110: 0
J111: 0 | K111: 0 | L111: 0 | AK111: 0
J112: 0 | K112: 0 | L112: 0 | AK112: 0
J113: 0 | K113: 0 | L113: 0 | AK113: 0
J114: 0 | K114: 0 | L114: 0 | AK114: 0
J115: 0 | K115: 0 | L115: 0 | AK115: 0
J116: 0 | K116: 0 | L116: 0 | AK116: 0
J117: 0 | K117: 0 | L117: 0 | AK117: 0
J118: 0 | K118: 0 | L118: 0 | AK118: 0
J119: 0 | K119: 0 | L119: 0 | AK119: 0
J120: 0 | K120: 0 | L120: 0 | AK120: 0
J121: 175 | K121: 0 | L121: 0 | AK121: 0
J122: 175 | K122: 0 | L122: 0 | AK122: 0
J123: 175 | K123: 0 | L123: 0 | AK123: 0
J124: 350 | K124: 0 | L124: 0 | AK124: 0
J125: 175 | K125: 0 | L125: =PRODUCT(J125:K125) -> 0 | AK125: 0
J126: 175 | K126: 0 | L126: 0 | AK126: 0
J127: 175 | K127: 0 | L127: 0 | AK127: 0
J128: 175 | K128: 0 | L128: 0 | AK128: 0
J129: 175 | K129: 0 | L129: 0 | AK129: 0
J130: 175 | K130: 0 | L130: 0 | AK130: 0
J131: 350 | K131: 0 | L131: 0 | AK131: 0
J132: 175 | K132: 0 | L132: 0 | AK132: 0
J133: 175 | K133: 0 | L133: 0 | AK133: 0
J134: 175 | K134: 0 | L134: 0 | AK134: 0

Sheet 2_Quad_ParcloB (hidden)
T1: Conflicting Traffic Complexity | AE1: Pedestrian Complexity | BW1: *impact of median on complexity factors
J2: Exposure | N2: Severity | T2: Traffic Control | V2: Conflicting Lanes | AB2: Conflicting Speed | AE2: Indirect Paths Indicator | AF2: Non-intuitive movements indicator | AG2: Pedestrian Complexity factor | AI2: Total Complexity Multiplier | AK2: Exposure-Severity-Complexity Product | AN2: Included in Mvmt1 | BE2: Included in Mvmt2 | BY2: Cross-street: No, Ramps: No | CD2: Cross-street: Yes, Ramps: No | CI2: Cross-street: No, Ramps: Yes | CN2: Cross-street: Yes, Ramps: Yes
A3: # | B3: Conflict Type | C3: Mvmt1 | D3: Mvmt1_gen | E3: Mvmt1_SpeedCat | F3: Mvmt2 | G3: Mvmt2_gen | H3: Mvmt2_SpeedCat | J3: Q1 | K3: Q2 | L3: I | N3: Speed_V1 | O3: Speed_V2 | P3: Angle | Q3: delta_V | R3: P_FSI | V3: CrossC | W3: RampC | X3: CrossM/P | Y3: RampM/P | Z3: Score | AB3: Speed | AC3: Factor | AN3: CrossT1 | AO3: CrossL1 | AP3: CrossR1 | AQ3: CrossT2 | AR3: CrossL2 | AS3: CrossR2 | AT3: RampT1 | AU3: RampL1 | AV3: RampR1 | AW3: RampT2 | AX3: RampL2 | AY3: RampR2 | AZ3: CrossNM1 | BA3: CrossNM2 | BB3: RampNM1 | BC3: RampNM2 | BE3: CrossT1 | BF3: CrossL1 | BG3: CrossR1 | BH3: CrossT2 | BI3: CrossL2 | BJ3: CrossR2 | BK3: RampT1 | BL3: RampL1 | BM3: RampR1 | BN3: RampT2 | BO3: RampL2 | BP3: RampR2 | BQ3: CrossNM1 | BR3: CrossNM2 | BS3: RampNM1 | BT3: RampNM2 | BW3: # | BX3: Conflict Type | BY3: MajC | BZ3: MinC | CA3: MajM/P | CB3: MinM/P | CD3: MajC | CE3: MinC | CF3: MajM/P | CG3: MinM/P | CI3: MajC | CJ3: MinC | CK3: MajM/P | CL3: MinM/P | CN3: MajC | CO3: MinC | CP3: MajM/P | CQ3: MinM/P
A4: 1 | B4: Crossing - LT | C4: EBR | D4: CrossR1 | E4: Cross left | F4: SBL | G4: RampL2 | H4: Signal near | J4: =SUMPRODUCT($AN4:$BC4,$AN$36:$BC$36) -> 0 | K4: =SUMPRODUCT($BE4:$BT4,$BE$36:$BT$36) -> 0 | L4: =PRODUCT(J4:K4) -> 0 | N4: =VLOOKUP(E4,SSI_RTI_Range_VehSpeed,5,FALSE) -> 20 | O4: =VLOOKUP(H4,SSI_RTI_Range_VehSpeed,5,FALSE) -> 15 | P4: =IF(B4="Nonmotorized","",VLOOKUP(B4,SSI_RTI_Range_CollAngles,5,FALSE)) -> 230 | Q4: =IF(B4="Nonmotorized","",SQRT(N4^2+O4^2-2*N4*O4*COS(RADIANS(P4)))/2) -> 15.89553841 | R4: =IF(B4="Nonmotorized",1/(1+EXP(3.8432-0.1237*O4)),(Q4/SSI_RTI_RegAlpha)^SSI_RTI_RegK+(Q4/SSI_RTI_RegAlpha)^SSI_RTI_RegK-((Q4/SSI_RTI_RegAlpha)^SSI_RTI_RegK)*((Q4/SSI_RTI_RegAlpha)^SSI_RTI_RegK)) -> 0.00836167361 | T4: =SSI_RTI_ProtFactor -> 0.505 | V4: =IF(AND(SSI_RTI_CrossStMedian="No", SSI_RTI_RampMedian="No"),BY4,IF(AND(SSI_RTI_CrossStMedian="Yes",SSI_RTI_RampMedian="No"),CD4,IF(AND(SSI_RTI_CrossStMedian="No",SSI_RTI_RampMedian="Yes"),CI4,IF(AND(SSI_RTI_CrossStMedian="Yes",SSI_RTI_RampMedian="Yes"),CN4)))) -> FALSE | W4: FALSE | X4: FALSE | Y4: FALSE | Z4: =MAX(1,IF(B4<>"Pedestrian",V4*SSI_RTI_CrossThruLanes+W4*SSI_RTI_Ramp1ThruLanes+X4*IF(SSI_RTI_CrossThruLanes=1,SSI_RTI_MergeWeightL1,IF(SSI_RTI_CrossThruLanes=2,SSI_RTI_MergeWeightL1+SSI_RTI_MergeWeightL2,SSI_RTI_MergeWeightL1+SSI_RTI_MergeWeightL2+SSI_RTI_MergeWeightL3*(SSI_RTI_CrossThruLanes-2)))+Y4*IF(SSI_RTI_Ramp1ThruLanes=1,SSI_RTI_MergeWeightL1,IF(SSI_RTI_Ramp1ThruLanes=2,SSI_RTI_MergeWeightL1+SSI_RTI_MergeWeightL2,SSI_RTI_MergeWeightL1+SSI_RTI_MergeWeightL2+SSI_RTI_MergeWeightL3*(SSI_RTI_Ramp1ThruLanes-2))),V4*SSI_RTI_CrossThruLanes+W4*SSI_RTI_Ramp1ThruLanes+X4*IF(SSI_RTI_CrossThruLanes=1,SSI_RTI_NM_MergeWeightL1,IF(SSI_RTI_CrossThruLanes=2,SSI_RTI_NM_MergeWeightL1+SSI_RTI_NM_MergeWeightL2,SSI_RTI_NM_MergeWeightL1+SSI_RTI_NM_MergeWeightL2+SSI_RTI_NM_MergeWeightL3*(SSI_RTI_CrossThruLanes-2)))+Y4*IF(SSI_RTI_Ramp1ThruLanes=1,SSI_RTI_NM_MergeWeightL1,IF(SSI_RTI_Ramp1ThruLanes=2,SSI_RTI_NM_MergeWeightL1+SSI_RTI_NM_MergeWeightL2,SSI_RTI_NM_MergeWeightL1+SSI_RTI_NM_MergeWeightL2+SSI_RTI_NM_MergeWeightL3*(SSI_RTI_Ramp1ThruLanes-2))))) -> 1 | AB4: =IF(B4="Diverging","",SSI_RTI_VehSpeed_CrossThru) -> 0 | AC4: =IF(B4="Diverging",1,1-((60-AB4)/60*0.1/0.15)) -> 0.3333333333 | AG4: =1+AE4+AF4 -> 1 | AI4: =PRODUCT(Z4,T4,AC4,AG4) -> 0.1683333333 | AK4: =L4*R4*AI4 -> 0 | AN4: =IF(ISNUMBER(SEARCH(AN$3,$D4)),1,"") ->  | AO4: =IF(ISNUMBER(SEARCH(AO$3,$D4)),1,"") ->  | AP4: 1 | BE4: =IF(ISNUMBER(SEARCH(BE$3,$G4)),1,"") ->  | BF4: =IF(ISNUMBER(SEARCH(BF$3,$G4)),1,"") ->  | BO4: 1 | BW4: 1 | BX4: Crossing - LT | BY4: 1 | CA4: 1 | CD4: 1 | CI4: 1 | CK4: 1 | CN4: 1
A5: 2 | B5: Crossing - LT | C5: EBR | D5: CrossR1 | E5: Cross left | F5: WBT,NBL | G5: CrossT2,RampL1 | H5: Cross thru | J5: =SUMPRODUCT($AN5:$BC5,$AN$36:$BC$36) -> 0 | K5: =SUMPRODUCT($BE5:$BT5,$BE$36:$BT$36) -> 0 | L5: =PRODUCT(J5:K5) -> 0 | N5: 20 | O5: 0 | P5: 230 | Q5: =IF(B5="Nonmotorized","",SQRT(N5^2+O5^2-2*N5*O5*COS(RADIANS(P5)))/2) -> 10 | R5: 0.001443139223 | T5: =IF(SSI_RTI_CrossLTPhase="Protected/permitted",SSI_RTI_ProtPermFactor,IF(SSI_RTI_CrossLTPhase="Protected",SSI_RTI_ProtFactor,SSI_RTI_PermFactor)) -> 0.505 | V5: FALSE | W5: FALSE | X5: FALSE | Y5: FALSE | Z5: 1 | AB5: 0 | AC5: 0.3333333333 | AG5: =1+AE5+AF5 -> 1 | AI5: 0.1683333333 | AK5: =L5*R5*AI5 -> 0 | AN5: =IF(ISNUMBER(SEARCH(AN$3,$D5)),1,"") ->  | AP5: 1 | BE5: =IF(ISNUMBER(SEARCH(BE$3,$G5)),1,"") ->  | BH5: 1 | BL5: 1 | BW5: 2 | BX5: Crossing - LT | BY5: 1 | CD5: 1 | CI5: 1 | CN5: 1
A6: 3 | B6: Crossing - LT | C6: SBL | D6: RampL2 | E6: Signal near | F6: WBT,NBL | G6: CrossT2,RampL1 | H6: Cross thru | J6: 0 | K6: 0 | L6: 0 | N6: 15 | O6: 0 | P6: 230 | Q6: 7.5 | R6: 0.0004845430153 | T6: =SSI_RTI_ProtFactor -> 0.505 | V6: FALSE | W6: FALSE | X6: FALSE | Y6: FALSE | Z6: 1 | AB6: 0 | AC6: 0.3333333333 | AG6: 1 | AI6: 0.1683333333 | AK6: 0 | AX6: 1 | BH6: 1 | BL6: 1 | BW6: 3 | BX6: Crossing - LT | BY6: 1 | CA6: 1 | CD6: 1 | CI6: 1 | CK6: 1 | CN6: 1
A7: 4 | B7: Crossing - LT | C7: WBL | D7: CrossL2 | E7: Cross left | F7: NBL | G7: RampL1 | H7: Signal near | J7: 0 | K7: 0 | L7: 0 | N7: 20 | O7: 15 | P7: 230 | Q7: 15.89553841 | R7: 0.00836167361 | T7: 0.505 | V7: FALSE | W7: FALSE | X7: FALSE | Y7: FALSE | Z7: 1 | AB7: 0 | AC7: 0.3333333333 | AG7: 1 | AI7: 0.1683333333 | AK7: 0 | AR7: 1 | BL7: 1 | BW7: 4 | BX7: Crossing - LT | BY7: 1 | CA7: 1 | CD7: 1 | CI7: 1 | CK7: 1 | CN7: 1
A8: 5 | B8: Crossing - LT | C8: WBL | D8: CrossL2 | E8: Cross left | F8: EBT,SBL | G8: CrossT1,RampL2 | H8: Cross thru | J8: 0 | K8: 0 | L8: 0 | N8: 20 | O8: 0 | P8: 230 | Q8: 10 | R8: 0.001443139223 | T8: =IF(SSI_RTI_CrossLTPhase="Protected/permitted",SSI_RTI_ProtPermFactor,IF(SSI_RTI_CrossLTPhase="Protected",SSI_RTI_ProtFactor,SSI_RTI_PermFactor)) -> 0.505 | V8: FALSE | W8: FALSE | X8: FALSE | Y8: FALSE | Z8: 1 | AB8: 0 | AC8: 0.3333333333 | AG8: 1 | AI8: 0.1683333333 | AK8: 0 | AR8: 1 | BE8: 1 | BO8: 1 | BW8: 5 | BX8: Crossing - LT | BY8: 1 | CD8: 1 | CI8: 1 | CN8: 1
A9: 6 | B9: Crossing - LT | C9: NBL | D9: RampL1 | E9: Signal near | F9: EBT,SBL | G9: CrossT1,RampL2 | H9: Cross thru | J9: 0 | K9: 0 | L9: 0 | N9: 15 | O9: 0 | P9: 230 | Q9: 7.5 | R9: 0.0004845430153 | T9: =SSI_RTI_ProtFactor -> 0.505 | V9: FALSE | W9: FALSE | X9: FALSE | Y9: FALSE | Z9: 1 | AB9: 0 | AC9: 0.3333333333 | AG9: 1 | AI9: 0.1683333333 | AK9: 0 | AU9: 1 | BE9: 1 | BO9: 1 | BW9: 6 | BX9: Crossing - LT | BY9: 1 | CA9: 1 | CD9: 1 | CI9: 1 | CK9: 1 | CN9: 1
A10: 7 | B10: Merging | C10: SBR | D10: RampR2 | E10: Ramp right | F10: WBT,NBL | G10: CrossT2,RampL1 | H10: Cross thru | J10: 0 | K10: 0 | L10: 0 | N10: 15 | O10: 0 | P10: 45 | Q10: 7.5 | R10: 0.0004845430153 | T10: =SSI_RTI_PermFactor -> 1 | V10: FALSE | W10: FALSE | X10: FALSE | Y10: FALSE | Z10: 1 | AB10: 0 | AC10: 0.3333333333 | AG10: 1 | AI10: 0.3333333333 | AK10: 0 | AY10: 1 | BH10: 1 | BL10: 1 | BW10: 7 | BX10: Merging | CA10: 1 | CF10: 1 | CK10: 1 | CP10: 1
A11: 8 | B11: Merging | C11: EBR | D11: CrossR1 | E11: Cross left | F11: WBL | G11: CrossL2 | H11: Cross right | J11: 0 | K11: 0 | L11: 0 | N11: 20 | O11: 15 | P11: 45 | Q11: 7.084065416 | R11: 0.0003902292327 | T11: 1 | V11: FALSE | W11: FALSE | X11: FALSE | Y11: FALSE | Z11: 1 | AB11: 0 | AC11: 0.3333333333 | AG11: 1 | AI11: 0.3333333333 | AK11: 0 | AP11: 1 | BI11: 1 | BW11: 8 | BX11: Merging | CA11: 1 | CF11: 1 | CK11: 1 | CP11: 1
A12: 9 | B12: Merging | C12: SBL | D12: RampL2 | E12: Signal far | F12: EBT,EBL | G12: CrossT1,CrossL1 | H12: Cross thru | J12: 0 | K12: 0 | L12: 0 | N12: 25 | O12: 0 | P12: 45 | Q12: 12.5 | R12: 0.003363755169 | T12: 1 | V12: FALSE | W12: FALSE | X12: FALSE | Y12: FALSE | Z12: 1 | AB12: 0 | AC12: 0.3333333333 | AG12: 1 | AI12: 0.3333333333 | AK12: 0 | AX12: 1 | BE12: 1 | BF12: 1 | BW12: 9 | BX12: Merging | BY12: 1 | CA12: 1 | CD12: 1 | CI12: 1 | CK12: 1 | CN12: 1
A13: 10 | B13: Merging | C13: NBR | D13: RampR1 | E13: Ramp right | F13: EBT,SBL | G13: CrossT1,RampL2 | H13: Cross thru | J13: 0 | K13: 0 | L13: 0 | N13: 15 | O13: 0 | P13: 45 | Q13: 7.5 | R13: 0.0004845430153 | T13: 1 | V13: FALSE | W13: FALSE | X13: FALSE | Y13: FALSE | Z13: 1 | AB13: 0 | AC13: 0.3333333333 | AG13: 1 | AI13: 0.3333333333 | AK13: 0 | AV13: 1 | BE13: 1 | BO13: 1 | BW13: 10 | BX13: Merging | CA13: 1 | CF13: 1 | CK13: 1 | CP13: 1
A14: 11 | B14: Merging | C14: WBL | D14: CrossL2 | E14: Cross left | F14: EBR | G14: CrossR1 | H14: Cross right | J14: 0 | K14: 0 | L14: 0 | N14: 20 | O14: 15 | P14: 45 | Q14: 7.084065416 | R14: 0.0003902292327 | T14: 1 | V14: FALSE | W14: FALSE | X14: FALSE | Y14: FALSE | Z14: 1 | AB14: 0 | AC14: 0.3333333333 | AG14: 1 | AI14: 0.3333333333 | AK14: 0 | AR14: 1 | BG14: 1 | BW14: 11 | BX14: Merging | CA14: 1 | CF14: 1 | CK14: 1 | CP14: 1
A15: 12 | B15: Merging | C15: NBL | D15: RampL1 | E15: Signal far | F15: WBT,WBR | G15: CrossT2,CrossR2 | H15: Cross thru | J15: 0 | K15: 0 | L15: 0 | N15: 25 | O15: 0 | P15: 45 | Q15: 12.5 | R15: 0.003363755169 | T15: 1 | V15: FALSE | W15: FALSE | X15: FALSE | Y15: FALSE | Z15: 1 | AB15: 0 | AC15: 0.3333333333 | AG15: 1 | AI15: 0.3333333333 | AK15: 0 | AU15: 1 | BH15: 1 | BJ15: 1 | BW15: 12 | BX15: Merging | BY15: 1 | CA15: 1 | CD15: 1 | CI15: 1 | CK15: 1 | CN15: 1
A16: 13 | B16: Diverging | C16: EBR | D16: CrossR1 | E16: Cross left | F16: EBT,EBL | G16: CrossT1,CrossL1 | H16: Cross thru | J16: 0 | K16: 0 | L16: 0 | N16: 20 | O16: 0 | P16: 10 | Q16: 10 | R16: 0.001443139223 | T16: 1 | V16: FALSE | W16: FALSE | X16: FALSE | Y16: FALSE | Z16: 1 | AB16: =IF(B16="Diverging","",SSI_RTI_VehSpeed_RampThru) ->  | AC16: 1 | AG16: 1 | AI16: 1 | AK16: 0 | AP16: 1 | BE16: 1 | BF16: 1 | BW16: 13 | BX16: Diverging
A17: 14 | B17: Diverging | C17: SBL | D17: RampL2 | E17: Signal near | F17: SBR | G17: RampR2 | H17: Ramp right | J17: 0 | K17: 0 | L17: 0 | N17: 15 | O17: 15 | P17: 10 | Q17: 1.307336141 | R17: 6.406138808e-07 | T17: 1 | V17: FALSE | W17: FALSE | X17: FALSE | Y17: FALSE | Z17: 1 | AC17: 1 | AG17: 1 | AI17: 1 | AK17: 0 | AX17: 1 | BP17: 1 | BW17: 14 | BX17: Diverging
A18: 15 | B18: Diverging | C18: WBT,NBL | D18: CrossT2,RampL1 | E18: Cross thru | F18: WBL | G18: CrossL2 | H18: Cross right | J18: 0 | K18: 0 | L18: 0 | N18: 0 | O18: 15 | P18: 10 | Q18: 7.5 | R18: 0.0004845430153 | T18: 1 | V18: FALSE | W18: FALSE | X18: FALSE | Y18: FALSE | Z18: 1 | AC18: 1 | AG18: 1 | AI18: 1 | AK18: 0 | AQ18: 1 | AU18: 1 | BI18: 1 | BW18: 15 | BX18: Diverging
A19: 16 | B19: Diverging | C19: WBR | D19: CrossR2 | E19: Cross left | F19: WBT,WBL | G19: CrossT2,CrossL2 | H19: Cross thru | J19: 0 | K19: 0 | L19: 0 | N19: 20 | O19: 0 | P19: 10 | Q19: 10 | R19: 0.001443139223 | T19: 1 | V19: FALSE | W19: FALSE | X19: FALSE | Y19: FALSE | Z19: 1 | AC19: 1 | AG19: 1 | AI19: 1 | AK19: 0 | AS19: 1 | BH19: 1 | BI19: 1 | BW19: 16 | BX19: Diverging
A20: 17 | B20: Diverging | C20: NBL | D20: RampL1 | E20: Ramp right | F20: NBR | G20: RampR1 | H20: Signal near | J20: 0 | K20: 0 | L20: 0 | N20: 15 | O20: 15 | P20: 10 | Q20: 1.307336141 | R20: 6.406138808e-07 | T20: 1 | V20: FALSE | W20: FALSE | X20: FALSE | Y20: FALSE | Z20: 1 | AC20: 1 | AG20: 1 | AI20: 1 | AK20: 0 | AU20: 1 | BM20: 1 | BW20: 17 | BX20: Diverging
A21: 18 | B21: Diverging | C21: EBT,SBL | D21: CrossT1,RampL2 | E21: Cross thru | F21: EBL | G21: CrossL1 | H21: Cross right | J21: 0 | K21: 0 | L21: 0 | N21: 0 | O21: 15 | P21: 10 | Q21: 7.5 | R21: 0.0004845430153 | T21: 1 | V21: FALSE | W21: FALSE | X21: FALSE | Y21: FALSE | Z21: 1 | AB21: =IF(B21="Diverging","",SSI_RTI_VehSpeed_RampThru) ->  | AC21: 1 | AG21: 1 | AI21: 1 | AK21: 0 | AN21: 1 | AX21: 1 | BF21: 1 | BS21: =IF(ISNUMBER(SEARCH(BS$3,$G21)),1,"") ->  | BT21: =IF(ISNUMBER(SEARCH(BT$3,$G21)),1,"") ->  | BW21: 18 | BX21: Diverging
A22: 19 | B22: Nonmotorized | D22: CrossNM1 | E22: Nonmotorized | F22: EBT,EBL | G22: CrossT1,CrossL1 | H22: Cross thru | J22: 175 | K22: 0 | L22: 0 | N22: 0 | O22: 0 | R22: 0.0209755324 | T22: =SSI_RTI_ProtFactor -> 0.505 | V22: FALSE | W22: FALSE | X22: FALSE | Y22: FALSE | Z22: 1 | AB22: 0 | AC22: 0.3333333333 | AG22: 1 | AI22: 0.1683333333 | AK22: 0 | AZ22: 1 | BE22: =IF(ISNUMBER(SEARCH(BE$3,$G22)),1,"") -> 1 | BF22: 1 | BW22: 19 | BX22: Nonmotorized | BY22: 2 | CD22: 1 | CI22: 2 | CN22: 1
A23: 20 | B23: Nonmotorized | D23: CrossNM1 | E23: Nonmotorized | F23: EBR | G23: CrossR1 | H23: Cross left | J23: 175 | K23: 0 | L23: 0 | N23: 0 | O23: 20 | R23: 0.2027491292 | T23: 0.505 | V23: FALSE | W23: FALSE | X23: FALSE | Y23: FALSE | Z23: 1 | AB23: 0 | AC23: 0.3333333333 | AG23: 1 | AI23: 0.1683333333 | AK23: 0 | AZ23: =IF(ISNUMBER(SEARCH(AZ$3,$D23)),1,"") -> 1 | BA23: =IF(ISNUMBER(SEARCH(BA$3,$D23)),1,"") ->  | BB23: =IF(ISNUMBER(SEARCH(BB$3,$D23)),1,"") ->  | BC23: =IF(ISNUMBER(SEARCH(BC$3,$D23)),1,"") ->  | BG23: 1 | BW23: 20 | BX23: Nonmotorized | BY23: 2 | CD23: 1 | CI23: 2 | CN23: 1
A24: 21 | B24: Nonmotorized | D24: CrossNM1 | E24: Nonmotorized | F24: WBT,NBL | G24: CrossT2,RampL1 | H24: Cross thru | J24: 175 | K24: 0 | L24: 0 | N24: 0 | O24: 0 | R24: 0.0209755324 | T24: 0.505 | V24: FALSE | W24: FALSE | X24: FALSE | Y24: FALSE | Z24: 1 | AB24: 0 | AC24: 0.3333333333 | AG24: 1 | AI24: 0.1683333333 | AK24: 0 | AN24: =IF(ISNUMBER(SEARCH(AN$3,$D24)),1,"") ->  | AZ24: 1 | BH24: 1 | BL24: 1 | BW24: 21 | BX24: Nonmotorized | BY24: 2 | CD24: 1 | CI24: 2 | CN24: 1
A25: 22 | B25: Nonmotorized | D25: CrossNM1,RampNM2 | E25: Nonmotorized | F25: SBR | G25: RampR2 | H25: Ramp right | J25: 350 | K25: 0 | L25: 0 | N25: 0 | O25: 15 | R25: 0.1205004039 | T25: =SSI_RTI_PermFactor -> 1 | V25: FALSE | W25: FALSE | X25: FALSE | Y25: FALSE | Z25: 1 | AB25: =IF(B25="Diverging","",SSI_RTI_VehSpeed_RampThru) -> 0 | AC25: 0.3333333333 | AG25: 1 | AI25: 0.3333333333 | AK25: =L25*R25*AI25 -> 0 | AZ25: 1 | BC25: 1 | BP25: 1 | BW25: 22 | BX25: Nonmotorized | BZ25: 1 | CE25: 1 | CJ25: 1 | CO25: 1
A26: 23 | B26: Nonmotorized | D26: RampNM2 | E26: Nonmotorized | F26: SBL | G26: RampL2 | H26: Signal near | J26: 175 | K26: 0 | L26: 0 | N26: 0 | O26: 15 | R26: 0.1205004039 | T26: =IF(SSI_RTI_CrossLTPhase="Protected/permitted",SSI_RTI_ProtPermFactor,IF(SSI_RTI_CrossLTPhase="Protected",SSI_RTI_ProtFactor,SSI_RTI_PermFactor)) -> 0.505 | V26: FALSE | W26: FALSE | X26: FALSE | Y26: FALSE | Z26: 1 | AB26: =IF(B26="Diverging","",SSI_RTI_VehSpeed_RampThru) -> 0 | AC26: 0.3333333333 | AG26: 1 | AI26: 0.1683333333 | AK26: =L26*R26*AI26 -> 0 | BC26: 1 | BO26: 1 | BW26: 23 | BX26: Nonmotorized | BZ26: 2 | CE26: 2 | CJ26: 1 | CO26: 1
A27: 24 | B27: Nonmotorized | D27: RampNM2 | E27: Nonmotorized | F27: EBR | G27: CrossR1 | H27: Cross left | J27: 175 | K27: 0 | L27: 0 | N27: 0 | O27: 20 | R27: 0.2027491292 | T27: =IF(SSI_RTI_CrossLTPhase="Protected/permitted",SSI_RTI_ProtPermFactor,IF(SSI_RTI_CrossLTPhase="Protected",SSI_RTI_ProtFactor,SSI_RTI_PermFactor)) -> 0.505 | V27: FALSE | W27: FALSE | X27: FALSE | Y27: FALSE | Z27: 1 | AB27: 0 | AC27: 0.3333333333 | AG27: 1 | AI27: 0.1683333333 | AK27: 0 | BC27: 1 | BG27: 1 | BW27: 24 | BX27: Nonmotorized | BZ27: 2 | CE27: 2 | CJ27: 1 | CO27: 1
A28: 25 | B28: Nonmotorized | D28: RampNM2 | E28: Nonmotorized | F28: WBL | G28: CrossL2 | H28: Cross right | J28: =SUMPRODUCT($AN28:$BC28,$AN$36:$BC$36) -> 175 | K28: 0 | L28: 0 | N28: 0 | O28: 15 | R28: 0.1205004039 | T28: 1 | V28: FALSE | W28: FALSE | X28: FALSE | Y28: FALSE | Z28: 1 | AB28: 0 | AC28: 0.3333333333 | AG28: 1 | AI28: 0.3333333333 | AK28: 0 | BC28: 1 | BI28: 1 | BW28: 25 | BX28: Nonmotorized | BZ28: 1 | CA28: 1 | CE28: 1 | CF28: 1 | CJ28: 1 | CK28: 1 | CO28: 1 | CP28: 1
A29: 26 | B29: Nonmotorized | D29: CrossNM2 | E29: Nonmotorized | F29: WBT,WBL | G29: CrossT2,CrossL2 | H29: Cross thru | J29: 175 | K29: 0 | L29: 0 | N29: 0 | O29: 0 | R29: 0.0209755324 | T29: =SSI_RTI_ProtFactor -> 0.505 | V29: FALSE | W29: FALSE | X29: FALSE | Y29: FALSE | Z29: 1 | AB29: 0 | AC29: 0.3333333333 | AG29: 1 | AI29: 0.1683333333 | AK29: 0 | BA29: 1 | BH29: 1 | BI29: 1 | BW29: 26 | BX29: Nonmotorized | BY29: 2 | CD29: 1 | CI29: 2 | CN29: 1
A30: 27 | B30: Nonmotorized | D30: CrossNM2 | E30: Nonmotorized | F30: WBR | G30: CrossR2 | H30: Cross left | J30: 175 | K30: 0 | L30: 0 | N30: 0 | O30: 20 | R30: 0.2027491292 | T30: 0.505 | V30: FALSE | W30: FALSE | X30: FALSE | Y30: FALSE | Z30: 1 | AB30: 0 | AC30: 0.3333333333 | AG30: 1 | AI30: 0.1683333333 | AK30: 0 | BA30: 1 | BJ30: 1 | BW30: 27 | BX30: Nonmotorized | BY30: 2 | CD30: 1 | CI30: 2 | CN30: 1
A31: 28 | B31: Nonmotorized | D31: CrossNM2 | E31: Nonmotorized | F31: EBT,SBL | G31: CrossT1,RampL2 | H31: Cross thru | J31: 175 | K31: 0 | L31: 0 | N31: 0 | O31: 0 | R31: 0.0209755324 | T31: 0.505 | V31: FALSE | W31: FALSE | X31: FALSE | Y31: FALSE | Z31: 1 | AB31: 0 | AC31: 0.3333333333 | AG31: 1 | AI31: 0.1683333333 | AK31: 0 | BA31: 1 | BE31: 1 | BO31: 1 | BW31: 28 | BX31: Nonmotorized | BY31: 2 | CD31: 1 | CI31: 2 | CN31: 1
A32: 29 | B32: Nonmotorized | D32: CrossNM2,RampNM1 | E32: Nonmotorized | F32: NBR | G32: RampR1 | H32: Ramp right | J32: 350 | K32: 0 | L32: 0 | N32: 0 | O32: 15 | R32: 0.1205004039 | T32: =SSI_RTI_PermFactor -> 1 | V32: FALSE | W32: FALSE | X32: FALSE | Y32: FALSE | Z32: 1 | AB32: =IF(B32="Diverging","",SSI_RTI_VehSpeed_RampThru) -> 0 | AC32: 0.3333333333 | AG32: 1 | AI32: 0.3333333333 | AK32: 0 | BA32: 1 | BB32: 1 | BM32: 1 | BW32: 29 | BX32: Nonmotorized | BZ32: 1 | CE32: 1 | CJ32: 1 | CO32: 1
A33: 30 | B33: Nonmotorized | D33: RampNM1 | E33: Nonmotorized | F33: NBL | G33: RampL1 | H33: Signal near | J33: 175 | K33: 0 | L33: 0 | N33: 0 | O33: 15 | R33: 0.1205004039 | T33: =IF(SSI_RTI_CrossLTPhase="Protected/permitted",SSI_RTI_ProtPermFactor,IF(SSI_RTI_CrossLTPhase="Protected",SSI_RTI_ProtFactor,SSI_RTI_PermFactor)) -> 0.505 | V33: FALSE | W33: FALSE | X33: FALSE | Y33: FALSE | Z33: 1 | AB33: =IF(B33="Diverging","",SSI_RTI_VehSpeed_RampThru) -> 0 | AC33: 0.3333333333 | AG33: 1 | AI33: 0.1683333333 | AK33: 0 | BB33: 1 | BL33: 1 | BW33: 30 | BX33: Nonmotorized | BZ33: 2 | CE33: 2 | CJ33: 1 | CO33: 1
A34: 31 | B34: Nonmotorized | D34: RampNM1 | E34: Nonmotorized | F34: WBR | G34: CrossR2 | H34: Cross left | J34: 175 | K34: 0 | L34: 0 | N34: 0 | O34: 20 | R34: 0.2027491292 | T34: =IF(SSI_RTI_CrossLTPhase="Protected/permitted",SSI_RTI_ProtPermFactor,IF(SSI_RTI_CrossLTPhase="Protected",SSI_RTI_ProtFactor,SSI_RTI_PermFactor)) -> 0.505 | V34: FALSE | W34: FALSE | X34: FALSE | Y34: FALSE | Z34: 1 | AB34: 0 | AC34: 0.3333333333 | AG34: 1 | AI34: 0.1683333333 | AK34: 0 | BB34: 1 | BJ34: 1 | BW34: 31 | BX34: Nonmotorized | BZ34: 2 | CE34: 2 | CJ34: 1 | CO34: 1
A35: 32 | B35: Nonmotorized | D35: RampNM1 | E35: Nonmotorized | F35: EBL | G35: CrossL1 | H35: Cross right | J35: 175 | K35: 0 | L35: 0 | N35: 0 | O35: 15 | R35: 0.1205004039 | T35: =SSI_RTI_PermFactor -> 1 | V35: FALSE | W35: FALSE | X35: FALSE | Y35: FALSE | Z35: 1 | AB35: 0 | AC35: 0.3333333333 | AG35: 1 | AI35: 0.3333333333 | AK35: 0 | BB35: 1 | BF35: 1 | BW35: 32 | BX35: Nonmotorized | BZ35: 1 | CA35: 1 | CE35: 1 | CF35: 1 | CJ35: 1 | CK35: 1 | CO35: 1 | CP35: 1
AM36: O | AN36: ='SSI Inputs RTI'!$D$28 ->  | AO36: ='SSI Inputs RTI'!$D$29 ->  | AP36: ='SSI Inputs RTI'!$D$30 ->  | AQ36: ='SSI Inputs RTI'!$D$32 ->  | AR36: ='SSI Inputs RTI'!$D$33 ->  | AS36: ='SSI Inputs RTI'!$D$34 ->  | AT36: ='SSI Inputs RTI'!$D$36 ->  | AU36: ='SSI Inputs RTI'!$D$37 ->  | AV36: ='SSI Inputs RTI'!$D$38 ->  | AW36: ='SSI Inputs RTI'!$D$40 ->  | AX36: ='SSI Inputs RTI'!$D$41 ->  | AY36: ='SSI Inputs RTI'!$D$42 ->  | AZ36: ='SSI Inputs RTI'!$Q$20 -> 175 | BA36: ='SSI Inputs RTI'!$Q$21 -> 175 | BB36: ='SSI Inputs RTI'!$Q$22 -> 175 | BC36: ='SSI Inputs RTI'!$Q$23 -> 175 | BD36: O | BE36: ='SSI Inputs RTI'!$D$28 ->  | BF36: ='SSI Inputs RTI'!$D$29 ->  | BG36: ='SSI Inputs RTI'!$D$30 ->  | BH36: ='SSI Inputs RTI'!$D$32 ->  | BI36: ='SSI Inputs RTI'!$D$33 ->  | BJ36: ='SSI Inputs RTI'!$D$34 ->  | BK36: ='SSI Inputs RTI'!$D$36 ->  | BL36: ='SSI Inputs RTI'!$D$37 ->  | BM36: ='SSI Inputs RTI'!$D$38 ->  | BN36: ='SSI Inputs RTI'!$D$40 ->  | BO36: ='SSI Inputs RTI'!$D$41 ->  | BP36: ='SSI Inputs RTI'!$D$42 ->  | BQ36: ='SSI Inputs RTI'!$Q$20 -> 175 | BR36: ='SSI Inputs RTI'!$Q$21 -> 175 | BS36: ='SSI Inputs RTI'!$Q$22 -> 175 | BT36: ='SSI Inputs RTI'!$Q$23 -> 175
AM37: D | AN37: ='SSI Inputs RTI'!$E$28 ->  | AO37: ='SSI Inputs RTI'!$E$29 ->  | AP37: ='SSI Inputs RTI'!$E$30 ->  | AQ37: ='SSI Inputs RTI'!$E$32 ->  | AR37: ='SSI Inputs RTI'!$E$33 ->  | AS37: ='SSI Inputs RTI'!$E$34 ->  | AT37: ='SSI Inputs RTI'!$E$36 ->  | AU37: ='SSI Inputs RTI'!$E$37 ->  | AV37: ='SSI Inputs RTI'!$E$38 ->  | AW37: ='SSI Inputs RTI'!$E$40 ->  | AX37: ='SSI Inputs RTI'!$E$41 ->  | AY37: ='SSI Inputs RTI'!$E$42 ->  | AZ37: ='SSI Inputs RTI'!$R$20 -> 175 | BA37: ='SSI Inputs RTI'!$R$21 -> 175 | BB37: ='SSI Inputs RTI'!$R$22 -> 175 | BC37: ='SSI Inputs RTI'!$R$23 -> 175 | BD37: D | BE37: ='SSI Inputs RTI'!$E$28 ->  | BF37: ='SSI Inputs RTI'!$E$29 ->  | BG37: ='SSI Inputs RTI'!$E$30 ->  | BH37: ='SSI Inputs RTI'!$E$32 ->  | BI37: ='SSI Inputs RTI'!$E$33 ->  | BJ37: ='SSI Inputs RTI'!$E$34 ->  | BK37: ='SSI Inputs RTI'!$E$36 ->  | BL37: ='SSI Inputs RTI'!$E$37 ->  | BM37: ='SSI Inputs RTI'!$E$38 ->  | BN37: ='SSI Inputs RTI'!$E$40 ->  | BO37: ='SSI Inputs RTI'!$E$41 ->  | BP37: ='SSI Inputs RTI'!$E$42 ->  | BQ37: ='SSI Inputs RTI'!$R$20 -> 175 | BR37: ='SSI Inputs RTI'!$R$21 -> 175 | BS37: ='SSI Inputs RTI'!$R$22 -> 175 | BT37: ='SSI Inputs RTI'!$R$23 -> 175
J101: Exposure | AK101: Exposure-Severity-Complexity Product
J102: Q1 | K102: Q2 | L102: I
J103: =SUMPRODUCT($AN4:$BC4,$AN$37:$BC$37) -> 0 | K103: =SUMPRODUCT($BE4:$BT4,$BE$37:$BT$37) -> 0 | L103: =PRODUCT(J103:K103) -> 0 | AK103: =L103*R4*AI4 -> 0
J104: 0 | K104: 0 | L104: =PRODUCT(J104:K104) -> 0 | AK104: =L104*R5*AI5 -> 0
J105: 0 | K105: 0 | L105: 0 | AK105: 0
J106: 0 | K106: 0 | L106: 0 | AK106: 0
J107: 0 | K107: 0 | L107: 0 | AK107: 0
J108: 0 | K108: 0 | L108: 0 | AK108: 0
J109: 0 | K109: 0 | L109: 0 | AK109: 0
J110: 0 | K110: 0 | L110: 0 | AK110: 0
J111: 0 | K111: 0 | L111: 0 | AK111: 0
J112: 0 | K112: 0 | L112: 0 | AK112: 0
J113: 0 | K113: 0 | L113: 0 | AK113: 0
J114: 0 | K114: 0 | L114: 0 | AK114: 0
J115: 0 | K115: 0 | L115: 0 | AK115: 0
J116: 0 | K116: 0 | L116: 0 | AK116: 0
J117: 0 | K117: 0 | L117: 0 | AK117: 0
J118: 0 | K118: 0 | L118: 0 | AK118: 0
J119: 0 | K119: 0 | L119: 0 | AK119: 0
J120: 0 | K120: 0 | L120: 0 | AK120: 0
J121: 175 | K121: 0 | L121: 0 | AK121: 0
J122: 175 | K122: 0 | L122: 0 | AK122: 0
J123: 175 | K123: 0 | L123: 0 | AK123: 0
J124: 350 | K124: 0 | L124: 0 | AK124: 0
J125: 175 | K125: 0 | L125: =PRODUCT(J125:K125) -> 0 | AK125: 0
J126: 175 | K126: 0 | L126: 0 | AK126: 0
J127: 175 | K127: 0 | L127: 0 | AK127: 0
J128: 175 | K128: 0 | L128: 0 | AK128: 0
J129: 175 | K129: 0 | L129: 0 | AK129: 0
J130: 175 | K130: 0 | L130: 0 | AK130: 0
J131: 350 | K131: 0 | L131: 0 | AK131: 0
J132: 175 | K132: 0 | L132: 0 | AK132: 0
J133: 175 | K133: 0 | L133: 0 | AK133: 0
J134: 175 | K134: 0 | L134: 0 | AK134: 0

Sheet Half_Diamond (hidden)
T1: Conflicting Traffic Complexity | AE1: Pedestrian Complexity | BW1: *impact of median on complexity factors
J2: Exposure | N2: Severity | T2: Traffic Control | V2: Conflicting Lanes | AB2: Conflicting Speed | AE2: Indirect Paths Indicator | AF2: Non-intuitive movements indicator | AG2: Pedestrian Complexity factor | AI2: Total Complexity Multiplier | AK2: Exposure-Severity-Complexity Product | AN2: Included in Mvmt1 | BE2: Included in Mvmt2 | BY2: Cross-street: No, Ramps: No | CD2: Cross-street: Yes, Ramps: No | CI2: Cross-street: No, Ramps: Yes | CN2: Cross-street: Yes, Ramps: Yes
A3: # | B3: Conflict Type | C3: Mvmt1 | D3: Mvmt1_gen | E3: Mvmt1_SpeedCat | F3: Mvmt2 | G3: Mvmt2_gen | H3: Mvmt2_SpeedCat | J3: Q1 | K3: Q2 | L3: I | N3: Speed_V1 | O3: Speed_V2 | P3: Angle | Q3: delta_V | R3: P_FSI | V3: CrossC | W3: RampC | X3: CrossM/P | Y3: RampM/P | Z3: Score | AB3: Speed | AC3: Factor | AN3: CrossT1 | AO3: CrossL1 | AP3: CrossR1 | AQ3: CrossT2 | AR3: CrossL2 | AS3: CrossR2 | AT3: RampT1 | AU3: RampL1 | AV3: RampR1 | AW3: RampT2 | AX3: RampL2 | AY3: RampR2 | AZ3: CrossNM1 | BA3: CrossNM2 | BB3: RampNM1 | BC3: RampNM2 | BE3: CrossT1 | BF3: CrossL1 | BG3: CrossR1 | BH3: CrossT2 | BI3: CrossL2 | BJ3: CrossR2 | BK3: RampT1 | BL3: RampL1 | BM3: RampR1 | BN3: RampT2 | BO3: RampL2 | BP3: RampR2 | BQ3: CrossNM1 | BR3: CrossNM2 | BS3: RampNM1 | BT3: RampNM2 | BW3: # | BX3: Conflict Type | BY3: MajC | BZ3: MinC | CA3: MajM/P | CB3: MinM/P | CD3: MajC | CE3: MinC | CF3: MajM/P | CG3: MinM/P | CI3: MajC | CJ3: MinC | CK3: MajM/P | CL3: MinM/P | CN3: MajC | CO3: MinC | CP3: MajM/P | CQ3: MinM/P
A4: 1 | B4: Crossing - LT | C4: WBL | D4: CrossL2 | E4: Cross left | F4: EBT | G4: CrossT1 | H4: Cross thru | J4: =SUMPRODUCT($AN4:$BC4,$AN$20:$BC$20) -> 0 | K4: =SUMPRODUCT($BE4:$BT4,$BE$20:$BT$20) -> 0 | L4: =PRODUCT(J4:K4) -> 0 | N4: =VLOOKUP(E4,SSI_RTI_Range_VehSpeed,5,FALSE) -> 20 | O4: =VLOOKUP(H4,SSI_RTI_Range_VehSpeed,5,FALSE) -> 0 | P4: =IF(B4="Nonmotorized","",VLOOKUP(B4,SSI_RTI_Range_CollAngles,5,FALSE)) -> 230 | Q4: =IF(B4="Nonmotorized","",SQRT(N4^2+O4^2-2*N4*O4*COS(RADIANS(P4)))/2) -> 10 | R4: =IF(B4="Nonmotorized",1/(1+EXP(3.8432-0.1237*O4)),(Q4/SSI_RTI_RegAlpha)^SSI_RTI_RegK+(Q4/SSI_RTI_RegAlpha)^SSI_RTI_RegK-((Q4/SSI_RTI_RegAlpha)^SSI_RTI_RegK)*((Q4/SSI_RTI_RegAlpha)^SSI_RTI_RegK)) -> 0.001443139223 | T4: =IF(SSI_RTI_CrossLTPhase="Protected/permitted",SSI_RTI_ProtPermFactor,IF(SSI_RTI_CrossLTPhase="Protected",SSI_RTI_ProtFactor,SSI_RTI_PermFactor)) -> 0.505 | V4: =IF(AND(SSI_RTI_CrossStMedian="No", SSI_RTI_RampMedian="No"),BY4,IF(AND(SSI_RTI_CrossStMedian="Yes",SSI_RTI_RampMedian="No"),CD4,IF(AND(SSI_RTI_CrossStMedian="No",SSI_RTI_RampMedian="Yes"),CI4,IF(AND(SSI_RTI_CrossStMedian="Yes",SSI_RTI_RampMedian="Yes"),CN4)))) -> FALSE | W4: FALSE | X4: FALSE | Y4: FALSE | Z4: =MAX(1,IF(B4<>"Pedestrian",V4*SSI_RTI_CrossThruLanes+W4*SSI_RTI_Ramp1ThruLanes+X4*IF(SSI_RTI_CrossThruLanes=1,SSI_RTI_MergeWeightL1,IF(SSI_RTI_CrossThruLanes=2,SSI_RTI_MergeWeightL1+SSI_RTI_MergeWeightL2,SSI_RTI_MergeWeightL1+SSI_RTI_MergeWeightL2+SSI_RTI_MergeWeightL3*(SSI_RTI_CrossThruLanes-2)))+Y4*IF(SSI_RTI_Ramp1ThruLanes=1,SSI_RTI_MergeWeightL1,IF(SSI_RTI_Ramp1ThruLanes=2,SSI_RTI_MergeWeightL1+SSI_RTI_MergeWeightL2,SSI_RTI_MergeWeightL1+SSI_RTI_MergeWeightL2+SSI_RTI_MergeWeightL3*(SSI_RTI_Ramp1ThruLanes-2))),V4*SSI_RTI_CrossThruLanes+W4*SSI_RTI_Ramp1ThruLanes+X4*IF(SSI_RTI_CrossThruLanes=1,SSI_RTI_NM_MergeWeightL1,IF(SSI_RTI_CrossThruLanes=2,SSI_RTI_NM_MergeWeightL1+SSI_RTI_NM_MergeWeightL2,SSI_RTI_NM_MergeWeightL1+SSI_RTI_NM_MergeWeightL2+SSI_RTI_NM_MergeWeightL3*(SSI_RTI_CrossThruLanes-2)))+Y4*IF(SSI_RTI_Ramp1ThruLanes=1,SSI_RTI_NM_MergeWeightL1,IF(SSI_RTI_Ramp1ThruLanes=2,SSI_RTI_NM_MergeWeightL1+SSI_RTI_NM_MergeWeightL2,SSI_RTI_NM_MergeWeightL1+SSI_RTI_NM_MergeWeightL2+SSI_RTI_NM_MergeWeightL3*(SSI_RTI_Ramp1ThruLanes-2))))) -> 1 | AB4: =IF(B4="Diverging","",SSI_RTI_VehSpeed_CrossThru) -> 0 | AC4: =IF(B4="Diverging",1,1-((60-AB4)/60*0.1/0.15)) -> 0.3333333333 | AG4: =1+AE4+AF4 -> 1 | AI4: =PRODUCT(Z4,T4,AC4,AG4) -> 0.1683333333 | AK4: =L4*R4*AI4 -> 0 | AN4: =IF(ISNUMBER(SEARCH(AN$3,$D4)),1,"") ->  | AO4: =IF(ISNUMBER(SEARCH(AO$3,$D4)),1,"") ->  | AR4: 1 | BE4: =IF(ISNUMBER(SEARCH(BE$3,$G4)),1,"") -> 1 | BF4: =IF(ISNUMBER(SEARCH(BF$3,$G4)),1,"") ->  | BW4: 1 | BX4: Crossing - LT | BY4: 1 | CD4: 1 | CI4: 1 | CN4: 1
A5: 2 | B5: Crossing - LT | C5: NBL | D5: RampL1 | E5: Signal near | F5: EBT | G5: CrossT1 | H5: Cross thru | J5: 0 | K5: 0 | L5: =PRODUCT(J5:K5) -> 0 | N5: 15 | O5: 0 | P5: 230 | Q5: =IF(B5="Nonmotorized","",SQRT(N5^2+O5^2-2*N5*O5*COS(RADIANS(P5)))/2) -> 7.5 | R5: 0.0004845430153 | T5: =SSI_RTI_ProtFactor -> 0.505 | V5: FALSE | W5: FALSE | X5: FALSE | Y5: FALSE | Z5: 1 | AB5: 0 | AC5: 0.3333333333 | AG5: =1+AE5+AF5 -> 1 | AI5: 0.1683333333 | AK5: =L5*R5*AI5 -> 0 | AN5: =IF(ISNUMBER(SEARCH(AN$3,$D5)),1,"") ->  | AU5: 1 | BE5: =IF(ISNUMBER(SEARCH(BE$3,$G5)),1,"") -> 1 | BW5: 2 | BX5: Crossing - LT | BY5: 1 | CA5: 1 | CD5: 1 | CI5: 1 | CK5: 1 | CN5: 1
A6: 3 | B6: Merging | C6: EBR | D6: CrossR1 | E6: Cross right | F6: WBL | G6: CrossL2 | H6: Cross left | J6: 0 | K6: 0 | L6: 0 | N6: 15 | O6: 20 | P6: 45 | Q6: 7.084065416 | R6: 0.0003902292327 | T6: =SSI_RTI_PermFactor -> 1 | V6: FALSE | W6: FALSE | X6: FALSE | Y6: FALSE | Z6: 1 | AB6: =IF(B6="Diverging","",SSI_RTI_VehSpeed_RampThru) -> 0 | AC6: 0.3333333333 | AG6: 1 | AI6: 0.3333333333 | AK6: 0 | AP6: 1 | BI6: 1 | BW6: 3 | BX6: Merging | CB6: 1 | CG6: 1 | CL6: 1 | CQ6: 1
A7: 4 | B7: Merging | C7: NBL | D7: RampL1 | E7: Signal far | F7: WBT,WBL | G7: CrossT2,CrossL2 | H7: Cross thru | J7: 0 | K7: 0 | L7: 0 | N7: 25 | O7: 0 | P7: 45 | Q7: 12.5 | R7: 0.003363755169 | T7: 0.505 | V7: FALSE | W7: FALSE | X7: FALSE | Y7: FALSE | Z7: 1 | AB7: 0 | AC7: 0.3333333333 | AG7: 1 | AI7: 0.1683333333 | AK7: 0 | AU7: 1 | BH7: 1 | BI7: 1 | BW7: 4 | BX7: Merging | BY7: 1 | CA7: 1 | CF7: 1 | CI7: 1 | CK7: 1 | CP7: 1
A8: 5 | B8: Merging | C8: NBR | D8: RampR1 | E8: Ramp right | F8: EBT | G8: CrossT1 | H8: Cross thru | J8: 0 | K8: 0 | L8: 0 | N8: 15 | O8: 0 | P8: 45 | Q8: 7.5 | R8: 0.0004845430153 | T8: 1 | V8: FALSE | W8: FALSE | X8: FALSE | Y8: FALSE | Z8: 1 | AB8: 0 | AC8: 0.3333333333 | AG8: 1 | AI8: 0.3333333333 | AK8: 0 | AV8: 1 | BE8: 1 | BW8: 5 | BX8: Merging | CA8: 1 | CF8: 1 | CK8: 1 | CP8: 1
A9: 6 | B9: Diverging | C9: EBR | D9: CrossR1 | E9: Cross right | F9: EBT | G9: CrossT1 | H9: Cross thru | J9: 0 | K9: 0 | L9: 0 | N9: 15 | O9: 0 | P9: 10 | Q9: 7.5 | R9: 0.0004845430153 | T9: 1 | V9: FALSE | W9: FALSE | X9: FALSE | Y9: FALSE | Z9: 1 | AC9: 1 | AG9: 1 | AI9: 1 | AK9: 0 | AP9: 1 | BE9: 1 | BW9: 6 | BX9: Diverging
A10: 7 | B10: Diverging | C10: WBT,NBL | D10: CrossT2,RampL1 | E10: Cross thru | F10: WBL | G10: CrossL2 | H10: Cross left | J10: 0 | K10: 0 | L10: 0 | N10: 0 | O10: 20 | P10: 10 | Q10: 10 | R10: 0.001443139223 | T10: =SSI_RTI_PermFactor -> 1 | V10: FALSE | W10: FALSE | X10: FALSE | Y10: FALSE | Z10: 1 | AC10: 1 | AG10: 1 | AI10: 1 | AK10: 0 | AQ10: 1 | AU10: 1 | BI10: 1 | BW10: 7 | BX10: Diverging
A11: 8 | B11: Diverging | C11: NBL | D11: RampL1 | E11: Signal near | F11: NBR | G11: RampR1 | H11: Ramp right | J11: 0 | K11: 0 | L11: 0 | N11: 15 | O11: 15 | P11: 10 | Q11: 1.307336141 | R11: 6.406138808e-07 | T11: 1 | V11: FALSE | W11: FALSE | X11: FALSE | Y11: FALSE | Z11: 1 | AC11: 1 | AG11: 1 | AI11: 1 | AK11: 0 | AU11: 1 | BM11: 1 | BW11: 8 | BX11: Diverging
A12: 9 | B12: Nonmotorized | D12: CrossNM1 | E12: Nonmotorized | F12: WBT,NBL | G12: CrossT2,RampL1 | H12: Cross thru | J12: 175 | K12: 0 | L12: 0 | N12: 0 | O12: 0 | R12: 0.0209755324 | T12: =SSI_RTI_ProtFactor -> 0.505 | V12: FALSE | W12: FALSE | X12: FALSE | Y12: FALSE | Z12: 1 | AB12: 0 | AC12: 0.3333333333 | AG12: 1 | AI12: 0.1683333333 | AK12: 0 | AZ12: 1 | BH12: 1 | BL12: 1 | BW12: 9 | BX12: Nonmotorized | BY12: 2 | CD12: 1 | CI12: 2 | CN12: 1
A13: 10 | B13: Nonmotorized | D13: CrossNM1 | E13: Nonmotorized | F13: EBT | G13: CrossT1 | H13: Cross thru | J13: 175 | K13: 0 | L13: 0 | N13: 0 | O13: 0 | R13: 0.0209755324 | T13: 0.505 | V13: FALSE | W13: FALSE | X13: FALSE | Y13: FALSE | Z13: 1 | AB13: 0 | AC13: 0.3333333333 | AG13: 1 | AI13: 0.1683333333 | AK13: 0 | AZ13: 1 | BE13: 1 | BW13: 10 | BX13: Nonmotorized | BY13: 2 | CD13: 1 | CI13: 2 | CN13: 1
A14: 11 | B14: Nonmotorized | D14: RampNM1 | E14: Nonmotorized | F14: WBL | G14: CrossL2 | H14: Cross left | J14: 175 | K14: 0 | L14: 0 | N14: 0 | O14: 20 | R14: 0.2027491292 | T14: =IF(SSI_RTI_CrossLTPhase="Protected/permitted",SSI_RTI_ProtPermFactor,IF(SSI_RTI_CrossLTPhase="Protected",SSI_RTI_ProtFactor,SSI_RTI_PermFactor)) -> 0.505 | V14: FALSE | W14: FALSE | X14: FALSE | Y14: FALSE | Z14: 1 | AB14: 0 | AC14: 0.3333333333 | AG14: 1 | AI14: 0.1683333333 | AK14: 0 | BB14: 1 | BI14: 1 | BW14: 11 | BX14: Nonmotorized | BZ14: 1 | CA14: 1 | CE14: 1 | CF14: 1 | CJ14: 1 | CK14: 1 | CO14: 1 | CP14: 1
A15: 12 | B15: Nonmotorized | D15: CrossNM1,RampNM1 | E15: Nonmotorized | F15: EBR | G15: CrossR1 | H15: Cross right | J15: 350 | K15: 0 | L15: 0 | N15: 0 | O15: 15 | R15: 0.1205004039 | T15: 1 | V15: FALSE | W15: FALSE | X15: FALSE | Y15: FALSE | Z15: 1 | AB15: 0 | AC15: 0.3333333333 | AG15: 1 | AI15: 0.3333333333 | AK15: 0 | AZ15: 1 | BB15: 1 | BG15: 1 | BW15: 12 | BX15: Nonmotorized | BZ15: 1 | CA15: 1 | CE15: 1 | CF15: 1 | CJ15: 1 | CK15: 1 | CO15: 1 | CP15: 1
A16: 13 | B16: Nonmotorized | D16: CrossNM2 | E16: Nonmotorized | F16: WBT,WBL | G16: CrossT2,CrossL2 | H16: Cross thru | J16: 175 | K16: 0 | L16: 0 | N16: 0 | O16: 0 | R16: 0.0209755324 | T16: =SSI_RTI_ProtFactor -> 0.505 | V16: FALSE | W16: FALSE | X16: FALSE | Y16: FALSE | Z16: 1 | AB16: 0 | AC16: 0.3333333333 | AG16: 1 | AI16: 0.1683333333 | AK16: 0 | BA16: 1 | BH16: 1 | BI16: 1 | BW16: 13 | BX16: Nonmotorized | BY16: 2 | CD16: 1 | CI16: 2 | CN16: 1
A17: 14 | B17: Nonmotorized | D17: CrossNM2 | E17: Nonmotorized | F17: EBT | G17: CrossT1 | H17: Cross thru | J17: 175 | K17: 0 | L17: 0 | N17: 0 | O17: 0 | R17: 0.0209755324 | T17: =SSI_RTI_ProtFactor -> 0.505 | V17: FALSE | W17: FALSE | X17: FALSE | Y17: FALSE | Z17: 1 | AB17: 0 | AC17: 0.3333333333 | AG17: 1 | AI17: 0.1683333333 | AK17: 0 | BA17: 1 | BE17: 1 | BW17: 14 | BX17: Nonmotorized | BY17: 2 | CD17: 1 | CI17: 2 | CN17: 1
A18: 15 | B18: Nonmotorized | D18: RampNM1 | E18: Nonmotorized | F18: NBL | G18: RampL1 | H18: Signal near | J18: 175 | K18: 0 | L18: 0 | N18: 0 | O18: 15 | R18: 0.1205004039 | T18: =SSI_RTI_ProtFactor -> 0.505 | V18: FALSE | W18: FALSE | X18: FALSE | Y18: FALSE | Z18: 1 | AB18: =IF(B18="Diverging","",SSI_RTI_VehSpeed_RampThru) -> 0 | AC18: 0.3333333333 | AG18: 1 | AI18: 0.1683333333 | AK18: 0 | BB18: 1 | BL18: 1 | BW18: 15 | BX18: Nonmotorized | BZ18: 1 | CE18: 1 | CJ18: 1 | CO18: 1
A19: 16 | B19: Nonmotorized | D19: CrossNM2,RampNM1 | E19: Nonmotorized | F19: NBR | G19: RampR1 | H19: Ramp right | J19: 350 | K19: 0 | L19: 0 | N19: 0 | O19: 15 | R19: 0.1205004039 | T19: 1 | V19: FALSE | W19: FALSE | X19: FALSE | Y19: FALSE | Z19: 1 | AB19: =IF(B19="Diverging","",SSI_RTI_VehSpeed_RampThru) -> 0 | AC19: 0.3333333333 | AG19: 1 | AI19: 0.3333333333 | AK19: 0 | BA19: 1 | BB19: 1 | BM19: 1 | BW19: 16 | BX19: Nonmotorized | BZ19: 1 | CE19: 1 | CJ19: 1 | CO19: 1
AM20: O | AN20: ='SSI Inputs RTI'!$D$28 ->  | AO20: ='SSI Inputs RTI'!$D$29 ->  | AP20: ='SSI Inputs RTI'!$D$30 ->  | AQ20: ='SSI Inputs RTI'!$D$32 ->  | AR20: ='SSI Inputs RTI'!$D$33 ->  | AS20: ='SSI Inputs RTI'!$D$34 ->  | AT20: ='SSI Inputs RTI'!$D$36 ->  | AU20: ='SSI Inputs RTI'!$D$37 ->  | AV20: ='SSI Inputs RTI'!$D$38 ->  | AW20: ='SSI Inputs RTI'!$D$40 ->  | AX20: ='SSI Inputs RTI'!$D$41 ->  | AY20: ='SSI Inputs RTI'!$D$42 ->  | AZ20: ='SSI Inputs RTI'!$Q$20 -> 175 | BA20: ='SSI Inputs RTI'!$Q$21 -> 175 | BB20: ='SSI Inputs RTI'!$Q$22 -> 175 | BC20: ='SSI Inputs RTI'!$Q$23 -> 175 | BD20: O | BE20: ='SSI Inputs RTI'!$D$28 ->  | BF20: ='SSI Inputs RTI'!$D$29 ->  | BG20: ='SSI Inputs RTI'!$D$30 ->  | BH20: ='SSI Inputs RTI'!$D$32 ->  | BI20: ='SSI Inputs RTI'!$D$33 ->  | BJ20: ='SSI Inputs RTI'!$D$34 ->  | BK20: ='SSI Inputs RTI'!$D$36 ->  | BL20: ='SSI Inputs RTI'!$D$37 ->  | BM20: ='SSI Inputs RTI'!$D$38 ->  | BN20: ='SSI Inputs RTI'!$D$40 ->  | BO20: ='SSI Inputs RTI'!$D$41 ->  | BP20: ='SSI Inputs RTI'!$D$42 ->  | BQ20: ='SSI Inputs RTI'!$Q$20 -> 175 | BR20: ='SSI Inputs RTI'!$Q$21 -> 175 | BS20: ='SSI Inputs RTI'!$Q$22 -> 175 | BT20: ='SSI Inputs RTI'!$Q$23 -> 175
AM21: D | AN21: ='SSI Inputs RTI'!$E$28 ->  | AO21: ='SSI Inputs RTI'!$E$29 ->  | AP21: ='SSI Inputs RTI'!$E$30 ->  | AQ21: ='SSI Inputs RTI'!$E$32 ->  | AR21: ='SSI Inputs RTI'!$E$33 ->  | AS21: ='SSI Inputs RTI'!$E$34 ->  | AT21: ='SSI Inputs RTI'!$E$36 ->  | AU21: ='SSI Inputs RTI'!$E$37 ->  | AV21: ='SSI Inputs RTI'!$E$38 ->  | AW21: ='SSI Inputs RTI'!$E$40 ->  | AX21: ='SSI Inputs RTI'!$E$41 ->  | AY21: ='SSI Inputs RTI'!$E$42 ->  | AZ21: ='SSI Inputs RTI'!$R$20 -> 175 | BA21: ='SSI Inputs RTI'!$R$21 -> 175 | BB21: ='SSI Inputs RTI'!$R$22 -> 175 | BC21: ='SSI Inputs RTI'!$R$23 -> 175 | BD21: D | BE21: ='SSI Inputs RTI'!$E$28 ->  | BF21: ='SSI Inputs RTI'!$E$29 ->  | BG21: ='SSI Inputs RTI'!$E$30 ->  | BH21: ='SSI Inputs RTI'!$E$32 ->  | BI21: ='SSI Inputs RTI'!$E$33 ->  | BJ21: ='SSI Inputs RTI'!$E$34 ->  | BK21: ='SSI Inputs RTI'!$E$36 ->  | BL21: ='SSI Inputs RTI'!$E$37 ->  | BM21: ='SSI Inputs RTI'!$E$38 ->  | BN21: ='SSI Inputs RTI'!$E$40 ->  | BO21: ='SSI Inputs RTI'!$E$41 ->  | BP21: ='SSI Inputs RTI'!$E$42 ->  | BQ21: ='SSI Inputs RTI'!$R$20 -> 175 | BR21: ='SSI Inputs RTI'!$R$21 -> 175 | BS21: ='SSI Inputs RTI'!$R$22 -> 175 | BT21: ='SSI Inputs RTI'!$R$23 -> 175
J101: Exposure | AK101: Exposure-Severity-Complexity Product
J102: Q1 | K102: Q2 | L102: I
J103: =SUMPRODUCT($AN4:$BC4,$AN$21:$BC$21) -> 0 | K103: =SUMPRODUCT($BE4:$BT4,$BE$21:$BT$21) -> 0 | L103: =PRODUCT(J103:K103) -> 0 | AK103: =L103*R4*AI4 -> 0
J104: 0 | K104: 0 | L104: =PRODUCT(J104:K104) -> 0 | AK104: 0
J105: 0 | K105: 0 | L105: 0 | AK105: 0
J106: 0 | K106: 0 | L106: 0 | AK106: 0
J107: 0 | K107: 0 | L107: 0 | AK107: 0
J108: 0 | K108: 0 | L108: 0 | AK108: 0
J109: 0 | K109: 0 | L109: 0 | AK109: 0
J110: 0 | K110: 0 | L110: 0 | AK110: 0
J111: 175 | K111: 0 | L111: 0 | AK111: 0
J112: 175 | K112: 0 | L112: 0 | AK112: 0
J113: 175 | K113: 0 | L113: 0 | AK113: 0
J114: 350 | K114: 0 | L114: 0 | AK114: 0
J115: 175 | K115: 0 | L115: 0 | AK115: 0
J116: 175 | K116: 0 | L116: 0 | AK116: 0
J117: 175 | K117: 0 | L117: 0 | AK117: 0
J118: 350 | K118: 0 | L118: 0 | AK118: 0

Sheet SSI Inputs RTI (hidden)
A1: Safe System for Intersection (SSI) Inputs
A2: Specify the geomtric, exposure, severity, and conflicting traffic complexity inputs required for an SSI analysis.
B4: 1. Roadway Geometry | F4: Lanes | H4: Major Street Designation | N4: Required Inputs
B5: Cross-Street # of Thru Lanes (one direction) | H5: Select major street direction | K5: N-S | N5: Default Available, Override Optional
B6: Ramp 1 # of Lanes | H6: Median Presence on Cross Street | N6: Planning-Level Default Input
B7: Ramp 2 # of Lanes | H7: Median Presence on Ramps | N7: Computed Value, Override Optional
N8: Computed Value - No Override
B9: 2. Complete the "Exposure" inputs. These inputs will apply to all interesections selected for analysis. | N9: Disabled Cell (Often based on input selections)
B10: 3. Complete the "Severity" inputs
B11: 4. Complete the "Conflicting Traffic Complexity" inputs
B13: 2. Exposure - All Intersections
B14: Average Daily Traffic (veh/day) | E14: Open | F14: Design | H14: ADT Directional Split | M14: Nonmotorized Total ADBP (ped-bike/day) | Q14: Activity Level | R14: ADBP Value (ped-bike/day)
B15: Cross-Street | E15: =IF(AND(Input_RTI_OAADTOut1 > 0, Input_RTI_OAADTOut2>0),MAX(Input_RTI_OAADTOut1, Input_RTI_OAADTOut2),"--") -> -- | F15: =IF(AND(Input_RTI_DAADTOut1 > 0, Input_RTI_DAADTOut2>0),MAX(Input_RTI_DAADTOut1, Input_RTI_DAADTOut2),"--") -> -- | H15: Cross-street Inner Leg | K15: 0.5 | M15: Open Year Total Intersection NM | Q15: Medium (700) | R15: 700
B16: Ramp 1 | E16: =IF(Input_RTI_OAADTEx1>0,Input_RTI_OAADTEx1,"--") -> -- | F16: =IF(Input_RTI_DAADTEx1>0,Input_RTI_DAADTEx1,"--") -> -- | H16: Cross-Street Outer Leg | K16: 0.5 | M16: Design Year Total Intersection NM | Q16: Medium (700) | R16: 700
B17: Ramp 2 | E17: =IF(Input_RTI_OAADTEx2>0,Input_RTI_OAADTEx2,"--") -> -- | F17: =IF(Input_RTI_DAADTEx2>0,Input_RTI_DAADTEx2,"--") -> -- | M17: (or overwrite ped movement ADBPs below)
B19: Are turning movement ADT values are available? | H19: If "Yes", input values in Table 2-A | M19: Nonmotorized Movement ADBP (ped-bike/day) | Q19: Open | R19: Design
B20: Are peak hour turning movement counts available? | H20: If "Yes", input values in Table 2-B | M20: Major NM 1 (NM mvmt crossing Maj1) | Q20: =$R$15/4 -> 175 | R20: =$R$16/4 -> 175
B21: If no turning movment volumes or counts are available, a user can optionally override the planning-level default turning movment proportions in Table 2-C | M21: Major NM 2 | Q21: =$R$15/4 -> 175 | R21: =$R$16/4 -> 175
M22: Minor NM 1 | Q22: =$R$15/4 -> 175 | R22: =$R$16/4 -> 175
M23: Minor NM 2 | Q23: =$R$15/4 -> 175 | R23: =$R$16/4 -> 175
B26: Table 2-A: Turning Movement (vol/day) | G26: Table 2-B: Turning Movement Counts (Optional) | P26: Table 2-C: Turning Proportions (optional) | T26: Turning movment proportions specified in Table 2-C (and by extension, the percentages determined in Table 2-B) are considered to be constant between the Open and Design years of the analysis.
D27: Open | E27: Design | I27: Mvmt | J27: AM Peak | K27: AM % | L27: PM Peak | M27: PM % | N27: Avg % | R27: Decimal
B28: Cross-Street Thru 1 | D28: =IF($G$19 = "No", ROUNDUP($E$15*$K$15*R28,0), "") ->  | E28: =IF($G$19 = "No", ROUNDUP($F$15*$K$15*R28,0),"") ->  | G28: Cross-Street Thru 1 | I28: =IF('Control Strategy Selection'!$D$45=Notes!$J$26,"NB", "EB")&"T" -> EBT | J28: 2065 | K28: =IF(NOT(ISNUMBER(J28)), " ", ROUND(J28/SUM(J$28:J$30),2)) -> 0.61 | L28: 1355 | M28: =IF(NOT(ISNUMBER(L28)), " ", ROUND(L28/SUM(L$28:L$30),2)) -> 0.58 | N28: =IF(OR(G$20="No",G$20="")," ",ROUND(AVERAGE(K28,M28),2)) ->  | P28: Cross-Street Thru 1 | R28: =MAX(0,1-SUM(R29:R30)) -> 1
B29: Cross-Street Left Turn 1 | D29: =IF($G$19 = "No", ROUNDUP($E$15*$K$15*R29,0), "") ->  | E29: =IF($G$19 = "No", ROUNDUP($F$15*$K$15*R29,0),"") ->  | G29: Cross-Street Left Turn 1 | I29: =IF('Control Strategy Selection'!$D$45=Notes!$J$26,"NB", "EB")&"L" -> EBL | J29: 600 | K29: =IF(NOT(ISNUMBER(J29)), " ", ROUND(J29/SUM(J$28:J$30),2)) -> 0.18 | L29: 460 | M29: =IF(NOT(ISNUMBER(L29)), " ", ROUND(L29/SUM(L$28:L$30),2)) -> 0.2 | N29: =IF(OR(G$20="No",G$20="")," ",ROUND(AVERAGE(K29,M29),2)) ->  | P29: Cross-Street Left Turn 1 | R29: =IF(AND(J29<>0,L29<>0),N29,0.25) -> 
B30: Cross-Street Right Turn 1 | D30: =IF($G$19 = "No", ROUNDUP($E$15*$K$15*R30,0), "") ->  | E30: =IF($G$19 = "No", ROUNDUP($F$15*$K$15*R30,0),"") ->  | G30: Cross-Street Right Turn 1 | I30: =IF('Control Strategy Selection'!$D$45=Notes!$J$26,"NB", "EB")&"R" -> EBR | J30: 700 | K30: 0.21 | L30: 520 | M30: 0.22 | P30: Cross-Street Right Turn 1 | R30: =IF(AND(J30<>0,L30<>0),N30,0.25) -> 
B32: Cross-Street Thru 2 | D32: =IF($G$19 = "No", ROUNDUP($E$15*$K$15*R32,0),"") ->  | E32: =IF($G$19 = "No", ROUNDUP($F$15*$K$15*R32,0),"") ->  | G32: Cross-Street Thru 2 | I32: =IF('Control Strategy Selection'!$D$45=Notes!$J$26,"SB", "WB")&"T" -> WBT | J32: 1340 | K32: =IF(NOT(ISNUMBER(J32)), " ", ROUND(J32/SUM(J$32:J$34),2)) -> 0.35 | L32: 1770 | M32: =IF(NOT(ISNUMBER(L32)), " ", L32/SUM(L$32:L$34)) -> 0.4254807692 | N32: =IF(OR(G$20="No",G$20="")," ",ROUND(AVERAGE(K32,M32),2)) ->  | P32: Cross-Street Thru 2 | R32: =MAX(0,1-SUM(R33:R34)) -> 1
B33: Cross-Street Left Turn 2 | D33: =IF($G$19 = "No", ROUNDUP($E$15*$K$15*R33,0),"") ->  | E33: =IF($G$19 = "No", ROUNDUP($F$15*$K$15*R33,0),"") ->  | G33: Cross-Street Left Turn 2 | I33: =IF('Control Strategy Selection'!$D$45=Notes!$J$26,"SB", "WB")&"L" -> WBL | J33: 540 | K33: =IF(NOT(ISNUMBER(J33)), " ", ROUND(J33/SUM(J$32:J$34),2)) -> 0.14 | L33: 770 | M33: =IF(NOT(ISNUMBER(L33)), " ", L33/SUM(L$32:L$34)) -> 0.1850961538 | N33: =IF(OR(G$20="No",G$20="")," ",ROUND(AVERAGE(K33,M33),2)) ->  | P33: Cross-Street Left Turn 2 | R33: =IF(AND(J33<>0,L33<>0),N33,0.25) -> 
B34: Cross-Street Right Turn 2 | D34: =IF($G$19 = "No", ROUNDUP($E$15*$K$15*R34,0),"") ->  | E34: =IF($G$19 = "No", ROUNDUP($F$15*$K$15*R34,0),"") ->  | G34: Cross-Street Right Turn 2 | I34: =IF('Control Strategy Selection'!$D$45=Notes!$J$26,"SB", "WB")&"R" -> WBR | J34: 1900 | K34: 0.5 | L34: 1620 | M34: 0.3894230769 | P34: Cross-Street Right Turn 2 | R34: =IF(AND(J34<>0,L34<>0),N34,0.25) -> 
B36: Ramp Thru 1 | D36: =IF($G$19 = "No", ROUNDUP($E$16*R36,0),"") ->  | E36: =IF($G$19 = "No", ROUNDUP($F$16*R36,0),"") ->  | G36: Ramp Thru 1 | I36: =IF('Control Strategy Selection'!$D$45=Notes!$J$26,"EB", "NB")&"T" -> NBT | J36: 0 | K36: =IF(NOT(ISNUMBER(J36)), " ", ROUND(J36/SUM(J$36:J$38),2)) -> 0 | L36: 0 | M36: =IF(NOT(ISNUMBER(L36)), " ", L36/SUM(L$36:L$38)) -> 0 | N36: =IF(OR(G$20="No",G$20="")," ",ROUND(AVERAGE(K36,M36),2)) ->  | P36: Ramp Thru 1 | R36: =MAX(0,1-SUM(R37:R38)) -> 1
B37: Ramp Left Turn 1 | D37: =IF($G$19 = "No", ROUNDUP($E$16*R37,0),"") ->  | E37: =IF($G$19 = "No", ROUNDUP($F$16*R37,0),"") ->  | G37: Ramp Left Turn 1 | I37: =IF('Control Strategy Selection'!$D$45=Notes!$J$26,"EB", "NB")&"L" -> NBL | J37: 365 | K37: =IF(NOT(ISNUMBER(J37)), " ", ROUND(J37/SUM(J$36:J$38),2)) -> 0.27 | L37: 480 | M37: =IF(NOT(ISNUMBER(L37)), " ", L37/SUM(L$36:L$38)) -> 0.3692307692 | N37: =IF(OR(G$20="No",G$20="")," ",ROUND(AVERAGE(K37,M37),2)) ->  | P37: Ramp Left Turn 1 | R37: =IF(AND(J37<>0,L37<>0),N37,0.49) -> 
B38: Ramp Right Turn 1 | D38: =IF($G$19 = "No", ROUNDUP($E$16*R38,0),"") ->  | E38: =IF($G$19 = "No", ROUNDUP($F$16*R38,0),"") ->  | G38: Ramp Right Turn 1 | I38: =IF('Control Strategy Selection'!$D$45=Notes!$J$26,"EB", "NB")&"R" -> NBR | J38: 965 | K38: 0.73 | L38: 820 | M38: 0.6307692308 | P38: Ramp Right Turn 1 | R38: =IF(AND(J38<>0,L38<>0),N38,0.49) -> 
B40: Ramp Thru 2 | D40: =IF($G$19 = "No", ROUNDUP($E$17*R40,0),"") ->  | E40: =IF($G$19 = "No", ROUNDUP($F$17*R40,0),"") ->  | G40: Ramp Thru 2 | I40: =IF('Control Strategy Selection'!$D$45=Notes!$J$26,"WB", "SB")&"T" -> SBT | J40: 0 | K40: =IF(NOT(ISNUMBER(J40)), " ", ROUND(J40/SUM(J$40:J$42),2)) -> 0 | L40: 0 | M40: =IF(NOT(ISNUMBER(L40)), " ", L40/SUM(L$40:L$42)) -> 0 | N40: =IF(OR(G$20="No",G$20="")," ",ROUND(AVERAGE(K40,M40),2)) ->  | P40: Ramp Thru 2 | R40: =MAX(0,1-SUM(R41:R42)) -> 1
B41: Ramp Left Turn 2 | D41: =IF($G$19 = "No", ROUNDUP($E$17*R41,0),"") ->  | E41: =IF($G$19 = "No", ROUNDUP($F$17*R41,0),"") ->  | G41: Ramp Left Turn 2 | I41: =IF('Control Strategy Selection'!$D$45=Notes!$J$26,"WB", "SB")&"L" -> SBL | J41: 1390 | K41: =IF(NOT(ISNUMBER(J41)), " ", ROUND(J41/SUM(J$40:J$42),2)) -> 0.76 | L41: 1690 | M41: =IF(NOT(ISNUMBER(L41)), " ", L41/SUM(L$40:L$42)) -> 0.7191489362 | N41: =IF(OR(G$20="No",G$20="")," ",ROUND(AVERAGE(K41,M41),2)) ->  | P41: Ramp Left Turn 2 | R41: =IF(AND(J41<>0,L41<>0),N41,0.49) -> 
B42: Ramp Right Turn 2 | D42: =IF($G$19 = "No", ROUNDUP($E$17*R42,0),"") ->  | E42: =IF($G$19 = "No", ROUNDUP($F$17*R42,0),"") ->  | G42: Ramp Right Turn 2 | I42: =IF('Control Strategy Selection'!$D$45=Notes!$J$26,"WB", "SB")&"R" -> SBR | J42: 450 | K42: =IF(NOT(ISNUMBER(J42)), " ", ROUND(J42/SUM(J$40:J$42),2)) -> 0.24 | L42: 660 | M42: 0.2808510638 | P42: Ramp Right Turn 2 | R42: =IF(AND(J42<>0,L42<>0),N42,0.49) -> 
B45: 3. Severity | H45: 4. Conflicting Traffic Complexity
B47: Vehicle Speeds | F47: mph | H47: Traffic Control | M47: Decimal
B48: Cross-Street Posted Speed Limit | H48: Base Traffic Control Adjustment Value (BTCAV) for permitted | M48: 1
B49: Ramp Posted Speed Limit | H49: Base Traffic Control Adjustment Value (BTCAV) for protected/permitted | M49: 0.85
H50: Base Traffic Control Adjustment Value (BTCAV) for protected | M50: 0.01
B51: Cross thru | F51: =$F$48 -> 0 | H51: Base Traffic Control Adjustment Value (BTCAV) for stop-controlled | M51: 0.45
B52: Cross left | F52: 20
B53: Cross right | F53: 15 | H53: Weight, f, for permitted | M53: 0.5
B54: Ramp thru | F54: =$F$49*0.85 -> 0 | H54: Weight, f, for protected/permitted | M54: 0.5
B55: Ramp left | F55: 20 | H55: Weight, f, for protected | M55: 0.5
B56: Ramp right | F56: 15 | H56: Weight, f, for stop-controlled | M56: 0.5
B57: Stop near | F57: 15
B58: Stop far | F58: 25 | H58: Cross-Street LT signal phasing (drop-down) | L58: Protected
B59: Signal near | F59: 15 | H59: Ramp LT signal phasing (drop-down) | L59: Protected
B60: Signal far | F60: 25 | H60: Exclusive Pedestrian Phasing (drop-down) | M60: No
B61: RAB entering | F61: 20
B62: RAB circulating | F62: 25 | H62: Traffic Control Parameter (a_traffic control)
B63: RAB exiting | F63: 30 | H63: Permitted | M63: =M48+(1-M53)*(1-M48) -> 1
B64: Nonmotorized | F64: 0 | H64: Protected/permitted | M64: =M49+(1-M54)*(1-M49) -> 0.925
H65: Protected | M65: =M50+(1-M55)*(1-M50) -> 0.505
B66: Collision Angles | F66: deg | H66: Stop-controlled | M66: =M51+(1-M56)*(1-M51) -> 0.725
B67: Crossing | F67: 90
B68: Crossing - LT | F68: 230 | H68: Driver Merging Weights (W)
B69: Crossing - RAB | F69: 60 | H69: Lane 1 (W1) | M69: 1
B70: Merging | F70: 45 | H70: Lane 2 (W2) | M70: 0.75
B71: Diverging | F71: 10 | H71: Lane 3+ (W3+) | M71: 0.5
B73: P(FSI) Regression Parameters | J73: Consider nonmotorized complexity factors (Y/N)
B74: alpha | F74: 67.28618811 | H74: Nonmotorized Complexity
B75: k | F75: 3.794500084 | H75: Nonmotorized Turn Score Weights (W)
H76: Lane 1 (W1) | M76: 1
H77: Lane 2 (W2) | M77: 0.75
H78: Lane 3+ (W3) | M78: 0.5

Sheet SPUI (hidden)
T1: Conflicting Traffic Complexity | AE1: Pedestrian Complexity | BW1: *impact of median on complexity factors
J2: Exposure | N2: Severity | T2: Traffic Control | V2: Conflicting Lanes | AB2: Conflicting Speed | AE2: Indirect Paths Indicator | AF2: Non-intuitive movements indicator | AG2: Pedestrian Complexity factor | AI2: Total Complexity Multiplier | AK2: Exposure-Severity-Complexity Product | AN2: Included in Mvmt1 | BE2: Included in Mvmt2 | BY2: Cross-street: No, Ramps: No Yes | CD2: Cross-street: Yes, Ramps: No Yes | CI2: Cross-street: No, Ramps: Yes | CN2: Cross-street: Yes, Ramps: Yes
A3: # | B3: Conflict Type | C3: Mvmt1 | D3: Mvmt1_gen | E3: Mvmt1_SpeedCat | F3: Mvmt2 | G3: Mvmt2_gen | H3: Mvmt2_SpeedCat | J3: Q1 | K3: Q2 | L3: I | N3: Speed_V1 | O3: Speed_V2 | P3: Angle | Q3: delta_V | R3: P_FSI | V3: CrossC | W3: RampC | X3: CrossM/P | Y3: RampM/P | Z3: Score | AB3: Speed | AC3: Factor | AN3: CrossT1 | AO3: CrossL1 | AP3: CrossR1 | AQ3: CrossT2 | AR3: CrossL2 | AS3: CrossR2 | AT3: RampT1 | AU3: RampL1 | AV3: RampR1 | AW3: RampT2 | AX3: RampL2 | AY3: RampR2 | AZ3: CrossNM1 | BA3: CrossNM2 | BB3: RampNM1 | BC3: RampNM2 | BE3: CrossT1 | BF3: CrossL1 | BG3: CrossR1 | BH3: CrossT2 | BI3: CrossL2 | BJ3: CrossR2 | BK3: RampT1 | BL3: RampL1 | BM3: RampR1 | BN3: RampT2 | BO3: RampL2 | BP3: RampR2 | BQ3: CrossNM1 | BR3: CrossNM2 | BS3: RampNM1 | BT3: RampNM2 | BW3: # | BX3: Conflict Type | BY3: MajC | BZ3: MinC | CA3: MajM/P | CB3: MinM/P | CD3: MajC | CE3: MinC | CF3: MajM/P | CG3: MinM/P | CI3: MajC | CJ3: MinC | CK3: MajM/P | CL3: MinM/P | CN3: MajC | CO3: MinC | CP3: MajM/P | CQ3: MinM/P
A4: 1 | B4: Crossing - LT | C4: EBL | D4: CrossL1 | E4: Cross left | F4: NBL | G4: RampL1 | H4: Signal far | J4: =SUMPRODUCT($AN4:$BC4,$AN$40:$BC$40) -> 0 | K4: =SUMPRODUCT($BE4:$BT4,$BE$40:$BT$40) -> 0 | L4: =PRODUCT(J4:K4) -> 0 | N4: =VLOOKUP(E4,SSI_RTI_Range_VehSpeed,5,FALSE) -> 20 | O4: =VLOOKUP(H4,SSI_RTI_Range_VehSpeed,5,FALSE) -> 25 | P4: =IF(B4="Nonmotorized","",VLOOKUP(B4,SSI_RTI_Range_CollAngles,5,FALSE)) -> 230 | Q4: =IF(B4="Nonmotorized","",SQRT(N4^2+O4^2-2*N4*O4*COS(RADIANS(P4)))/2) -> 20.41927772 | R4: =IF(B4="Nonmotorized",1/(1+EXP(3.8432-0.1237*O4)),(Q4/SSI_RTI_RegAlpha)^SSI_RTI_RegK+(Q4/SSI_RTI_RegAlpha)^SSI_RTI_RegK-((Q4/SSI_RTI_RegAlpha)^SSI_RTI_RegK)*((Q4/SSI_RTI_RegAlpha)^SSI_RTI_RegK)) -> 0.02155528414 | T4: =SSI_RTI_ProtFactor -> 0.505 | V4: =IF(AND(SSI_RTI_CrossStMedian="No", SSI_RTI_RampMedian="No"),BY4,IF(AND(SSI_RTI_CrossStMedian="Yes",SSI_RTI_RampMedian="No"),CD4,IF(AND(SSI_RTI_CrossStMedian="No",SSI_RTI_RampMedian="Yes"),CI4,IF(AND(SSI_RTI_CrossStMedian="Yes",SSI_RTI_RampMedian="Yes"),CN4)))) -> FALSE | W4: =IF(AND(SSI_RTI_CrossStMedian="No", SSI_RTI_RampMedian="No"),BZ4,IF(AND(SSI_RTI_CrossStMedian="Yes",SSI_RTI_RampMedian="No"),CE4,IF(AND(SSI_RTI_CrossStMedian="No",SSI_RTI_RampMedian="Yes"),CJ4,IF(AND(SSI_RTI_CrossStMedian="Yes",SSI_RTI_RampMedian="Yes"),CO4)))) -> FALSE | X4: =IF(AND(SSI_RTI_CrossStMedian="No", SSI_RTI_RampMedian="No"),CA4,IF(AND(SSI_RTI_CrossStMedian="Yes",SSI_RTI_RampMedian="No"),CF4,IF(AND(SSI_RTI_CrossStMedian="No",SSI_RTI_RampMedian="Yes"),CK4,IF(AND(SSI_RTI_CrossStMedian="Yes",SSI_RTI_RampMedian="Yes"),CP4)))) -> FALSE | Y4: =IF(AND(SSI_RTI_CrossStMedian="No", SSI_RTI_RampMedian="No"),CB4,IF(AND(SSI_RTI_CrossStMedian="Yes",SSI_RTI_RampMedian="No"),CG4,IF(AND(SSI_RTI_CrossStMedian="No",SSI_RTI_RampMedian="Yes"),CL4,IF(AND(SSI_RTI_CrossStMedian="Yes",SSI_RTI_RampMedian="Yes"),CQ4)))) -> FALSE | Z4: =MAX(1,IF(B4<>"Pedestrian",V4*SSI_RTI_CrossThruLanes+W4*SSI_RTI_Ramp1ThruLanes+X4*IF(SSI_RTI_CrossThruLanes=1,SSI_RTI_MergeWeightL1,IF(SSI_RTI_CrossThruLanes=2,SSI_RTI_MergeWeightL1+SSI_RTI_MergeWeightL2,SSI_RTI_MergeWeightL1+SSI_RTI_MergeWeightL2+SSI_RTI_MergeWeightL3*(SSI_RTI_CrossThruLanes-2)))+Y4*IF(SSI_RTI_Ramp1ThruLanes=1,SSI_RTI_MergeWeightL1,IF(SSI_RTI_Ramp1ThruLanes=2,SSI_RTI_MergeWeightL1+SSI_RTI_MergeWeightL2,SSI_RTI_MergeWeightL1+SSI_RTI_MergeWeightL2+SSI_RTI_MergeWeightL3*(SSI_RTI_Ramp1ThruLanes-2))),V4*SSI_RTI_CrossThruLanes+W4*SSI_RTI_Ramp1ThruLanes+X4*IF(SSI_RTI_CrossThruLanes=1,SSI_RTI_NM_MergeWeightL1,IF(SSI_RTI_CrossThruLanes=2,SSI_RTI_NM_MergeWeightL1+SSI_RTI_NM_MergeWeightL2,SSI_RTI_NM_MergeWeightL1+SSI_RTI_NM_MergeWeightL2+SSI_RTI_NM_MergeWeightL3*(SSI_RTI_CrossThruLanes-2)))+Y4*IF(SSI_RTI_Ramp1ThruLanes=1,SSI_RTI_NM_MergeWeightL1,IF(SSI_RTI_Ramp1ThruLanes=2,SSI_RTI_NM_MergeWeightL1+SSI_RTI_NM_MergeWeightL2,SSI_RTI_NM_MergeWeightL1+SSI_RTI_NM_MergeWeightL2+SSI_RTI_NM_MergeWeightL3*(SSI_RTI_Ramp1ThruLanes-2))))) -> 1 | AB4: =IF(B4="Diverging","",SSI_RTI_VehSpeed_CrossThru) -> 0 | AC4: =IF(B4="Diverging",1,1-((60-AB4)/60*0.1/0.15)) -> 0.3333333333 | AG4: =1+AE4+AF4 -> 1 | AI4: =PRODUCT(Z4,T4,AC4,AG4) -> 0.1683333333 | AK4: =L4*R4*AI4 -> 0 | AN4: =IF(ISNUMBER(SEARCH(AN$3,$D4)),1,"") ->  | AO4: =IF(ISNUMBER(SEARCH(AO$3,$D4)),1,"") -> 1 | BE4: =IF(ISNUMBER(SEARCH(BE$3,$G4)),1,"") ->  | BF4: =IF(ISNUMBER(SEARCH(BF$3,$G4)),1,"") ->  | BL4: 1 | BW4: 1 | BX4: Crossing - LT | BY4: 1 | BZ4: 0 | CA4: 1 | CB4: 0 | CD4: 1 | CE4: 0 | CF4: 0 | CG4: 0 | CI4: 1 | CJ4: 0 | CK4: 1 | CL4: 0 | CN4: 1 | CO4: 0 | CP4: 0 | CQ4: 0
A5: 2 | B5: Crossing - LT | C5: EBT | D5: CrossT1 | E5: Cross thru | F5: WBL | G5: CrossL2 | H5: Cross left | J5: =SUMPRODUCT($AN5:$BC5,$AN$40:$BC$40) -> 0 | K5: =SUMPRODUCT($BE5:$BT5,$BE$40:$BT$40) -> 0 | L5: =PRODUCT(J5:K5) -> 0 | N5: 0 | O5: 20 | P5: 230 | Q5: =IF(B5="Nonmotorized","",SQRT(N5^2+O5^2-2*N5*O5*COS(RADIANS(P5)))/2) -> 10 | R5: 0.001443139223 | T5: 0.505 | V5: FALSE | W5: FALSE | X5: FALSE | Y5: FALSE | Z5: 1 | AB5: 0 | AC5: 0.3333333333 | AG5: =1+AE5+AF5 -> 1 | AI5: 0.1683333333 | AK5: =L5*R5*AI5 -> 0 | AN5: 1 | BI5: 1 | BW5: 2 | BX5: Crossing - LT | BY5: 1 | BZ5: 0 | CA5: 0 | CB5: 0 | CD5: 1 | CE5: 0 | CF5: 0 | CG5: 0 | CI5: 1 | CJ5: 0 | CK5: 0 | CL5: 0 | CN5: 1 | CO5: 0 | CP5: 0 | CQ5: 0
A6: 3 | B6: Crossing - LT | C6: WBL | D6: CrossL2 | E6: Cross left | F6: NBL | G6: RampL1 | H6: Signal near | J6: 0 | K6: 0 | L6: 0 | N6: 20 | O6: 15 | P6: 230 | Q6: 15.89553841 | R6: 0.00836167361 | T6: 0.505 | V6: FALSE | W6: FALSE | X6: FALSE | Y6: FALSE | Z6: 1 | AB6: 0 | AC6: 0.3333333333 | AG6: 1 | AI6: 0.1683333333 | AK6: 0 | AR6: 1 | BL6: 1 | BW6: 3 | BX6: Crossing - LT | BY6: 1 | BZ6: 0 | CA6: 1 | CB6: 0 | CD6: 1 | CE6: 0 | CF6: 0 | CG6: 0 | CI6: 1 | CJ6: 0 | CK6: 1 | CL6: 0 | CN6: 1 | CO6: 0 | CP6: 0 | CQ6: 0
A7: 4 | B7: Crossing - LT | C7: EBT | D7: CrossT1 | E7: Cross thru | F7: NBL | G7: RampL1 | H7: Signal near | J7: 0 | K7: 0 | L7: 0 | N7: 0 | O7: 15 | P7: 230 | Q7: 7.5 | R7: 0.0004845430153 | T7: 0.505 | V7: FALSE | W7: FALSE | X7: FALSE | Y7: FALSE | Z7: 1 | AB7: 0 | AC7: 0.3333333333 | AG7: 1 | AI7: 0.1683333333 | AK7: 0 | AN7: 1 | BL7: 1 | BW7: 4 | BX7: Crossing - LT | BY7: 1 | BZ7: 0 | CA7: 1 | CB7: 0 | CD7: 1 | CE7: 0 | CF7: 0 | CG7: 0 | CI7: 1 | CJ7: 0 | CK7: 1 | CL7: 0 | CN7: 1 | CO7: 0 | CP7: 0 | CQ7: 0
A8: 5 | B8: Crossing - LT | C8: WBL | D8: CrossL2 | E8: Cross left | F8: SBL | G8: RampL2 | H8: Signal far | J8: 0 | K8: 0 | L8: 0 | N8: 20 | O8: 25 | P8: 230 | Q8: 20.41927772 | R8: 0.02155528414 | T8: 0.505 | V8: FALSE | W8: FALSE | X8: FALSE | Y8: FALSE | Z8: 1 | AB8: 0 | AC8: 0.3333333333 | AG8: 1 | AI8: 0.1683333333 | AK8: 0 | AR8: 1 | BO8: 1 | BW8: 5 | BX8: Crossing - LT | BY8: 1 | BZ8: 0 | CA8: 1 | CB8: 0 | CD8: 1 | CE8: 0 | CF8: 0 | CG8: 0 | CI8: 1 | CJ8: 0 | CK8: 1 | CL8: 0 | CN8: 1 | CO8: 0 | CP8: 0 | CQ8: 0
A9: 6 | B9: Crossing - LT | C9: WBT | D9: CrossT2 | E9: Cross thru | F9: EBL | G9: CrossL1 | H9: Cross left | J9: 0 | K9: 0 | L9: 0 | N9: 0 | O9: 20 | P9: 230 | Q9: 10 | R9: 0.001443139223 | T9: 0.505 | V9: FALSE | W9: FALSE | X9: FALSE | Y9: FALSE | Z9: 1 | AB9: 0 | AC9: 0.3333333333 | AG9: 1 | AI9: 0.1683333333 | AK9: 0 | AQ9: 1 | BF9: 1 | BW9: 6 | BX9: Crossing - LT | BY9: 1 | BZ9: 0 | CA9: 0 | CB9: 0 | CD9: 1 | CE9: 0 | CF9: 0 | CG9: 0 | CI9: 1 | CJ9: 0 | CK9: 0 | CL9: 0 | CN9: 1 | CO9: 0 | CP9: 0 | CQ9: 0
A10: 7 | B10: Crossing - LT | C10: EBL | D10: CrossL1 | E10: Cross left | F10: SBL | G10: RampL2 | H10: Signal near | J10: 0 | K10: 0 | L10: 0 | N10: 20 | O10: 15 | P10: 230 | Q10: 15.89553841 | R10: 0.00836167361 | T10: 0.505 | V10: FALSE | W10: FALSE | X10: FALSE | Y10: FALSE | Z10: 1 | AB10: 0 | AC10: 0.3333333333 | AG10: 1 | AI10: 0.1683333333 | AK10: 0 | AO10: 1 | BO10: 1 | BW10: 7 | BX10: Crossing - LT | BY10: 1 | BZ10: 0 | CA10: 1 | CB10: 0 | CD10: 1 | CE10: 0 | CF10: 0 | CG10: 0 | CI10: 1 | CJ10: 0 | CK10: 1 | CL10: 0 | CN10: 1 | CO10: 0 | CP10: 0 | CQ10: 0
A11: 8 | B11: Crossing - LT | C11: WBT | D11: CrossT2 | E11: Cross thru | F11: SBL | G11: RampL2 | H11: Signal near | J11: 0 | K11: 0 | L11: 0 | N11: 0 | O11: 15 | P11: 230 | Q11: 7.5 | R11: 0.0004845430153 | T11: 0.505 | V11: FALSE | W11: FALSE | X11: FALSE | Y11: FALSE | Z11: 1 | AB11: 0 | AC11: 0.3333333333 | AG11: 1 | AI11: 0.1683333333 | AK11: 0 | AQ11: 1 | BO11: 1 | BW11: 8 | BX11: Crossing - LT | BY11: 1 | BZ11: 0 | CA11: 1 | CB11: 0 | CD11: 1 | CE11: 0 | CF11: 0 | CG11: 0 | CI11: 1 | CJ11: 0 | CK11: 1 | CL11: 0 | CN11: 1 | CO11: 0 | CP11: 0 | CQ11: 0
A12: 9 | B12: Merging | C12: WBT,NBL | D12: CrossT2,RampL1 | E12: Cross thru | F12: SBR | G12: RampR2 | H12: Signal near | J12: 0 | K12: 0 | L12: 0 | N12: 0 | O12: 15 | P12: 45 | Q12: 7.5 | R12: 0.0004845430153 | T12: 0.505 | V12: FALSE | W12: FALSE | X12: FALSE | Y12: FALSE | Z12: 1 | AB12: 0 | AC12: 0.3333333333 | AG12: 1 | AI12: 0.1683333333 | AK12: 0 | AQ12: 1 | AU12: 1 | BP12: 1 | BW12: 9 | BX12: Merging | BY12: 0 | BZ12: 0 | CA12: 1 | CB12: 0 | CD12: 0 | CE12: 0 | CF12: 1 | CG12: 0 | CI12: 0 | CJ12: 0 | CK12: 1 | CL12: 0 | CN12: 0 | CO12: 0 | CP12: 1 | CQ12: 0
A13: 10 | B13: Merging | C13: EBR | D13: CrossR1 | E13: Cross right | F13: WBL | G13: CrossL2 | H13: Cross left | J13: 0 | K13: 0 | L13: 0 | N13: 15 | O13: 20 | P13: 45 | Q13: 7.084065416 | R13: 0.0003902292327 | T13: =SSI_RTI_PermFactor -> 1 | V13: FALSE | W13: FALSE | X13: FALSE | Y13: FALSE | Z13: 1 | AB13: 0 | AC13: 0.3333333333 | AG13: 1 | AI13: 0.3333333333 | AK13: 0 | AP13: 1 | BI13: 1 | BW13: 10 | BX13: Merging | BY13: 0 | BZ13: 0 | CA13: 0 | CB13: 1 | CD13: 0 | CE13: 0 | CF13: 0 | CG13: 1 | CI13: 0 | CJ13: 0 | CK13: 0 | CL13: 1 | CN13: 0 | CO13: 0 | CP13: 0 | CQ13: 1
A14: 11 | B14: Merging | C14: WBT | D14: CrossT2 | E14: Cross thru | F14: NBL | G14: RampL1 | H14: Signal far | J14: 0 | K14: 0 | L14: 0 | N14: 0 | O14: 25 | P14: 45 | Q14: 12.5 | R14: 0.003363755169 | T14: =SSI_RTI_ProtFactor -> 0.505 | V14: FALSE | W14: FALSE | X14: FALSE | Y14: FALSE | Z14: 1 | AB14: 0 | AC14: 0.3333333333 | AG14: 1 | AI14: 0.1683333333 | AK14: 0 | AQ14: 1 | BL14: 1 | BW14: 11 | BX14: Merging | BY14: 1 | BZ14: 0 | CA14: 1 | CB14: 0 | CD14: 0 | CE14: 0 | CF14: 1 | CG14: 0 | CI14: 1 | CJ14: 0 | CK14: 1 | CL14: 0 | CN14: 0 | CO14: 0 | CP14: 1 | CQ14: 0
A15: 12 | B15: Merging | C15: EBT | D15: CrossT1 | E15: Cross thru | F15: SBL | G15: RampL2 | H15: Signal far | J15: 0 | K15: 0 | L15: 0 | N15: 0 | O15: 25 | P15: 45 | Q15: 12.5 | R15: 0.003363755169 | T15: =SSI_RTI_ProtFactor -> 0.505 | V15: FALSE | W15: FALSE | X15: FALSE | Y15: FALSE | Z15: 1 | AB15: 0 | AC15: 0.3333333333 | AG15: 1 | AI15: 0.1683333333 | AK15: 0 | AN15: 1 | BO15: 1 | BW15: 12 | BX15: Merging | BY15: 1 | BZ15: 0 | CA15: 1 | CB15: 0 | CD15: 0 | CE15: 0 | CF15: 1 | CG15: 0 | CI15: 1 | CJ15: 0 | CK15: 1 | CL15: 0 | CN15: 0 | CO15: 0 | CP15: 1 | CQ15: 0
A16: 13 | B16: Merging | C16: EBT,SBL | D16: CrossT1,RampL2 | E16: Cross thru | F16: NBR | G16: RampR1 | H16: Signal near | J16: 0 | K16: 0 | L16: 0 | N16: 0 | O16: 15 | P16: 45 | Q16: 7.5 | R16: 0.0004845430153 | T16: =SSI_RTI_ProtFactor -> 0.505 | V16: FALSE | W16: FALSE | X16: FALSE | Y16: FALSE | Z16: 1 | AB16: 0 | AC16: 0.3333333333 | AG16: 1 | AI16: 0.1683333333 | AK16: 0 | AN16: 1 | AX16: 1 | BM16: 1 | BW16: 13 | BX16: Merging | BY16: 0 | BZ16: 0 | CA16: 1 | CB16: 0 | CD16: 0 | CE16: 0 | CF16: 1 | CG16: 0 | CI16: 0 | CJ16: 0 | CK16: 1 | CL16: 0 | CN16: 0 | CO16: 0 | CP16: 1 | CQ16: 0
A17: 14 | B17: Merging | C17: WBR | D17: CrossR2 | E17: Cross right | F17: WBL | G17: CrossL2 | H17: Cross left | J17: 0 | K17: 0 | L17: 0 | N17: 15 | O17: 20 | P17: 45 | Q17: 7.084065416 | R17: 0.0003902292327 | T17: =SSI_RTI_PermFactor -> 1 | V17: FALSE | W17: FALSE | X17: FALSE | Y17: FALSE | Z17: 1 | AB17: 0 | AC17: 0.3333333333 | AG17: 1 | AI17: 0.3333333333 | AK17: 0 | AS17: 1 | BI17: 1 | BW17: 14 | BX17: Merging | BY17: 0 | BZ17: 0 | CA17: 0 | CB17: 1 | CD17: 0 | CE17: 0 | CF17: 0 | CG17: 1 | CI17: 0 | CJ17: 0 | CK17: 0 | CL17: 1 | CN17: 0 | CO17: 0 | CP17: 0 | CQ17: 1
A18: 15 | B18: Diverging | C18: SBR | D18: RampR2 | E18: Signal near | F18: SBL | G18: RampL2 | H18: Signal near | J18: 0 | K18: 0 | L18: 0 | N18: 15 | O18: 15 | P18: 10 | Q18: 1.307336141 | R18: 6.406138808e-07 | T18: 1 | V18: FALSE | W18: FALSE | X18: FALSE | Y18: FALSE | Z18: 1 | AC18: 1 | AG18: 1 | AI18: 1 | AK18: 0 | AY18: 1 | BO18: 1 | BW18: 15 | BX18: Diverging | BY18: 0 | BZ18: 0 | CA18: 0 | CB18: 0 | CD18: 0 | CE18: 0 | CF18: 0 | CG18: 0 | CI18: 0 | CJ18: 0 | CK18: 0 | CL18: 0 | CN18: 0 | CO18: 0 | CP18: 0 | CQ18: 0
A19: 16 | B19: Diverging | C19: EBT | D19: CrossT1 | E19: Cross thru | F19: EBL | G19: CrossL1 | H19: Cross left | J19: 0 | K19: 0 | L19: 0 | N19: 0 | O19: 20 | P19: 10 | Q19: 10 | R19: 0.001443139223 | T19: 1 | V19: FALSE | W19: FALSE | X19: FALSE | Y19: FALSE | Z19: 1 | AC19: 1 | AG19: 1 | AI19: 1 | AK19: 0 | AN19: 1 | BF19: 1 | BW19: 16 | BX19: Diverging | BY19: 0 | BZ19: 0 | CA19: 0 | CB19: 0 | CD19: 0 | CE19: 0 | CF19: 0 | CG19: 0 | CI19: 0 | CJ19: 0 | CK19: 0 | CL19: 0 | CN19: 0 | CO19: 0 | CP19: 0 | CQ19: 0
A20: 17 | B20: Diverging | C20: EBT | D20: CrossT1 | E20: Cross thru | F20: EBR | G20: CrossR1 | H20: Cross right | J20: 0 | K20: 0 | L20: 0 | N20: 0 | O20: 15 | P20: 10 | Q20: 7.5 | R20: 0.0004845430153 | T20: 1 | V20: FALSE | W20: FALSE | X20: FALSE | Y20: FALSE | Z20: 1 | AC20: 1 | AG20: 1 | AI20: 1 | AK20: 0 | AN20: 1 | AO20: =IF(ISNUMBER(SEARCH(AO$3,$D20)),1,"") ->  | BF20: =IF(ISNUMBER(SEARCH(BF$3,$G20)),1,"") ->  | BG20: 1 | BW20: 17 | BX20: Diverging | BY20: 0 | BZ20: 0 | CA20: 0 | CB20: 0 | CD20: 0 | CE20: 0 | CF20: 0 | CG20: 0 | CI20: 0 | CJ20: 0 | CK20: 0 | CL20: 0 | CN20: 0 | CO20: 0 | CP20: 0 | CQ20: 0
A21: 18 | B21: Diverging | C21: NBR | D21: RampR1 | E21: Signal near | F21: NBL | G21: RampL1 | H21: Signal near | J21: 0 | K21: 0 | L21: 0 | N21: 15 | O21: 15 | P21: 10 | Q21: 1.307336141 | R21: 6.406138808e-07 | T21: 1 | V21: FALSE | W21: FALSE | X21: FALSE | Y21: FALSE | Z21: 1 | AC21: 1 | AG21: 1 | AI21: 1 | AK21: 0 | AV21: 1 | BL21: 1 | BW21: 18 | BX21: Diverging | BY21: 0 | BZ21: 0 | CA21: 0 | CB21: 0 | CD21: 0 | CE21: 0 | CF21: 0 | CG21: 0 | CI21: 0 | CJ21: 0 | CK21: 0 | CL21: 0 | CN21: 0 | CO21: 0 | CP21: 0 | CQ21: 0
A22: 19 | B22: Diverging | C22: WBT | D22: CrossT2 | E22: Cross thru | F22: WBL | G22: CrossL2 | H22: Cross left | J22: 0 | K22: 0 | L22: 0 | N22: 0 | O22: 20 | P22: 10 | Q22: 10 | R22: 0.001443139223 | T22: 1 | V22: FALSE | W22: FALSE | X22: FALSE | Y22: FALSE | Z22: 1 | AC22: 1 | AG22: 1 | AI22: 1 | AK22: 0 | AQ22: 1 | BI22: 1 | BW22: 19 | BX22: Diverging | BY22: 0 | BZ22: 0 | CA22: 0 | CB22: 0 | CD22: 0 | CE22: 0 | CF22: 0 | CG22: 0 | CI22: 0 | CJ22: 0 | CK22: 0 | CL22: 0 | CN22: 0 | CO22: 0 | CP22: 0 | CQ22: 0
A23: 20 | B23: Diverging | C23: WBT | D23: CrossT2 | E23: Cross thru | F23: WBR | G23: CrossR2 | H23: Cross right | J23: 0 | K23: 0 | L23: 0 | N23: 0 | O23: 15 | P23: 10 | Q23: 7.5 | R23: 0.0004845430153 | T23: 1 | V23: FALSE | W23: FALSE | X23: FALSE | Y23: FALSE | Z23: 1 | AC23: 1 | AG23: 1 | AI23: 1 | AK23: 0 | AQ23: 1 | BJ23: 1 | BW23: 20 | BX23: Diverging | BY23: 0 | BZ23: 0 | CA23: 0 | CB23: 0 | CD23: 0 | CE23: 0 | CF23: 0 | CG23: 0 | CI23: 0 | CJ23: 0 | CK23: 0 | CL23: 0 | CN23: 0 | CO23: 0 | CP23: 0 | CQ23: 0
A24: 21 | B24: Nonmotorized | D24: RampNM2 | E24: Nonmotorized | F24: SBL | G24: RampL2 | H24: Signal near | J24: 175 | K24: 0 | L24: 0 | N24: 0 | O24: 15 | R24: 0.1205004039 | T24: =SSI_RTI_ProtFactor -> 0.505 | V24: FALSE | W24: FALSE | X24: FALSE | Y24: FALSE | Z24: 1 | AB24: =IF(B24="Diverging","",SSI_RTI_VehSpeed_SignalNear) -> 15 | AC24: 0.5 | AG24: 1 | AI24: 0.2525 | AK24: 0 | BC24: 1 | BO24: 1 | BW24: 21 | BX24: Nonmotorized | BY24: 0 | BZ24: 1 | CA24: 0 | CB24: 0 | CD24: 0 | CE24: 1 | CF24: 0 | CG24: 0 | CI24: 0 | CJ24: 1 | CK24: 0 | CL24: 0 | CN24: 0 | CO24: 1 | CP24: 0 | CQ24: 0
A25: 22 | B25: Nonmotorized | D25: RampNM2 | E25: Nonmotorized | F25: SBR | G25: RampR2 | H25: Signal near | J25: 175 | K25: 0 | L25: 0 | N25: 0 | O25: 15 | R25: 0.1205004039 | T25: 0.505 | V25: FALSE | W25: FALSE | X25: FALSE | Y25: FALSE | Z25: 1 | AB25: =IF(B25="Diverging","",SSI_RTI_VehSpeed_SignalNear) -> 15 | AC25: 0.5 | AG25: 1 | AI25: 0.2525 | AK25: =L25*R25*AI25 -> 0 | BC25: 1 | BP25: 1 | BW25: 22 | BX25: Nonmotorized | BY25: 0 | BZ25: 1 | CA25: 0 | CB25: 0 | CD25: 0 | CE25: 1 | CF25: 0 | CG25: 0 | CI25: 0 | CJ25: 1 | CK25: 0 | CL25: 0 | CN25: 0 | CO25: 1 | CP25: 0 | CQ25: 0
A26: 23 | B26: Nonmotorized | D26: CrossNM1 | E26: Nonmotorized | F26: WBT | G26: CrossT2 | H26: Cross thru | J26: 175 | K26: 0 | L26: 0 | N26: 0 | O26: 0 | R26: 0.0209755324 | T26: 0.505 | V26: FALSE | W26: FALSE | X26: FALSE | Y26: FALSE | Z26: 1 | AB26: 0 | AC26: 0.3333333333 | AE26: 1 | AG26: 2 | AI26: 0.3366666667 | AK26: 0 | AZ26: 1 | BH26: 1 | BW26: 23 | BX26: Nonmotorized | BY26: 2 | BZ26: 0 | CA26: 0 | CB26: 1 | CD26: 1 | CE26: 0 | CF26: 0 | CG26: 1 | CI26: 2 | CJ26: 0 | CK26: 0 | CL26: 1 | CN26: 1 | CO26: 0 | CP26: 0 | CQ26: 1
A27: 24 | B27: Nonmotorized | D27: CrossNM1 | E27: Nonmotorized | F27: NBL | G27: RampL1 | H27: Signal far | J27: 175 | K27: 0 | L27: 0 | N27: 0 | O27: 25 | R27: 0.3206687935 | T27: =IF(SSI_RTI_PedExclusive="Yes",SSI_RTI_ProtFactor,SSI_RTI_ProtPermFactor) -> 0.925 | V27: FALSE | W27: FALSE | X27: FALSE | Y27: FALSE | Z27: 1 | AB27: 0 | AC27: 0.3333333333 | AE27: 1 | AG27: 2 | AI27: 0.6166666667 | AK27: 0 | AZ27: 1 | BL27: 1 | BW27: 24 | BX27: Nonmotorized | BY27: 2 | BZ27: 0 | CA27: 0 | CB27: 1 | CD27: 1 | CE27: 0 | CF27: 0 | CG27: 1 | CI27: 2 | CJ27: 0 | CK27: 0 | CL27: 1 | CN27: 1 | CO27: 0 | CP27: 0 | CQ27: 1
A28: 25 | B28: Nonmotorized | D28: CrossNM1 | E28: Nonmotorized | F28: EBL | G28: CrossL1 | H28: Cross left | J28: 175 | K28: 0 | L28: 0 | N28: 0 | O28: 20 | R28: 0.2027491292 | T28: 0.505 | V28: FALSE | W28: FALSE | X28: FALSE | Y28: FALSE | Z28: 1 | AB28: 0 | AC28: 0.3333333333 | AE28: 1 | AG28: 2 | AI28: 0.3366666667 | AK28: 0 | AZ28: 1 | BF28: 1 | BW28: 25 | BX28: Nonmotorized | BY28: 2 | BZ28: 0 | CA28: 0 | CB28: 1 | CD28: 1 | CE28: 0 | CF28: 0 | CG28: 0 | CI28: 2 | CJ28: 0 | CK28: 0 | CL28: 1 | CN28: 1 | CO28: 0 | CP28: 0 | CQ28: 0
A29: 26 | B29: Nonmotorized | D29: CrossNM1 | E29: Nonmotorized | F29: EBT | G29: CrossT1 | H29: Cross thru | J29: 175 | K29: 0 | L29: 0 | N29: 0 | O29: 0 | R29: 0.0209755324 | T29: 0.505 | V29: FALSE | W29: FALSE | X29: FALSE | Y29: FALSE | Z29: 1 | AB29: 0 | AC29: 0.3333333333 | AE29: 1 | AG29: 2 | AI29: 0.3366666667 | AK29: 0 | AZ29: 1 | BE29: 1 | BW29: 26 | BX29: Nonmotorized | BY29: 2 | BZ29: 0 | CA29: 0 | CB29: 1 | CD29: 1 | CE29: 0 | CF29: 0 | CG29: 0 | CI29: 2 | CJ29: 0 | CK29: 0 | CL29: 1 | CN29: 1 | CO29: 0 | CP29: 0 | CQ29: 0
A30: 27 | B30: Nonmotorized | D30: RampNM1 | E30: Nonmotorized | F30: EBR | G30: CrossR1 | H30: Cross right | J30: 175 | K30: 0 | L30: 0 | N30: 0 | O30: 15 | R30: 0.1205004039 | T30: =SSI_RTI_PermFactor -> 1 | V30: FALSE | W30: FALSE | X30: FALSE | Y30: FALSE | Z30: 1 | AB30: 0 | AC30: 0.3333333333 | AG30: 1 | AI30: 0.3333333333 | AK30: 0 | AN30: =IF(ISNUMBER(SEARCH(AN$3,$D30)),1,"") ->  | BB30: 1 | BE30: =IF(ISNUMBER(SEARCH(BE$3,$G30)),1,"") ->  | BG30: 1 | BW30: 27 | BX30: Nonmotorized | BY30: 0 | BZ30: 1 | CA30: 0 | CB30: 0 | CD30: 0 | CE30: 1 | CF30: 0 | CG30: 0 | CI30: 0 | CJ30: 1 | CK30: 0 | CL30: 0 | CN30: 0 | CO30: 1 | CP30: 0 | CQ30: 0
A31: 28 | B31: Nonmotorized | D31: RampNM1 | E31: Nonmotorized | F31: WBL | G31: CrossL2 | H31: Cross left | J31: 175 | K31: 0 | L31: 0 | N31: 0 | O31: 20 | R31: 0.2027491292 | T31: 0.505 | V31: FALSE | W31: FALSE | X31: FALSE | Y31: FALSE | Z31: 1 | AB31: 0 | AC31: 0.3333333333 | AG31: 1 | AI31: 0.1683333333 | AK31: 0 | BB31: 1 | BI31: 1 | BW31: 28 | BX31: Nonmotorized | BY31: 0 | BZ31: 1 | CA31: 0 | CB31: 0 | CD31: 0 | CE31: 1 | CF31: 0 | CG31: 0 | CI31: 0 | CJ31: 1 | CK31: 0 | CL31: 0 | CN31: 0 | CO31: 1 | CP31: 0 | CQ31: 0
